{"text_format":"1","workbook":"xlsx","n_sheets":2,"sheets":["Planilha modelo","Exportar Planilha"],"not_rendered":{"charts":0,"images":0,"macros":1,"external_links":1,"defined_names":6,"comments":1,"pivot_tables":0},"unopened":[],"bounds":{"document_bytes":16777216,"sheet_cells":100000,"rows_first":2000,"rows_last":500,"rows_between":2000,"halvings":0,"cell_chars":16384,"cell_head_chars":4096},"cells_cut":0,"cells_raw":0,"read":"whole","date_system":"1900"}

{"sheet":"Planilha modelo","index":0,"n_rows":10,"n_cols":5,"rows_kept":10,"cut":false,"hidden":false,"merged":[[8,1,8,4]]}
[]
[]
[]
[]
[]
[]
[]
[]
[null,"Dados Gerais"]
[null,"Parcela","Leilão","Produto","Percentual Declarado"]

{"sheet":"Exportar Planilha","index":1,"n_rows":1388,"n_cols":9,"rows_kept":1388,"cut":false,"hidden":true,"merged":[]}
["Referência","PERFIL_PROPRIETÁRIO","NOME_PARCELA","CD_PARC_USIN","CD_LEIL","CD_PROD","NM_LEIL","NM_PROD","Coluna1"]
[{"$f":"Tabela1[[#This Row],[NM_LEIL]]&Tabela1[[#This Row],[CD_PARC_USIN]]","v":"13º Leilão de Energia Existente202"},"FURNAS","PEIXOTO",202,153,512,"13º Leilão de Energia Existente","2019-DSP1395",{"$f":"COUNTIF(D:D,Tabela1[[#This Row],[CD_PARC_USIN]])","v":2}]
[{"$f":"Tabela1[[#This Row],[NM_LEIL]]&Tabela1[[#This Row],[CD_PARC_USIN]]","v":"4º Leilão de Energia Existente202"},"FURNAS","PEIXOTO",202,4,488,"4º Leilão de Energia Existente","2019-DSP1395",{"$f":"COUNTIF(D:D,Tabela1[[#This Row],[CD_PARC_USIN]])","v":2}]
[{"$f":"Tabela1[[#This Row],[NM_LEIL]]&Tabela1[[#This Row],[CD_PARC_USIN]]","v":"5º Leilão de Energia Nova210"},"FURNAS","SANTA CRUZ-FURNAS",210,12,23,"5º Leilão de Energia Nova","2012-15",{"$f":"COUNTIF(D:D,Tabela1[[#This Row],[CD_PARC_USIN]])","v":1}]
[{"$f":"Tabela1[[#This Row],[NM_LEIL]]&Tabela1[[#This Row],[CD_PARC_USIN]]","v":"1º Leilão de Energia Nova227"},"CESP","PORTO PRIMAVERA",227,5,11,"1º Leilão de Energia Nova","2010-30",{"$f":"COUNTIF(D:D,Tabela1[[#This Row],[CD_PARC_USIN]])","v":2}]
[{"$f":"Tabela1[[#This Row],[NM_LEIL]]&Tabela1[[#This Row],[CD_PARC_USIN]]","v":"2º Leilão de Energia Nova227"},"CESP","PORTO PRIMAVERA",227,7,14,"2º Leilão de Energia Nova","2009-30",{"$f":"COUNTIF(D:D,Tabela1[[#This Row],[CD_PARC_USIN]])","v":2}]
[{"$f":"Tabela1[[#This Row],[NM_LEIL]]&Tabela1[[#This Row],[CD_PARC_USIN]]","v":"1º Leilão de Energia Nova334"},"EMAE PORTO GOES","PORTO GOES",334,5,7,"1º Leilão de Energia Nova","2008-30",{"$f":"COUNTIF(D:D,Tabela1[[#This Row],[CD_PARC_USIN]])","v":3}]
[{"$f":"Tabela1[[#This Row],[NM_LEIL]]&Tabela1[[#This Row],[CD_PARC_USIN]]","v":"1º Leilão de Energia Nova334"},"EMAE PORTO GOES","PORTO GOES",334,5,9,"1º Leilão de Energia Nova","2009-30",{"$f":"COUNTIF(D:D,Tabela1[[#This Row],[CD_PARC_USIN]])","v":3}]
[{"$f":"Tabela1[[#This Row],[NM_LEIL]]&Tabela1[[#This Row],[CD_PARC_USIN]]","v":"1º Leilão de Energia Nova334"},"EMAE PORTO GOES","PORTO GOES",334,5,11,"1º Leilão de Energia Nova","2010-30",{"$f":"COUNTIF(D:D,Tabela1[[#This Row],[CD_PARC_USIN]])","v":3}]
[{"$f":"Tabela1[[#This Row],[NM_LEIL]]&Tabela1[[#This Row],[CD_PARC_USIN]]","v":"1º Leilão de Energia Nova352"},"ENGIE BR GER","MACHADINHO",352,5,11,"1º Leilão de Energia Nova","2010-30",{"$f":"COUNTIF(D:D,Tabela1[[#This Row],[CD_PARC_USIN]])","v":1}]
[{"$f":"Tabela1[[#This Row],[NM_LEIL]]&Tabela1[[#This Row],[CD_PARC_USIN]]","v":"2º Leilão de Energia Nova353"},"ENGIE BR GER","CANA BRAVA",353,7,14,"2º Leilão de Energia Nova","2009-30",{"$f":"COUNTIF(D:D,Tabela1[[#This Row],[CD_PARC_USIN]])","v":1}]
[{"$f":"Tabela1[[#This Row],[NM_LEIL]]&Tabela1[[#This Row],[CD_PARC_USIN]]","v":"1º Leilão de Energia Nova368"},"ENERGEST","MASCARENHAS",368,5,7,"1º Leilão de Energia Nova","2008-30",{"$f":"COUNTIF(D:D,Tabela1[[#This Row],[CD_PARC_USIN]])","v":1}]
[{"$f":"Tabela1[[#This Row],[NM_LEIL]]&Tabela1[[#This Row],[CD_PARC_USIN]]","v":"1º Leilão de Energia Nova414"},"ENGIE BR GER","ITA",414,5,11,"1º Leilão de Energia Nova","2010-30",{"$f":"COUNTIF(D:D,Tabela1[[#This Row],[CD_PARC_USIN]])","v":2}]
[{"$f":"Tabela1[[#This Row],[NM_LEIL]]&Tabela1[[#This Row],[CD_PARC_USIN]]","v":"2º Leilão de Energia Nova414"},"ENGIE BR GER","ITA",414,7,14,"2º Leilão de Energia Nova","2009-30",{"$f":"COUNTIF(D:D,Tabela1[[#This Row],[CD_PARC_USIN]])","v":2}]
[{"$f":"Tabela1[[#This Row],[NM_LEIL]]&Tabela1[[#This Row],[CD_PARC_USIN]]","v":"1º Leilão de Energia Nova450"},"FURNAS","MANSO",450,5,7,"1º Leilão de Energia Nova","2008-30",{"$f":"COUNTIF(D:D,Tabela1[[#This Row],[CD_PARC_USIN]])","v":2}]
[{"$f":"Tabela1[[#This Row],[NM_LEIL]]&Tabela1[[#This Row],[CD_PARC_USIN]]","v":"1º Leilão de Energia Nova450"},"FURNAS","MANSO",450,5,11,"1º Leilão de Energia Nova","2010-30",{"$f":"COUNTIF(D:D,Tabela1[[#This Row],[CD_PARC_USIN]])","v":2}]
[{"$f":"Tabela1[[#This Row],[NM_LEIL]]&Tabela1[[#This Row],[CD_PARC_USIN]]","v":"8º Leilão de Energia Nova508"},"STATKRAFT G I5","RIO BONITO",508,20,30,"8º Leilão de Energia Nova","2012-30",{"$f":"COUNTIF(D:D,Tabela1[[#This Row],[CD_PARC_USIN]])","v":1}]
[{"$f":"Tabela1[[#This Row],[NM_LEIL]]&Tabela1[[#This Row],[CD_PARC_USIN]]","v":"3º Leilão de Fontes Alternativas524"},"RAIZEN CSP VALE DO ROSARIO I5","VALE DO ROSÁRIO",524,162,445,"3º Leilão de Fontes Alternativas","2016-20",{"$f":"COUNTIF(D:D,Tabela1[[#This Row],[CD_PARC_USIN]])","v":2}]
[{"$f":"Tabela1[[#This Row],[NM_LEIL]]&Tabela1[[#This Row],[CD_PARC_USIN]]","v":"4º Leilão de Energia de Reserva524"},"RAIZEN CSP VALE DO ROSARIO I5","VALE DO ROSÁRIO",524,54,109,"4º Leilão de Energia de Reserva","2014-20",{"$f":"COUNTIF(D:D,Tabela1[[#This Row],[CD_PARC_USIN]])","v":2}]
[{"$f":"Tabela1[[#This Row],[NM_LEIL]]&Tabela1[[#This Row],[CD_PARC_USIN]]","v":"25º Leilão de Energia Nova545"},"ALBIOMA ESPLANADA I5","JALLES MACHADO",545,172,463,"25º Leilão de Energia Nova","2021-20",{"$f":"COUNTIF(D:D,Tabela1[[#This Row],[CD_PARC_USIN]])","v":2}]
[{"$f":"Tabela1[[#This Row],[NM_LEIL]]&Tabela1[[#This Row],[CD_PARC_USIN]]","v":"3º Leilão de Fontes Alternativas545"},"ALBIOMA ESPLANADA I5","JALLES MACHADO",545,162,445,"3º Leilão de Fontes Alternativas","2016-20",{"$f":"COUNTIF(D:D,Tabela1[[#This Row],[CD_PARC_USIN]])","v":2}]
[{"$f":"Tabela1[[#This Row],[NM_LEIL]]&Tabela1[[#This Row],[CD_PARC_USIN]]","v":"1º Leilão de Fontes Alternativas553"},"CPFL BIOESTER I5","ESTER",553,9,19,"1º Leilão de Fontes Alternativas","2010-15",{"$f":"COUNTIF(D:D,Tabela1[[#This Row],[CD_PARC_USIN]])","v":1}]
[{"$f":"Tabela1[[#This Row],[NM_LEIL]]&Tabela1[[#This Row],[CD_PARC_USIN]]","v":"4º Leilão de Energia Nova568"},"ITAPEBI","ITAPEBI - HIDR",568,10,21,"4º Leilão de Energia Nova","2010-15",{"$f":"COUNTIF(D:D,Tabela1[[#This Row],[CD_PARC_USIN]])","v":1}]
[{"$f":"Tabela1[[#This Row],[NM_LEIL]]&Tabela1[[#This Row],[CD_PARC_USIN]]","v":"26º Leilão de Energia Nova8003"},"PITANGUEIRA I1","PITANGUEIRAS",8003,173,468,"26º Leilão de Energia Nova","2023-25",{"$f":"COUNTIF(D:D,Tabela1[[#This Row],[CD_PARC_USIN]])","v":1}]
[{"$f":"Tabela1[[#This Row],[NM_LEIL]]&Tabela1[[#This Row],[CD_PARC_USIN]]","v":"3º Leilão de Energia de Reserva8045"},"TEREOS SJCOLINA","SAO JOSE COLINA",8045,53,107,"3º Leilão de Energia de Reserva","2013-15",{"$f":"COUNTIF(D:D,Tabela1[[#This Row],[CD_PARC_USIN]])","v":1}]
[{"$f":"Tabela1[[#This Row],[NM_LEIL]]&Tabela1[[#This Row],[CD_PARC_USIN]]","v":"1º Leilão de Energia Nova8056"},"CERAN","MONTE CLARO",8056,5,11,"1º Leilão de Energia Nova","2010-30",{"$f":"COUNTIF(D:D,Tabela1[[#This Row],[CD_PARC_USIN]])","v":1}]
[{"$f":"Tabela1[[#This Row],[NM_LEIL]]&Tabela1[[#This Row],[CD_PARC_USIN]]","v":"5º Leilão de Energia Nova8063"},"FURNAS 5LN12","SANTA CRUZ NOVA",8063,12,23,"5º Leilão de Energia Nova","2012-15",{"$f":"COUNTIF(D:D,Tabela1[[#This Row],[CD_PARC_USIN]])","v":1}]
[{"$f":"Tabela1[[#This Row],[NM_LEIL]]&Tabela1[[#This Row],[CD_PARC_USIN]]","v":"29º Leilão de Energia Nova8073"},"CEMIG GERACAO POCO FUNDO I5","POCO FUNDO",8073,178,484,"29º Leilão de Energia Nova","2023-30",{"$f":"COUNTIF(D:D,Tabela1[[#This Row],[CD_PARC_USIN]])","v":1}]
[{"$f":"Tabela1[[#This Row],[NM_LEIL]]&Tabela1[[#This Row],[CD_PARC_USIN]]","v":"29º Leilão de Energia Nova8076"},"CELESC GERA I5","CELSO RAMOS",8076,178,484,"29º Leilão de Energia Nova","2023-30",{"$f":"COUNTIF(D:D,Tabela1[[#This Row],[CD_PARC_USIN]])","v":1}]
[{"$f":"Tabela1[[#This Row],[NM_LEIL]]&Tabela1[[#This Row],[CD_PARC_USIN]]","v":"2º Leilão de Energia Nova8119"},"BAESA","BARRA GRANDE",8119,7,14,"2º Leilão de Energia Nova","2009-30",{"$f":"COUNTIF(D:D,Tabela1[[#This Row],[CD_PARC_USIN]])","v":1}]
[{"$f":"Tabela1[[#This Row],[NM_LEIL]]&Tabela1[[#This Row],[CD_PARC_USIN]]","v":"2º Leilão de Energia Nova8145"},"CEMIG GERACAO","IRAPE",8145,7,14,"2º Leilão de Energia Nova","2009-30",{"$f":"COUNTIF(D:D,Tabela1[[#This Row],[CD_PARC_USIN]])","v":1}]
[{"$f":"Tabela1[[#This Row],[NM_LEIL]]&Tabela1[[#This Row],[CD_PARC_USIN]]","v":"2º Leilão de Fontes Alternativas8155"},"ACEP ENBPAR","MANDU Proinfa",8155,25,38,"2º Leilão de Fontes Alternativas","2013-20",{"$f":"COUNTIF(D:D,Tabela1[[#This Row],[CD_PARC_USIN]])","v":1}]
[{"$f":"Tabela1[[#This Row],[NM_LEIL]]&Tabela1[[#This Row],[CD_PARC_USIN]]","v":"25º Leilão de Energia Nova8162"},"ACEP ENBPAR","JALLES MACH -ACEP",8162,172,463,"25º Leilão de Energia Nova","2021-20",{"$f":"COUNTIF(D:D,Tabela1[[#This Row],[CD_PARC_USIN]])","v":2}]
[{"$f":"Tabela1[[#This Row],[NM_LEIL]]&Tabela1[[#This Row],[CD_PARC_USIN]]","v":"3º Leilão de Fontes Alternativas8162"},"ACEP ENBPAR","JALLES MACH -ACEP",8162,162,445,"3º Leilão de Fontes Alternativas","2016-20",{"$f":"COUNTIF(D:D,Tabela1[[#This Row],[CD_PARC_USIN]])","v":2}]
[{"$f":"Tabela1[[#This Row],[NM_LEIL]]&Tabela1[[#This Row],[CD_PARC_USIN]]","v":"1º Leilão de Energia Nova8209"},"PIE - RP 1LD","PIE-RP",8209,5,10,"1º Leilão de Energia Nova","2009-15",{"$f":"COUNTIF(D:D,Tabela1[[#This Row],[CD_PARC_USIN]])","v":1}]
[{"$f":"Tabela1[[#This Row],[NM_LEIL]]&Tabela1[[#This Row],[CD_PARC_USIN]]","v":"1º Leilão de Energia Nova8238"},"TERMO INTERLAGOS I5","INTERLAGOS",8238,5,10,"1º Leilão de Energia Nova","2009-15",{"$f":"COUNTIF(D:D,Tabela1[[#This Row],[CD_PARC_USIN]])","v":1}]
[{"$f":"Tabela1[[#This Row],[NM_LEIL]]&Tabela1[[#This Row],[CD_PARC_USIN]]","v":"2º Leilão de Energia Nova8276"},"SJC BIOENERGIA","QUIRINOPOLIS-QUIRI",8276,7,15,"2º Leilão de Energia Nova","2009-15",{"$f":"COUNTIF(D:D,Tabela1[[#This Row],[CD_PARC_USIN]])","v":2}]
[{"$f":"Tabela1[[#This Row],[NM_LEIL]]&Tabela1[[#This Row],[CD_PARC_USIN]]","v":"3º Leilão de Energia de Reserva8276"},"SJC BIOENERGIA","QUIRINOPOLIS-QUIRI",8276,53,107,"3º Leilão de Energia de Reserva","2013-15",{"$f":"COUNTIF(D:D,Tabela1[[#This Row],[CD_PARC_USIN]])","v":2}]
[{"$f":"Tabela1[[#This Row],[NM_LEIL]]&Tabela1[[#This Row],[CD_PARC_USIN]]","v":"4º Leilão de Energia Nova8277"},"TERMOCAB 4LN10","TERMOCABO",8277,10,21,"4º Leilão de Energia Nova","2010-15",{"$f":"COUNTIF(D:D,Tabela1[[#This Row],[CD_PARC_USIN]])","v":1}]
[{"$f":"Tabela1[[#This Row],[NM_LEIL]]&Tabela1[[#This Row],[CD_PARC_USIN]]","v":"1º Leilão de Energia Nova8286"},"PETROB PIE 1LD","TERMORIO",8286,5,12,"1º Leilão de Energia Nova","2010-15",{"$f":"COUNTIF(D:D,Tabela1[[#This Row],[CD_PARC_USIN]])","v":1}]
[{"$f":"Tabela1[[#This Row],[NM_LEIL]]&Tabela1[[#This Row],[CD_PARC_USIN]]","v":"1º Leilão de Energia Nova8288"},"INVESTCO","LAJEADO INVESTCO",8288,5,7,"1º Leilão de Energia Nova","2008-30",{"$f":"COUNTIF(D:D,Tabela1[[#This Row],[CD_PARC_USIN]])","v":2}]
[{"$f":"Tabela1[[#This Row],[NM_LEIL]]&Tabela1[[#This Row],[CD_PARC_USIN]]","v":"1º Leilão de Energia Nova8288"},"INVESTCO","LAJEADO INVESTCO",8288,5,9,"1º Leilão de Energia Nova","2009-30",{"$f":"COUNTIF(D:D,Tabela1[[#This Row],[CD_PARC_USIN]])","v":2}]
[{"$f":"Tabela1[[#This Row],[NM_LEIL]]&Tabela1[[#This Row],[CD_PARC_USIN]]","v":"1º Leilão de Energia Nova8289"},"LAJEADO ENERG","LAJEADO REDE",8289,5,7,"1º Leilão de Energia Nova","2008-30",{"$f":"COUNTIF(D:D,Tabela1[[#This Row],[CD_PARC_USIN]])","v":2}]
[{"$f":"Tabela1[[#This Row],[NM_LEIL]]&Tabela1[[#This Row],[CD_PARC_USIN]]","v":"1º Leilão de Energia Nova8289"},"LAJEADO ENERG","LAJEADO REDE",8289,5,9,"1º Leilão de Energia Nova","2009-30",{"$f":"COUNTIF(D:D,Tabela1[[#This Row],[CD_PARC_USIN]])","v":2}]
[{"$f":"Tabela1[[#This Row],[NM_LEIL]]&Tabela1[[#This Row],[CD_PARC_USIN]]","v":"1º Leilão de Energia Nova8290"},"CEB LAJEADO","LAJEADO CEB",8290,5,7,"1º Leilão de Energia Nova","2008-30",{"$f":"COUNTIF(D:D,Tabela1[[#This Row],[CD_PARC_USIN]])","v":2}]
[{"$f":"Tabela1[[#This Row],[NM_LEIL]]&Tabela1[[#This Row],[CD_PARC_USIN]]","v":"1º Leilão de Energia Nova8290"},"CEB LAJEADO","LAJEADO CEB",8290,5,9,"1º Leilão de Energia Nova","2009-30",{"$f":"COUNTIF(D:D,Tabela1[[#This Row],[CD_PARC_USIN]])","v":2}]
[{"$f":"Tabela1[[#This Row],[NM_LEIL]]&Tabela1[[#This Row],[CD_PARC_USIN]]","v":"1º Leilão de Energia Nova8291"},"CPFL LAJEADO","LAJEADO CPFL",8291,5,7,"1º Leilão de Energia Nova","2008-30",{"$f":"COUNTIF(D:D,Tabela1[[#This Row],[CD_PARC_USIN]])","v":2}]
[{"$f":"Tabela1[[#This Row],[NM_LEIL]]&Tabela1[[#This Row],[CD_PARC_USIN]]","v":"1º Leilão de Energia Nova8291"},"CPFL LAJEADO","LAJEADO CPFL",8291,5,9,"1º Leilão de Energia Nova","2009-30",{"$f":"COUNTIF(D:D,Tabela1[[#This Row],[CD_PARC_USIN]])","v":2}]
[{"$f":"Tabela1[[#This Row],[NM_LEIL]]&Tabela1[[#This Row],[CD_PARC_USIN]]","v":"1º Leilão de Energia Nova8292"},"CEMIG GERACAO","QUEIMADO - CEMIG",8292,5,7,"1º Leilão de Energia Nova","2008-30",{"$f":"COUNTIF(D:D,Tabela1[[#This Row],[CD_PARC_USIN]])","v":2}]
[{"$f":"Tabela1[[#This Row],[NM_LEIL]]&Tabela1[[#This Row],[CD_PARC_USIN]]","v":"2º Leilão de Energia Nova8292"},"CEMIG GERACAO","QUEIMADO - CEMIG",8292,7,14,"2º Leilão de Energia Nova","2009-30",{"$f":"COUNTIF(D:D,Tabela1[[#This Row],[CD_PARC_USIN]])","v":2}]
[{"$f":"Tabela1[[#This Row],[NM_LEIL]]&Tabela1[[#This Row],[CD_PARC_USIN]]","v":"1º Leilão de Energia Nova8293"},"CEB PAR","QUEIMADO-CEB",8293,5,7,"1º Leilão de Energia Nova","2008-30",{"$f":"COUNTIF(D:D,Tabela1[[#This Row],[CD_PARC_USIN]])","v":2}]
[{"$f":"Tabela1[[#This Row],[NM_LEIL]]&Tabela1[[#This Row],[CD_PARC_USIN]]","v":"2º Leilão de Energia Nova8293"},"CEB PAR","QUEIMADO-CEB",8293,7,14,"2º Leilão de Energia Nova","2009-30",{"$f":"COUNTIF(D:D,Tabela1[[#This Row],[CD_PARC_USIN]])","v":2}]
[{"$f":"Tabela1[[#This Row],[NM_LEIL]]&Tabela1[[#This Row],[CD_PARC_USIN]]","v":"1º Leilão de Energia Nova8298"},"UTE COCAL 1LD","UTE COCAL",8298,5,10,"1º Leilão de Energia Nova","2009-15",{"$f":"COUNTIF(D:D,Tabela1[[#This Row],[CD_PARC_USIN]])","v":1}]
[{"$f":"Tabela1[[#This Row],[NM_LEIL]]&Tabela1[[#This Row],[CD_PARC_USIN]]","v":"1º Leilão de Energia Nova8300"},"UTXA 1LD","XAVANTES ARUANA",8300,5,10,"1º Leilão de Energia Nova","2009-15",{"$f":"COUNTIF(D:D,Tabela1[[#This Row],[CD_PARC_USIN]])","v":1}]
[{"$f":"Tabela1[[#This Row],[NM_LEIL]]&Tabela1[[#This Row],[CD_PARC_USIN]]","v":"16º Leilão de Energia Nova8301"},"UTE DELTA II I5","DELTA",8301,151,417,"16º Leilão de Energia Nova","2018-25",{"$f":"COUNTIF(D:D,Tabela1[[#This Row],[CD_PARC_USIN]])","v":2}]
[{"$f":"Tabela1[[#This Row],[NM_LEIL]]&Tabela1[[#This Row],[CD_PARC_USIN]]","v":"20º Leilão de Energia Nova8301"},"UTE DELTA II I5","DELTA",8301,160,440,"20º Leilão de Energia Nova","2019-25",{"$f":"COUNTIF(D:D,Tabela1[[#This Row],[CD_PARC_USIN]])","v":2}]
[{"$f":"Tabela1[[#This Row],[NM_LEIL]]&Tabela1[[#This Row],[CD_PARC_USIN]]","v":"1º Leilão de Energia Nova8306"},"CERAN","CASTRO ALVES",8306,5,11,"1º Leilão de Energia Nova","2010-30",{"$f":"COUNTIF(D:D,Tabela1[[#This Row],[CD_PARC_USIN]])","v":1}]
[{"$f":"Tabela1[[#This Row],[NM_LEIL]]&Tabela1[[#This Row],[CD_PARC_USIN]]","v":"2º Leilão de Energia Nova8312"},"SJE AMBIEN 2LN","SÃO JOÃO BIOGÁS",8312,7,15,"2º Leilão de Energia Nova","2009-15",{"$f":"COUNTIF(D:D,Tabela1[[#This Row],[CD_PARC_USIN]])","v":1}]
[{"$f":"Tabela1[[#This Row],[NM_LEIL]]&Tabela1[[#This Row],[CD_PARC_USIN]]","v":"1º Leilão de Fontes Alternativas8339"},"UTE SANTA CRUZ I5","SANTA CRUZ AB",8339,9,19,"1º Leilão de Fontes Alternativas","2010-15",{"$f":"COUNTIF(D:D,Tabela1[[#This Row],[CD_PARC_USIN]])","v":1}]
[{"$f":"Tabela1[[#This Row],[NM_LEIL]]&Tabela1[[#This Row],[CD_PARC_USIN]]","v":"1º Leilão de Energia de Reserva8348"},"BIO BOA VISTA I5","BOA VISTA (B VISTA)",8348,51,102,"1º Leilão de Energia de Reserva","2010-15",{"$f":"COUNTIF(D:D,Tabela1[[#This Row],[CD_PARC_USIN]])","v":2}]
[{"$f":"Tabela1[[#This Row],[NM_LEIL]]&Tabela1[[#This Row],[CD_PARC_USIN]]","v":"3º Leilão de Energia Nova8348"},"BIO BOA VISTA I5","BOA VISTA (B VISTA)",8348,8,17,"3º Leilão de Energia Nova","2011-15",{"$f":"COUNTIF(D:D,Tabela1[[#This Row],[CD_PARC_USIN]])","v":2}]
[{"$f":"Tabela1[[#This Row],[NM_LEIL]]&Tabela1[[#This Row],[CD_PARC_USIN]]","v":"26º Leilão de Energia Nova8352"},"UTE COLOR 2LN","COLORADO",8352,173,468,"26º Leilão de Energia Nova","2023-25",{"$f":"COUNTIF(D:D,Tabela1[[#This Row],[CD_PARC_USIN]])","v":3}]
[{"$f":"Tabela1[[#This Row],[NM_LEIL]]&Tabela1[[#This Row],[CD_PARC_USIN]]","v":"2º Leilão de Energia Nova8352"},"UTE COLOR 2LN","COLORADO",8352,7,15,"2º Leilão de Energia Nova","2009-15",{"$f":"COUNTIF(D:D,Tabela1[[#This Row],[CD_PARC_USIN]])","v":3}]
[{"$f":"Tabela1[[#This Row],[NM_LEIL]]&Tabela1[[#This Row],[CD_PARC_USIN]]","v":"3º Leilão de Energia de Reserva8352"},"UTE COLOR 2LN","COLORADO",8352,53,103,"3º Leilão de Energia de Reserva","2011-15",{"$f":"COUNTIF(D:D,Tabela1[[#This Row],[CD_PARC_USIN]])","v":3}]
[{"$f":"Tabela1[[#This Row],[NM_LEIL]]&Tabela1[[#This Row],[CD_PARC_USIN]]","v":"3º Leilão de Fontes Alternativas8371"},"COFCO POT I5","UTE POTIRENDABA I",8371,162,445,"3º Leilão de Fontes Alternativas","2016-20",{"$f":"COUNTIF(D:D,Tabela1[[#This Row],[CD_PARC_USIN]])","v":1}]
[{"$f":"Tabela1[[#This Row],[NM_LEIL]]&Tabela1[[#This Row],[CD_PARC_USIN]]","v":"2º Leilão de Energia Nova8395"},"EEPP I5","PORTO DAS PEDRAS",8395,7,14,"2º Leilão de Energia Nova","2009-30",{"$f":"COUNTIF(D:D,Tabela1[[#This Row],[CD_PARC_USIN]])","v":1}]
[{"$f":"Tabela1[[#This Row],[NM_LEIL]]&Tabela1[[#This Row],[CD_PARC_USIN]]","v":"1º Leilão de Energia Nova8399"},"BIO RAFARD I5","RAFARD",8399,5,10,"1º Leilão de Energia Nova","2009-15",{"$f":"COUNTIF(D:D,Tabela1[[#This Row],[CD_PARC_USIN]])","v":1}]
[{"$f":"Tabela1[[#This Row],[NM_LEIL]]&Tabela1[[#This Row],[CD_PARC_USIN]]","v":"1º Leilão de Energia Nova8400"},"BIO COSTA PINTO I5","COSTA PINTO",8400,5,10,"1º Leilão de Energia Nova","2009-15",{"$f":"COUNTIF(D:D,Tabela1[[#This Row],[CD_PARC_USIN]])","v":1}]
[{"$f":"Tabela1[[#This Row],[NM_LEIL]]&Tabela1[[#This Row],[CD_PARC_USIN]]","v":"1º Leilão de Energia Nova8407"},"PETROB PIE 1LN","ELETROBOLT",8407,5,10,"1º Leilão de Energia Nova","2009-15",{"$f":"COUNTIF(D:D,Tabela1[[#This Row],[CD_PARC_USIN]])","v":1}]
[{"$f":"Tabela1[[#This Row],[NM_LEIL]]&Tabela1[[#This Row],[CD_PARC_USIN]]","v":"1º Leilão de Energia Nova8409"},"PETROB PIE 1LN","TRES LAGOAS",8409,5,10,"1º Leilão de Energia Nova","2009-15",{"$f":"COUNTIF(D:D,Tabela1[[#This Row],[CD_PARC_USIN]])","v":1}]
[{"$f":"Tabela1[[#This Row],[NM_LEIL]]&Tabela1[[#This Row],[CD_PARC_USIN]]","v":"1º Leilão de Energia Nova8411"},"PETROB PIE 1LN","TERMOCEARA",8411,5,10,"1º Leilão de Energia Nova","2009-15",{"$f":"COUNTIF(D:D,Tabela1[[#This Row],[CD_PARC_USIN]])","v":2}]
[{"$f":"Tabela1[[#This Row],[NM_LEIL]]&Tabela1[[#This Row],[CD_PARC_USIN]]","v":"1º Leilão de Energia Nova8411"},"PETROB PIE 1LN","TERMOCEARA",8411,5,12,"1º Leilão de Energia Nova","2010-15",{"$f":"COUNTIF(D:D,Tabela1[[#This Row],[CD_PARC_USIN]])","v":2}]
[{"$f":"Tabela1[[#This Row],[NM_LEIL]]&Tabela1[[#This Row],[CD_PARC_USIN]]","v":"2º Leilão de Energia Nova8412"},"PETROLINA 2LN","PETROLINA",8412,7,15,"2º Leilão de Energia Nova","2009-15",{"$f":"COUNTIF(D:D,Tabela1[[#This Row],[CD_PARC_USIN]])","v":1}]
[{"$f":"Tabela1[[#This Row],[NM_LEIL]]&Tabela1[[#This Row],[CD_PARC_USIN]]","v":"2º Leilão de Energia Nova8413"},"QUATA SAO JOSE I5","SAO JOSÉ (QUATÁ)",8413,7,15,"2º Leilão de Energia Nova","2009-15",{"$f":"COUNTIF(D:D,Tabela1[[#This Row],[CD_PARC_USIN]])","v":1}]
[{"$f":"Tabela1[[#This Row],[NM_LEIL]]&Tabela1[[#This Row],[CD_PARC_USIN]]","v":"2º Leilão de Energia Nova8415"},"SANTAISABEL I5 NH","UTE SANTA ISABEL",8415,7,15,"2º Leilão de Energia Nova","2009-15",{"$f":"COUNTIF(D:D,Tabela1[[#This Row],[CD_PARC_USIN]])","v":1}]
[{"$f":"Tabela1[[#This Row],[NM_LEIL]]&Tabela1[[#This Row],[CD_PARC_USIN]]","v":"1º Leilão de Energia Nova8417"},"BRENTECH 1LN","GOIANIA II",8417,5,10,"1º Leilão de Energia Nova","2009-15",{"$f":"COUNTIF(D:D,Tabela1[[#This Row],[CD_PARC_USIN]])","v":1}]
[{"$f":"Tabela1[[#This Row],[NM_LEIL]]&Tabela1[[#This Row],[CD_PARC_USIN]]","v":"2º Leilão de Energia Nova8418"},"EPESA 2LN","PAU FERRO I",8418,7,15,"2º Leilão de Energia Nova","2009-15",{"$f":"COUNTIF(D:D,Tabela1[[#This Row],[CD_PARC_USIN]])","v":1}]
[{"$f":"Tabela1[[#This Row],[NM_LEIL]]&Tabela1[[#This Row],[CD_PARC_USIN]]","v":"2º Leilão de Energia Nova8419"},"EPESA 2LN","TERMOMANAUS",8419,7,15,"2º Leilão de Energia Nova","2009-15",{"$f":"COUNTIF(D:D,Tabela1[[#This Row],[CD_PARC_USIN]])","v":1}]
[{"$f":"Tabela1[[#This Row],[NM_LEIL]]&Tabela1[[#This Row],[CD_PARC_USIN]]","v":"2º Leilão de Energia Nova8420"},"SFE APOENA","CAMAC MURIC I",8420,7,15,"2º Leilão de Energia Nova","2009-15",{"$f":"COUNTIF(D:D,Tabela1[[#This Row],[CD_PARC_USIN]])","v":1}]
[{"$f":"Tabela1[[#This Row],[NM_LEIL]]&Tabela1[[#This Row],[CD_PARC_USIN]]","v":"2º Leilão de Energia Nova8421"},"SFE GUARANI","CAMAC POLO I",8421,7,15,"2º Leilão de Energia Nova","2009-15",{"$f":"COUNTIF(D:D,Tabela1[[#This Row],[CD_PARC_USIN]])","v":1}]
[{"$f":"Tabela1[[#This Row],[NM_LEIL]]&Tabela1[[#This Row],[CD_PARC_USIN]]","v":"2º Leilão de Energia Nova8422"},"SANTA FE I5","SANTA FE",8422,7,14,"2º Leilão de Energia Nova","2009-30",{"$f":"COUNTIF(D:D,Tabela1[[#This Row],[CD_PARC_USIN]])","v":1}]
[{"$f":"Tabela1[[#This Row],[NM_LEIL]]&Tabela1[[#This Row],[CD_PARC_USIN]]","v":"2º Leilão de Energia Nova8423"},"RIO PCH I5","PEDRA GARRAFAO",8423,7,14,"2º Leilão de Energia Nova","2009-30",{"$f":"COUNTIF(D:D,Tabela1[[#This Row],[CD_PARC_USIN]])","v":1}]
[{"$f":"Tabela1[[#This Row],[NM_LEIL]]&Tabela1[[#This Row],[CD_PARC_USIN]]","v":"2º Leilão de Energia Nova8424"},"RIO PCH I5","PIRAPETINGA",8424,7,14,"2º Leilão de Energia Nova","2009-30",{"$f":"COUNTIF(D:D,Tabela1[[#This Row],[CD_PARC_USIN]])","v":1}]
[{"$f":"Tabela1[[#This Row],[NM_LEIL]]&Tabela1[[#This Row],[CD_PARC_USIN]]","v":"2º Leilão de Energia Nova8426"},"SCP I5","SAO DOMINGOS II",8426,7,14,"2º Leilão de Energia Nova","2009-30",{"$f":"COUNTIF(D:D,Tabela1[[#This Row],[CD_PARC_USIN]])","v":1}]
[{"$f":"Tabela1[[#This Row],[NM_LEIL]]&Tabela1[[#This Row],[CD_PARC_USIN]]","v":"2º Leilão de Energia Nova8427"},"SAUDADES","BARRA ESCONDIDA",8427,7,14,"2º Leilão de Energia Nova","2009-30",{"$f":"COUNTIF(D:D,Tabela1[[#This Row],[CD_PARC_USIN]])","v":1}]
[{"$f":"Tabela1[[#This Row],[NM_LEIL]]&Tabela1[[#This Row],[CD_PARC_USIN]]","v":"2º Leilão de Energia Nova8428"},"CEMIG GERACAO","AIMORES-CEMIG",8428,7,14,"2º Leilão de Energia Nova","2009-30",{"$f":"COUNTIF(D:D,Tabela1[[#This Row],[CD_PARC_USIN]])","v":1}]
[{"$f":"Tabela1[[#This Row],[NM_LEIL]]&Tabela1[[#This Row],[CD_PARC_USIN]]","v":"2º Leilão de Energia Nova8429"},"ALIANCA GERACAO","AIMORES",8429,7,14,"2º Leilão de Energia Nova","2009-30",{"$f":"COUNTIF(D:D,Tabela1[[#This Row],[CD_PARC_USIN]])","v":1}]
[{"$f":"Tabela1[[#This Row],[NM_LEIL]]&Tabela1[[#This Row],[CD_PARC_USIN]]","v":"2º Leilão de Energia Nova8430"},"ALIANCA GERACAO","PORTO ESTRELA-ALIANC",8430,7,14,"2º Leilão de Energia Nova","2009-30",{"$f":"COUNTIF(D:D,Tabela1[[#This Row],[CD_PARC_USIN]])","v":1}]
[{"$f":"Tabela1[[#This Row],[NM_LEIL]]&Tabela1[[#This Row],[CD_PARC_USIN]]","v":"2º Leilão de Energia Nova8431"},"COTEMINAS SA","P ESTRELA-COTEMINAS",8431,7,14,"2º Leilão de Energia Nova","2009-30",{"$f":"COUNTIF(D:D,Tabela1[[#This Row],[CD_PARC_USIN]])","v":1}]
[{"$f":"Tabela1[[#This Row],[NM_LEIL]]&Tabela1[[#This Row],[CD_PARC_USIN]]","v":"2º Leilão de Energia Nova8432"},"CVRD","P ESTRELA-VALE",8432,7,14,"2º Leilão de Energia Nova","2009-30",{"$f":"COUNTIF(D:D,Tabela1[[#This Row],[CD_PARC_USIN]])","v":1}]
[{"$f":"Tabela1[[#This Row],[NM_LEIL]]&Tabela1[[#This Row],[CD_PARC_USIN]]","v":"2º Leilão de Energia Nova8433"},"CEP 2LN","POTIGUAR",8433,7,15,"2º Leilão de Energia Nova","2009-15",{"$f":"COUNTIF(D:D,Tabela1[[#This Row],[CD_PARC_USIN]])","v":1}]
[{"$f":"Tabela1[[#This Row],[NM_LEIL]]&Tabela1[[#This Row],[CD_PARC_USIN]]","v":"2º Leilão de Energia Nova8434"},"CEP 2LN","POTIGUAR III",8434,7,15,"2º Leilão de Energia Nova","2009-15",{"$f":"COUNTIF(D:D,Tabela1[[#This Row],[CD_PARC_USIN]])","v":1}]
[{"$f":"Tabela1[[#This Row],[NM_LEIL]]&Tabela1[[#This Row],[CD_PARC_USIN]]","v":"5º Leilão de Energia Nova8442"},"CEMIG GERACAO","FUNIL GRANDE - CEMIG",8442,12,22,"5º Leilão de Energia Nova","2012-30",{"$f":"COUNTIF(D:D,Tabela1[[#This Row],[CD_PARC_USIN]])","v":1}]
[{"$f":"Tabela1[[#This Row],[NM_LEIL]]&Tabela1[[#This Row],[CD_PARC_USIN]]","v":"5º Leilão de Energia Nova8443"},"ALIANCA GERACAO","FUNIL (ALIANCA)",8443,12,22,"5º Leilão de Energia Nova","2012-30",{"$f":"COUNTIF(D:D,Tabela1[[#This Row],[CD_PARC_USIN]])","v":1}]
[{"$f":"Tabela1[[#This Row],[NM_LEIL]]&Tabela1[[#This Row],[CD_PARC_USIN]]","v":"1º Leilão de Energia Nova8452"},"CERAN","14 DE JULHO",8452,5,11,"1º Leilão de Energia Nova","2010-30",{"$f":"COUNTIF(D:D,Tabela1[[#This Row],[CD_PARC_USIN]])","v":1}]
[{"$f":"Tabela1[[#This Row],[NM_LEIL]]&Tabela1[[#This Row],[CD_PARC_USIN]]","v":"1º Leilão de Energia de Reserva8469"},"UTE ANGELICA PIE I5","ANGÉLICA",8469,51,102,"1º Leilão de Energia de Reserva","2010-15",{"$f":"COUNTIF(D:D,Tabela1[[#This Row],[CD_PARC_USIN]])","v":2}]
[{"$f":"Tabela1[[#This Row],[NM_LEIL]]&Tabela1[[#This Row],[CD_PARC_USIN]]","v":"3º Leilão de Energia de Reserva8469"},"UTE ANGELICA PIE I5","ANGÉLICA",8469,53,103,"3º Leilão de Energia de Reserva","2011-15",{"$f":"COUNTIF(D:D,Tabela1[[#This Row],[CD_PARC_USIN]])","v":2}]
[{"$f":"Tabela1[[#This Row],[NM_LEIL]]&Tabela1[[#This Row],[CD_PARC_USIN]]","v":"1º Leilão de Fontes Alternativas8470"},"RAIZEN CS RIO BRILHANTE I5","LDC BIOENERGIA RIO B",8470,9,19,"1º Leilão de Fontes Alternativas","2010-15",{"$f":"COUNTIF(D:D,Tabela1[[#This Row],[CD_PARC_USIN]])","v":1}]
[{"$f":"Tabela1[[#This Row],[NM_LEIL]]&Tabela1[[#This Row],[CD_PARC_USIN]]","v":"3º Leilão de Energia Nova8483"},"UTE QUAT 3LN11","QUATÁ",8483,8,17,"3º Leilão de Energia Nova","2011-15",{"$f":"COUNTIF(D:D,Tabela1[[#This Row],[CD_PARC_USIN]])","v":1}]
[{"$f":"Tabela1[[#This Row],[NM_LEIL]]&Tabela1[[#This Row],[CD_PARC_USIN]]","v":"1º Leilão de Fontes Alternativas8492"},"RAIZEN CS LAGOA DA PRATA I5","L. DREYFUS L. PRATA",8492,9,19,"1º Leilão de Fontes Alternativas","2010-15",{"$f":"COUNTIF(D:D,Tabela1[[#This Row],[CD_PARC_USIN]])","v":1}]
[{"$f":"Tabela1[[#This Row],[NM_LEIL]]&Tabela1[[#This Row],[CD_PARC_USIN]]","v":"1º Leilão de Fontes Alternativas8494"},"PAMPEANA","PAMPEANA",8494,9,18,"1º Leilão de Fontes Alternativas","2010-30",{"$f":"COUNTIF(D:D,Tabela1[[#This Row],[CD_PARC_USIN]])","v":1}]
[{"$f":"Tabela1[[#This Row],[NM_LEIL]]&Tabela1[[#This Row],[CD_PARC_USIN]]","v":"1º Leilão de Energia de Reserva8497"},"FERRARI TER I5","FERRARI",8497,51,101,"1º Leilão de Energia de Reserva","2009-15",{"$f":"COUNTIF(D:D,Tabela1[[#This Row],[CD_PARC_USIN]])","v":3}]
[{"$f":"Tabela1[[#This Row],[NM_LEIL]]&Tabela1[[#This Row],[CD_PARC_USIN]]","v":"20º Leilão de Energia Nova8497"},"FERRARI TER I5","FERRARI",8497,160,440,"20º Leilão de Energia Nova","2019-25",{"$f":"COUNTIF(D:D,Tabela1[[#This Row],[CD_PARC_USIN]])","v":3}]
[{"$f":"Tabela1[[#This Row],[NM_LEIL]]&Tabela1[[#This Row],[CD_PARC_USIN]]","v":"3º Leilão de Energia Nova8497"},"FERRARI TER I5","FERRARI",8497,8,17,"3º Leilão de Energia Nova","2011-15",{"$f":"COUNTIF(D:D,Tabela1[[#This Row],[CD_PARC_USIN]])","v":3}]
[{"$f":"Tabela1[[#This Row],[NM_LEIL]]&Tabela1[[#This Row],[CD_PARC_USIN]]","v":"1º Leilão de Energia de Reserva8498"},"CLEALCO I5","CLEALCO",8498,51,101,"1º Leilão de Energia de Reserva","2009-15",{"$f":"COUNTIF(D:D,Tabela1[[#This Row],[CD_PARC_USIN]])","v":2}]
[{"$f":"Tabela1[[#This Row],[NM_LEIL]]&Tabela1[[#This Row],[CD_PARC_USIN]]","v":"3º Leilão de Fontes Alternativas8498"},"CLEALCO I5","CLEALCO",8498,162,445,"3º Leilão de Fontes Alternativas","2016-20",{"$f":"COUNTIF(D:D,Tabela1[[#This Row],[CD_PARC_USIN]])","v":2}]
[{"$f":"Tabela1[[#This Row],[NM_LEIL]]&Tabela1[[#This Row],[CD_PARC_USIN]]","v":"1º Leilão de Energia de Reserva8499"},"UTE CANAA","COCAL II",8499,51,101,"1º Leilão de Energia de Reserva","2009-15",{"$f":"COUNTIF(D:D,Tabela1[[#This Row],[CD_PARC_USIN]])","v":1}]
[{"$f":"Tabela1[[#This Row],[NM_LEIL]]&Tabela1[[#This Row],[CD_PARC_USIN]]","v":"3º Leilão de Energia Nova8504"},"ENGIE BR GER","SAO SALVADOR",8504,8,16,"3º Leilão de Energia Nova","2011-30",{"$f":"COUNTIF(D:D,Tabela1[[#This Row],[CD_PARC_USIN]])","v":1}]
[{"$f":"Tabela1[[#This Row],[NM_LEIL]]&Tabela1[[#This Row],[CD_PARC_USIN]]","v":"1º Leilão de Energia Nova8540"},"BAGUARI ENERG","BAGUARI-CEMIG",8540,5,11,"1º Leilão de Energia Nova","2010-30",{"$f":"COUNTIF(D:D,Tabela1[[#This Row],[CD_PARC_USIN]])","v":1}]
[{"$f":"Tabela1[[#This Row],[NM_LEIL]]&Tabela1[[#This Row],[CD_PARC_USIN]]","v":"1º Leilão de Energia Nova8541"},"BAGUARI ENERG","BAGUARI-FURNAS",8541,5,11,"1º Leilão de Energia Nova","2010-30",{"$f":"COUNTIF(D:D,Tabela1[[#This Row],[CD_PARC_USIN]])","v":1}]
[{"$f":"Tabela1[[#This Row],[NM_LEIL]]&Tabela1[[#This Row],[CD_PARC_USIN]]","v":"1º Leilão de Energia Nova8542"},"FURNAS","BATALHA",8542,5,11,"1º Leilão de Energia Nova","2010-30",{"$f":"COUNTIF(D:D,Tabela1[[#This Row],[CD_PARC_USIN]])","v":1}]
[{"$f":"Tabela1[[#This Row],[NM_LEIL]]&Tabela1[[#This Row],[CD_PARC_USIN]]","v":"1º Leilão de Energia Nova8543"},"FURNAS","SIMPLÍCIO ANTA",8543,5,11,"1º Leilão de Energia Nova","2010-30",{"$f":"COUNTIF(D:D,Tabela1[[#This Row],[CD_PARC_USIN]])","v":1}]
[{"$f":"Tabela1[[#This Row],[NM_LEIL]]&Tabela1[[#This Row],[CD_PARC_USIN]]","v":"18º Leilão de Energia Nova8545"},"UTE VIST ALEG I I5","VISTA ALEGRE I VIST",8545,154,422,"18º Leilão de Energia Nova","2018-25",{"$f":"COUNTIF(D:D,Tabela1[[#This Row],[CD_PARC_USIN]])","v":1}]
[{"$f":"Tabela1[[#This Row],[NM_LEIL]]&Tabela1[[#This Row],[CD_PARC_USIN]]","v":"1º Leilão de Energia Nova8548"},"BAGUARI","BAGUARI-BAGUARI ",8548,5,11,"1º Leilão de Energia Nova","2010-30",{"$f":"COUNTIF(D:D,Tabela1[[#This Row],[CD_PARC_USIN]])","v":1}]
[{"$f":"Tabela1[[#This Row],[NM_LEIL]]&Tabela1[[#This Row],[CD_PARC_USIN]]","v":"1º Leilão de Energia Nova8553"},"IJUI","SAO JOSE (IJUI)",8553,5,11,"1º Leilão de Energia Nova","2010-30",{"$f":"COUNTIF(D:D,Tabela1[[#This Row],[CD_PARC_USIN]])","v":1}]
[{"$f":"Tabela1[[#This Row],[NM_LEIL]]&Tabela1[[#This Row],[CD_PARC_USIN]]","v":"3º Leilão de Energia Nova8554"},"MONEL - SKER","MONJOLINHO (MONEL)",8554,8,16,"3º Leilão de Energia Nova","2011-30",{"$f":"COUNTIF(D:D,Tabela1[[#This Row],[CD_PARC_USIN]])","v":1}]
[{"$f":"Tabela1[[#This Row],[NM_LEIL]]&Tabela1[[#This Row],[CD_PARC_USIN]]","v":"4º Leilão de Energia Nova8563"},"UTE VIAN 4LN10","VIANA",8563,10,21,"4º Leilão de Energia Nova","2010-15",{"$f":"COUNTIF(D:D,Tabela1[[#This Row],[CD_PARC_USIN]])","v":1}]
[{"$f":"Tabela1[[#This Row],[NM_LEIL]]&Tabela1[[#This Row],[CD_PARC_USIN]]","v":"4º Leilão de Energia Nova8564"},"GERANORT 4LN10","GERAMAR I",8564,10,21,"4º Leilão de Energia Nova","2010-15",{"$f":"COUNTIF(D:D,Tabela1[[#This Row],[CD_PARC_USIN]])","v":1}]
[{"$f":"Tabela1[[#This Row],[NM_LEIL]]&Tabela1[[#This Row],[CD_PARC_USIN]]","v":"4º Leilão de Energia Nova8565"},"EPASA 2LN","TERMOPARAIBA",8565,10,21,"4º Leilão de Energia Nova","2010-15",{"$f":"COUNTIF(D:D,Tabela1[[#This Row],[CD_PARC_USIN]])","v":1}]
[{"$f":"Tabela1[[#This Row],[NM_LEIL]]&Tabela1[[#This Row],[CD_PARC_USIN]]","v":"4º Leilão de Energia Nova8566"},"EPASA 2LN","TERMONORDESTE",8566,10,21,"4º Leilão de Energia Nova","2010-15",{"$f":"COUNTIF(D:D,Tabela1[[#This Row],[CD_PARC_USIN]])","v":1}]
[{"$f":"Tabela1[[#This Row],[NM_LEIL]]&Tabela1[[#This Row],[CD_PARC_USIN]]","v":"4º Leilão de Energia Nova8567"},"GERANORT 4LN10","GERAMAR II",8567,10,21,"4º Leilão de Energia Nova","2010-15",{"$f":"COUNTIF(D:D,Tabela1[[#This Row],[CD_PARC_USIN]])","v":1}]
[{"$f":"Tabela1[[#This Row],[NM_LEIL]]&Tabela1[[#This Row],[CD_PARC_USIN]]","v":"4º Leilão de Energia Nova8568"},"UTE MPAS 4LN10","MONTE PASCOAL",8568,10,21,"4º Leilão de Energia Nova","2010-15",{"$f":"COUNTIF(D:D,Tabela1[[#This Row],[CD_PARC_USIN]])","v":1}]
[{"$f":"Tabela1[[#This Row],[NM_LEIL]]&Tabela1[[#This Row],[CD_PARC_USIN]]","v":"4º Leilão de Energia Nova8569"},"UTE MARA 4LN10","MARACANAU I",8569,10,21,"4º Leilão de Energia Nova","2010-15",{"$f":"COUNTIF(D:D,Tabela1[[#This Row],[CD_PARC_USIN]])","v":1}]
[{"$f":"Tabela1[[#This Row],[NM_LEIL]]&Tabela1[[#This Row],[CD_PARC_USIN]]","v":"4º Leilão de Energia Nova8570"},"UTE ITAP 4LN10","ITAPEBI - UTE",8570,10,21,"4º Leilão de Energia Nova","2010-15",{"$f":"COUNTIF(D:D,Tabela1[[#This Row],[CD_PARC_USIN]])","v":1}]
[{"$f":"Tabela1[[#This Row],[NM_LEIL]]&Tabela1[[#This Row],[CD_PARC_USIN]]","v":"4º Leilão de Energia Nova8572"},"CEC CANDEIAS","GLOBAL II",8572,10,21,"4º Leilão de Energia Nova","2010-15",{"$f":"COUNTIF(D:D,Tabela1[[#This Row],[CD_PARC_USIN]])","v":1}]
[{"$f":"Tabela1[[#This Row],[NM_LEIL]]&Tabela1[[#This Row],[CD_PARC_USIN]]","v":"4º Leilão de Energia Nova8573"},"CEC CANDEIAS","GLOBAL I",8573,10,21,"4º Leilão de Energia Nova","2010-15",{"$f":"COUNTIF(D:D,Tabela1[[#This Row],[CD_PARC_USIN]])","v":1}]
[{"$f":"Tabela1[[#This Row],[NM_LEIL]]&Tabela1[[#This Row],[CD_PARC_USIN]]","v":"4º Leilão de Energia Nova8574"},"UTE BORB 4LN10","CAMPINA GRANDE",8574,10,21,"4º Leilão de Energia Nova","2010-15",{"$f":"COUNTIF(D:D,Tabela1[[#This Row],[CD_PARC_USIN]])","v":1}]
[{"$f":"Tabela1[[#This Row],[NM_LEIL]]&Tabela1[[#This Row],[CD_PARC_USIN]]","v":"1º Leilão de Energia Nova8575"},"PETROB PIE 1LN","TERMO CUBATAO",8575,5,12,"1º Leilão de Energia Nova","2010-15",{"$f":"COUNTIF(D:D,Tabela1[[#This Row],[CD_PARC_USIN]])","v":1}]
[{"$f":"Tabela1[[#This Row],[NM_LEIL]]&Tabela1[[#This Row],[CD_PARC_USIN]]","v":"1º Leilão de Fontes Alternativas8576"},"FENIX 1LF10","XANXERE 1LFA10",8576,9,19,"1º Leilão de Fontes Alternativas","2010-15",{"$f":"COUNTIF(D:D,Tabela1[[#This Row],[CD_PARC_USIN]])","v":1}]
[{"$f":"Tabela1[[#This Row],[NM_LEIL]]&Tabela1[[#This Row],[CD_PARC_USIN]]","v":"1º Leilão de Fontes Alternativas8577"},"ABENGOA AGROIN I5","SÃO JOÃO DA BOA VIST",8577,9,19,"1º Leilão de Fontes Alternativas","2010-15",{"$f":"COUNTIF(D:D,Tabela1[[#This Row],[CD_PARC_USIN]])","v":1}]
[{"$f":"Tabela1[[#This Row],[NM_LEIL]]&Tabela1[[#This Row],[CD_PARC_USIN]]","v":"1º Leilão de Fontes Alternativas8578"},"UTE ILHA 1LF10","PIONEIROS II",8578,9,19,"1º Leilão de Fontes Alternativas","2010-15",{"$f":"COUNTIF(D:D,Tabela1[[#This Row],[CD_PARC_USIN]])","v":1}]
[{"$f":"Tabela1[[#This Row],[NM_LEIL]]&Tabela1[[#This Row],[CD_PARC_USIN]]","v":"1º Leilão de Fontes Alternativas8579"},"IACANGA BIO 1LF10","IACANGA",8579,9,19,"1º Leilão de Fontes Alternativas","2010-15",{"$f":"COUNTIF(D:D,Tabela1[[#This Row],[CD_PARC_USIN]])","v":3}]
[{"$f":"Tabela1[[#This Row],[NM_LEIL]]&Tabela1[[#This Row],[CD_PARC_USIN]]","v":"20º Leilão de Energia Nova8579"},"IACANGA BIO 1LF10","IACANGA",8579,160,440,"20º Leilão de Energia Nova","2019-25",{"$f":"COUNTIF(D:D,Tabela1[[#This Row],[CD_PARC_USIN]])","v":3}]
[{"$f":"Tabela1[[#This Row],[NM_LEIL]]&Tabela1[[#This Row],[CD_PARC_USIN]]","v":"3º Leilão de Fontes Alternativas8579"},"IACANGA BIO 1LF10","IACANGA",8579,162,445,"3º Leilão de Fontes Alternativas","2016-20",{"$f":"COUNTIF(D:D,Tabela1[[#This Row],[CD_PARC_USIN]])","v":3}]
[{"$f":"Tabela1[[#This Row],[NM_LEIL]]&Tabela1[[#This Row],[CD_PARC_USIN]]","v":"1º Leilão de Energia Nova8581"},"CGTEE 1LN10","PRES MEDICI (FASE C)",8581,5,12,"1º Leilão de Energia Nova","2010-15",{"$f":"COUNTIF(D:D,Tabela1[[#This Row],[CD_PARC_USIN]])","v":1}]
[{"$f":"Tabela1[[#This Row],[NM_LEIL]]&Tabela1[[#This Row],[CD_PARC_USIN]]","v":"3º Leilão de Energia Nova8589"},"PETROBRAS PIE","TERMOMACAE EXP",8589,8,17,"3º Leilão de Energia Nova","2011-15",{"$f":"COUNTIF(D:D,Tabela1[[#This Row],[CD_PARC_USIN]])","v":1}]
[{"$f":"Tabela1[[#This Row],[NM_LEIL]]&Tabela1[[#This Row],[CD_PARC_USIN]]","v":"27º Leilão de Energia Nova A-48591"},"ALCON I5","ALCON",8591,174,472,"27º Leilão de Energia Nova A-4","2022-20",{"$f":"COUNTIF(D:D,Tabela1[[#This Row],[CD_PARC_USIN]])","v":1}]
[{"$f":"Tabela1[[#This Row],[NM_LEIL]]&Tabela1[[#This Row],[CD_PARC_USIN]]","v":"3º Leilão de Energia Nova8596"},"GEP SALTO PILAO","SALTO PILAO-CCGE",8596,8,16,"3º Leilão de Energia Nova","2011-30",{"$f":"COUNTIF(D:D,Tabela1[[#This Row],[CD_PARC_USIN]])","v":1}]
[{"$f":"Tabela1[[#This Row],[NM_LEIL]]&Tabela1[[#This Row],[CD_PARC_USIN]]","v":"3º Leilão de Energia Nova8597"},"DMEE","SALTO PILAO-DMEE",8597,8,16,"3º Leilão de Energia Nova","2011-30",{"$f":"COUNTIF(D:D,Tabela1[[#This Row],[CD_PARC_USIN]])","v":1}]
[{"$f":"Tabela1[[#This Row],[NM_LEIL]]&Tabela1[[#This Row],[CD_PARC_USIN]]","v":"3º Leilão de Energia Nova8598"},"CBA PIE UHE SALTO PILAO","SALTO PILAO-CBA",8598,8,16,"3º Leilão de Energia Nova","2011-30",{"$f":"COUNTIF(D:D,Tabela1[[#This Row],[CD_PARC_USIN]])","v":1}]
[{"$f":"Tabela1[[#This Row],[NM_LEIL]]&Tabela1[[#This Row],[CD_PARC_USIN]]","v":"1º Leilão de Energia de Reserva8600"},"UTE SAO FERNAN 545-2013","SAO FERNANDO",8600,51,102,"1º Leilão de Energia de Reserva","2010-15",{"$f":"COUNTIF(D:D,Tabela1[[#This Row],[CD_PARC_USIN]])","v":1}]
[{"$f":"Tabela1[[#This Row],[NM_LEIL]]&Tabela1[[#This Row],[CD_PARC_USIN]]","v":"3º Leilão de Fontes Alternativas8603"},"PARDO TERMOELETRICA I5","RIO PARDO",8603,162,445,"3º Leilão de Fontes Alternativas","2016-20",{"$f":"COUNTIF(D:D,Tabela1[[#This Row],[CD_PARC_USIN]])","v":1}]
[{"$f":"Tabela1[[#This Row],[NM_LEIL]]&Tabela1[[#This Row],[CD_PARC_USIN]]","v":"1º Leilão de Energia de Reserva8611"},"COFCO B APE I5","SEBASTIANOPOLIS I",8611,51,102,"1º Leilão de Energia de Reserva","2010-15",{"$f":"COUNTIF(D:D,Tabela1[[#This Row],[CD_PARC_USIN]])","v":1}]
[{"$f":"Tabela1[[#This Row],[NM_LEIL]]&Tabela1[[#This Row],[CD_PARC_USIN]]","v":"1º Leilão de Energia Nova8629"},"RBE","RETIRO BAIXO",8629,5,9,"1º Leilão de Energia Nova","2009-30",{"$f":"COUNTIF(D:D,Tabela1[[#This Row],[CD_PARC_USIN]])","v":1}]
[{"$f":"Tabela1[[#This Row],[NM_LEIL]]&Tabela1[[#This Row],[CD_PARC_USIN]]","v":"1º Leilão de Energia de Reserva8630"},"COFCO BR I5","SEBASTIANOPOLIS II",8630,51,102,"1º Leilão de Energia de Reserva","2010-15",{"$f":"COUNTIF(D:D,Tabela1[[#This Row],[CD_PARC_USIN]])","v":1}]
[{"$f":"Tabela1[[#This Row],[NM_LEIL]]&Tabela1[[#This Row],[CD_PARC_USIN]]","v":"1º Leilão de Energia de Reserva8637"},"ENERCASA I5 545-13","DECASA",8637,51,102,"1º Leilão de Energia de Reserva","2010-15",{"$f":"COUNTIF(D:D,Tabela1[[#This Row],[CD_PARC_USIN]])","v":1}]
[{"$f":"Tabela1[[#This Row],[NM_LEIL]]&Tabela1[[#This Row],[CD_PARC_USIN]]","v":"1º Leilão de Energia de Reserva8638"},"BIO JATAI","JATAÍ (BIO)",8638,51,102,"1º Leilão de Energia de Reserva","2010-15",{"$f":"COUNTIF(D:D,Tabela1[[#This Row],[CD_PARC_USIN]])","v":1}]
[{"$f":"Tabela1[[#This Row],[NM_LEIL]]&Tabela1[[#This Row],[CD_PARC_USIN]]","v":"1º Leilão de Energia de Reserva8639"},"BEN I5","BEN BIOENERGIA",8639,51,102,"1º Leilão de Energia de Reserva","2010-15",{"$f":"COUNTIF(D:D,Tabela1[[#This Row],[CD_PARC_USIN]])","v":1}]
[{"$f":"Tabela1[[#This Row],[NM_LEIL]]&Tabela1[[#This Row],[CD_PARC_USIN]]","v":"1º Leilão de Energia de Reserva8647"},"BIO BARRA I5","IPAUSSU",8647,51,102,"1º Leilão de Energia de Reserva","2010-15",{"$f":"COUNTIF(D:D,Tabela1[[#This Row],[CD_PARC_USIN]])","v":1}]
[{"$f":"Tabela1[[#This Row],[NM_LEIL]]&Tabela1[[#This Row],[CD_PARC_USIN]]","v":"1º Leilão de Energia de Reserva8648"},"BIO BARRA","BARRA (BIO BARRA)",8648,51,102,"1º Leilão de Energia de Reserva","2010-15",{"$f":"COUNTIF(D:D,Tabela1[[#This Row],[CD_PARC_USIN]])","v":1}]
[{"$f":"Tabela1[[#This Row],[NM_LEIL]]&Tabela1[[#This Row],[CD_PARC_USIN]]","v":"1º Leilão de Energia de Reserva8649"},"BIO BARRA I5","BONFIM",8649,51,102,"1º Leilão de Energia de Reserva","2010-15",{"$f":"COUNTIF(D:D,Tabela1[[#This Row],[CD_PARC_USIN]])","v":2}]
[{"$f":"Tabela1[[#This Row],[NM_LEIL]]&Tabela1[[#This Row],[CD_PARC_USIN]]","v":"3º Leilão de Energia Nova8649"},"BIO BARRA I5","BONFIM",8649,8,17,"3º Leilão de Energia Nova","2011-15",{"$f":"COUNTIF(D:D,Tabela1[[#This Row],[CD_PARC_USIN]])","v":2}]
[{"$f":"Tabela1[[#This Row],[NM_LEIL]]&Tabela1[[#This Row],[CD_PARC_USIN]]","v":"13º Leilão de Energia Nova8650"},"UCP","CONQUISTA DO PONTAL",8650,143,393,"13º Leilão de Energia Nova","2016-20",{"$f":"COUNTIF(D:D,Tabela1[[#This Row],[CD_PARC_USIN]])","v":2}]
[{"$f":"Tabela1[[#This Row],[NM_LEIL]]&Tabela1[[#This Row],[CD_PARC_USIN]]","v":"1º Leilão de Energia de Reserva8650"},"UCP","CONQUISTA DO PONTAL",8650,51,102,"1º Leilão de Energia de Reserva","2010-15",{"$f":"COUNTIF(D:D,Tabela1[[#This Row],[CD_PARC_USIN]])","v":2}]
[{"$f":"Tabela1[[#This Row],[NM_LEIL]]&Tabela1[[#This Row],[CD_PARC_USIN]]","v":"1º Leilão de Energia de Reserva8651"},"BRENCO I5","ALTO TAQUARI",8651,51,102,"1º Leilão de Energia de Reserva","2010-15",{"$f":"COUNTIF(D:D,Tabela1[[#This Row],[CD_PARC_USIN]])","v":1}]
[{"$f":"Tabela1[[#This Row],[NM_LEIL]]&Tabela1[[#This Row],[CD_PARC_USIN]]","v":"1º Leilão de Energia de Reserva8652"},"BRENCO I0","COSTA RICA (BRENCO)",8652,51,102,"1º Leilão de Energia de Reserva","2010-15",{"$f":"COUNTIF(D:D,Tabela1[[#This Row],[CD_PARC_USIN]])","v":1}]
[{"$f":"Tabela1[[#This Row],[NM_LEIL]]&Tabela1[[#This Row],[CD_PARC_USIN]]","v":"1º Leilão de Energia de Reserva8653"},"BRENCO I5","MORRO VERMELHO",8653,51,102,"1º Leilão de Energia de Reserva","2010-15",{"$f":"COUNTIF(D:D,Tabela1[[#This Row],[CD_PARC_USIN]])","v":1}]
[{"$f":"Tabela1[[#This Row],[NM_LEIL]]&Tabela1[[#This Row],[CD_PARC_USIN]]","v":"1º Leilão de Energia de Reserva8654"},"CACU I CONV","CAÇU (OER CACU)",8654,51,102,"1º Leilão de Energia de Reserva","2010-15",{"$f":"COUNTIF(D:D,Tabela1[[#This Row],[CD_PARC_USIN]])","v":1}]
[{"$f":"Tabela1[[#This Row],[NM_LEIL]]&Tabela1[[#This Row],[CD_PARC_USIN]]","v":"1º Leilão de Energia de Reserva8655"},"BRENCO I5","AGUA EMENDADA",8655,51,102,"1º Leilão de Energia de Reserva","2010-15",{"$f":"COUNTIF(D:D,Tabela1[[#This Row],[CD_PARC_USIN]])","v":1}]
[{"$f":"Tabela1[[#This Row],[NM_LEIL]]&Tabela1[[#This Row],[CD_PARC_USIN]]","v":"13º Leilão de Energia Nova8656"},"UTEPORTODAGUAS","PORTO DAS ÁGUAS",8656,143,393,"13º Leilão de Energia Nova","2016-20",{"$f":"COUNTIF(D:D,Tabela1[[#This Row],[CD_PARC_USIN]])","v":5}]
[{"$f":"Tabela1[[#This Row],[NM_LEIL]]&Tabela1[[#This Row],[CD_PARC_USIN]]","v":"1º Leilão de Energia de Reserva8656"},"UTEPORTODAGUAS","PORTO DAS ÁGUAS",8656,51,102,"1º Leilão de Energia de Reserva","2010-15",{"$f":"COUNTIF(D:D,Tabela1[[#This Row],[CD_PARC_USIN]])","v":5}]
[{"$f":"Tabela1[[#This Row],[NM_LEIL]]&Tabela1[[#This Row],[CD_PARC_USIN]]","v":"20º Leilão de Energia Nova8656"},"UTEPORTODAGUAS","PORTO DAS ÁGUAS",8656,160,440,"20º Leilão de Energia Nova","2019-25",{"$f":"COUNTIF(D:D,Tabela1[[#This Row],[CD_PARC_USIN]])","v":5}]
[{"$f":"Tabela1[[#This Row],[NM_LEIL]]&Tabela1[[#This Row],[CD_PARC_USIN]]","v":"23º Leilão de Energia Nova8656"},"UTEPORTODAGUAS","PORTO DAS ÁGUAS",8656,167,456,"23º Leilão de Energia Nova","2021-25",{"$f":"COUNTIF(D:D,Tabela1[[#This Row],[CD_PARC_USIN]])","v":5}]
[{"$f":"Tabela1[[#This Row],[NM_LEIL]]&Tabela1[[#This Row],[CD_PARC_USIN]]","v":"3º Leilão de Energia de Reserva8656"},"UTEPORTODAGUAS","PORTO DAS ÁGUAS",8656,53,103,"3º Leilão de Energia de Reserva","2011-15",{"$f":"COUNTIF(D:D,Tabela1[[#This Row],[CD_PARC_USIN]])","v":5}]
[{"$f":"Tabela1[[#This Row],[NM_LEIL]]&Tabela1[[#This Row],[CD_PARC_USIN]]","v":"1º Leilão de Energia de Reserva8657"},"USL CONV","SANTA LUZIA I - OER ",8657,51,102,"1º Leilão de Energia de Reserva","2010-15",{"$f":"COUNTIF(D:D,Tabela1[[#This Row],[CD_PARC_USIN]])","v":1}]
[{"$f":"Tabela1[[#This Row],[NM_LEIL]]&Tabela1[[#This Row],[CD_PARC_USIN]]","v":"1º Leilão de Energia de Reserva8658"},"SJC BIOENERGIA I5","CACHOEIRA DOURADA LE",8658,51,102,"1º Leilão de Energia de Reserva","2010-15",{"$f":"COUNTIF(D:D,Tabela1[[#This Row],[CD_PARC_USIN]])","v":1}]
[{"$f":"Tabela1[[#This Row],[NM_LEIL]]&Tabela1[[#This Row],[CD_PARC_USIN]]","v":"1º Leilão de Energia de Reserva8659"},"ALDA CBB","CBB LER 2010",8659,51,102,"1º Leilão de Energia de Reserva","2010-15",{"$f":"COUNTIF(D:D,Tabela1[[#This Row],[CD_PARC_USIN]])","v":1}]
[{"$f":"Tabela1[[#This Row],[NM_LEIL]]&Tabela1[[#This Row],[CD_PARC_USIN]]","v":"1º Leilão de Energia de Reserva8660"},"BEVAP I5","VALE DO PARACATU - B",8660,51,102,"1º Leilão de Energia de Reserva","2010-15",{"$f":"COUNTIF(D:D,Tabela1[[#This Row],[CD_PARC_USIN]])","v":2}]
[{"$f":"Tabela1[[#This Row],[NM_LEIL]]&Tabela1[[#This Row],[CD_PARC_USIN]]","v":"4º Leilão de Energia de Reserva8660"},"BEVAP I5","VALE DO PARACATU - B",8660,54,109,"4º Leilão de Energia de Reserva","2014-20",{"$f":"COUNTIF(D:D,Tabela1[[#This Row],[CD_PARC_USIN]])","v":2}]
[{"$f":"Tabela1[[#This Row],[NM_LEIL]]&Tabela1[[#This Row],[CD_PARC_USIN]]","v":"1º Leilão de Energia de Reserva8661"},"GUARANI I5","IBITIUVA-ANDR",8661,51,102,"1º Leilão de Energia de Reserva","2010-15",{"$f":"COUNTIF(D:D,Tabela1[[#This Row],[CD_PARC_USIN]])","v":1}]
[{"$f":"Tabela1[[#This Row],[NM_LEIL]]&Tabela1[[#This Row],[CD_PARC_USIN]]","v":"1º Leilão de Energia de Reserva8662"},"IBITIUVA I5","IBITIUVA-IBITL",8662,51,102,"1º Leilão de Energia de Reserva","2010-15",{"$f":"COUNTIF(D:D,Tabela1[[#This Row],[CD_PARC_USIN]])","v":1}]
[{"$f":"Tabela1[[#This Row],[NM_LEIL]]&Tabela1[[#This Row],[CD_PARC_USIN]]","v":"1º Leilão de Energia de Reserva8663"},"UPI SAO LUIZ COGEN I5","SAO LUIZ - ABENGOA",8663,51,102,"1º Leilão de Energia de Reserva","2010-15",{"$f":"COUNTIF(D:D,Tabela1[[#This Row],[CD_PARC_USIN]])","v":1}]
[{"$f":"Tabela1[[#This Row],[NM_LEIL]]&Tabela1[[#This Row],[CD_PARC_USIN]]","v":"1º Leilão de Energia de Reserva8664"},"VALE TIJUCO I5","VALE DO TIJUCO",8664,51,102,"1º Leilão de Energia de Reserva","2010-15",{"$f":"COUNTIF(D:D,Tabela1[[#This Row],[CD_PARC_USIN]])","v":1}]
[{"$f":"Tabela1[[#This Row],[NM_LEIL]]&Tabela1[[#This Row],[CD_PARC_USIN]]","v":"1º Leilão de Energia de Reserva8665"},"SAO SIMAO I5","VALE DO SÃO SIMÃO",8665,51,102,"1º Leilão de Energia de Reserva","2010-15",{"$f":"COUNTIF(D:D,Tabela1[[#This Row],[CD_PARC_USIN]])","v":1}]
[{"$f":"Tabela1[[#This Row],[NM_LEIL]]&Tabela1[[#This Row],[CD_PARC_USIN]]","v":"1º Leilão de Energia de Reserva8666"},"REVATI I5 545-13","BIOPAV II",8666,51,102,"1º Leilão de Energia de Reserva","2010-15",{"$f":"COUNTIF(D:D,Tabela1[[#This Row],[CD_PARC_USIN]])","v":1}]
[{"$f":"Tabela1[[#This Row],[NM_LEIL]]&Tabela1[[#This Row],[CD_PARC_USIN]]","v":"1º Leilão de Energia de Reserva8667"},"REVATI 545-13","Chapadao Agro",8667,51,102,"1º Leilão de Energia de Reserva","2010-15",{"$f":"COUNTIF(D:D,Tabela1[[#This Row],[CD_PARC_USIN]])","v":1}]
[{"$f":"Tabela1[[#This Row],[NM_LEIL]]&Tabela1[[#This Row],[CD_PARC_USIN]]","v":"1º Leilão de Fontes Alternativas8670"},"CPFL ARVOREDO I5","ARVOREDO",8670,9,18,"1º Leilão de Fontes Alternativas","2010-30",{"$f":"COUNTIF(D:D,Tabela1[[#This Row],[CD_PARC_USIN]])","v":1}]
[{"$f":"Tabela1[[#This Row],[NM_LEIL]]&Tabela1[[#This Row],[CD_PARC_USIN]]","v":"16º Leilão de Energia Nova8681"},"BIO CAARAPO I5","CAARAPO",8681,151,417,"16º Leilão de Energia Nova","2018-25",{"$f":"COUNTIF(D:D,Tabela1[[#This Row],[CD_PARC_USIN]])","v":1}]
[{"$f":"Tabela1[[#This Row],[NM_LEIL]]&Tabela1[[#This Row],[CD_PARC_USIN]]","v":"3º Leilão de Fontes Alternativas8686"},"BPBUNGE ITT I5","ITUIUTABA",8686,162,445,"3º Leilão de Fontes Alternativas","2016-20",{"$f":"COUNTIF(D:D,Tabela1[[#This Row],[CD_PARC_USIN]])","v":1}]
[{"$f":"Tabela1[[#This Row],[NM_LEIL]]&Tabela1[[#This Row],[CD_PARC_USIN]]","v":"3º Leilão de Energia Nova8692"},"DO ATLANTICO","DO ATLANTICO APE",8692,8,17,"3º Leilão de Energia Nova","2011-15",{"$f":"COUNTIF(D:D,Tabela1[[#This Row],[CD_PARC_USIN]])","v":1}]
[{"$f":"Tabela1[[#This Row],[NM_LEIL]]&Tabela1[[#This Row],[CD_PARC_USIN]]","v":"2º Leilão de Energia Nova8694"},"PETROBRAS PIE","CAMAC MURICY I EXP.",8694,7,15,"2º Leilão de Energia Nova","2009-15",{"$f":"COUNTIF(D:D,Tabela1[[#This Row],[CD_PARC_USIN]])","v":1}]
[{"$f":"Tabela1[[#This Row],[NM_LEIL]]&Tabela1[[#This Row],[CD_PARC_USIN]]","v":"1º Leilão de Energia Nova8695"},"BRENTECH","GOIANIA II EXP",8695,5,10,"1º Leilão de Energia Nova","2009-15",{"$f":"COUNTIF(D:D,Tabela1[[#This Row],[CD_PARC_USIN]])","v":1}]
[{"$f":"Tabela1[[#This Row],[NM_LEIL]]&Tabela1[[#This Row],[CD_PARC_USIN]]","v":"1º Leilão de Energia Nova8709"},"RIO CLARO","FOZ RIO CLARO",8709,5,11,"1º Leilão de Energia Nova","2010-30",{"$f":"COUNTIF(D:D,Tabela1[[#This Row],[CD_PARC_USIN]])","v":1}]
[{"$f":"Tabela1[[#This Row],[NM_LEIL]]&Tabela1[[#This Row],[CD_PARC_USIN]]","v":"5º Leilão de Energia Nova8711"},"SEFAC","SERRA DO FACAO",8711,12,22,"5º Leilão de Energia Nova","2012-30",{"$f":"COUNTIF(D:D,Tabela1[[#This Row],[CD_PARC_USIN]])","v":1}]
[{"$f":"Tabela1[[#This Row],[NM_LEIL]]&Tabela1[[#This Row],[CD_PARC_USIN]]","v":"1º Leilão de Energia Nova8713"},"PETROBRAS PIE EXP","TERMO CUBATAO EXP",8713,5,12,"1º Leilão de Energia Nova","2010-15",{"$f":"COUNTIF(D:D,Tabela1[[#This Row],[CD_PARC_USIN]])","v":1}]
[{"$f":"Tabela1[[#This Row],[NM_LEIL]]&Tabela1[[#This Row],[CD_PARC_USIN]]","v":"3º Leilão de Energia de Reserva8719"},"UTE CEVASA I5","CEVASA",8719,53,105,"3º Leilão de Energia de Reserva","2012-15",{"$f":"COUNTIF(D:D,Tabela1[[#This Row],[CD_PARC_USIN]])","v":1}]
[{"$f":"Tabela1[[#This Row],[NM_LEIL]]&Tabela1[[#This Row],[CD_PARC_USIN]]","v":"2º Leilão de Energia Nova8720"},"PIEDADE I5","PIEDADE",8720,7,14,"2º Leilão de Energia Nova","2009-30",{"$f":"COUNTIF(D:D,Tabela1[[#This Row],[CD_PARC_USIN]])","v":1}]
[{"$f":"Tabela1[[#This Row],[NM_LEIL]]&Tabela1[[#This Row],[CD_PARC_USIN]]","v":"1º Leilão de Energia Nova8727"},"PETROBRAS PIE EXP","TRES LAGOAS EXP",8727,5,10,"1º Leilão de Energia Nova","2009-15",{"$f":"COUNTIF(D:D,Tabela1[[#This Row],[CD_PARC_USIN]])","v":1}]
[{"$f":"Tabela1[[#This Row],[NM_LEIL]]&Tabela1[[#This Row],[CD_PARC_USIN]]","v":"1º Leilão de Energia Nova8728"},"PETROBRAS PIE EXP","TERMOCEARA EXP",8728,5,10,"1º Leilão de Energia Nova","2009-15",{"$f":"COUNTIF(D:D,Tabela1[[#This Row],[CD_PARC_USIN]])","v":2}]
[{"$f":"Tabela1[[#This Row],[NM_LEIL]]&Tabela1[[#This Row],[CD_PARC_USIN]]","v":"1º Leilão de Energia Nova8728"},"PETROBRAS PIE EXP","TERMOCEARA EXP",8728,5,12,"1º Leilão de Energia Nova","2010-15",{"$f":"COUNTIF(D:D,Tabela1[[#This Row],[CD_PARC_USIN]])","v":2}]
[{"$f":"Tabela1[[#This Row],[NM_LEIL]]&Tabela1[[#This Row],[CD_PARC_USIN]]","v":"2º Leilão de Energia Nova8729"},"PETROBRAS PIE","CAMAC POLO I EXP.",8729,7,15,"2º Leilão de Energia Nova","2009-15",{"$f":"COUNTIF(D:D,Tabela1[[#This Row],[CD_PARC_USIN]])","v":1}]
[{"$f":"Tabela1[[#This Row],[NM_LEIL]]&Tabela1[[#This Row],[CD_PARC_USIN]]","v":"1º Leilão de Energia Nova8736"},"GOIAS SUL I5","GOIAS SUL GOIANDIRA",8736,5,11,"1º Leilão de Energia Nova","2010-30",{"$f":"COUNTIF(D:D,Tabela1[[#This Row],[CD_PARC_USIN]])","v":1}]
[{"$f":"Tabela1[[#This Row],[NM_LEIL]]&Tabela1[[#This Row],[CD_PARC_USIN]]","v":"5º Leilão de Energia Nova8740"},"FOZ DO CHAPECO","FOZ DO CHAPECO",8740,12,22,"5º Leilão de Energia Nova","2012-30",{"$f":"COUNTIF(D:D,Tabela1[[#This Row],[CD_PARC_USIN]])","v":1}]
[{"$f":"Tabela1[[#This Row],[NM_LEIL]]&Tabela1[[#This Row],[CD_PARC_USIN]]","v":"1º Leilão de Fontes Alternativas8747"},"CPFL VARGINHA I5","VARGINHA",8747,9,18,"1º Leilão de Fontes Alternativas","2010-30",{"$f":"COUNTIF(D:D,Tabela1[[#This Row],[CD_PARC_USIN]])","v":1}]
[{"$f":"Tabela1[[#This Row],[NM_LEIL]]&Tabela1[[#This Row],[CD_PARC_USIN]]","v":"1º Leilão de Energia de Reserva8754"},"ACEP ENBPAR","SAO LUIZ -ACEP",8754,51,102,"1º Leilão de Energia de Reserva","2010-15",{"$f":"COUNTIF(D:D,Tabela1[[#This Row],[CD_PARC_USIN]])","v":1}]
[{"$f":"Tabela1[[#This Row],[NM_LEIL]]&Tabela1[[#This Row],[CD_PARC_USIN]]","v":"3º Leilão de Energia Nova8760"},"SFE CURUMIM","BAHIA I",8760,8,17,"3º Leilão de Energia Nova","2011-15",{"$f":"COUNTIF(D:D,Tabela1[[#This Row],[CD_PARC_USIN]])","v":1}]
[{"$f":"Tabela1[[#This Row],[NM_LEIL]]&Tabela1[[#This Row],[CD_PARC_USIN]]","v":"3º Leilão de Energia Nova8761"},"PETROB PIE 1LN","TERMOMACAE",8761,8,17,"3º Leilão de Energia Nova","2011-15",{"$f":"COUNTIF(D:D,Tabela1[[#This Row],[CD_PARC_USIN]])","v":1}]
[{"$f":"Tabela1[[#This Row],[NM_LEIL]]&Tabela1[[#This Row],[CD_PARC_USIN]]","v":"3º Leilão de Energia Nova8764"},"CPFL BIOFORMOSA 3LN11","BAÍA FORMOSA",8764,8,17,"3º Leilão de Energia Nova","2011-15",{"$f":"COUNTIF(D:D,Tabela1[[#This Row],[CD_PARC_USIN]])","v":1}]
[{"$f":"Tabela1[[#This Row],[NM_LEIL]]&Tabela1[[#This Row],[CD_PARC_USIN]]","v":"6º Leilão de Energia Nova8766"},"MC2CATU 6LN11","MC2 CATU",8766,16,26,"6º Leilão de Energia Nova","2011-15",{"$f":"COUNTIF(D:D,Tabela1[[#This Row],[CD_PARC_USIN]])","v":1}]
[{"$f":"Tabela1[[#This Row],[NM_LEIL]]&Tabela1[[#This Row],[CD_PARC_USIN]]","v":"6º Leilão de Energia Nova8767"},"MC2CAM1 6LN11","MC2 CAMAÇARI 1",8767,16,26,"6º Leilão de Energia Nova","2011-15",{"$f":"COUNTIF(D:D,Tabela1[[#This Row],[CD_PARC_USIN]])","v":1}]
[{"$f":"Tabela1[[#This Row],[NM_LEIL]]&Tabela1[[#This Row],[CD_PARC_USIN]]","v":"6º Leilão de Energia Nova8768"},"MC2DIAS2 6LN11","DIAS DAVILA 2",8768,16,26,"6º Leilão de Energia Nova","2011-15",{"$f":"COUNTIF(D:D,Tabela1[[#This Row],[CD_PARC_USIN]])","v":1}]
[{"$f":"Tabela1[[#This Row],[NM_LEIL]]&Tabela1[[#This Row],[CD_PARC_USIN]]","v":"6º Leilão de Energia Nova8769"},"MC2DIAS1 6LN11","DIAS DAVILA 1",8769,16,26,"6º Leilão de Energia Nova","2011-15",{"$f":"COUNTIF(D:D,Tabela1[[#This Row],[CD_PARC_USIN]])","v":1}]
[{"$f":"Tabela1[[#This Row],[NM_LEIL]]&Tabela1[[#This Row],[CD_PARC_USIN]]","v":"3º Leilão de Energia Nova8770"},"DO ATLAN 3LN11","DO ATLANTICO PIE",8770,8,17,"3º Leilão de Energia Nova","2011-15",{"$f":"COUNTIF(D:D,Tabela1[[#This Row],[CD_PARC_USIN]])","v":1}]
[{"$f":"Tabela1[[#This Row],[NM_LEIL]]&Tabela1[[#This Row],[CD_PARC_USIN]]","v":"3º Leilão de Energia Nova8771"},"CEPAL","PALMEIRAS DE GOIAS",8771,8,17,"3º Leilão de Energia Nova","2011-15",{"$f":"COUNTIF(D:D,Tabela1[[#This Row],[CD_PARC_USIN]])","v":1}]
[{"$f":"Tabela1[[#This Row],[NM_LEIL]]&Tabela1[[#This Row],[CD_PARC_USIN]]","v":"6º Leilão de Energia Nova8772"},"MC2BONFI 6LN11","SENHOR DO BONFIM",8772,16,26,"6º Leilão de Energia Nova","2011-15",{"$f":"COUNTIF(D:D,Tabela1[[#This Row],[CD_PARC_USIN]])","v":1}]
[{"$f":"Tabela1[[#This Row],[NM_LEIL]]&Tabela1[[#This Row],[CD_PARC_USIN]]","v":"1º Procedimento Competitivo Simplificado8773"},"LIN GERA 6LN11","LINHARES",8773,200,547,"1º Procedimento Competitivo Simplificado","DISP2022-03",{"$f":"COUNTIF(D:D,Tabela1[[#This Row],[CD_PARC_USIN]])","v":2}]
[{"$f":"Tabela1[[#This Row],[NM_LEIL]]&Tabela1[[#This Row],[CD_PARC_USIN]]","v":"6º Leilão de Energia Nova8773"},"LIN GERA 6LN11","LINHARES",8773,16,26,"6º Leilão de Energia Nova","2011-15",{"$f":"COUNTIF(D:D,Tabela1[[#This Row],[CD_PARC_USIN]])","v":2}]
[{"$f":"Tabela1[[#This Row],[NM_LEIL]]&Tabela1[[#This Row],[CD_PARC_USIN]]","v":"6º Leilão de Energia Nova8775"},"MC2FEIRA 6LN11","FEIRA DE SANTANA",8775,16,26,"6º Leilão de Energia Nova","2011-15",{"$f":"COUNTIF(D:D,Tabela1[[#This Row],[CD_PARC_USIN]])","v":1}]
[{"$f":"Tabela1[[#This Row],[NM_LEIL]]&Tabela1[[#This Row],[CD_PARC_USIN]]","v":"6º Leilão de Energia Nova8778"},"TERM RIT 6LN11","SANTA RITA DE CASSIA",8778,16,26,"6º Leilão de Energia Nova","2011-15",{"$f":"COUNTIF(D:D,Tabela1[[#This Row],[CD_PARC_USIN]])","v":1}]
[{"$f":"Tabela1[[#This Row],[NM_LEIL]]&Tabela1[[#This Row],[CD_PARC_USIN]]","v":"1º Leilão de Energia Nova8788"},"GOIAS SUL I5","NOVA AURORA",8788,5,11,"1º Leilão de Energia Nova","2010-30",{"$f":"COUNTIF(D:D,Tabela1[[#This Row],[CD_PARC_USIN]])","v":1}]
[{"$f":"Tabela1[[#This Row],[NM_LEIL]]&Tabela1[[#This Row],[CD_PARC_USIN]]","v":"1º Leilão de Fontes Alternativas8789"},"IBIRAMA 1LF10","IBIRAMA",8789,9,18,"1º Leilão de Fontes Alternativas","2010-30",{"$f":"COUNTIF(D:D,Tabela1[[#This Row],[CD_PARC_USIN]])","v":1}]
[{"$f":"Tabela1[[#This Row],[NM_LEIL]]&Tabela1[[#This Row],[CD_PARC_USIN]]","v":"3º Leilão de Energia de Reserva8791"},"UAL I5","UTE ALCIDIA",8791,53,103,"3º Leilão de Energia de Reserva","2011-15",{"$f":"COUNTIF(D:D,Tabela1[[#This Row],[CD_PARC_USIN]])","v":1}]
[{"$f":"Tabela1[[#This Row],[NM_LEIL]]&Tabela1[[#This Row],[CD_PARC_USIN]]","v":"5º Leilão de Energia Nova8825"},"EESA","ESTREITO EESA",8825,12,22,"5º Leilão de Energia Nova","2012-30",{"$f":"COUNTIF(D:D,Tabela1[[#This Row],[CD_PARC_USIN]])","v":1}]
[{"$f":"Tabela1[[#This Row],[NM_LEIL]]&Tabela1[[#This Row],[CD_PARC_USIN]]","v":"5º Leilão de Energia Nova8826"},"USINA ESTREITO","ESTREITO US ESTREITO",8826,12,22,"5º Leilão de Energia Nova","2012-30",{"$f":"COUNTIF(D:D,Tabela1[[#This Row],[CD_PARC_USIN]])","v":1}]
[{"$f":"Tabela1[[#This Row],[NM_LEIL]]&Tabela1[[#This Row],[CD_PARC_USIN]]","v":"5º Leilão de Energia Nova8827"},"CVRD PIE","ESTREITO VALE",8827,12,22,"5º Leilão de Energia Nova","2012-30",{"$f":"COUNTIF(D:D,Tabela1[[#This Row],[CD_PARC_USIN]])","v":1}]
[{"$f":"Tabela1[[#This Row],[NM_LEIL]]&Tabela1[[#This Row],[CD_PARC_USIN]]","v":"5º Leilão de Energia Nova8828"},"CEE","ESTREITO CEE",8828,12,22,"5º Leilão de Energia Nova","2012-30",{"$f":"COUNTIF(D:D,Tabela1[[#This Row],[CD_PARC_USIN]])","v":1}]
[{"$f":"Tabela1[[#This Row],[NM_LEIL]]&Tabela1[[#This Row],[CD_PARC_USIN]]","v":"16º Leilão de Energia Nova8838"},"UEL BRILHANTE","ELDORADO",8838,151,417,"16º Leilão de Energia Nova","2018-25",{"$f":"COUNTIF(D:D,Tabela1[[#This Row],[CD_PARC_USIN]])","v":2}]
[{"$f":"Tabela1[[#This Row],[NM_LEIL]]&Tabela1[[#This Row],[CD_PARC_USIN]]","v":"3º Leilão de Energia de Reserva8838"},"UEL BRILHANTE","ELDORADO",8838,53,103,"3º Leilão de Energia de Reserva","2011-15",{"$f":"COUNTIF(D:D,Tabela1[[#This Row],[CD_PARC_USIN]])","v":2}]
[{"$f":"Tabela1[[#This Row],[NM_LEIL]]&Tabela1[[#This Row],[CD_PARC_USIN]]","v":"3º Leilão de Energia de Reserva8851"},"UTE S FERN I0 545-13","SAO FERNANDO I",8851,53,103,"3º Leilão de Energia de Reserva","2011-15",{"$f":"COUNTIF(D:D,Tabela1[[#This Row],[CD_PARC_USIN]])","v":1}]
[{"$f":"Tabela1[[#This Row],[NM_LEIL]]&Tabela1[[#This Row],[CD_PARC_USIN]]","v":"2º Leilão de Energia de Reserva8854"},"CGTESUL_I5","COXILHA NEGRA VII",8854,52,104,"2º Leilão de Energia de Reserva","2012-20",{"$f":"COUNTIF(D:D,Tabela1[[#This Row],[CD_PARC_USIN]])","v":1}]
[{"$f":"Tabela1[[#This Row],[NM_LEIL]]&Tabela1[[#This Row],[CD_PARC_USIN]]","v":"2º Leilão de Energia de Reserva8855"},"PALMARES I5","FAZ ROSARIO",8855,52,104,"2º Leilão de Energia de Reserva","2012-20",{"$f":"COUNTIF(D:D,Tabela1[[#This Row],[CD_PARC_USIN]])","v":1}]
[{"$f":"Tabela1[[#This Row],[NM_LEIL]]&Tabela1[[#This Row],[CD_PARC_USIN]]","v":"2º Leilão de Energia de Reserva8856"},"PALMARES I5","FAZ ROSARIO 3",8856,52,104,"2º Leilão de Energia de Reserva","2012-20",{"$f":"COUNTIF(D:D,Tabela1[[#This Row],[CD_PARC_USIN]])","v":1}]
[{"$f":"Tabela1[[#This Row],[NM_LEIL]]&Tabela1[[#This Row],[CD_PARC_USIN]]","v":"1º Leilão de Fontes Alternativas8879"},"CPFL SANTA LUZIA I5","S.LUZIA ALTO",8879,9,18,"1º Leilão de Fontes Alternativas","2010-30",{"$f":"COUNTIF(D:D,Tabela1[[#This Row],[CD_PARC_USIN]])","v":1}]
[{"$f":"Tabela1[[#This Row],[NM_LEIL]]&Tabela1[[#This Row],[CD_PARC_USIN]]","v":"1º Leilão de Fontes Alternativas8880"},"CPFL SANTA LUZIA I5","S LUZIA ALTO INCTV.",8880,9,18,"1º Leilão de Fontes Alternativas","2010-30",{"$f":"COUNTIF(D:D,Tabela1[[#This Row],[CD_PARC_USIN]])","v":1}]
[{"$f":"Tabela1[[#This Row],[NM_LEIL]]&Tabela1[[#This Row],[CD_PARC_USIN]]","v":"21º Leilão de Energia Nova8885"},"UTE CODORA I5","CODORA",8885,161,443,"21º Leilão de Energia Nova","2020-25",{"$f":"COUNTIF(D:D,Tabela1[[#This Row],[CD_PARC_USIN]])","v":2}]
[{"$f":"Tabela1[[#This Row],[NM_LEIL]]&Tabela1[[#This Row],[CD_PARC_USIN]]","v":"8º Leilão de Energia Nova8885"},"UTE CODORA I5","CODORA",8885,20,31,"8º Leilão de Energia Nova","2012-15",{"$f":"COUNTIF(D:D,Tabela1[[#This Row],[CD_PARC_USIN]])","v":2}]
[{"$f":"Tabela1[[#This Row],[NM_LEIL]]&Tabela1[[#This Row],[CD_PARC_USIN]]","v":"3º Leilão de Energia Nova8887"},"EAPSA","DARDANELOS",8887,8,16,"3º Leilão de Energia Nova","2011-30",{"$f":"COUNTIF(D:D,Tabela1[[#This Row],[CD_PARC_USIN]])","v":1}]
[{"$f":"Tabela1[[#This Row],[NM_LEIL]]&Tabela1[[#This Row],[CD_PARC_USIN]]","v":"2º Leilão de Energia de Reserva8892"},"MANGUE SEC3 I5","MANGUE SECO 3",8892,52,104,"2º Leilão de Energia de Reserva","2012-20",{"$f":"COUNTIF(D:D,Tabela1[[#This Row],[CD_PARC_USIN]])","v":1}]
[{"$f":"Tabela1[[#This Row],[NM_LEIL]]&Tabela1[[#This Row],[CD_PARC_USIN]]","v":"2º Leilão de Energia de Reserva8900"},"CGTESUL_I5","COXILHA NEGRA VI",8900,52,104,"2º Leilão de Energia de Reserva","2012-20",{"$f":"COUNTIF(D:D,Tabela1[[#This Row],[CD_PARC_USIN]])","v":1}]
[{"$f":"Tabela1[[#This Row],[NM_LEIL]]&Tabela1[[#This Row],[CD_PARC_USIN]]","v":"5º Leilão de Energia Nova8902"},"LAMBARI 5LN12","MARACANAU II LEILÃO",8902,12,23,"5º Leilão de Energia Nova","2012-15",{"$f":"COUNTIF(D:D,Tabela1[[#This Row],[CD_PARC_USIN]])","v":1}]
[{"$f":"Tabela1[[#This Row],[NM_LEIL]]&Tabela1[[#This Row],[CD_PARC_USIN]]","v":"5º Leilão de Energia Nova8903"},"DIF EMP 5LN12","PORTO DO ITAQUI",8903,12,23,"5º Leilão de Energia Nova","2012-15",{"$f":"COUNTIF(D:D,Tabela1[[#This Row],[CD_PARC_USIN]])","v":1}]
[{"$f":"Tabela1[[#This Row],[NM_LEIL]]&Tabela1[[#This Row],[CD_PARC_USIN]]","v":"5º Leilão de Energia Nova8904"},"ENE PECE 5LN12","PORTO PECEM I",8904,12,23,"5º Leilão de Energia Nova","2012-15",{"$f":"COUNTIF(D:D,Tabela1[[#This Row],[CD_PARC_USIN]])","v":1}]
[{"$f":"Tabela1[[#This Row],[NM_LEIL]]&Tabela1[[#This Row],[CD_PARC_USIN]]","v":"1º Procedimento Competitivo Simplificado8906"},"AMBAR UTE CUIABA 545-13","CUIABA",8906,200,547,"1º Procedimento Competitivo Simplificado","DISP2022-03",{"$f":"COUNTIF(D:D,Tabela1[[#This Row],[CD_PARC_USIN]])","v":1}]
[{"$f":"Tabela1[[#This Row],[NM_LEIL]]&Tabela1[[#This Row],[CD_PARC_USIN]]","v":"5º Leilão de Energia Nova8909"},"SUAPE II 5LN12","SUAPE II",8909,12,23,"5º Leilão de Energia Nova","2012-15",{"$f":"COUNTIF(D:D,Tabela1[[#This Row],[CD_PARC_USIN]])","v":1}]
[{"$f":"Tabela1[[#This Row],[NM_LEIL]]&Tabela1[[#This Row],[CD_PARC_USIN]]","v":"2º Leilão de Energia de Reserva8910"},"MANGUE SEC2 I5","MANGUE SECO 2",8910,52,104,"2º Leilão de Energia de Reserva","2012-20",{"$f":"COUNTIF(D:D,Tabela1[[#This Row],[CD_PARC_USIN]])","v":1}]
[{"$f":"Tabela1[[#This Row],[NM_LEIL]]&Tabela1[[#This Row],[CD_PARC_USIN]]","v":"2º Leilão de Energia de Reserva8912"},"MANGUE SEC1 I5","MANGUE SECO 1",8912,52,104,"2º Leilão de Energia de Reserva","2012-20",{"$f":"COUNTIF(D:D,Tabela1[[#This Row],[CD_PARC_USIN]])","v":1}]
[{"$f":"Tabela1[[#This Row],[NM_LEIL]]&Tabela1[[#This Row],[CD_PARC_USIN]]","v":"2º Leilão de Energia Nova8916"},"ACER","QUIRINOPOLIS-ACER",8916,7,15,"2º Leilão de Energia Nova","2009-15",{"$f":"COUNTIF(D:D,Tabela1[[#This Row],[CD_PARC_USIN]])","v":2}]
[{"$f":"Tabela1[[#This Row],[NM_LEIL]]&Tabela1[[#This Row],[CD_PARC_USIN]]","v":"3º Leilão de Energia de Reserva8916"},"ACER","QUIRINOPOLIS-ACER",8916,53,107,"3º Leilão de Energia de Reserva","2013-15",{"$f":"COUNTIF(D:D,Tabela1[[#This Row],[CD_PARC_USIN]])","v":2}]
[{"$f":"Tabela1[[#This Row],[NM_LEIL]]&Tabela1[[#This Row],[CD_PARC_USIN]]","v":"2º Leilão de Energia de Reserva8922"},"MANGUE SEC4 I5","MANGUE SECO 5",8922,52,104,"2º Leilão de Energia de Reserva","2012-20",{"$f":"COUNTIF(D:D,Tabela1[[#This Row],[CD_PARC_USIN]])","v":1}]
[{"$f":"Tabela1[[#This Row],[NM_LEIL]]&Tabela1[[#This Row],[CD_PARC_USIN]]","v":"1º Leilão de Fontes Alternativas8926"},"PF ENERGIA I5","PEDRA FURADA",8926,9,18,"1º Leilão de Fontes Alternativas","2010-30",{"$f":"COUNTIF(D:D,Tabela1[[#This Row],[CD_PARC_USIN]])","v":1}]
[{"$f":"Tabela1[[#This Row],[NM_LEIL]]&Tabela1[[#This Row],[CD_PARC_USIN]]","v":"1º Leilão de Fontes Alternativas8938"},"PF ENERGIA I5","PEDRA FURADA I5",8938,9,18,"1º Leilão de Fontes Alternativas","2010-30",{"$f":"COUNTIF(D:D,Tabela1[[#This Row],[CD_PARC_USIN]])","v":1}]
[{"$f":"Tabela1[[#This Row],[NM_LEIL]]&Tabela1[[#This Row],[CD_PARC_USIN]]","v":"19º Leilão de Energia Nova8944"},"SANTO ANTONIO","S ANTONIO (STOANT)",8944,158,436,"19º Leilão de Energia Nova","2017-30",{"$f":"COUNTIF(D:D,Tabela1[[#This Row],[CD_PARC_USIN]])","v":2}]
[{"$f":"Tabela1[[#This Row],[NM_LEIL]]&Tabela1[[#This Row],[CD_PARC_USIN]]","v":"1º Leilão de Projetos Estruturantes(UHE S Antonio)8944"},"SANTO ANTONIO","S ANTONIO (STOANT)",8944,13,24,"1º Leilão de Projetos Estruturantes(UHE S Antonio)","2012-30",{"$f":"COUNTIF(D:D,Tabela1[[#This Row],[CD_PARC_USIN]])","v":2}]
[{"$f":"Tabela1[[#This Row],[NM_LEIL]]&Tabela1[[#This Row],[CD_PARC_USIN]]","v":"2º Leilão de Energia de Reserva8957"},"CGTESUL_I5","COXILHA NEGRA V",8957,52,104,"2º Leilão de Energia de Reserva","2012-20",{"$f":"COUNTIF(D:D,Tabela1[[#This Row],[CD_PARC_USIN]])","v":1}]
[{"$f":"Tabela1[[#This Row],[NM_LEIL]]&Tabela1[[#This Row],[CD_PARC_USIN]]","v":"2º Leilão de Energia de Reserva8958"},"ART 1 I5","ARATUA 1",8958,52,104,"2º Leilão de Energia de Reserva","2012-20",{"$f":"COUNTIF(D:D,Tabela1[[#This Row],[CD_PARC_USIN]])","v":1}]
[{"$f":"Tabela1[[#This Row],[NM_LEIL]]&Tabela1[[#This Row],[CD_PARC_USIN]]","v":"3º Leilão de Energia de Reserva8964"},"CPFL BIOPEDRA I5","DA PEDRA",8964,53,105,"3º Leilão de Energia de Reserva","2012-15",{"$f":"COUNTIF(D:D,Tabela1[[#This Row],[CD_PARC_USIN]])","v":1}]
[{"$f":"Tabela1[[#This Row],[NM_LEIL]]&Tabela1[[#This Row],[CD_PARC_USIN]]","v":"1º Leilão de Energia Nova8972"},"CGTESUL","PASSO SAO JOAO",8972,5,11,"1º Leilão de Energia Nova","2010-30",{"$f":"COUNTIF(D:D,Tabela1[[#This Row],[CD_PARC_USIN]])","v":1}]
[{"$f":"Tabela1[[#This Row],[NM_LEIL]]&Tabela1[[#This Row],[CD_PARC_USIN]]","v":"2º Leilão de Fontes Alternativas8979"},"UNAI I5","UNAI BAIXO",8979,25,37,"2º Leilão de Fontes Alternativas","2013-30",{"$f":"COUNTIF(D:D,Tabela1[[#This Row],[CD_PARC_USIN]])","v":1}]
[{"$f":"Tabela1[[#This Row],[NM_LEIL]]&Tabela1[[#This Row],[CD_PARC_USIN]]","v":"2º Leilão de Energia de Reserva8983"},"GEOBV I5","CABECO PRETO",8983,52,104,"2º Leilão de Energia de Reserva","2012-20",{"$f":"COUNTIF(D:D,Tabela1[[#This Row],[CD_PARC_USIN]])","v":1}]
[{"$f":"Tabela1[[#This Row],[NM_LEIL]]&Tabela1[[#This Row],[CD_PARC_USIN]]","v":"3º Leilão de Energia de Reserva8984"},"GESTAMP MOX I5","CABECO PRETO IV",8984,53,108,"3º Leilão de Energia de Reserva","2013-20",{"$f":"COUNTIF(D:D,Tabela1[[#This Row],[CD_PARC_USIN]])","v":1}]
[{"$f":"Tabela1[[#This Row],[NM_LEIL]]&Tabela1[[#This Row],[CD_PARC_USIN]]","v":"12º Leilão de Energia Nova8991"},"VALE TIJUCO II I5","VALE DO TIJUCO II",8991,28,42,"12º Leilão de Energia Nova","2014-20",{"$f":"COUNTIF(D:D,Tabela1[[#This Row],[CD_PARC_USIN]])","v":1}]
[{"$f":"Tabela1[[#This Row],[NM_LEIL]]&Tabela1[[#This Row],[CD_PARC_USIN]]","v":"2º Leilão de Energia de Reserva8992"},"LAGOA I5","Sang III",8992,52,104,"2º Leilão de Energia de Reserva","2012-20",{"$f":"COUNTIF(D:D,Tabela1[[#This Row],[CD_PARC_USIN]])","v":1}]
[{"$f":"Tabela1[[#This Row],[NM_LEIL]]&Tabela1[[#This Row],[CD_PARC_USIN]]","v":"2º Leilão de Energia de Reserva8993"},"LAGOA I5","SANGRADOURO III",8993,52,104,"2º Leilão de Energia de Reserva","2012-20",{"$f":"COUNTIF(D:D,Tabela1[[#This Row],[CD_PARC_USIN]])","v":1}]
[{"$f":"Tabela1[[#This Row],[NM_LEIL]]&Tabela1[[#This Row],[CD_PARC_USIN]]","v":"12º Leilão de Energia Nova8994"},"UMOE BIO I5","PARANAPANEMA UMOE",8994,28,42,"12º Leilão de Energia Nova","2014-20",{"$f":"COUNTIF(D:D,Tabela1[[#This Row],[CD_PARC_USIN]])","v":1}]
[{"$f":"Tabela1[[#This Row],[NM_LEIL]]&Tabela1[[#This Row],[CD_PARC_USIN]]","v":"4º Leilão de Energia de Reserva20003"},"COFCO EN II I5","UTE MERIDIANO II",20003,54,109,"4º Leilão de Energia de Reserva","2014-20",{"$f":"COUNTIF(D:D,Tabela1[[#This Row],[CD_PARC_USIN]])","v":1}]
[{"$f":"Tabela1[[#This Row],[NM_LEIL]]&Tabela1[[#This Row],[CD_PARC_USIN]]","v":"4º Leilão de Energia de Reserva20004"},"COFCO MER I5","UTE MERIDIANO I",20004,54,109,"4º Leilão de Energia de Reserva","2014-20",{"$f":"COUNTIF(D:D,Tabela1[[#This Row],[CD_PARC_USIN]])","v":1}]
[{"$f":"Tabela1[[#This Row],[NM_LEIL]]&Tabela1[[#This Row],[CD_PARC_USIN]]","v":"2º Leilão de Energia de Reserva20011"},"EOL MACAUBA I5","MACAUBAS",20011,52,104,"2º Leilão de Energia de Reserva","2012-20",{"$f":"COUNTIF(D:D,Tabela1[[#This Row],[CD_PARC_USIN]])","v":1}]
[{"$f":"Tabela1[[#This Row],[NM_LEIL]]&Tabela1[[#This Row],[CD_PARC_USIN]]","v":"2º Leilão de Energia de Reserva20012"},"EOL SEABRA I5","SEABRA",20012,52,104,"2º Leilão de Energia de Reserva","2012-20",{"$f":"COUNTIF(D:D,Tabela1[[#This Row],[CD_PARC_USIN]])","v":1}]
[{"$f":"Tabela1[[#This Row],[NM_LEIL]]&Tabela1[[#This Row],[CD_PARC_USIN]]","v":"2º Leilão de Energia de Reserva20013"},"EOL N HORIZ I5","N.HORIZONTE - EOL NH",20013,52,104,"2º Leilão de Energia de Reserva","2012-20",{"$f":"COUNTIF(D:D,Tabela1[[#This Row],[CD_PARC_USIN]])","v":1}]
[{"$f":"Tabela1[[#This Row],[NM_LEIL]]&Tabela1[[#This Row],[CD_PARC_USIN]]","v":"2º Leilão de Energia de Reserva20014"},"EOL FAISA I I5","FAISA I",20014,52,104,"2º Leilão de Energia de Reserva","2012-20",{"$f":"COUNTIF(D:D,Tabela1[[#This Row],[CD_PARC_USIN]])","v":1}]
[{"$f":"Tabela1[[#This Row],[NM_LEIL]]&Tabela1[[#This Row],[CD_PARC_USIN]]","v":"2º Leilão de Energia de Reserva20015"},"EOL FAIS II I5","FAISA II",20015,52,104,"2º Leilão de Energia de Reserva","2012-20",{"$f":"COUNTIF(D:D,Tabela1[[#This Row],[CD_PARC_USIN]])","v":1}]
[{"$f":"Tabela1[[#This Row],[NM_LEIL]]&Tabela1[[#This Row],[CD_PARC_USIN]]","v":"2º Leilão de Energia de Reserva20016"},"EOL FAI III I5","FAISA III",20016,52,104,"2º Leilão de Energia de Reserva","2012-20",{"$f":"COUNTIF(D:D,Tabela1[[#This Row],[CD_PARC_USIN]])","v":1}]
[{"$f":"Tabela1[[#This Row],[NM_LEIL]]&Tabela1[[#This Row],[CD_PARC_USIN]]","v":"2º Leilão de Energia de Reserva20017"},"EOL FAI IV I5","FAISA IV",20017,52,104,"2º Leilão de Energia de Reserva","2012-20",{"$f":"COUNTIF(D:D,Tabela1[[#This Row],[CD_PARC_USIN]])","v":1}]
[{"$f":"Tabela1[[#This Row],[NM_LEIL]]&Tabela1[[#This Row],[CD_PARC_USIN]]","v":"2º Leilão de Energia de Reserva20018"},"EOL FAISA V I5","FAISA V",20018,52,104,"2º Leilão de Energia de Reserva","2012-20",{"$f":"COUNTIF(D:D,Tabela1[[#This Row],[CD_PARC_USIN]])","v":1}]
[{"$f":"Tabela1[[#This Row],[NM_LEIL]]&Tabela1[[#This Row],[CD_PARC_USIN]]","v":"2º Leilão de Energia de Reserva20019"},"UEE PORTO I5","PORTO SEGURO",20019,52,104,"2º Leilão de Energia de Reserva","2012-20",{"$f":"COUNTIF(D:D,Tabela1[[#This Row],[CD_PARC_USIN]])","v":1}]
[{"$f":"Tabela1[[#This Row],[NM_LEIL]]&Tabela1[[#This Row],[CD_PARC_USIN]]","v":"2º Leilão de Energia de Reserva20020"},"UEE CONCEIC I5","N SRA CONCEIC",20020,52,104,"2º Leilão de Energia de Reserva","2012-20",{"$f":"COUNTIF(D:D,Tabela1[[#This Row],[CD_PARC_USIN]])","v":1}]
[{"$f":"Tabela1[[#This Row],[NM_LEIL]]&Tabela1[[#This Row],[CD_PARC_USIN]]","v":"2º Leilão de Energia de Reserva20021"},"UEE ILHEUS I5","ILHEUS (ILHEUS)",20021,52,104,"2º Leilão de Energia de Reserva","2012-20",{"$f":"COUNTIF(D:D,Tabela1[[#This Row],[CD_PARC_USIN]])","v":1}]
[{"$f":"Tabela1[[#This Row],[NM_LEIL]]&Tabela1[[#This Row],[CD_PARC_USIN]]","v":"2º Leilão de Energia de Reserva20022"},"UEE IGAPORA I5","IGAPORA",20022,52,104,"2º Leilão de Energia de Reserva","2012-20",{"$f":"COUNTIF(D:D,Tabela1[[#This Row],[CD_PARC_USIN]])","v":1}]
[{"$f":"Tabela1[[#This Row],[NM_LEIL]]&Tabela1[[#This Row],[CD_PARC_USIN]]","v":"2º Leilão de Energia de Reserva20023"},"UEE PLANALT I5","PLANALTI",20023,52,104,"2º Leilão de Energia de Reserva","2012-20",{"$f":"COUNTIF(D:D,Tabela1[[#This Row],[CD_PARC_USIN]])","v":1}]
[{"$f":"Tabela1[[#This Row],[NM_LEIL]]&Tabela1[[#This Row],[CD_PARC_USIN]]","v":"2º Leilão de Energia de Reserva20024"},"UEE PAJEU I5","PAJEU DO VENTO",20024,52,104,"2º Leilão de Energia de Reserva","2012-20",{"$f":"COUNTIF(D:D,Tabela1[[#This Row],[CD_PARC_USIN]])","v":1}]
[{"$f":"Tabela1[[#This Row],[NM_LEIL]]&Tabela1[[#This Row],[CD_PARC_USIN]]","v":"2º Leilão de Energia de Reserva20025"},"UEE LICINIO I5","LICINIO DE ALMEIDA",20025,52,104,"2º Leilão de Energia de Reserva","2012-20",{"$f":"COUNTIF(D:D,Tabela1[[#This Row],[CD_PARC_USIN]])","v":1}]
[{"$f":"Tabela1[[#This Row],[NM_LEIL]]&Tabela1[[#This Row],[CD_PARC_USIN]]","v":"2º Leilão de Energia de Reserva20026"},"UEE GUANAM I5","GUANAMBI",20026,52,104,"2º Leilão de Energia de Reserva","2012-20",{"$f":"COUNTIF(D:D,Tabela1[[#This Row],[CD_PARC_USIN]])","v":1}]
[{"$f":"Tabela1[[#This Row],[NM_LEIL]]&Tabela1[[#This Row],[CD_PARC_USIN]]","v":"2º Leilão de Energia de Reserva20027"},"UEE CANDIBA I5","CANDIBA",20027,52,104,"2º Leilão de Energia de Reserva","2012-20",{"$f":"COUNTIF(D:D,Tabela1[[#This Row],[CD_PARC_USIN]])","v":1}]
[{"$f":"Tabela1[[#This Row],[NM_LEIL]]&Tabela1[[#This Row],[CD_PARC_USIN]]","v":"2º Leilão de Energia de Reserva20028"},"UEE SERRA I5","SERRA DO SALTO",20028,52,104,"2º Leilão de Energia de Reserva","2012-20",{"$f":"COUNTIF(D:D,Tabela1[[#This Row],[CD_PARC_USIN]])","v":1}]
[{"$f":"Tabela1[[#This Row],[NM_LEIL]]&Tabela1[[#This Row],[CD_PARC_USIN]]","v":"2º Leilão de Energia de Reserva20029"},"UEE VERDE I5","RIO VERDE",20029,52,104,"2º Leilão de Energia de Reserva","2012-20",{"$f":"COUNTIF(D:D,Tabela1[[#This Row],[CD_PARC_USIN]])","v":1}]
[{"$f":"Tabela1[[#This Row],[NM_LEIL]]&Tabela1[[#This Row],[CD_PARC_USIN]]","v":"2º Leilão de Energia de Reserva20030"},"UEE ALVORA I5","ALVORADA",20030,52,104,"2º Leilão de Energia de Reserva","2012-20",{"$f":"COUNTIF(D:D,Tabela1[[#This Row],[CD_PARC_USIN]])","v":1}]
[{"$f":"Tabela1[[#This Row],[NM_LEIL]]&Tabela1[[#This Row],[CD_PARC_USIN]]","v":"2º Leilão de Energia de Reserva20031"},"UEE GUIRAPA I5","GUIRAPA",20031,52,104,"2º Leilão de Energia de Reserva","2012-20",{"$f":"COUNTIF(D:D,Tabela1[[#This Row],[CD_PARC_USIN]])","v":1}]
[{"$f":"Tabela1[[#This Row],[NM_LEIL]]&Tabela1[[#This Row],[CD_PARC_USIN]]","v":"2º Leilão de Energia de Reserva20032"},"UEE PINDAI I5","PINDAI",20032,52,104,"2º Leilão de Energia de Reserva","2012-20",{"$f":"COUNTIF(D:D,Tabela1[[#This Row],[CD_PARC_USIN]])","v":1}]
[{"$f":"Tabela1[[#This Row],[NM_LEIL]]&Tabela1[[#This Row],[CD_PARC_USIN]]","v":"2º Leilão de Energia de Reserva20033"},"ENERGEN I5","B COQUEIROS (ENERG)",20033,52,104,"2º Leilão de Energia de Reserva","2012-20",{"$f":"COUNTIF(D:D,Tabela1[[#This Row],[CD_PARC_USIN]])","v":1}]
[{"$f":"Tabela1[[#This Row],[NM_LEIL]]&Tabela1[[#This Row],[CD_PARC_USIN]]","v":"2º Leilão de Energia de Reserva20034"},"VENTOS I0","D. DE PARACURU (VEN)",20034,52,104,"2º Leilão de Energia de Reserva","2012-20",{"$f":"COUNTIF(D:D,Tabela1[[#This Row],[CD_PARC_USIN]])","v":1}]
[{"$f":"Tabela1[[#This Row],[NM_LEIL]]&Tabela1[[#This Row],[CD_PARC_USIN]]","v":"2º Leilão de Energia de Reserva20035"},"VENTOS I5","D. DE PARACURU (INV)",20035,52,104,"2º Leilão de Energia de Reserva","2012-20",{"$f":"COUNTIF(D:D,Tabela1[[#This Row],[CD_PARC_USIN]])","v":1}]
[{"$f":"Tabela1[[#This Row],[NM_LEIL]]&Tabela1[[#This Row],[CD_PARC_USIN]]","v":"2º Leilão de Energia de Reserva20036"},"RDV 1","REI VENTOS 1 2LER",20036,52,104,"2º Leilão de Energia de Reserva","2012-20",{"$f":"COUNTIF(D:D,Tabela1[[#This Row],[CD_PARC_USIN]])","v":1}]
[{"$f":"Tabela1[[#This Row],[NM_LEIL]]&Tabela1[[#This Row],[CD_PARC_USIN]]","v":"2º Leilão de Energia de Reserva20037"},"RDV 3","REI VENTOS 3",20037,52,104,"2º Leilão de Energia de Reserva","2012-20",{"$f":"COUNTIF(D:D,Tabela1[[#This Row],[CD_PARC_USIN]])","v":1}]
[{"$f":"Tabela1[[#This Row],[NM_LEIL]]&Tabela1[[#This Row],[CD_PARC_USIN]]","v":"2º Leilão de Energia de Reserva20038"},"MIA 3","MIASSABA 3",20038,52,104,"2º Leilão de Energia de Reserva","2012-20",{"$f":"COUNTIF(D:D,Tabela1[[#This Row],[CD_PARC_USIN]])","v":1}]
[{"$f":"Tabela1[[#This Row],[NM_LEIL]]&Tabela1[[#This Row],[CD_PARC_USIN]]","v":"2º Leilão de Energia de Reserva20039"},"EOPR I5","PEDRA DO REINO",20039,52,104,"2º Leilão de Energia de Reserva","2012-20",{"$f":"COUNTIF(D:D,Tabela1[[#This Row],[CD_PARC_USIN]])","v":1}]
[{"$f":"Tabela1[[#This Row],[NM_LEIL]]&Tabela1[[#This Row],[CD_PARC_USIN]]","v":"2º Leilão de Energia de Reserva20040"},"CPFL MORRO DOS VENTOS I I5","MORRO DOS VENTOS I",20040,52,104,"2º Leilão de Energia de Reserva","2012-20",{"$f":"COUNTIF(D:D,Tabela1[[#This Row],[CD_PARC_USIN]])","v":1}]
[{"$f":"Tabela1[[#This Row],[NM_LEIL]]&Tabela1[[#This Row],[CD_PARC_USIN]]","v":"2º Leilão de Energia de Reserva20041"},"CPFL MORRO DOS VENTOS III I5","MORRO DOS VENTOS III",20041,52,104,"2º Leilão de Energia de Reserva","2012-20",{"$f":"COUNTIF(D:D,Tabela1[[#This Row],[CD_PARC_USIN]])","v":1}]
[{"$f":"Tabela1[[#This Row],[NM_LEIL]]&Tabela1[[#This Row],[CD_PARC_USIN]]","v":"2º Leilão de Energia de Reserva20042"},"CPFL MORRO DOS VENTOS IV I5","MORRO DOS VENTOS IV",20042,52,104,"2º Leilão de Energia de Reserva","2012-20",{"$f":"COUNTIF(D:D,Tabela1[[#This Row],[CD_PARC_USIN]])","v":1}]
[{"$f":"Tabela1[[#This Row],[NM_LEIL]]&Tabela1[[#This Row],[CD_PARC_USIN]]","v":"2º Leilão de Energia de Reserva20043"},"CPFL MORRO DOS VENTOS VI I5","MORRO DOS VENTOS VI",20043,52,104,"2º Leilão de Energia de Reserva","2012-20",{"$f":"COUNTIF(D:D,Tabela1[[#This Row],[CD_PARC_USIN]])","v":1}]
[{"$f":"Tabela1[[#This Row],[NM_LEIL]]&Tabela1[[#This Row],[CD_PARC_USIN]]","v":"2º Leilão de Energia de Reserva20044"},"CPFL MORRO DOS VENTOS IX I5","MORRO DOS VENTOS IX",20044,52,104,"2º Leilão de Energia de Reserva","2012-20",{"$f":"COUNTIF(D:D,Tabela1[[#This Row],[CD_PARC_USIN]])","v":1}]
[{"$f":"Tabela1[[#This Row],[NM_LEIL]]&Tabela1[[#This Row],[CD_PARC_USIN]]","v":"2º Leilão de Energia de Reserva20045"},"CPFL EURUS VI I5","EURUS VI",20045,52,104,"2º Leilão de Energia de Reserva","2012-20",{"$f":"COUNTIF(D:D,Tabela1[[#This Row],[CD_PARC_USIN]])","v":1}]
[{"$f":"Tabela1[[#This Row],[NM_LEIL]]&Tabela1[[#This Row],[CD_PARC_USIN]]","v":"2º Leilão de Energia de Reserva20046"},"CPFL SANTA CLARA I I5","STA CLARA I (SCLARA)",20046,52,104,"2º Leilão de Energia de Reserva","2012-20",{"$f":"COUNTIF(D:D,Tabela1[[#This Row],[CD_PARC_USIN]])","v":1}]
[{"$f":"Tabela1[[#This Row],[NM_LEIL]]&Tabela1[[#This Row],[CD_PARC_USIN]]","v":"2º Leilão de Energia de Reserva20047"},"CPFL SANTA CLARA II I5","STA CLARA II",20047,52,104,"2º Leilão de Energia de Reserva","2012-20",{"$f":"COUNTIF(D:D,Tabela1[[#This Row],[CD_PARC_USIN]])","v":1}]
[{"$f":"Tabela1[[#This Row],[NM_LEIL]]&Tabela1[[#This Row],[CD_PARC_USIN]]","v":"2º Leilão de Energia de Reserva20048"},"CPFL SANTA CLARA III I5","STA CLARA III",20048,52,104,"2º Leilão de Energia de Reserva","2012-20",{"$f":"COUNTIF(D:D,Tabela1[[#This Row],[CD_PARC_USIN]])","v":1}]
[{"$f":"Tabela1[[#This Row],[NM_LEIL]]&Tabela1[[#This Row],[CD_PARC_USIN]]","v":"2º Leilão de Energia de Reserva20049"},"CPFL SANTA CLARA IV I5","STA CLARA IV",20049,52,104,"2º Leilão de Energia de Reserva","2012-20",{"$f":"COUNTIF(D:D,Tabela1[[#This Row],[CD_PARC_USIN]])","v":1}]
[{"$f":"Tabela1[[#This Row],[NM_LEIL]]&Tabela1[[#This Row],[CD_PARC_USIN]]","v":"2º Leilão de Energia de Reserva20050"},"CPFL SANTA CLARA V I5","STA CLARA V",20050,52,104,"2º Leilão de Energia de Reserva","2012-20",{"$f":"COUNTIF(D:D,Tabela1[[#This Row],[CD_PARC_USIN]])","v":1}]
[{"$f":"Tabela1[[#This Row],[NM_LEIL]]&Tabela1[[#This Row],[CD_PARC_USIN]]","v":"2º Leilão de Energia de Reserva20051"},"CPFL SANTA CLARA VI I5","STA CLARA VI",20051,52,104,"2º Leilão de Energia de Reserva","2012-20",{"$f":"COUNTIF(D:D,Tabela1[[#This Row],[CD_PARC_USIN]])","v":1}]
[{"$f":"Tabela1[[#This Row],[NM_LEIL]]&Tabela1[[#This Row],[CD_PARC_USIN]]","v":"2º Leilão de Energia de Reserva20052"},"LAGOA I5","SANGRADOURO II",20052,52,104,"2º Leilão de Energia de Reserva","2012-20",{"$f":"COUNTIF(D:D,Tabela1[[#This Row],[CD_PARC_USIN]])","v":1}]
[{"$f":"Tabela1[[#This Row],[NM_LEIL]]&Tabela1[[#This Row],[CD_PARC_USIN]]","v":"2º Leilão de Energia de Reserva20053"},"LITORAL I5","OSORIO 2",20053,52,104,"2º Leilão de Energia de Reserva","2012-20",{"$f":"COUNTIF(D:D,Tabela1[[#This Row],[CD_PARC_USIN]])","v":1}]
[{"$f":"Tabela1[[#This Row],[NM_LEIL]]&Tabela1[[#This Row],[CD_PARC_USIN]]","v":"2º Leilão de Energia de Reserva20056"},"QUIXABA I5","QUIXABA",20056,52,104,"2º Leilão de Energia de Reserva","2012-20",{"$f":"COUNTIF(D:D,Tabela1[[#This Row],[CD_PARC_USIN]])","v":1}]
[{"$f":"Tabela1[[#This Row],[NM_LEIL]]&Tabela1[[#This Row],[CD_PARC_USIN]]","v":"2º Leilão de Energia de Reserva20057"},"LAGOA SECA I5","LAGOA SECA",20057,52,104,"2º Leilão de Energia de Reserva","2012-20",{"$f":"COUNTIF(D:D,Tabela1[[#This Row],[CD_PARC_USIN]])","v":1}]
[{"$f":"Tabela1[[#This Row],[NM_LEIL]]&Tabela1[[#This Row],[CD_PARC_USIN]]","v":"2º Leilão de Energia de Reserva20058"},"NOVA BURITI I5","BURITI (NOVA BURITI)",20058,52,104,"2º Leilão de Energia de Reserva","2012-20",{"$f":"COUNTIF(D:D,Tabela1[[#This Row],[CD_PARC_USIN]])","v":1}]
[{"$f":"Tabela1[[#This Row],[NM_LEIL]]&Tabela1[[#This Row],[CD_PARC_USIN]]","v":"2º Leilão de Energia de Reserva20059"},"VENTO OESTE I5","VENTO DO OESTE",20059,52,104,"2º Leilão de Energia de Reserva","2012-20",{"$f":"COUNTIF(D:D,Tabela1[[#This Row],[CD_PARC_USIN]])","v":1}]
[{"$f":"Tabela1[[#This Row],[NM_LEIL]]&Tabela1[[#This Row],[CD_PARC_USIN]]","v":"2º Leilão de Energia de Reserva20060"},"NOVA ARARAS I5","ARARAS (N.ARARAS)",20060,52,104,"2º Leilão de Energia de Reserva","2012-20",{"$f":"COUNTIF(D:D,Tabela1[[#This Row],[CD_PARC_USIN]])","v":1}]
[{"$f":"Tabela1[[#This Row],[NM_LEIL]]&Tabela1[[#This Row],[CD_PARC_USIN]]","v":"2º Leilão de Energia de Reserva20061"},"NOVA CAJUCO I5","NOVA CAJUCOCO",20061,52,104,"2º Leilão de Energia de Reserva","2012-20",{"$f":"COUNTIF(D:D,Tabela1[[#This Row],[CD_PARC_USIN]])","v":1}]
[{"$f":"Tabela1[[#This Row],[NM_LEIL]]&Tabela1[[#This Row],[CD_PARC_USIN]]","v":"2º Leilão de Energia de Reserva20062"},"NOVA COQUEI I5","COQUEIROS",20062,52,104,"2º Leilão de Energia de Reserva","2012-20",{"$f":"COUNTIF(D:D,Tabela1[[#This Row],[CD_PARC_USIN]])","v":1}]
[{"$f":"Tabela1[[#This Row],[NM_LEIL]]&Tabela1[[#This Row],[CD_PARC_USIN]]","v":"2º Leilão de Energia de Reserva20063"},"NOVA GARCAS I5","GARÇAS",20063,52,104,"2º Leilão de Energia de Reserva","2012-20",{"$f":"COUNTIF(D:D,Tabela1[[#This Row],[CD_PARC_USIN]])","v":1}]
[{"$f":"Tabela1[[#This Row],[NM_LEIL]]&Tabela1[[#This Row],[CD_PARC_USIN]]","v":"2º Leilão de Energia de Reserva20064"},"EOL BEL VIS I5","AREIA BRANCA (EBV)",20064,52,104,"2º Leilão de Energia de Reserva","2012-20",{"$f":"COUNTIF(D:D,Tabela1[[#This Row],[CD_PARC_USIN]])","v":1}]
[{"$f":"Tabela1[[#This Row],[NM_LEIL]]&Tabela1[[#This Row],[CD_PARC_USIN]]","v":"2º Leilão de Energia de Reserva20065"},"EOL MAR TER I5","MAR E TERRA",20065,52,104,"2º Leilão de Energia de Reserva","2012-20",{"$f":"COUNTIF(D:D,Tabela1[[#This Row],[CD_PARC_USIN]])","v":1}]
[{"$f":"Tabela1[[#This Row],[NM_LEIL]]&Tabela1[[#This Row],[CD_PARC_USIN]]","v":"2º Leilão de Energia de Reserva20066"},"EOL EMBUACA I5","EMBUACA",20066,52,104,"2º Leilão de Energia de Reserva","2012-20",{"$f":"COUNTIF(D:D,Tabela1[[#This Row],[CD_PARC_USIN]])","v":1}]
[{"$f":"Tabela1[[#This Row],[NM_LEIL]]&Tabela1[[#This Row],[CD_PARC_USIN]]","v":"2º Leilão de Energia de Reserva20067"},"EOLICA ICAR I5","ICARAI",20067,52,104,"2º Leilão de Energia de Reserva","2012-20",{"$f":"COUNTIF(D:D,Tabela1[[#This Row],[CD_PARC_USIN]])","v":1}]
[{"$f":"Tabela1[[#This Row],[NM_LEIL]]&Tabela1[[#This Row],[CD_PARC_USIN]]","v":"3º Leilão de Energia de Reserva20077"},"GESTAMP I5","PEDRA REINO III 3LER",20077,53,108,"3º Leilão de Energia de Reserva","2013-20",{"$f":"COUNTIF(D:D,Tabela1[[#This Row],[CD_PARC_USIN]])","v":1}]
[{"$f":"Tabela1[[#This Row],[NM_LEIL]]&Tabela1[[#This Row],[CD_PARC_USIN]]","v":"5º Leilão de Energia Nova80210"},"FURNAS","SANTA CRUZ FRN EXP.",80210,12,23,"5º Leilão de Energia Nova","2012-15",{"$f":"COUNTIF(D:D,Tabela1[[#This Row],[CD_PARC_USIN]])","v":1}]
[{"$f":"Tabela1[[#This Row],[NM_LEIL]]&Tabela1[[#This Row],[CD_PARC_USIN]]","v":"5º Leilão de Energia Nova88063"},"FURNAS","SANTA CRUZ NOVA EXP",88063,12,23,"5º Leilão de Energia Nova","2012-15",{"$f":"COUNTIF(D:D,Tabela1[[#This Row],[CD_PARC_USIN]])","v":1}]
[{"$f":"Tabela1[[#This Row],[NM_LEIL]]&Tabela1[[#This Row],[CD_PARC_USIN]]","v":"1º Leilão de Energia Nova88209"},"PIE - RP","PIE-RP EXP",88209,5,10,"1º Leilão de Energia Nova","2009-15",{"$f":"COUNTIF(D:D,Tabela1[[#This Row],[CD_PARC_USIN]])","v":1}]
[{"$f":"Tabela1[[#This Row],[NM_LEIL]]&Tabela1[[#This Row],[CD_PARC_USIN]]","v":"2º Leilão de Energia Nova88273"},"PETROLINA","PETROLINA EXP.",88273,7,15,"2º Leilão de Energia Nova","2009-15",{"$f":"COUNTIF(D:D,Tabela1[[#This Row],[CD_PARC_USIN]])","v":1}]
[{"$f":"Tabela1[[#This Row],[NM_LEIL]]&Tabela1[[#This Row],[CD_PARC_USIN]]","v":"3º Leilão de Energia Nova88274"},"PETROBRAS CL","BAHIA I EXP",88274,8,17,"3º Leilão de Energia Nova","2011-15",{"$f":"COUNTIF(D:D,Tabela1[[#This Row],[CD_PARC_USIN]])","v":1}]
[{"$f":"Tabela1[[#This Row],[NM_LEIL]]&Tabela1[[#This Row],[CD_PARC_USIN]]","v":"4º Leilão de Energia Nova88277"},"TERMOCABO","TERMOCABO EXP.",88277,10,21,"4º Leilão de Energia Nova","2010-15",{"$f":"COUNTIF(D:D,Tabela1[[#This Row],[CD_PARC_USIN]])","v":1}]
[{"$f":"Tabela1[[#This Row],[NM_LEIL]]&Tabela1[[#This Row],[CD_PARC_USIN]]","v":"1º Leilão de Energia Nova88300"},"UTXA","XAVANTES ARUANA EXP",88300,5,10,"1º Leilão de Energia Nova","2009-15",{"$f":"COUNTIF(D:D,Tabela1[[#This Row],[CD_PARC_USIN]])","v":1}]
[{"$f":"Tabela1[[#This Row],[NM_LEIL]]&Tabela1[[#This Row],[CD_PARC_USIN]]","v":"1º Leilão de Energia Nova880302"},"PETROBRAS PIE EXP","ELETROBOLT EXP",880302,5,10,"1º Leilão de Energia Nova","2009-15",{"$f":"COUNTIF(D:D,Tabela1[[#This Row],[CD_PARC_USIN]])","v":1}]
[{"$f":"Tabela1[[#This Row],[NM_LEIL]]&Tabela1[[#This Row],[CD_PARC_USIN]]","v":"1º Leilão de Energia Nova888046"},"PETROBRAS PIE EXP","TERMORIO EXP",888046,5,12,"1º Leilão de Energia Nova","2010-15",{"$f":"COUNTIF(D:D,Tabela1[[#This Row],[CD_PARC_USIN]])","v":1}]
[{"$f":"Tabela1[[#This Row],[NM_LEIL]]&Tabela1[[#This Row],[CD_PARC_USIN]]","v":"7º Leilao de Energia Nova888048"},"PERNAMBUCO 3","PERNAMBUCO III",888048,17,27,"7º Leilao de Energia Nova","2013-15",{"$f":"COUNTIF(D:D,Tabela1[[#This Row],[CD_PARC_USIN]])","v":1}]
[{"$f":"Tabela1[[#This Row],[NM_LEIL]]&Tabela1[[#This Row],[CD_PARC_USIN]]","v":"12º Leilão de Energia Nova888068"},"UTE BAIXADA FLUMINENSE","BAIXADA FLUMINENSE",888068,28,42,"12º Leilão de Energia Nova","2014-20",{"$f":"COUNTIF(D:D,Tabela1[[#This Row],[CD_PARC_USIN]])","v":1}]
[{"$f":"Tabela1[[#This Row],[NM_LEIL]]&Tabela1[[#This Row],[CD_PARC_USIN]]","v":"12º Leilão de Energia Nova888069"},"UTE PARNAIB II","MARANHÃO III",888069,28,42,"12º Leilão de Energia Nova","2014-20",{"$f":"COUNTIF(D:D,Tabela1[[#This Row],[CD_PARC_USIN]])","v":1}]
[{"$f":"Tabela1[[#This Row],[NM_LEIL]]&Tabela1[[#This Row],[CD_PARC_USIN]]","v":"7º Leilao de Energia Nova888070"},"PECEM II 7LEN","PORTO DO PECEM II",888070,17,27,"7º Leilao de Energia Nova","2013-15",{"$f":"COUNTIF(D:D,Tabela1[[#This Row],[CD_PARC_USIN]])","v":1}]
[{"$f":"Tabela1[[#This Row],[NM_LEIL]]&Tabela1[[#This Row],[CD_PARC_USIN]]","v":"7º Leilao de Energia Nova888071"},"PARNAIBA I","MARANHÃO IV L7",888071,17,27,"7º Leilao de Energia Nova","2013-15",{"$f":"COUNTIF(D:D,Tabela1[[#This Row],[CD_PARC_USIN]])","v":1}]
[{"$f":"Tabela1[[#This Row],[NM_LEIL]]&Tabela1[[#This Row],[CD_PARC_USIN]]","v":"2º Leilão de Fontes Alternativas888101"},"CAETITE 2 I5","CAETITE 2",888101,25,38,"2º Leilão de Fontes Alternativas","2013-20",{"$f":"COUNTIF(D:D,Tabela1[[#This Row],[CD_PARC_USIN]])","v":1}]
[{"$f":"Tabela1[[#This Row],[NM_LEIL]]&Tabela1[[#This Row],[CD_PARC_USIN]]","v":"2º Leilão de Fontes Alternativas888103"},"CAETITE 3 I5","CAETITE 3",888103,25,38,"2º Leilão de Fontes Alternativas","2013-20",{"$f":"COUNTIF(D:D,Tabela1[[#This Row],[CD_PARC_USIN]])","v":1}]
[{"$f":"Tabela1[[#This Row],[NM_LEIL]]&Tabela1[[#This Row],[CD_PARC_USIN]]","v":"2º Leilão de Fontes Alternativas888107"},"SETE GAMEL I5","SETE GAMELEIRAS",888107,25,38,"2º Leilão de Fontes Alternativas","2013-20",{"$f":"COUNTIF(D:D,Tabela1[[#This Row],[CD_PARC_USIN]])","v":1}]
[{"$f":"Tabela1[[#This Row],[NM_LEIL]]&Tabela1[[#This Row],[CD_PARC_USIN]]","v":"2º Leilão de Fontes Alternativas888108"},"SAO P LAGO I5","SAO PEDRO DO LAGO",888108,25,38,"2º Leilão de Fontes Alternativas","2013-20",{"$f":"COUNTIF(D:D,Tabela1[[#This Row],[CD_PARC_USIN]])","v":1}]
[{"$f":"Tabela1[[#This Row],[NM_LEIL]]&Tabela1[[#This Row],[CD_PARC_USIN]]","v":"2º Leilão de Fontes Alternativas888111"},"PEDRA BRANC I5","PEDRA BRANCA",888111,25,38,"2º Leilão de Fontes Alternativas","2013-20",{"$f":"COUNTIF(D:D,Tabela1[[#This Row],[CD_PARC_USIN]])","v":1}]
[{"$f":"Tabela1[[#This Row],[NM_LEIL]]&Tabela1[[#This Row],[CD_PARC_USIN]]","v":"2º Leilão de Fontes Alternativas888113"},"LITORAL 2LFA","OSORIO 3",888113,25,38,"2º Leilão de Fontes Alternativas","2013-20",{"$f":"COUNTIF(D:D,Tabela1[[#This Row],[CD_PARC_USIN]])","v":1}]
[{"$f":"Tabela1[[#This Row],[NM_LEIL]]&Tabela1[[#This Row],[CD_PARC_USIN]]","v":"2º Leilão de Fontes Alternativas888114"},"MEL 2 I5","MEL 2",888114,25,38,"2º Leilão de Fontes Alternativas","2013-20",{"$f":"COUNTIF(D:D,Tabela1[[#This Row],[CD_PARC_USIN]])","v":1}]
[{"$f":"Tabela1[[#This Row],[NM_LEIL]]&Tabela1[[#This Row],[CD_PARC_USIN]]","v":"7º Leilao de Energia Nova888120"},"CTES","CAUHYRA I",888120,17,27,"7º Leilao de Energia Nova","2013-15",{"$f":"COUNTIF(D:D,Tabela1[[#This Row],[CD_PARC_USIN]])","v":1}]
[{"$f":"Tabela1[[#This Row],[NM_LEIL]]&Tabela1[[#This Row],[CD_PARC_USIN]]","v":"7º Leilao de Energia Nova888122"},"MULTINER","TERMOPOWER VI - MULT",888122,17,27,"7º Leilao de Energia Nova","2013-15",{"$f":"COUNTIF(D:D,Tabela1[[#This Row],[CD_PARC_USIN]])","v":1}]
[{"$f":"Tabela1[[#This Row],[NM_LEIL]]&Tabela1[[#This Row],[CD_PARC_USIN]]","v":"7º Leilao de Energia Nova888123"},"AEG","TERMOPOWER VI - AEG",888123,17,27,"7º Leilao de Energia Nova","2013-15",{"$f":"COUNTIF(D:D,Tabela1[[#This Row],[CD_PARC_USIN]])","v":1}]
[{"$f":"Tabela1[[#This Row],[NM_LEIL]]&Tabela1[[#This Row],[CD_PARC_USIN]]","v":"7º Leilao de Energia Nova888125"},"UTE ESCOLHA","ESCOLHA",888125,17,27,"7º Leilao de Energia Nova","2013-15",{"$f":"COUNTIF(D:D,Tabela1[[#This Row],[CD_PARC_USIN]])","v":1}]
[{"$f":"Tabela1[[#This Row],[NM_LEIL]]&Tabela1[[#This Row],[CD_PARC_USIN]]","v":"4º Leilão de Energia de Reserva888128"},"UTE CACIMBAES","CACIMBAES",888128,54,109,"4º Leilão de Energia de Reserva","2014-20",{"$f":"COUNTIF(D:D,Tabela1[[#This Row],[CD_PARC_USIN]])","v":2}]
[{"$f":"Tabela1[[#This Row],[NM_LEIL]]&Tabela1[[#This Row],[CD_PARC_USIN]]","v":"7º Leilao de Energia Nova888128"},"UTE CACIMBAES","CACIMBAES",888128,17,27,"7º Leilao de Energia Nova","2013-15",{"$f":"COUNTIF(D:D,Tabela1[[#This Row],[CD_PARC_USIN]])","v":2}]
[{"$f":"Tabela1[[#This Row],[NM_LEIL]]&Tabela1[[#This Row],[CD_PARC_USIN]]","v":"2º Leilão de Fontes Alternativas888135"},"GUARANI","Mandu GR",888135,25,38,"2º Leilão de Fontes Alternativas","2013-20",{"$f":"COUNTIF(D:D,Tabela1[[#This Row],[CD_PARC_USIN]])","v":1}]
[{"$f":"Tabela1[[#This Row],[NM_LEIL]]&Tabela1[[#This Row],[CD_PARC_USIN]]","v":"7º Leilao de Energia Nova888143"},"MC2STOANT 7LEN","MC2 SANTO ANTONIO DE",888143,17,27,"7º Leilao de Energia Nova","2013-15",{"$f":"COUNTIF(D:D,Tabela1[[#This Row],[CD_PARC_USIN]])","v":1}]
[{"$f":"Tabela1[[#This Row],[NM_LEIL]]&Tabela1[[#This Row],[CD_PARC_USIN]]","v":"7º Leilao de Energia Nova888144"},"MC2MANGAB 7LEN","MC2 GOVERNADOR MANGA",888144,17,27,"7º Leilao de Energia Nova","2013-15",{"$f":"COUNTIF(D:D,Tabela1[[#This Row],[CD_PARC_USIN]])","v":1}]
[{"$f":"Tabela1[[#This Row],[NM_LEIL]]&Tabela1[[#This Row],[CD_PARC_USIN]]","v":"7º Leilao de Energia Nova888146"},"MC2CAMA2 7LEN","MC2 CAMAÇARI 2",888146,17,27,"7º Leilao de Energia Nova","2013-15",{"$f":"COUNTIF(D:D,Tabela1[[#This Row],[CD_PARC_USIN]])","v":1}]
[{"$f":"Tabela1[[#This Row],[NM_LEIL]]&Tabela1[[#This Row],[CD_PARC_USIN]]","v":"7º Leilao de Energia Nova888147"},"MC2PECEM2 7LEN","MC2 PECEM 2",888147,17,27,"7º Leilao de Energia Nova","2013-15",{"$f":"COUNTIF(D:D,Tabela1[[#This Row],[CD_PARC_USIN]])","v":1}]
[{"$f":"Tabela1[[#This Row],[NM_LEIL]]&Tabela1[[#This Row],[CD_PARC_USIN]]","v":"7º Leilao de Energia Nova888148"},"PARNAIBA I","MARANHAO V L7",888148,17,27,"7º Leilao de Energia Nova","2013-15",{"$f":"COUNTIF(D:D,Tabela1[[#This Row],[CD_PARC_USIN]])","v":1}]
[{"$f":"Tabela1[[#This Row],[NM_LEIL]]&Tabela1[[#This Row],[CD_PARC_USIN]]","v":"7º Leilao de Energia Nova888150"},"UTE NOVAVENECIA","MC2 NOVA VENECIA L7",888150,17,27,"7º Leilao de Energia Nova","2013-15",{"$f":"COUNTIF(D:D,Tabela1[[#This Row],[CD_PARC_USIN]])","v":1}]
[{"$f":"Tabela1[[#This Row],[NM_LEIL]]&Tabela1[[#This Row],[CD_PARC_USIN]]","v":"7º Leilao de Energia Nova888151"},"MC2MESSIA 7LEN","MC2 MESSIAS",888151,17,27,"7º Leilao de Energia Nova","2013-15",{"$f":"COUNTIF(D:D,Tabela1[[#This Row],[CD_PARC_USIN]])","v":1}]
[{"$f":"Tabela1[[#This Row],[NM_LEIL]]&Tabela1[[#This Row],[CD_PARC_USIN]]","v":"7º Leilao de Energia Nova888152"},"MC2CAMAI3 7LEN","MC2 CAMAÇARI 3",888152,17,27,"7º Leilao de Energia Nova","2013-15",{"$f":"COUNTIF(D:D,Tabela1[[#This Row],[CD_PARC_USIN]])","v":1}]
[{"$f":"Tabela1[[#This Row],[NM_LEIL]]&Tabela1[[#This Row],[CD_PARC_USIN]]","v":"7º Leilao de Energia Nova888153"},"MC2SAPEA 7LEN","MC2 SAPEAÇU",888153,17,27,"7º Leilao de Energia Nova","2013-15",{"$f":"COUNTIF(D:D,Tabela1[[#This Row],[CD_PARC_USIN]])","v":1}]
[{"$f":"Tabela1[[#This Row],[NM_LEIL]]&Tabela1[[#This Row],[CD_PARC_USIN]]","v":"7º Leilao de Energia Nova888154"},"MC2RIOLAR 7LEN","MC2 RIO LARGO",888154,17,27,"7º Leilao de Energia Nova","2013-15",{"$f":"COUNTIF(D:D,Tabela1[[#This Row],[CD_PARC_USIN]])","v":1}]
[{"$f":"Tabela1[[#This Row],[NM_LEIL]]&Tabela1[[#This Row],[CD_PARC_USIN]]","v":"7º Leilao de Energia Nova888155"},"MC2ICONHA","MC2 ICONHA",888155,17,27,"7º Leilao de Energia Nova","2013-15",{"$f":"COUNTIF(D:D,Tabela1[[#This Row],[CD_PARC_USIN]])","v":1}]
[{"$f":"Tabela1[[#This Row],[NM_LEIL]]&Tabela1[[#This Row],[CD_PARC_USIN]]","v":"7º Leilao de Energia Nova888156"},"MC2SUAPE 7LEN","MC2 SUAPE II B",888156,17,27,"7º Leilao de Energia Nova","2013-15",{"$f":"COUNTIF(D:D,Tabela1[[#This Row],[CD_PARC_USIN]])","v":1}]
[{"$f":"Tabela1[[#This Row],[NM_LEIL]]&Tabela1[[#This Row],[CD_PARC_USIN]]","v":"7º Leilao de Energia Nova888157"},"MC2MACAIB 7LEN","MC2 MACAÍBA",888157,17,27,"7º Leilao de Energia Nova","2013-15",{"$f":"COUNTIF(D:D,Tabela1[[#This Row],[CD_PARC_USIN]])","v":1}]
[{"$f":"Tabela1[[#This Row],[NM_LEIL]]&Tabela1[[#This Row],[CD_PARC_USIN]]","v":"7º Leilao de Energia Nova888158"},"MC2SOCOR 7LEN","MC2 NOSSA SENHORA SO",888158,17,27,"7º Leilao de Energia Nova","2013-15",{"$f":"COUNTIF(D:D,Tabela1[[#This Row],[CD_PARC_USIN]])","v":1}]
[{"$f":"Tabela1[[#This Row],[NM_LEIL]]&Tabela1[[#This Row],[CD_PARC_USIN]]","v":"2º Leilão de Fontes Alternativas888171"},"QUEIXADA I5","QUEIXADA",888171,25,37,"2º Leilão de Fontes Alternativas","2013-30",{"$f":"COUNTIF(D:D,Tabela1[[#This Row],[CD_PARC_USIN]])","v":1}]
[{"$f":"Tabela1[[#This Row],[NM_LEIL]]&Tabela1[[#This Row],[CD_PARC_USIN]]","v":"3º Leilão de Energia de Reserva888228"},"PALMARES I5","FAZ ROSARIO 2 3LER",888228,53,108,"3º Leilão de Energia de Reserva","2013-20",{"$f":"COUNTIF(D:D,Tabela1[[#This Row],[CD_PARC_USIN]])","v":1}]
[{"$f":"Tabela1[[#This Row],[NM_LEIL]]&Tabela1[[#This Row],[CD_PARC_USIN]]","v":"1º Procedimento Competitivo Simplificado888249"},"AMBAR UTE CUIABA 545-13","CUIABA EXP",888249,200,547,"1º Procedimento Competitivo Simplificado","DISP2022-03",{"$f":"COUNTIF(D:D,Tabela1[[#This Row],[CD_PARC_USIN]])","v":1}]
[{"$f":"Tabela1[[#This Row],[NM_LEIL]]&Tabela1[[#This Row],[CD_PARC_USIN]]","v":"3º Leilão de Energia Nova888270"},"CGTESUL","MAUA (CGTEE)",888270,8,16,"3º Leilão de Energia Nova","2011-30",{"$f":"COUNTIF(D:D,Tabela1[[#This Row],[CD_PARC_USIN]])","v":1}]
[{"$f":"Tabela1[[#This Row],[NM_LEIL]]&Tabela1[[#This Row],[CD_PARC_USIN]]","v":"3º Leilão de Energia Nova888271"},"COPEL GET","MAUA (COPEL)",888271,8,16,"3º Leilão de Energia Nova","2011-30",{"$f":"COUNTIF(D:D,Tabela1[[#This Row],[CD_PARC_USIN]])","v":1}]
[{"$f":"Tabela1[[#This Row],[NM_LEIL]]&Tabela1[[#This Row],[CD_PARC_USIN]]","v":"5º Leilão de Energia Nova888272"},"CGTESUL_I5","SAO DOMINGOS (ESUL)",888272,12,22,"5º Leilão de Energia Nova","2012-30",{"$f":"COUNTIF(D:D,Tabela1[[#This Row],[CD_PARC_USIN]])","v":1}]
[{"$f":"Tabela1[[#This Row],[NM_LEIL]]&Tabela1[[#This Row],[CD_PARC_USIN]]","v":"7º Leilao de Energia Nova888389"},"AEG 7LEN","TERMOPOWER V AEG",888389,17,27,"7º Leilao de Energia Nova","2013-15",{"$f":"COUNTIF(D:D,Tabela1[[#This Row],[CD_PARC_USIN]])","v":1}]
[{"$f":"Tabela1[[#This Row],[NM_LEIL]]&Tabela1[[#This Row],[CD_PARC_USIN]]","v":"7º Leilao de Energia Nova888390"},"MULTINER 7LEN","TERMOPOWER V MULT",888390,17,27,"7º Leilao de Energia Nova","2013-15",{"$f":"COUNTIF(D:D,Tabela1[[#This Row],[CD_PARC_USIN]])","v":1}]
[{"$f":"Tabela1[[#This Row],[NM_LEIL]]&Tabela1[[#This Row],[CD_PARC_USIN]]","v":"12º Leilão de Energia Nova888487"},"UTE IACO I5","IACO P1",888487,28,42,"12º Leilão de Energia Nova","2014-20",{"$f":"COUNTIF(D:D,Tabela1[[#This Row],[CD_PARC_USIN]])","v":2}]
[{"$f":"Tabela1[[#This Row],[NM_LEIL]]&Tabela1[[#This Row],[CD_PARC_USIN]]","v":"4º Leilão de Energia de Reserva888487"},"UTE IACO I5","IACO P1",888487,54,109,"4º Leilão de Energia de Reserva","2014-20",{"$f":"COUNTIF(D:D,Tabela1[[#This Row],[CD_PARC_USIN]])","v":2}]
[{"$f":"Tabela1[[#This Row],[NM_LEIL]]&Tabela1[[#This Row],[CD_PARC_USIN]]","v":"12º Leilão de Energia Nova888490"},"RAIZEN CS PASSA TEMPO I5","PASSA TEMPO",888490,28,42,"12º Leilão de Energia Nova","2014-20",{"$f":"COUNTIF(D:D,Tabela1[[#This Row],[CD_PARC_USIN]])","v":1}]
[{"$f":"Tabela1[[#This Row],[NM_LEIL]]&Tabela1[[#This Row],[CD_PARC_USIN]]","v":"2º Leilão de Fontes Alternativas888528"},"GLH I5","GALHEIROS I",888528,25,37,"2º Leilão de Fontes Alternativas","2013-30",{"$f":"COUNTIF(D:D,Tabela1[[#This Row],[CD_PARC_USIN]])","v":1}]
[{"$f":"Tabela1[[#This Row],[NM_LEIL]]&Tabela1[[#This Row],[CD_PARC_USIN]]","v":"3º Leilão de Energia de Reserva888638"},"S SEBASTIAO I5","SSEBASTIAO GERC 3LER",888638,53,106,"3º Leilão de Energia de Reserva","2013-30",{"$f":"COUNTIF(D:D,Tabela1[[#This Row],[CD_PARC_USIN]])","v":1}]
[{"$f":"Tabela1[[#This Row],[NM_LEIL]]&Tabela1[[#This Row],[CD_PARC_USIN]]","v":"2º Leilão de Energia de Reserva888684"},"TAIBA AGUIA I5","TAIBA AGUIA",888684,52,104,"2º Leilão de Energia de Reserva","2012-20",{"$f":"COUNTIF(D:D,Tabela1[[#This Row],[CD_PARC_USIN]])","v":1}]
[{"$f":"Tabela1[[#This Row],[NM_LEIL]]&Tabela1[[#This Row],[CD_PARC_USIN]]","v":"2º Leilão de Fontes Alternativas888924"},"CPFL SALTO GOES I5","SALTO GOES",888924,25,37,"2º Leilão de Fontes Alternativas","2013-30",{"$f":"COUNTIF(D:D,Tabela1[[#This Row],[CD_PARC_USIN]])","v":1}]
[{"$f":"Tabela1[[#This Row],[NM_LEIL]]&Tabela1[[#This Row],[CD_PARC_USIN]]","v":"2º Leilão de Energia de Reserva888953"},"ICARAI II I0","ICARAI II",888953,52,104,"2º Leilão de Energia de Reserva","2012-20",{"$f":"COUNTIF(D:D,Tabela1[[#This Row],[CD_PARC_USIN]])","v":1}]
[{"$f":"Tabela1[[#This Row],[NM_LEIL]]&Tabela1[[#This Row],[CD_PARC_USIN]]","v":"2º Leilão de Energia de Reserva889182"},"ANDORINHA I5","TAIBA ANDORINHA",889182,52,104,"2º Leilão de Energia de Reserva","2012-20",{"$f":"COUNTIF(D:D,Tabela1[[#This Row],[CD_PARC_USIN]])","v":1}]
[{"$f":"Tabela1[[#This Row],[NM_LEIL]]&Tabela1[[#This Row],[CD_PARC_USIN]]","v":"2º Leilão de Energia de Reserva889183"},"COLONIA I5","COLONIA",889183,52,104,"2º Leilão de Energia de Reserva","2012-20",{"$f":"COUNTIF(D:D,Tabela1[[#This Row],[CD_PARC_USIN]])","v":1}]
[{"$f":"Tabela1[[#This Row],[NM_LEIL]]&Tabela1[[#This Row],[CD_PARC_USIN]]","v":"2º Leilão de Energia de Reserva889184"},"ICARAI I I5","ICARAI I",889184,52,104,"2º Leilão de Energia de Reserva","2012-20",{"$f":"COUNTIF(D:D,Tabela1[[#This Row],[CD_PARC_USIN]])","v":1}]
[{"$f":"Tabela1[[#This Row],[NM_LEIL]]&Tabela1[[#This Row],[CD_PARC_USIN]]","v":"5º Leilão de Energia Nova889213"},"FOZ DO CHAPECO","FOZ CHAPECÓ",889213,12,22,"5º Leilão de Energia Nova","2012-30",{"$f":"COUNTIF(D:D,Tabela1[[#This Row],[CD_PARC_USIN]])","v":1}]
[{"$f":"Tabela1[[#This Row],[NM_LEIL]]&Tabela1[[#This Row],[CD_PARC_USIN]]","v":"13º Leilão de Energia Nova889443"},"SAO ROQUE","SAO ROQUE",889443,143,394,"13º Leilão de Energia Nova","2016-30",{"$f":"COUNTIF(D:D,Tabela1[[#This Row],[CD_PARC_USIN]])","v":1}]
[{"$f":"Tabela1[[#This Row],[NM_LEIL]]&Tabela1[[#This Row],[CD_PARC_USIN]]","v":"2º Leilão de Fontes Alternativas889462"},"COP GET PIE I5","CAVERNOSO 2",889462,25,37,"2º Leilão de Fontes Alternativas","2013-30",{"$f":"COUNTIF(D:D,Tabela1[[#This Row],[CD_PARC_USIN]])","v":1}]
[{"$f":"Tabela1[[#This Row],[NM_LEIL]]&Tabela1[[#This Row],[CD_PARC_USIN]]","v":"3º Leilão de Energia de Reserva889721"},"BPBUNGE PAF I0","PEDRO AFONSO",889721,53,107,"3º Leilão de Energia de Reserva","2013-15",{"$f":"COUNTIF(D:D,Tabela1[[#This Row],[CD_PARC_USIN]])","v":1}]
[{"$f":"Tabela1[[#This Row],[NM_LEIL]]&Tabela1[[#This Row],[CD_PARC_USIN]]","v":"13º Leilão de Energia Nova889780"},"CPFL MORRO DOS VENTOS II I5","MORRO DOS VENTOS 2",889780,143,393,"13º Leilão de Energia Nova","2016-20",{"$f":"COUNTIF(D:D,Tabela1[[#This Row],[CD_PARC_USIN]])","v":1}]
[{"$f":"Tabela1[[#This Row],[NM_LEIL]]&Tabela1[[#This Row],[CD_PARC_USIN]]","v":"13º Leilão de Energia Nova889845"},"EOL BAIXA III I5","BAIXA DO FEIJAO 3",889845,143,393,"13º Leilão de Energia Nova","2016-20",{"$f":"COUNTIF(D:D,Tabela1[[#This Row],[CD_PARC_USIN]])","v":1}]
[{"$f":"Tabela1[[#This Row],[NM_LEIL]]&Tabela1[[#This Row],[CD_PARC_USIN]]","v":"13º Leilão de Energia Nova889846"},"EOL BAIXA II I5","BAIXA DO FEIJAO 2",889846,143,393,"13º Leilão de Energia Nova","2016-20",{"$f":"COUNTIF(D:D,Tabela1[[#This Row],[CD_PARC_USIN]])","v":1}]
[{"$f":"Tabela1[[#This Row],[NM_LEIL]]&Tabela1[[#This Row],[CD_PARC_USIN]]","v":"13º Leilão de Energia Nova889848"},"EOL BAIXA I I5","BAIXA DO FEIJÃ\u0083O 1",889848,143,393,"13º Leilão de Energia Nova","2016-20",{"$f":"COUNTIF(D:D,Tabela1[[#This Row],[CD_PARC_USIN]])","v":1}]
[{"$f":"Tabela1[[#This Row],[NM_LEIL]]&Tabela1[[#This Row],[CD_PARC_USIN]]","v":"13º Leilão de Energia Nova889849"},"EOL BAIXA IV I5","BAIXA DO FEIJAO IV",889849,143,393,"13º Leilão de Energia Nova","2016-20",{"$f":"COUNTIF(D:D,Tabela1[[#This Row],[CD_PARC_USIN]])","v":1}]
[{"$f":"Tabela1[[#This Row],[NM_LEIL]]&Tabela1[[#This Row],[CD_PARC_USIN]]","v":"13º Leilão de Energia Nova889866"},"EOL CAICARA I I5","CAICARA I",889866,143,393,"13º Leilão de Energia Nova","2016-20",{"$f":"COUNTIF(D:D,Tabela1[[#This Row],[CD_PARC_USIN]])","v":1}]
[{"$f":"Tabela1[[#This Row],[NM_LEIL]]&Tabela1[[#This Row],[CD_PARC_USIN]]","v":"13º Leilão de Energia Nova889867"},"TECNEIRA EMBUA","CATAVENTOS EMBUACA",889867,143,393,"13º Leilão de Energia Nova","2016-20",{"$f":"COUNTIF(D:D,Tabela1[[#This Row],[CD_PARC_USIN]])","v":2}]
[{"$f":"Tabela1[[#This Row],[NM_LEIL]]&Tabela1[[#This Row],[CD_PARC_USIN]]","v":"4º Leilão de Energia de Reserva889867"},"TECNEIRA EMBUA","CATAVENTOS EMBUACA",889867,54,109,"4º Leilão de Energia de Reserva","2014-20",{"$f":"COUNTIF(D:D,Tabela1[[#This Row],[CD_PARC_USIN]])","v":2}]
[{"$f":"Tabela1[[#This Row],[NM_LEIL]]&Tabela1[[#This Row],[CD_PARC_USIN]]","v":"13º Leilão de Energia Nova889868"},"CARCARA II I5","CARCARA 2",889868,143,393,"13º Leilão de Energia Nova","2016-20",{"$f":"COUNTIF(D:D,Tabela1[[#This Row],[CD_PARC_USIN]])","v":1}]
[{"$f":"Tabela1[[#This Row],[NM_LEIL]]&Tabela1[[#This Row],[CD_PARC_USIN]]","v":"13º Leilão de Energia Nova889869"},"CAICARA 2 I5","CAICARA 2",889869,143,393,"13º Leilão de Energia Nova","2016-20",{"$f":"COUNTIF(D:D,Tabela1[[#This Row],[CD_PARC_USIN]])","v":2}]
[{"$f":"Tabela1[[#This Row],[NM_LEIL]]&Tabela1[[#This Row],[CD_PARC_USIN]]","v":"4º Leilão de Energia de Reserva889869"},"CAICARA 2 I5","CAICARA 2",889869,54,109,"4º Leilão de Energia de Reserva","2014-20",{"$f":"COUNTIF(D:D,Tabela1[[#This Row],[CD_PARC_USIN]])","v":2}]
[{"$f":"Tabela1[[#This Row],[NM_LEIL]]&Tabela1[[#This Row],[CD_PARC_USIN]]","v":"13º Leilão de Energia Nova889870"},"VENTOS I I5","EOL GOIABEIRA",889870,143,393,"13º Leilão de Energia Nova","2016-20",{"$f":"COUNTIF(D:D,Tabela1[[#This Row],[CD_PARC_USIN]])","v":1}]
[{"$f":"Tabela1[[#This Row],[NM_LEIL]]&Tabela1[[#This Row],[CD_PARC_USIN]]","v":"13º Leilão de Energia Nova889871"},"VENTOS VII I5","JANDAIA",889871,143,393,"13º Leilão de Energia Nova","2016-20",{"$f":"COUNTIF(D:D,Tabela1[[#This Row],[CD_PARC_USIN]])","v":1}]
[{"$f":"Tabela1[[#This Row],[NM_LEIL]]&Tabela1[[#This Row],[CD_PARC_USIN]]","v":"13º Leilão de Energia Nova889872"},"VENTOS IX I5","JANDAIA 1",889872,143,393,"13º Leilão de Energia Nova","2016-20",{"$f":"COUNTIF(D:D,Tabela1[[#This Row],[CD_PARC_USIN]])","v":1}]
[{"$f":"Tabela1[[#This Row],[NM_LEIL]]&Tabela1[[#This Row],[CD_PARC_USIN]]","v":"13º Leilão de Energia Nova889873"},"EOL JUNCO I I5","JUNCO 1",889873,143,393,"13º Leilão de Energia Nova","2016-20",{"$f":"COUNTIF(D:D,Tabela1[[#This Row],[CD_PARC_USIN]])","v":1}]
[{"$f":"Tabela1[[#This Row],[NM_LEIL]]&Tabela1[[#This Row],[CD_PARC_USIN]]","v":"13º Leilão de Energia Nova889874"},"EOL JUNCO II I5","JUNCO 2",889874,143,393,"13º Leilão de Energia Nova","2016-20",{"$f":"COUNTIF(D:D,Tabela1[[#This Row],[CD_PARC_USIN]])","v":1}]
[{"$f":"Tabela1[[#This Row],[NM_LEIL]]&Tabela1[[#This Row],[CD_PARC_USIN]]","v":"13º Leilão de Energia Nova889886"},"VENTOS VI I5","NS FATIMA 13LEN",889886,143,393,"13º Leilão de Energia Nova","2016-20",{"$f":"COUNTIF(D:D,Tabela1[[#This Row],[CD_PARC_USIN]])","v":1}]
[{"$f":"Tabela1[[#This Row],[NM_LEIL]]&Tabela1[[#This Row],[CD_PARC_USIN]]","v":"13º Leilão de Energia Nova889887"},"JARDINS I5","CABECO PRETO 5",889887,143,393,"13º Leilão de Energia Nova","2016-20",{"$f":"COUNTIF(D:D,Tabela1[[#This Row],[CD_PARC_USIN]])","v":1}]
[{"$f":"Tabela1[[#This Row],[NM_LEIL]]&Tabela1[[#This Row],[CD_PARC_USIN]]","v":"13º Leilão de Energia Nova889888"},"ALVORADA I I5","CABECO PRETO 6",889888,143,393,"13º Leilão de Energia Nova","2016-20",{"$f":"COUNTIF(D:D,Tabela1[[#This Row],[CD_PARC_USIN]])","v":1}]
[{"$f":"Tabela1[[#This Row],[NM_LEIL]]&Tabela1[[#This Row],[CD_PARC_USIN]]","v":"13º Leilão de Energia Nova889889"},"INDIOS I5","INDIOS 3",889889,143,393,"13º Leilão de Energia Nova","2016-20",{"$f":"COUNTIF(D:D,Tabela1[[#This Row],[CD_PARC_USIN]])","v":1}]
[{"$f":"Tabela1[[#This Row],[NM_LEIL]]&Tabela1[[#This Row],[CD_PARC_USIN]]","v":"13º Leilão de Energia Nova889890"},"VENTOS IV I5","EOL PITOMBEIRA",889890,143,393,"13º Leilão de Energia Nova","2016-20",{"$f":"COUNTIF(D:D,Tabela1[[#This Row],[CD_PARC_USIN]])","v":1}]
[{"$f":"Tabela1[[#This Row],[NM_LEIL]]&Tabela1[[#This Row],[CD_PARC_USIN]]","v":"13º Leilão de Energia Nova889891"},"ENERPLAN III I5","PONTAL 3B",889891,143,393,"13º Leilão de Energia Nova","2016-20",{"$f":"COUNTIF(D:D,Tabela1[[#This Row],[CD_PARC_USIN]])","v":1}]
[{"$f":"Tabela1[[#This Row],[NM_LEIL]]&Tabela1[[#This Row],[CD_PARC_USIN]]","v":"13º Leilão de Energia Nova889892"},"VENTOS III I5","EOL SANTA CATARINA",889892,143,393,"13º Leilão de Energia Nova","2016-20",{"$f":"COUNTIF(D:D,Tabela1[[#This Row],[CD_PARC_USIN]])","v":1}]
[{"$f":"Tabela1[[#This Row],[NM_LEIL]]&Tabela1[[#This Row],[CD_PARC_USIN]]","v":"13º Leilão de Energia Nova889893"},"VENTOS VIII I5","SAO CLEMENTE",889893,143,393,"13º Leilão de Energia Nova","2016-20",{"$f":"COUNTIF(D:D,Tabela1[[#This Row],[CD_PARC_USIN]])","v":1}]
[{"$f":"Tabela1[[#This Row],[NM_LEIL]]&Tabela1[[#This Row],[CD_PARC_USIN]]","v":"13º Leilão de Energia Nova889894"},"VENTOS V I5","SAO JANUARIO",889894,143,393,"13º Leilão de Energia Nova","2016-20",{"$f":"COUNTIF(D:D,Tabela1[[#This Row],[CD_PARC_USIN]])","v":1}]
[{"$f":"Tabela1[[#This Row],[NM_LEIL]]&Tabela1[[#This Row],[CD_PARC_USIN]]","v":"13º Leilão de Energia Nova889895"},"TERRAL I5","TERRAL",889895,143,393,"13º Leilão de Energia Nova","2016-20",{"$f":"COUNTIF(D:D,Tabela1[[#This Row],[CD_PARC_USIN]])","v":1}]
[{"$f":"Tabela1[[#This Row],[NM_LEIL]]&Tabela1[[#This Row],[CD_PARC_USIN]]","v":"13º Leilão de Energia Nova889896"},"VENTOS II I5","EOL UBATUBA",889896,143,393,"13º Leilão de Energia Nova","2016-20",{"$f":"COUNTIF(D:D,Tabela1[[#This Row],[CD_PARC_USIN]])","v":1}]
[{"$f":"Tabela1[[#This Row],[NM_LEIL]]&Tabela1[[#This Row],[CD_PARC_USIN]]","v":"13º Leilão de Energia Nova889897"},"VENTOS X I5","EOL VENTOS DE HORIZO",889897,143,393,"13º Leilão de Energia Nova","2016-20",{"$f":"COUNTIF(D:D,Tabela1[[#This Row],[CD_PARC_USIN]])","v":1}]
[{"$f":"Tabela1[[#This Row],[NM_LEIL]]&Tabela1[[#This Row],[CD_PARC_USIN]]","v":"13º Leilão de Energia Nova889898"},"MACAMBIRA I I5","MACAMBIRA 1",889898,143,393,"13º Leilão de Energia Nova","2016-20",{"$f":"COUNTIF(D:D,Tabela1[[#This Row],[CD_PARC_USIN]])","v":1}]
[{"$f":"Tabela1[[#This Row],[NM_LEIL]]&Tabela1[[#This Row],[CD_PARC_USIN]]","v":"13º Leilão de Energia Nova889899"},"MACAMBIRA II I5","MACAMBIRA 2",889899,143,393,"13º Leilão de Energia Nova","2016-20",{"$f":"COUNTIF(D:D,Tabela1[[#This Row],[CD_PARC_USIN]])","v":1}]
[{"$f":"Tabela1[[#This Row],[NM_LEIL]]&Tabela1[[#This Row],[CD_PARC_USIN]]","v":"13º Leilão de Energia Nova889900"},"AGRESTE I5","CABECO PRETO 3",889900,143,393,"13º Leilão de Energia Nova","2016-20",{"$f":"COUNTIF(D:D,Tabela1[[#This Row],[CD_PARC_USIN]])","v":1}]
[{"$f":"Tabela1[[#This Row],[NM_LEIL]]&Tabela1[[#This Row],[CD_PARC_USIN]]","v":"4º Leilão de Energia de Reserva889974"},"UTE GUACU I5","GUAÇU",889974,54,109,"4º Leilão de Energia de Reserva","2014-20",{"$f":"COUNTIF(D:D,Tabela1[[#This Row],[CD_PARC_USIN]])","v":1}]
[{"$f":"Tabela1[[#This Row],[NM_LEIL]]&Tabela1[[#This Row],[CD_PARC_USIN]]","v":"2º Leilão de Fontes Alternativas890277"},"FAROL I5","FAROL",890277,25,38,"2º Leilão de Fontes Alternativas","2013-20",{"$f":"COUNTIF(D:D,Tabela1[[#This Row],[CD_PARC_USIN]])","v":1}]
[{"$f":"Tabela1[[#This Row],[NM_LEIL]]&Tabela1[[#This Row],[CD_PARC_USIN]]","v":"12º Leilão de Energia Nova890337"},"ESBR","JIRAU",890337,28,43,"12º Leilão de Energia Nova","2014-30",{"$f":"COUNTIF(D:D,Tabela1[[#This Row],[CD_PARC_USIN]])","v":2}]
[{"$f":"Tabela1[[#This Row],[NM_LEIL]]&Tabela1[[#This Row],[CD_PARC_USIN]]","v":"2º Leilão de Projetos Estruturantes(UHE Jirau)890337"},"ESBR","JIRAU",890337,14,25,"2º Leilão de Projetos Estruturantes(UHE Jirau)","2013-30",{"$f":"COUNTIF(D:D,Tabela1[[#This Row],[CD_PARC_USIN]])","v":2}]
[{"$f":"Tabela1[[#This Row],[NM_LEIL]]&Tabela1[[#This Row],[CD_PARC_USIN]]","v":"13º Leilão de Energia Nova890378"},"EOL ANDORINHA I5","VENTOS ANDORINHA",890378,143,393,"13º Leilão de Energia Nova","2016-20",{"$f":"COUNTIF(D:D,Tabela1[[#This Row],[CD_PARC_USIN]])","v":1}]
[{"$f":"Tabela1[[#This Row],[NM_LEIL]]&Tabela1[[#This Row],[CD_PARC_USIN]]","v":"13º Leilão de Energia Nova890379"},"EOL ANDORINHA I5","VENTOS ANDORINHA CVE",890379,143,393,"13º Leilão de Energia Nova","2016-20",{"$f":"COUNTIF(D:D,Tabela1[[#This Row],[CD_PARC_USIN]])","v":1}]
[{"$f":"Tabela1[[#This Row],[NM_LEIL]]&Tabela1[[#This Row],[CD_PARC_USIN]]","v":"13º Leilão de Energia Nova890380"},"EOL FORMOSO I I5","V C FORMOSO 1 13 LEN",890380,143,393,"13º Leilão de Energia Nova","2016-20",{"$f":"COUNTIF(D:D,Tabela1[[#This Row],[CD_PARC_USIN]])","v":1}]
[{"$f":"Tabela1[[#This Row],[NM_LEIL]]&Tabela1[[#This Row],[CD_PARC_USIN]]","v":"13º Leilão de Energia Nova890381"},"EOL FORMOSO I I5","V C FORM. 1CVE 13LE",890381,143,393,"13º Leilão de Energia Nova","2016-20",{"$f":"COUNTIF(D:D,Tabela1[[#This Row],[CD_PARC_USIN]])","v":1}]
[{"$f":"Tabela1[[#This Row],[NM_LEIL]]&Tabela1[[#This Row],[CD_PARC_USIN]]","v":"13º Leilão de Energia Nova890382"},"EOL FORMOSO II I5","V C FORMOSO 2 13LEN",890382,143,393,"13º Leilão de Energia Nova","2016-20",{"$f":"COUNTIF(D:D,Tabela1[[#This Row],[CD_PARC_USIN]])","v":1}]
[{"$f":"Tabela1[[#This Row],[NM_LEIL]]&Tabela1[[#This Row],[CD_PARC_USIN]]","v":"13º Leilão de Energia Nova890383"},"EOL FORMOSO II","V C FORM 2 CVE13LEN",890383,143,393,"13º Leilão de Energia Nova","2016-20",{"$f":"COUNTIF(D:D,Tabela1[[#This Row],[CD_PARC_USIN]])","v":1}]
[{"$f":"Tabela1[[#This Row],[NM_LEIL]]&Tabela1[[#This Row],[CD_PARC_USIN]]","v":"13º Leilão de Energia Nova890384"},"EOL MORRINHOS I5","VMORRINHOS 13LEN",890384,143,393,"13º Leilão de Energia Nova","2016-20",{"$f":"COUNTIF(D:D,Tabela1[[#This Row],[CD_PARC_USIN]])","v":1}]
[{"$f":"Tabela1[[#This Row],[NM_LEIL]]&Tabela1[[#This Row],[CD_PARC_USIN]]","v":"13º Leilão de Energia Nova890387"},"EOL MORRINHOS","VMORRINHOS 13LEN CVE",890387,143,393,"13º Leilão de Energia Nova","2016-20",{"$f":"COUNTIF(D:D,Tabela1[[#This Row],[CD_PARC_USIN]])","v":1}]
[{"$f":"Tabela1[[#This Row],[NM_LEIL]]&Tabela1[[#This Row],[CD_PARC_USIN]]","v":"13º Leilão de Energia Nova890388"},"EOL SERTAO I5","V SERTAO 13LEN",890388,143,393,"13º Leilão de Energia Nova","2016-20",{"$f":"COUNTIF(D:D,Tabela1[[#This Row],[CD_PARC_USIN]])","v":1}]
[{"$f":"Tabela1[[#This Row],[NM_LEIL]]&Tabela1[[#This Row],[CD_PARC_USIN]]","v":"13º Leilão de Energia Nova890389"},"EOL SERTAO I5","V SERTAO 13LEN CVE",890389,143,393,"13º Leilão de Energia Nova","2016-20",{"$f":"COUNTIF(D:D,Tabela1[[#This Row],[CD_PARC_USIN]])","v":1}]
[{"$f":"Tabela1[[#This Row],[NM_LEIL]]&Tabela1[[#This Row],[CD_PARC_USIN]]","v":"2º Leilão de Fontes Alternativas890458"},"ARIZONA 1 I5","ARIZONA 1",890458,25,38,"2º Leilão de Fontes Alternativas","2013-20",{"$f":"COUNTIF(D:D,Tabela1[[#This Row],[CD_PARC_USIN]])","v":1}]
[{"$f":"Tabela1[[#This Row],[NM_LEIL]]&Tabela1[[#This Row],[CD_PARC_USIN]]","v":"2º Leilão de Fontes Alternativas890621"},"SAOBENTO I5","S BENTO NORTE 2 LFA",890621,25,38,"2º Leilão de Fontes Alternativas","2013-20",{"$f":"COUNTIF(D:D,Tabela1[[#This Row],[CD_PARC_USIN]])","v":1}]
[{"$f":"Tabela1[[#This Row],[NM_LEIL]]&Tabela1[[#This Row],[CD_PARC_USIN]]","v":"2º Leilão de Fontes Alternativas890622"},"OLHODAGUA I5","OLHO DAGUA 2LFA",890622,25,38,"2º Leilão de Fontes Alternativas","2013-20",{"$f":"COUNTIF(D:D,Tabela1[[#This Row],[CD_PARC_USIN]])","v":1}]
[{"$f":"Tabela1[[#This Row],[NM_LEIL]]&Tabela1[[#This Row],[CD_PARC_USIN]]","v":"2º Leilão de Fontes Alternativas890623"},"BOAVISTA I5","BOA VISTA 2LFA",890623,25,38,"2º Leilão de Fontes Alternativas","2013-20",{"$f":"COUNTIF(D:D,Tabela1[[#This Row],[CD_PARC_USIN]])","v":1}]
[{"$f":"Tabela1[[#This Row],[NM_LEIL]]&Tabela1[[#This Row],[CD_PARC_USIN]]","v":"2º Leilão de Fontes Alternativas890624"},"CPFL COSTA BRANCA I5","COSTA BRANCA 2LFA",890624,25,38,"2º Leilão de Fontes Alternativas","2013-20",{"$f":"COUNTIF(D:D,Tabela1[[#This Row],[CD_PARC_USIN]])","v":1}]
[{"$f":"Tabela1[[#This Row],[NM_LEIL]]&Tabela1[[#This Row],[CD_PARC_USIN]]","v":"2º Leilão de Fontes Alternativas890625"},"CALANGO 1 I5","CALANGO 1 2LFA",890625,25,38,"2º Leilão de Fontes Alternativas","2013-20",{"$f":"COUNTIF(D:D,Tabela1[[#This Row],[CD_PARC_USIN]])","v":1}]
[{"$f":"Tabela1[[#This Row],[NM_LEIL]]&Tabela1[[#This Row],[CD_PARC_USIN]]","v":"2º Leilão de Fontes Alternativas890626"},"CALANGO 2 I5","CALANGO 2 2LFA",890626,25,38,"2º Leilão de Fontes Alternativas","2013-20",{"$f":"COUNTIF(D:D,Tabela1[[#This Row],[CD_PARC_USIN]])","v":1}]
[{"$f":"Tabela1[[#This Row],[NM_LEIL]]&Tabela1[[#This Row],[CD_PARC_USIN]]","v":"2º Leilão de Fontes Alternativas890627"},"CALANGO 3 I5","CALANGO 3 2LFA",890627,25,38,"2º Leilão de Fontes Alternativas","2013-20",{"$f":"COUNTIF(D:D,Tabela1[[#This Row],[CD_PARC_USIN]])","v":1}]
[{"$f":"Tabela1[[#This Row],[NM_LEIL]]&Tabela1[[#This Row],[CD_PARC_USIN]]","v":"2º Leilão de Fontes Alternativas890628"},"CALANGO 4 I5","CALANGO 4 2LFA",890628,25,38,"2º Leilão de Fontes Alternativas","2013-20",{"$f":"COUNTIF(D:D,Tabela1[[#This Row],[CD_PARC_USIN]])","v":1}]
[{"$f":"Tabela1[[#This Row],[NM_LEIL]]&Tabela1[[#This Row],[CD_PARC_USIN]]","v":"2º Leilão de Fontes Alternativas890629"},"CALANGO 5 I5","CALANGO 5 2LFA",890629,25,38,"2º Leilão de Fontes Alternativas","2013-20",{"$f":"COUNTIF(D:D,Tabela1[[#This Row],[CD_PARC_USIN]])","v":1}]
[{"$f":"Tabela1[[#This Row],[NM_LEIL]]&Tabela1[[#This Row],[CD_PARC_USIN]]","v":"2º Leilão de Fontes Alternativas890647"},"CPFL ATLANTICA I I5","ATLANTICA 1 2LFA",890647,25,38,"2º Leilão de Fontes Alternativas","2013-20",{"$f":"COUNTIF(D:D,Tabela1[[#This Row],[CD_PARC_USIN]])","v":1}]
[{"$f":"Tabela1[[#This Row],[NM_LEIL]]&Tabela1[[#This Row],[CD_PARC_USIN]]","v":"2º Leilão de Fontes Alternativas890648"},"CPFL ATLANTICA II I5","ATLANTICA 2",890648,25,38,"2º Leilão de Fontes Alternativas","2013-20",{"$f":"COUNTIF(D:D,Tabela1[[#This Row],[CD_PARC_USIN]])","v":1}]
[{"$f":"Tabela1[[#This Row],[NM_LEIL]]&Tabela1[[#This Row],[CD_PARC_USIN]]","v":"2º Leilão de Fontes Alternativas890649"},"CPFL ATLANTICA IV I5","ATLANTICA 4",890649,25,38,"2º Leilão de Fontes Alternativas","2013-20",{"$f":"COUNTIF(D:D,Tabela1[[#This Row],[CD_PARC_USIN]])","v":1}]
[{"$f":"Tabela1[[#This Row],[NM_LEIL]]&Tabela1[[#This Row],[CD_PARC_USIN]]","v":"2º Leilão de Fontes Alternativas890650"},"CPFL ATLANTICA V I5","ATLANTICA 5 2LFA",890650,25,38,"2º Leilão de Fontes Alternativas","2013-20",{"$f":"COUNTIF(D:D,Tabela1[[#This Row],[CD_PARC_USIN]])","v":1}]
[{"$f":"Tabela1[[#This Row],[NM_LEIL]]&Tabela1[[#This Row],[CD_PARC_USIN]]","v":"2º Leilão de Fontes Alternativas890651"},"ASAVIII I5","ASA BRANCA 8 2LFA",890651,25,38,"2º Leilão de Fontes Alternativas","2013-20",{"$f":"COUNTIF(D:D,Tabela1[[#This Row],[CD_PARC_USIN]])","v":1}]
[{"$f":"Tabela1[[#This Row],[NM_LEIL]]&Tabela1[[#This Row],[CD_PARC_USIN]]","v":"2º Leilão de Fontes Alternativas890652"},"ASAVII I5","ASA BRANCA 7 2LFA",890652,25,38,"2º Leilão de Fontes Alternativas","2013-20",{"$f":"COUNTIF(D:D,Tabela1[[#This Row],[CD_PARC_USIN]])","v":1}]
[{"$f":"Tabela1[[#This Row],[NM_LEIL]]&Tabela1[[#This Row],[CD_PARC_USIN]]","v":"2º Leilão de Fontes Alternativas890653"},"ASAVI I5","ASA BRANCA 6 2LFA",890653,25,38,"2º Leilão de Fontes Alternativas","2013-20",{"$f":"COUNTIF(D:D,Tabela1[[#This Row],[CD_PARC_USIN]])","v":1}]
[{"$f":"Tabela1[[#This Row],[NM_LEIL]]&Tabela1[[#This Row],[CD_PARC_USIN]]","v":"2º Leilão de Fontes Alternativas890654"},"ASAV I5","ASA BRANCA 5 2LFA",890654,25,38,"2º Leilão de Fontes Alternativas","2013-20",{"$f":"COUNTIF(D:D,Tabela1[[#This Row],[CD_PARC_USIN]])","v":1}]
[{"$f":"Tabela1[[#This Row],[NM_LEIL]]&Tabela1[[#This Row],[CD_PARC_USIN]]","v":"2º Leilão de Fontes Alternativas890655"},"ASAIV I5","ASA BRANCA 4 2LFA",890655,25,38,"2º Leilão de Fontes Alternativas","2013-20",{"$f":"COUNTIF(D:D,Tabela1[[#This Row],[CD_PARC_USIN]])","v":1}]
[{"$f":"Tabela1[[#This Row],[NM_LEIL]]&Tabela1[[#This Row],[CD_PARC_USIN]]","v":"2º Leilão de Fontes Alternativas890656"},"EOL VENTO I5","REB CASSINO 1 2LFA",890656,25,38,"2º Leilão de Fontes Alternativas","2013-20",{"$f":"COUNTIF(D:D,Tabela1[[#This Row],[CD_PARC_USIN]])","v":1}]
[{"$f":"Tabela1[[#This Row],[NM_LEIL]]&Tabela1[[#This Row],[CD_PARC_USIN]]","v":"2º Leilão de Fontes Alternativas890657"},"EOL BRISA I5","REB CASSINO 3 2LFA",890657,25,38,"2º Leilão de Fontes Alternativas","2013-20",{"$f":"COUNTIF(D:D,Tabela1[[#This Row],[CD_PARC_USIN]])","v":1}]
[{"$f":"Tabela1[[#This Row],[NM_LEIL]]&Tabela1[[#This Row],[CD_PARC_USIN]]","v":"2º Leilão de Fontes Alternativas890658"},"EOL WIND I5","REB CASSINO 2 2LFA",890658,25,38,"2º Leilão de Fontes Alternativas","2013-20",{"$f":"COUNTIF(D:D,Tabela1[[#This Row],[CD_PARC_USIN]])","v":1}]
[{"$f":"Tabela1[[#This Row],[NM_LEIL]]&Tabela1[[#This Row],[CD_PARC_USIN]]","v":"2º Leilão de Fontes Alternativas890659"},"ENERPLAN I5","PONTAL 2B 2LFA",890659,25,38,"2º Leilão de Fontes Alternativas","2013-20",{"$f":"COUNTIF(D:D,Tabela1[[#This Row],[CD_PARC_USIN]])","v":1}]
[{"$f":"Tabela1[[#This Row],[NM_LEIL]]&Tabela1[[#This Row],[CD_PARC_USIN]]","v":"2º Leilão de Fontes Alternativas890667"},"FAROL I5","FAROL 2LFA",890667,25,38,"2º Leilão de Fontes Alternativas","2013-20",{"$f":"COUNTIF(D:D,Tabela1[[#This Row],[CD_PARC_USIN]])","v":1}]
[{"$f":"Tabela1[[#This Row],[NM_LEIL]]&Tabela1[[#This Row],[CD_PARC_USIN]]","v":"2º Leilão de Fontes Alternativas890668"},"CPFL PEDRA PRETA I5","PEDRA PRETA 2LFA",890668,25,38,"2º Leilão de Fontes Alternativas","2013-20",{"$f":"COUNTIF(D:D,Tabela1[[#This Row],[CD_PARC_USIN]])","v":1}]
[{"$f":"Tabela1[[#This Row],[NM_LEIL]]&Tabela1[[#This Row],[CD_PARC_USIN]]","v":"2º Leilão de Fontes Alternativas890669"},"CPFL MACACOS I5","MACACOS 2LFA",890669,25,38,"2º Leilão de Fontes Alternativas","2013-20",{"$f":"COUNTIF(D:D,Tabela1[[#This Row],[CD_PARC_USIN]])","v":1}]
[{"$f":"Tabela1[[#This Row],[NM_LEIL]]&Tabela1[[#This Row],[CD_PARC_USIN]]","v":"2º Leilão de Fontes Alternativas890670"},"CPFL JUREMAS I5","JUREMAS 2LFA",890670,25,38,"2º Leilão de Fontes Alternativas","2013-20",{"$f":"COUNTIF(D:D,Tabela1[[#This Row],[CD_PARC_USIN]])","v":1}]
[{"$f":"Tabela1[[#This Row],[NM_LEIL]]&Tabela1[[#This Row],[CD_PARC_USIN]]","v":"3º Leilão de Energia de Reserva890747"},"EGPCE I5","CRISTAL 3LER",890747,53,108,"3º Leilão de Energia de Reserva","2013-20",{"$f":"COUNTIF(D:D,Tabela1[[#This Row],[CD_PARC_USIN]])","v":1}]
[{"$f":"Tabela1[[#This Row],[NM_LEIL]]&Tabela1[[#This Row],[CD_PARC_USIN]]","v":"3º Leilão de Energia de Reserva890748"},"EGPSJE I5","SAO JUDAS 3LER",890748,53,108,"3º Leilão de Energia de Reserva","2013-20",{"$f":"COUNTIF(D:D,Tabela1[[#This Row],[CD_PARC_USIN]])","v":1}]
[{"$f":"Tabela1[[#This Row],[NM_LEIL]]&Tabela1[[#This Row],[CD_PARC_USIN]]","v":"3º Leilão de Energia de Reserva890749"},"CPFL EURUS I I5","EURUS 1 3LER",890749,53,108,"3º Leilão de Energia de Reserva","2013-20",{"$f":"COUNTIF(D:D,Tabela1[[#This Row],[CD_PARC_USIN]])","v":1}]
[{"$f":"Tabela1[[#This Row],[NM_LEIL]]&Tabela1[[#This Row],[CD_PARC_USIN]]","v":"3º Leilão de Energia de Reserva890750"},"UEE ARACAS I5","ARACAS 3LER",890750,53,108,"3º Leilão de Energia de Reserva","2013-20",{"$f":"COUNTIF(D:D,Tabela1[[#This Row],[CD_PARC_USIN]])","v":1}]
[{"$f":"Tabela1[[#This Row],[NM_LEIL]]&Tabela1[[#This Row],[CD_PARC_USIN]]","v":"3º Leilão de Energia de Reserva890751"},"UEE PRATA I5","DA PRATA",890751,53,108,"3º Leilão de Energia de Reserva","2013-20",{"$f":"COUNTIF(D:D,Tabela1[[#This Row],[CD_PARC_USIN]])","v":1}]
[{"$f":"Tabela1[[#This Row],[NM_LEIL]]&Tabela1[[#This Row],[CD_PARC_USIN]]","v":"3º Leilão de Energia de Reserva890752"},"CPFL CAMPOS DOS VENTOS II I5","C DOS VENTOS 2 3LER",890752,53,108,"3º Leilão de Energia de Reserva","2013-20",{"$f":"COUNTIF(D:D,Tabela1[[#This Row],[CD_PARC_USIN]])","v":1}]
[{"$f":"Tabela1[[#This Row],[NM_LEIL]]&Tabela1[[#This Row],[CD_PARC_USIN]]","v":"12º Leilão de Energia Nova890753"},"EOL CERRO TRINDADE I5","CERRO DOS TRINDADE",890753,28,42,"12º Leilão de Energia Nova","2014-20",{"$f":"COUNTIF(D:D,Tabela1[[#This Row],[CD_PARC_USIN]])","v":1}]
[{"$f":"Tabela1[[#This Row],[NM_LEIL]]&Tabela1[[#This Row],[CD_PARC_USIN]]","v":"3º Leilão de Energia de Reserva890756"},"RENASCENCAV I5","RENASCENÇA 5 3LER",890756,53,108,"3º Leilão de Energia de Reserva","2013-20",{"$f":"COUNTIF(D:D,Tabela1[[#This Row],[CD_PARC_USIN]])","v":1}]
[{"$f":"Tabela1[[#This Row],[NM_LEIL]]&Tabela1[[#This Row],[CD_PARC_USIN]]","v":"3º Leilão de Energia de Reserva890757"},"EGPPE I5","PRIMAVERA 3LER",890757,53,108,"3º Leilão de Energia de Reserva","2013-20",{"$f":"COUNTIF(D:D,Tabela1[[#This Row],[CD_PARC_USIN]])","v":1}]
[{"$f":"Tabela1[[#This Row],[NM_LEIL]]&Tabela1[[#This Row],[CD_PARC_USIN]]","v":"3º Leilão de Energia de Reserva890758"},"UEE MORRAO I5","MORRAO",890758,53,108,"3º Leilão de Energia de Reserva","2013-20",{"$f":"COUNTIF(D:D,Tabela1[[#This Row],[CD_PARC_USIN]])","v":1}]
[{"$f":"Tabela1[[#This Row],[NM_LEIL]]&Tabela1[[#This Row],[CD_PARC_USIN]]","v":"3º Leilão de Energia de Reserva890760"},"CPFL EURUS III I5","EURUS 3 3LER",890760,53,108,"3º Leilão de Energia de Reserva","2013-20",{"$f":"COUNTIF(D:D,Tabela1[[#This Row],[CD_PARC_USIN]])","v":1}]
[{"$f":"Tabela1[[#This Row],[NM_LEIL]]&Tabela1[[#This Row],[CD_PARC_USIN]]","v":"3º Leilão de Energia de Reserva890761"},"EURUS II I5","EURUS 2 3LER",890761,53,108,"3º Leilão de Energia de Reserva","2013-20",{"$f":"COUNTIF(D:D,Tabela1[[#This Row],[CD_PARC_USIN]])","v":1}]
[{"$f":"Tabela1[[#This Row],[NM_LEIL]]&Tabela1[[#This Row],[CD_PARC_USIN]]","v":"3º Leilão de Energia de Reserva890773"},"UEE SERAIMA I5","SERAIMA",890773,53,108,"3º Leilão de Energia de Reserva","2013-20",{"$f":"COUNTIF(D:D,Tabela1[[#This Row],[CD_PARC_USIN]])","v":1}]
[{"$f":"Tabela1[[#This Row],[NM_LEIL]]&Tabela1[[#This Row],[CD_PARC_USIN]]","v":"3º Leilão de Energia de Reserva890774"},"GESTAMP SANTAN I5","S DE SANTANA 1 3LER",890774,53,108,"3º Leilão de Energia de Reserva","2013-20",{"$f":"COUNTIF(D:D,Tabela1[[#This Row],[CD_PARC_USIN]])","v":1}]
[{"$f":"Tabela1[[#This Row],[NM_LEIL]]&Tabela1[[#This Row],[CD_PARC_USIN]]","v":"3º Leilão de Energia de Reserva890775"},"GESTAMP LAGOA I5","S DE SANTANA 2 3LER",890775,53,108,"3º Leilão de Energia de Reserva","2013-20",{"$f":"COUNTIF(D:D,Tabela1[[#This Row],[CD_PARC_USIN]])","v":1}]
[{"$f":"Tabela1[[#This Row],[NM_LEIL]]&Tabela1[[#This Row],[CD_PARC_USIN]]","v":"3º Leilão de Energia de Reserva890776"},"GESTAMP SERIDO I5","S DE SANTANA 3 3LER",890776,53,108,"3º Leilão de Energia de Reserva","2013-20",{"$f":"COUNTIF(D:D,Tabela1[[#This Row],[CD_PARC_USIN]])","v":1}]
[{"$f":"Tabela1[[#This Row],[NM_LEIL]]&Tabela1[[#This Row],[CD_PARC_USIN]]","v":"3º Leilão de Energia de Reserva890777"},"UEE TANQUE I5","TANQUE 3LER",890777,53,108,"3º Leilão de Energia de Reserva","2013-20",{"$f":"COUNTIF(D:D,Tabela1[[#This Row],[CD_PARC_USIN]])","v":1}]
[{"$f":"Tabela1[[#This Row],[NM_LEIL]]&Tabela1[[#This Row],[CD_PARC_USIN]]","v":"3º Leilão de Energia de Reserva890778"},"UEE V NORDE I5","V DO NORDESTE 3LER",890778,53,108,"3º Leilão de Energia de Reserva","2013-20",{"$f":"COUNTIF(D:D,Tabela1[[#This Row],[CD_PARC_USIN]])","v":1}]
[{"$f":"Tabela1[[#This Row],[NM_LEIL]]&Tabela1[[#This Row],[CD_PARC_USIN]]","v":"2º Leilão de Fontes Alternativas890937"},"ELERA RE I I5","RENASCENÇA I 2LFA",890937,25,38,"2º Leilão de Fontes Alternativas","2013-20",{"$f":"COUNTIF(D:D,Tabela1[[#This Row],[CD_PARC_USIN]])","v":1}]
[{"$f":"Tabela1[[#This Row],[NM_LEIL]]&Tabela1[[#This Row],[CD_PARC_USIN]]","v":"2º Leilão de Fontes Alternativas890938"},"ELERA RE II I5","RENASCENÇA II 2LFA",890938,25,38,"2º Leilão de Fontes Alternativas","2013-20",{"$f":"COUNTIF(D:D,Tabela1[[#This Row],[CD_PARC_USIN]])","v":1}]
[{"$f":"Tabela1[[#This Row],[NM_LEIL]]&Tabela1[[#This Row],[CD_PARC_USIN]]","v":"2º Leilão de Fontes Alternativas890939"},"ELERA RE III I5","RENASCENCA III",890939,25,38,"2º Leilão de Fontes Alternativas","2013-20",{"$f":"COUNTIF(D:D,Tabela1[[#This Row],[CD_PARC_USIN]])","v":1}]
[{"$f":"Tabela1[[#This Row],[NM_LEIL]]&Tabela1[[#This Row],[CD_PARC_USIN]]","v":"2º Leilão de Fontes Alternativas890940"},"ELERA RE IV I5","RENASCENÇA IV",890940,25,38,"2º Leilão de Fontes Alternativas","2013-20",{"$f":"COUNTIF(D:D,Tabela1[[#This Row],[CD_PARC_USIN]])","v":1}]
[{"$f":"Tabela1[[#This Row],[NM_LEIL]]&Tabela1[[#This Row],[CD_PARC_USIN]]","v":"2º Leilão de Fontes Alternativas890941"},"ELERA VSM I5","VENTOS DE SÃO MIGUEL",890941,25,38,"2º Leilão de Fontes Alternativas","2013-20",{"$f":"COUNTIF(D:D,Tabela1[[#This Row],[CD_PARC_USIN]])","v":1}]
[{"$f":"Tabela1[[#This Row],[NM_LEIL]]&Tabela1[[#This Row],[CD_PARC_USIN]]","v":"15º Leilão de Energia Nova890997"},"EGP DOIS RIACHOS I5","DOIS RIACHOS",890997,147,410,"15º Leilão de Energia Nova","2017-20",{"$f":"COUNTIF(D:D,Tabela1[[#This Row],[CD_PARC_USIN]])","v":1}]
[{"$f":"Tabela1[[#This Row],[NM_LEIL]]&Tabela1[[#This Row],[CD_PARC_USIN]]","v":"15º Leilão de Energia Nova890998"},"UEE SALVADOR I5","S SALVADOR",890998,147,410,"15º Leilão de Energia Nova","2017-20",{"$f":"COUNTIF(D:D,Tabela1[[#This Row],[CD_PARC_USIN]])","v":1}]
[{"$f":"Tabela1[[#This Row],[NM_LEIL]]&Tabela1[[#This Row],[CD_PARC_USIN]]","v":"15º Leilão de Energia Nova890999"},"EECC","CACHOEIRA CALDEIRAO",890999,147,409,"15º Leilão de Energia Nova","2017-30",{"$f":"COUNTIF(D:D,Tabela1[[#This Row],[CD_PARC_USIN]])","v":1}]
[{"$f":"Tabela1[[#This Row],[NM_LEIL]]&Tabela1[[#This Row],[CD_PARC_USIN]]","v":"11º Leilão de Energia Nova891001"},"CEJA","STO ANTONIO DO JARI",891001,26,40,"11º Leilão de Energia Nova","2015-30",{"$f":"COUNTIF(D:D,Tabela1[[#This Row],[CD_PARC_USIN]])","v":2}]
[{"$f":"Tabela1[[#This Row],[NM_LEIL]]&Tabela1[[#This Row],[CD_PARC_USIN]]","v":"15º Leilão de Energia Nova891001"},"CEJA","STO ANTONIO DO JARI",891001,147,409,"15º Leilão de Energia Nova","2017-30",{"$f":"COUNTIF(D:D,Tabela1[[#This Row],[CD_PARC_USIN]])","v":2}]
[{"$f":"Tabela1[[#This Row],[NM_LEIL]]&Tabela1[[#This Row],[CD_PARC_USIN]]","v":"10º Leilão de Energia Nova891063"},"RCESA","GARIBALDI",891063,24,36,"10º Leilão de Energia Nova","2015-30",{"$f":"COUNTIF(D:D,Tabela1[[#This Row],[CD_PARC_USIN]])","v":1}]
[{"$f":"Tabela1[[#This Row],[NM_LEIL]]&Tabela1[[#This Row],[CD_PARC_USIN]]","v":"15º Leilão de Energia Nova891203"},"GRANJA VARGAS I5","GRANJA VARGAS  1",891203,147,410,"15º Leilão de Energia Nova","2017-20",{"$f":"COUNTIF(D:D,Tabela1[[#This Row],[CD_PARC_USIN]])","v":1}]
[{"$f":"Tabela1[[#This Row],[NM_LEIL]]&Tabela1[[#This Row],[CD_PARC_USIN]]","v":"12º Leilão de Energia Nova891284"},"ESBR","AMPLIACAO JIRAU",891284,28,43,"12º Leilão de Energia Nova","2014-30",{"$f":"COUNTIF(D:D,Tabela1[[#This Row],[CD_PARC_USIN]])","v":2}]
[{"$f":"Tabela1[[#This Row],[NM_LEIL]]&Tabela1[[#This Row],[CD_PARC_USIN]]","v":"2º Leilão de Projetos Estruturantes(UHE Jirau)891284"},"ESBR","AMPLIACAO JIRAU",891284,14,25,"2º Leilão de Projetos Estruturantes(UHE Jirau)","2013-30",{"$f":"COUNTIF(D:D,Tabela1[[#This Row],[CD_PARC_USIN]])","v":2}]
[{"$f":"Tabela1[[#This Row],[NM_LEIL]]&Tabela1[[#This Row],[CD_PARC_USIN]]","v":"2º Leilão de Energia de Reserva891362"},"NOVA BURITI I5","NOVA BURITI",891362,52,104,"2º Leilão de Energia de Reserva","2012-20",{"$f":"COUNTIF(D:D,Tabela1[[#This Row],[CD_PARC_USIN]])","v":1}]
[{"$f":"Tabela1[[#This Row],[NM_LEIL]]&Tabela1[[#This Row],[CD_PARC_USIN]]","v":"12º Leilão de Energia Nova891522"},"EOL CERRO CHATO IV I5","CERRO CHATO IV",891522,28,42,"12º Leilão de Energia Nova","2014-20",{"$f":"COUNTIF(D:D,Tabela1[[#This Row],[CD_PARC_USIN]])","v":1}]
[{"$f":"Tabela1[[#This Row],[NM_LEIL]]&Tabela1[[#This Row],[CD_PARC_USIN]]","v":"3º Leilão de Fontes Alternativas891622"},"BPBUNGE TRP I5","TROPICAL",891622,162,445,"3º Leilão de Fontes Alternativas","2016-20",{"$f":"COUNTIF(D:D,Tabela1[[#This Row],[CD_PARC_USIN]])","v":2}]
[{"$f":"Tabela1[[#This Row],[NM_LEIL]]&Tabela1[[#This Row],[CD_PARC_USIN]]","v":"4º Leilão de Energia de Reserva891622"},"BPBUNGE TRP I5","TROPICAL",891622,54,109,"4º Leilão de Energia de Reserva","2014-20",{"$f":"COUNTIF(D:D,Tabela1[[#This Row],[CD_PARC_USIN]])","v":2}]
[{"$f":"Tabela1[[#This Row],[NM_LEIL]]&Tabela1[[#This Row],[CD_PARC_USIN]]","v":"2º Leilão de Fontes Alternativas891922"},"ARATUA 3 I5","ARATUA 3",891922,25,38,"2º Leilão de Fontes Alternativas","2013-20",{"$f":"COUNTIF(D:D,Tabela1[[#This Row],[CD_PARC_USIN]])","v":1}]
[{"$f":"Tabela1[[#This Row],[NM_LEIL]]&Tabela1[[#This Row],[CD_PARC_USIN]]","v":"2º Leilão de Fontes Alternativas891926"},"NOVA ASA B I I5","ASA BRANCA 1 2LFA",891926,25,38,"2º Leilão de Fontes Alternativas","2013-20",{"$f":"COUNTIF(D:D,Tabela1[[#This Row],[CD_PARC_USIN]])","v":1}]
[{"$f":"Tabela1[[#This Row],[NM_LEIL]]&Tabela1[[#This Row],[CD_PARC_USIN]]","v":"2º Leilão de Fontes Alternativas891943"},"NOVA ASA B II I5","ASA BRANCA 2 2LFA",891943,25,38,"2º Leilão de Fontes Alternativas","2013-20",{"$f":"COUNTIF(D:D,Tabela1[[#This Row],[CD_PARC_USIN]])","v":1}]
[{"$f":"Tabela1[[#This Row],[NM_LEIL]]&Tabela1[[#This Row],[CD_PARC_USIN]]","v":"2º Leilão de Fontes Alternativas891944"},"NOVA ASA B III I5","ASA BRANCA 3 2LFA",891944,25,38,"2º Leilão de Fontes Alternativas","2013-20",{"$f":"COUNTIF(D:D,Tabela1[[#This Row],[CD_PARC_USIN]])","v":1}]
[{"$f":"Tabela1[[#This Row],[NM_LEIL]]&Tabela1[[#This Row],[CD_PARC_USIN]]","v":"2º Leilão de Fontes Alternativas891945"},"NOVA EURUS IV I5","EURUS IV",891945,25,38,"2º Leilão de Fontes Alternativas","2013-20",{"$f":"COUNTIF(D:D,Tabela1[[#This Row],[CD_PARC_USIN]])","v":1}]
[{"$f":"Tabela1[[#This Row],[NM_LEIL]]&Tabela1[[#This Row],[CD_PARC_USIN]]","v":"2º Leilão de Fontes Alternativas891963"},"VENTO FORMOSO I5","EOL VENTO FORMOSO",891963,25,38,"2º Leilão de Fontes Alternativas","2013-20",{"$f":"COUNTIF(D:D,Tabela1[[#This Row],[CD_PARC_USIN]])","v":1}]
[{"$f":"Tabela1[[#This Row],[NM_LEIL]]&Tabela1[[#This Row],[CD_PARC_USIN]]","v":"2º Leilão de Fontes Alternativas891965"},"MORRO CHAPEU I5","VENTOS MORRO CHAPEU",891965,25,38,"2º Leilão de Fontes Alternativas","2013-20",{"$f":"COUNTIF(D:D,Tabela1[[#This Row],[CD_PARC_USIN]])","v":1}]
[{"$f":"Tabela1[[#This Row],[NM_LEIL]]&Tabela1[[#This Row],[CD_PARC_USIN]]","v":"2º Leilão de Fontes Alternativas891982"},"TIANGUA NORTE I5","TIANGUA NORTE",891982,25,38,"2º Leilão de Fontes Alternativas","2013-20",{"$f":"COUNTIF(D:D,Tabela1[[#This Row],[CD_PARC_USIN]])","v":1}]
[{"$f":"Tabela1[[#This Row],[NM_LEIL]]&Tabela1[[#This Row],[CD_PARC_USIN]]","v":"2º Leilão de Fontes Alternativas891983"},"TIANGUA I5","VENTOS DE TIANGUA",891983,25,38,"2º Leilão de Fontes Alternativas","2013-20",{"$f":"COUNTIF(D:D,Tabela1[[#This Row],[CD_PARC_USIN]])","v":1}]
[{"$f":"Tabela1[[#This Row],[NM_LEIL]]&Tabela1[[#This Row],[CD_PARC_USIN]]","v":"2º Leilão de Fontes Alternativas891984"},"PARAZINHO I5","VENTOS DO PARAZINHO",891984,25,38,"2º Leilão de Fontes Alternativas","2013-20",{"$f":"COUNTIF(D:D,Tabela1[[#This Row],[CD_PARC_USIN]])","v":1}]
[{"$f":"Tabela1[[#This Row],[NM_LEIL]]&Tabela1[[#This Row],[CD_PARC_USIN]]","v":"12º Leilão de Energia Nova892082"},"UEE AMETISTA I5","AMETISTA",892082,28,42,"12º Leilão de Energia Nova","2014-20",{"$f":"COUNTIF(D:D,Tabela1[[#This Row],[CD_PARC_USIN]])","v":1}]
[{"$f":"Tabela1[[#This Row],[NM_LEIL]]&Tabela1[[#This Row],[CD_PARC_USIN]]","v":"12º Leilão de Energia Nova892083"},"UEE BORGO I5","BORGO",892083,28,42,"12º Leilão de Energia Nova","2014-20",{"$f":"COUNTIF(D:D,Tabela1[[#This Row],[CD_PARC_USIN]])","v":1}]
[{"$f":"Tabela1[[#This Row],[NM_LEIL]]&Tabela1[[#This Row],[CD_PARC_USIN]]","v":"12º Leilão de Energia Nova892084"},"UEE CAETITE I5","CAETITE",892084,28,42,"12º Leilão de Energia Nova","2014-20",{"$f":"COUNTIF(D:D,Tabela1[[#This Row],[CD_PARC_USIN]])","v":1}]
[{"$f":"Tabela1[[#This Row],[NM_LEIL]]&Tabela1[[#This Row],[CD_PARC_USIN]]","v":"12º Leilão de Energia Nova892102"},"UEE PELOURINHO I5","PELOURINHO",892102,28,42,"12º Leilão de Energia Nova","2014-20",{"$f":"COUNTIF(D:D,Tabela1[[#This Row],[CD_PARC_USIN]])","v":1}]
[{"$f":"Tabela1[[#This Row],[NM_LEIL]]&Tabela1[[#This Row],[CD_PARC_USIN]]","v":"12º Leilão de Energia Nova892103"},"TECNEIRA ACARA I5","CATAVENTOS I",892103,28,42,"12º Leilão de Energia Nova","2014-20",{"$f":"COUNTIF(D:D,Tabela1[[#This Row],[CD_PARC_USIN]])","v":1}]
[{"$f":"Tabela1[[#This Row],[NM_LEIL]]&Tabela1[[#This Row],[CD_PARC_USIN]]","v":"12º Leilão de Energia Nova892104"},"EGP JOANA I5","JOANA",892104,28,42,"12º Leilão de Energia Nova","2014-20",{"$f":"COUNTIF(D:D,Tabela1[[#This Row],[CD_PARC_USIN]])","v":1}]
[{"$f":"Tabela1[[#This Row],[NM_LEIL]]&Tabela1[[#This Row],[CD_PARC_USIN]]","v":"12º Leilão de Energia Nova892105"},"UEE MARON I5","MARON",892105,28,42,"12º Leilão de Energia Nova","2014-20",{"$f":"COUNTIF(D:D,Tabela1[[#This Row],[CD_PARC_USIN]])","v":1}]
[{"$f":"Tabela1[[#This Row],[NM_LEIL]]&Tabela1[[#This Row],[CD_PARC_USIN]]","v":"12º Leilão de Energia Nova892106"},"UEE PILOES I5","PILÕES",892106,28,42,"12º Leilão de Energia Nova","2014-20",{"$f":"COUNTIF(D:D,Tabela1[[#This Row],[CD_PARC_USIN]])","v":1}]
[{"$f":"Tabela1[[#This Row],[NM_LEIL]]&Tabela1[[#This Row],[CD_PARC_USIN]]","v":"12º Leilão de Energia Nova892107"},"PBEE I5","PORTO DAS BARCAS",892107,28,42,"12º Leilão de Energia Nova","2014-20",{"$f":"COUNTIF(D:D,Tabela1[[#This Row],[CD_PARC_USIN]])","v":1}]
[{"$f":"Tabela1[[#This Row],[NM_LEIL]]&Tabela1[[#This Row],[CD_PARC_USIN]]","v":"12º Leilão de Energia Nova892108"},"EGP EMILIANA I5","EMILIANA",892108,28,42,"12º Leilão de Energia Nova","2014-20",{"$f":"COUNTIF(D:D,Tabela1[[#This Row],[CD_PARC_USIN]])","v":1}]
[{"$f":"Tabela1[[#This Row],[NM_LEIL]]&Tabela1[[#This Row],[CD_PARC_USIN]]","v":"12º Leilão de Energia Nova892109"},"PSEE I5","PORTO SALGADO",892109,28,42,"12º Leilão de Energia Nova","2014-20",{"$f":"COUNTIF(D:D,Tabela1[[#This Row],[CD_PARC_USIN]])","v":1}]
[{"$f":"Tabela1[[#This Row],[NM_LEIL]]&Tabela1[[#This Row],[CD_PARC_USIN]]","v":"12º Leilão de Energia Nova892110"},"UEE DOURADOS I5","DOURADOS (UEE DOURAD",892110,28,42,"12º Leilão de Energia Nova","2014-20",{"$f":"COUNTIF(D:D,Tabela1[[#This Row],[CD_PARC_USIN]])","v":1}]
[{"$f":"Tabela1[[#This Row],[NM_LEIL]]&Tabela1[[#This Row],[CD_PARC_USIN]]","v":"12º Leilão de Energia Nova892111"},"EOL CERRO CHATO VI I5","CERRO CHATO VI",892111,28,42,"12º Leilão de Energia Nova","2014-20",{"$f":"COUNTIF(D:D,Tabela1[[#This Row],[CD_PARC_USIN]])","v":1}]
[{"$f":"Tabela1[[#This Row],[NM_LEIL]]&Tabela1[[#This Row],[CD_PARC_USIN]]","v":"12º Leilão de Energia Nova892112"},"EGP MODELO I I5","MODELO I",892112,28,42,"12º Leilão de Energia Nova","2014-20",{"$f":"COUNTIF(D:D,Tabela1[[#This Row],[CD_PARC_USIN]])","v":1}]
[{"$f":"Tabela1[[#This Row],[NM_LEIL]]&Tabela1[[#This Row],[CD_PARC_USIN]]","v":"12º Leilão de Energia Nova892113"},"OD15 I5","VERACE III",892113,28,42,"12º Leilão de Energia Nova","2014-20",{"$f":"COUNTIF(D:D,Tabela1[[#This Row],[CD_PARC_USIN]])","v":1}]
[{"$f":"Tabela1[[#This Row],[NM_LEIL]]&Tabela1[[#This Row],[CD_PARC_USIN]]","v":"12º Leilão de Energia Nova892114"},"UEE SERRA ESP I5","SERRA DO ESPINHAÇO",892114,28,42,"12º Leilão de Energia Nova","2014-20",{"$f":"COUNTIF(D:D,Tabela1[[#This Row],[CD_PARC_USIN]])","v":1}]
[{"$f":"Tabela1[[#This Row],[NM_LEIL]]&Tabela1[[#This Row],[CD_PARC_USIN]]","v":"12º Leilão de Energia Nova892115"},"OD15 I5","VERACE VIII",892115,28,42,"12º Leilão de Energia Nova","2014-20",{"$f":"COUNTIF(D:D,Tabela1[[#This Row],[CD_PARC_USIN]])","v":1}]
[{"$f":"Tabela1[[#This Row],[NM_LEIL]]&Tabela1[[#This Row],[CD_PARC_USIN]]","v":"12º Leilão de Energia Nova892116"},"OD15 I5","VERACE IV",892116,28,42,"12º Leilão de Energia Nova","2014-20",{"$f":"COUNTIF(D:D,Tabela1[[#This Row],[CD_PARC_USIN]])","v":1}]
[{"$f":"Tabela1[[#This Row],[NM_LEIL]]&Tabela1[[#This Row],[CD_PARC_USIN]]","v":"12º Leilão de Energia Nova892117"},"OD15 I5","CHUI IV",892117,28,42,"12º Leilão de Energia Nova","2014-20",{"$f":"COUNTIF(D:D,Tabela1[[#This Row],[CD_PARC_USIN]])","v":1}]
[{"$f":"Tabela1[[#This Row],[NM_LEIL]]&Tabela1[[#This Row],[CD_PARC_USIN]]","v":"12º Leilão de Energia Nova892118"},"UEE ESPIGAO I5","ESPIGAO",892118,28,42,"12º Leilão de Energia Nova","2014-20",{"$f":"COUNTIF(D:D,Tabela1[[#This Row],[CD_PARC_USIN]])","v":1}]
[{"$f":"Tabela1[[#This Row],[NM_LEIL]]&Tabela1[[#This Row],[CD_PARC_USIN]]","v":"12º Leilão de Energia Nova892119"},"PPEE I5","DELTA DO PARNAIBA",892119,28,42,"12º Leilão de Energia Nova","2014-20",{"$f":"COUNTIF(D:D,Tabela1[[#This Row],[CD_PARC_USIN]])","v":1}]
[{"$f":"Tabela1[[#This Row],[NM_LEIL]]&Tabela1[[#This Row],[CD_PARC_USIN]]","v":"12º Leilão de Energia Nova892120"},"EGP PAUFERRO I5","PAU FERRO",892120,28,42,"12º Leilão de Energia Nova","2014-20",{"$f":"COUNTIF(D:D,Tabela1[[#This Row],[CD_PARC_USIN]])","v":1}]
[{"$f":"Tabela1[[#This Row],[NM_LEIL]]&Tabela1[[#This Row],[CD_PARC_USIN]]","v":"12º Leilão de Energia Nova892121"},"CGE SC I5","SAO CRISTOVAO",892121,28,42,"12º Leilão de Energia Nova","2014-20",{"$f":"COUNTIF(D:D,Tabela1[[#This Row],[CD_PARC_USIN]])","v":1}]
[{"$f":"Tabela1[[#This Row],[NM_LEIL]]&Tabela1[[#This Row],[CD_PARC_USIN]]","v":"12º Leilão de Energia Nova892122"},"OD15 I5","VERACE IX",892122,28,42,"12º Leilão de Energia Nova","2014-20",{"$f":"COUNTIF(D:D,Tabela1[[#This Row],[CD_PARC_USIN]])","v":1}]
[{"$f":"Tabela1[[#This Row],[NM_LEIL]]&Tabela1[[#This Row],[CD_PARC_USIN]]","v":"12º Leilão de Energia Nova892123"},"OD15 I5","VERACE I",892123,28,42,"12º Leilão de Energia Nova","2014-20",{"$f":"COUNTIF(D:D,Tabela1[[#This Row],[CD_PARC_USIN]])","v":1}]
[{"$f":"Tabela1[[#This Row],[NM_LEIL]]&Tabela1[[#This Row],[CD_PARC_USIN]]","v":"12º Leilão de Energia Nova892142"},"OD15 I5","CHUI V",892142,28,42,"12º Leilão de Energia Nova","2014-20",{"$f":"COUNTIF(D:D,Tabela1[[#This Row],[CD_PARC_USIN]])","v":1}]
[{"$f":"Tabela1[[#This Row],[NM_LEIL]]&Tabela1[[#This Row],[CD_PARC_USIN]]","v":"12º Leilão de Energia Nova892143"},"OD15 I5","VERACE VI",892143,28,42,"12º Leilão de Energia Nova","2014-20",{"$f":"COUNTIF(D:D,Tabela1[[#This Row],[CD_PARC_USIN]])","v":1}]
[{"$f":"Tabela1[[#This Row],[NM_LEIL]]&Tabela1[[#This Row],[CD_PARC_USIN]]","v":"12º Leilão de Energia Nova892144"},"OD15 I5","CHUI I",892144,28,42,"12º Leilão de Energia Nova","2014-20",{"$f":"COUNTIF(D:D,Tabela1[[#This Row],[CD_PARC_USIN]])","v":1}]
[{"$f":"Tabela1[[#This Row],[NM_LEIL]]&Tabela1[[#This Row],[CD_PARC_USIN]]","v":"12º Leilão de Energia Nova892162"},"OD15 I5","MINUANO II",892162,28,42,"12º Leilão de Energia Nova","2014-20",{"$f":"COUNTIF(D:D,Tabela1[[#This Row],[CD_PARC_USIN]])","v":1}]
[{"$f":"Tabela1[[#This Row],[NM_LEIL]]&Tabela1[[#This Row],[CD_PARC_USIN]]","v":"12º Leilão de Energia Nova892182"},"EGP MODELOII I5","MODELO II",892182,28,42,"12º Leilão de Energia Nova","2014-20",{"$f":"COUNTIF(D:D,Tabela1[[#This Row],[CD_PARC_USIN]])","v":1}]
[{"$f":"Tabela1[[#This Row],[NM_LEIL]]&Tabela1[[#This Row],[CD_PARC_USIN]]","v":"12º Leilão de Energia Nova892183"},"EGP TACAICO I5","TACAICO",892183,28,42,"12º Leilão de Energia Nova","2014-20",{"$f":"COUNTIF(D:D,Tabela1[[#This Row],[CD_PARC_USIN]])","v":1}]
[{"$f":"Tabela1[[#This Row],[NM_LEIL]]&Tabela1[[#This Row],[CD_PARC_USIN]]","v":"12º Leilão de Energia Nova892184"},"EOL IBIRAPUITA I5","IBIRAPUITA",892184,28,42,"12º Leilão de Energia Nova","2014-20",{"$f":"COUNTIF(D:D,Tabela1[[#This Row],[CD_PARC_USIN]])","v":1}]
[{"$f":"Tabela1[[#This Row],[NM_LEIL]]&Tabela1[[#This Row],[CD_PARC_USIN]]","v":"12º Leilão de Energia Nova892202"},"OD15 I5","VERACE 5",892202,28,42,"12º Leilão de Energia Nova","2014-20",{"$f":"COUNTIF(D:D,Tabela1[[#This Row],[CD_PARC_USIN]])","v":1}]
[{"$f":"Tabela1[[#This Row],[NM_LEIL]]&Tabela1[[#This Row],[CD_PARC_USIN]]","v":"12º Leilão de Energia Nova892222"},"OD15 I5","VERACE 10",892222,28,42,"12º Leilão de Energia Nova","2014-20",{"$f":"COUNTIF(D:D,Tabela1[[#This Row],[CD_PARC_USIN]])","v":1}]
[{"$f":"Tabela1[[#This Row],[NM_LEIL]]&Tabela1[[#This Row],[CD_PARC_USIN]]","v":"12º Leilão de Energia Nova892223"},"OD15 I5","MINUANO I",892223,28,42,"12º Leilão de Energia Nova","2014-20",{"$f":"COUNTIF(D:D,Tabela1[[#This Row],[CD_PARC_USIN]])","v":1}]
[{"$f":"Tabela1[[#This Row],[NM_LEIL]]&Tabela1[[#This Row],[CD_PARC_USIN]]","v":"12º Leilão de Energia Nova892253"},"CGE SJ I5","SAO JORGE CE",892253,28,42,"12º Leilão de Energia Nova","2014-20",{"$f":"COUNTIF(D:D,Tabela1[[#This Row],[CD_PARC_USIN]])","v":1}]
[{"$f":"Tabela1[[#This Row],[NM_LEIL]]&Tabela1[[#This Row],[CD_PARC_USIN]]","v":"12º Leilão de Energia Nova892302"},"EGP GERONIMO I5","PEDRA DO GERÔNIMO",892302,28,42,"12º Leilão de Energia Nova","2014-20",{"$f":"COUNTIF(D:D,Tabela1[[#This Row],[CD_PARC_USIN]])","v":1}]
[{"$f":"Tabela1[[#This Row],[NM_LEIL]]&Tabela1[[#This Row],[CD_PARC_USIN]]","v":"12º Leilão de Energia Nova892303"},"EOL CERRO CHATO V I5","CERRO CHATO V",892303,28,42,"12º Leilão de Energia Nova","2014-20",{"$f":"COUNTIF(D:D,Tabela1[[#This Row],[CD_PARC_USIN]])","v":1}]
[{"$f":"Tabela1[[#This Row],[NM_LEIL]]&Tabela1[[#This Row],[CD_PARC_USIN]]","v":"12º Leilão de Energia Nova892323"},"OD15 I5","VERACE II",892323,28,42,"12º Leilão de Energia Nova","2014-20",{"$f":"COUNTIF(D:D,Tabela1[[#This Row],[CD_PARC_USIN]])","v":1}]
[{"$f":"Tabela1[[#This Row],[NM_LEIL]]&Tabela1[[#This Row],[CD_PARC_USIN]]","v":"12º Leilão de Energia Nova892324"},"OD15 I5","VERACE VII",892324,28,42,"12º Leilão de Energia Nova","2014-20",{"$f":"COUNTIF(D:D,Tabela1[[#This Row],[CD_PARC_USIN]])","v":1}]
[{"$f":"Tabela1[[#This Row],[NM_LEIL]]&Tabela1[[#This Row],[CD_PARC_USIN]]","v":"12º Leilão de Energia Nova892325"},"OD15 I5","CHUI II",892325,28,42,"12º Leilão de Energia Nova","2014-20",{"$f":"COUNTIF(D:D,Tabela1[[#This Row],[CD_PARC_USIN]])","v":1}]
[{"$f":"Tabela1[[#This Row],[NM_LEIL]]&Tabela1[[#This Row],[CD_PARC_USIN]]","v":"12º Leilão de Energia Nova892326"},"CGE SA I5","STO ANTONIO DE PADUA",892326,28,42,"12º Leilão de Energia Nova","2014-20",{"$f":"COUNTIF(D:D,Tabela1[[#This Row],[CD_PARC_USIN]])","v":1}]
[{"$f":"Tabela1[[#This Row],[NM_LEIL]]&Tabela1[[#This Row],[CD_PARC_USIN]]","v":"16º Leilão de Energia Nova892646"},"GUARANI I5","GUARANI TANABI",892646,151,417,"16º Leilão de Energia Nova","2018-25",{"$f":"COUNTIF(D:D,Tabela1[[#This Row],[CD_PARC_USIN]])","v":1}]
[{"$f":"Tabela1[[#This Row],[NM_LEIL]]&Tabela1[[#This Row],[CD_PARC_USIN]]","v":"10º Leilão de Energia Nova892762"},"ST CRUZ MNEGRO I5","PCH STA CRUZ MONTE N",892762,24,36,"10º Leilão de Energia Nova","2015-30",{"$f":"COUNTIF(D:D,Tabela1[[#This Row],[CD_PARC_USIN]])","v":1}]
[{"$f":"Tabela1[[#This Row],[NM_LEIL]]&Tabela1[[#This Row],[CD_PARC_USIN]]","v":"1º Leilão de Energia Nova892802"},"PETROB PIE 1LN","ELETROBOLT 13LEE",892802,5,10,"1º Leilão de Energia Nova","2009-15",{"$f":"COUNTIF(D:D,Tabela1[[#This Row],[CD_PARC_USIN]])","v":1}]
[{"$f":"Tabela1[[#This Row],[NM_LEIL]]&Tabela1[[#This Row],[CD_PARC_USIN]]","v":"1º Leilão de Energia Nova892822"},"PETROB PIE 1LN","TERMO CUBATAO 13LEE",892822,5,12,"1º Leilão de Energia Nova","2010-15",{"$f":"COUNTIF(D:D,Tabela1[[#This Row],[CD_PARC_USIN]])","v":1}]
[{"$f":"Tabela1[[#This Row],[NM_LEIL]]&Tabela1[[#This Row],[CD_PARC_USIN]]","v":"1º Leilão de Energia Nova892862"},"PETROB PIE 1LD","TERMORIO 13LEE",892862,5,12,"1º Leilão de Energia Nova","2010-15",{"$f":"COUNTIF(D:D,Tabela1[[#This Row],[CD_PARC_USIN]])","v":1}]
[{"$f":"Tabela1[[#This Row],[NM_LEIL]]&Tabela1[[#This Row],[CD_PARC_USIN]]","v":"1º Leilão de Energia Nova892863"},"PETROB PIE 1LN","TRES LAGOAS 13LEE",892863,5,10,"1º Leilão de Energia Nova","2009-15",{"$f":"COUNTIF(D:D,Tabela1[[#This Row],[CD_PARC_USIN]])","v":1}]
[{"$f":"Tabela1[[#This Row],[NM_LEIL]]&Tabela1[[#This Row],[CD_PARC_USIN]]","v":"18º Leilão de Energia Nova893022"},"ERB ARATINGA I5","ERB CANDEIAS",893022,154,422,"18º Leilão de Energia Nova","2018-25",{"$f":"COUNTIF(D:D,Tabela1[[#This Row],[CD_PARC_USIN]])","v":1}]
[{"$f":"Tabela1[[#This Row],[NM_LEIL]]&Tabela1[[#This Row],[CD_PARC_USIN]]","v":"10º Leilão de Energia Nova893062"},"FERREIRA GOMES","FERREIRA GOMES",893062,24,36,"10º Leilão de Energia Nova","2015-30",{"$f":"COUNTIF(D:D,Tabela1[[#This Row],[CD_PARC_USIN]])","v":1}]
[{"$f":"Tabela1[[#This Row],[NM_LEIL]]&Tabela1[[#This Row],[CD_PARC_USIN]]","v":"4º Leilão de Energia de Reserva893222"},"CARNAUBA I5","CARNAUBAS",893222,54,109,"4º Leilão de Energia de Reserva","2014-20",{"$f":"COUNTIF(D:D,Tabela1[[#This Row],[CD_PARC_USIN]])","v":1}]
[{"$f":"Tabela1[[#This Row],[NM_LEIL]]&Tabela1[[#This Row],[CD_PARC_USIN]]","v":"4º Leilão de Energia de Reserva893224"},"INDIOS I5","INDIOS 2",893224,54,109,"4º Leilão de Energia de Reserva","2014-20",{"$f":"COUNTIF(D:D,Tabela1[[#This Row],[CD_PARC_USIN]])","v":1}]
[{"$f":"Tabela1[[#This Row],[NM_LEIL]]&Tabela1[[#This Row],[CD_PARC_USIN]]","v":"4º Leilão de Energia de Reserva893225"},"ROSADA I5","ROSADA",893225,54,109,"4º Leilão de Energia de Reserva","2014-20",{"$f":"COUNTIF(D:D,Tabela1[[#This Row],[CD_PARC_USIN]])","v":1}]
[{"$f":"Tabela1[[#This Row],[NM_LEIL]]&Tabela1[[#This Row],[CD_PARC_USIN]]","v":"4º Leilão de Energia de Reserva893266"},"CARCARA I I5","CARCARA I",893266,54,109,"4º Leilão de Energia de Reserva","2014-20",{"$f":"COUNTIF(D:D,Tabela1[[#This Row],[CD_PARC_USIN]])","v":1}]
[{"$f":"Tabela1[[#This Row],[NM_LEIL]]&Tabela1[[#This Row],[CD_PARC_USIN]]","v":"4º Leilão de Energia de Reserva893282"},"ANGICAL I5","ANGICAL",893282,54,109,"4º Leilão de Energia de Reserva","2014-20",{"$f":"COUNTIF(D:D,Tabela1[[#This Row],[CD_PARC_USIN]])","v":1}]
[{"$f":"Tabela1[[#This Row],[NM_LEIL]]&Tabela1[[#This Row],[CD_PARC_USIN]]","v":"4º Leilão de Energia de Reserva893283"},"EOL BONSVENTOS I5","MALHADINHA 1",893283,54,109,"4º Leilão de Energia de Reserva","2014-20",{"$f":"COUNTIF(D:D,Tabela1[[#This Row],[CD_PARC_USIN]])","v":1}]
[{"$f":"Tabela1[[#This Row],[NM_LEIL]]&Tabela1[[#This Row],[CD_PARC_USIN]]","v":"4º Leilão de Energia de Reserva893302"},"SAO SEBASTIAO I5","VENTOS DE SEBASTIAO",893302,54,109,"4º Leilão de Energia de Reserva","2014-20",{"$f":"COUNTIF(D:D,Tabela1[[#This Row],[CD_PARC_USIN]])","v":1}]
[{"$f":"Tabela1[[#This Row],[NM_LEIL]]&Tabela1[[#This Row],[CD_PARC_USIN]]","v":"4º Leilão de Energia de Reserva893322"},"CAICARA 1 I5","CAICARA DO NORTE I",893322,54,109,"4º Leilão de Energia de Reserva","2014-20",{"$f":"COUNTIF(D:D,Tabela1[[#This Row],[CD_PARC_USIN]])","v":2}]
[{"$f":"Tabela1[[#This Row],[NM_LEIL]]&Tabela1[[#This Row],[CD_PARC_USIN]]","v":"7º Leilao de Energia Nova893322"},"CAICARA 1 I5","CAICARA DO NORTE I",893322,17,27,"7º Leilao de Energia Nova","2013-15",{"$f":"COUNTIF(D:D,Tabela1[[#This Row],[CD_PARC_USIN]])","v":2}]
[{"$f":"Tabela1[[#This Row],[NM_LEIL]]&Tabela1[[#This Row],[CD_PARC_USIN]]","v":"4º Leilão de Energia de Reserva893323"},"ADS ER CSIV I5","CORREDOR SENANDES IV",893323,54,109,"4º Leilão de Energia de Reserva","2014-20",{"$f":"COUNTIF(D:D,Tabela1[[#This Row],[CD_PARC_USIN]])","v":1}]
[{"$f":"Tabela1[[#This Row],[NM_LEIL]]&Tabela1[[#This Row],[CD_PARC_USIN]]","v":"4º Leilão de Energia de Reserva893324"},"COQUEIRINHO I5","COQUEIRINHO",893324,54,109,"4º Leilão de Energia de Reserva","2014-20",{"$f":"COUNTIF(D:D,Tabela1[[#This Row],[CD_PARC_USIN]])","v":1}]
[{"$f":"Tabela1[[#This Row],[NM_LEIL]]&Tabela1[[#This Row],[CD_PARC_USIN]]","v":"4º Leilão de Energia de Reserva893325"},"LANCHINHA I5","USRNLANCHI",893325,54,109,"4º Leilão de Energia de Reserva","2014-20",{"$f":"COUNTIF(D:D,Tabela1[[#This Row],[CD_PARC_USIN]])","v":1}]
[{"$f":"Tabela1[[#This Row],[NM_LEIL]]&Tabela1[[#This Row],[CD_PARC_USIN]]","v":"4º Leilão de Energia de Reserva893342"},"REDUTO I5","REDUTO",893342,54,109,"4º Leilão de Energia de Reserva","2014-20",{"$f":"COUNTIF(D:D,Tabela1[[#This Row],[CD_PARC_USIN]])","v":1}]
[{"$f":"Tabela1[[#This Row],[NM_LEIL]]&Tabela1[[#This Row],[CD_PARC_USIN]]","v":"4º Leilão de Energia de Reserva893343"},"SANTA ROSA EN I5","N VENTOS SANTA ROSA",893343,54,109,"4º Leilão de Energia de Reserva","2014-20",{"$f":"COUNTIF(D:D,Tabela1[[#This Row],[CD_PARC_USIN]])","v":1}]
[{"$f":"Tabela1[[#This Row],[NM_LEIL]]&Tabela1[[#This Row],[CD_PARC_USIN]]","v":"4º Leilão de Energia de Reserva893362"},"CAITITU I5","CAITITU",893362,54,109,"4º Leilão de Energia de Reserva","2014-20",{"$f":"COUNTIF(D:D,Tabela1[[#This Row],[CD_PARC_USIN]])","v":1}]
[{"$f":"Tabela1[[#This Row],[NM_LEIL]]&Tabela1[[#This Row],[CD_PARC_USIN]]","v":"4º Leilão de Energia de Reserva893363"},"INHAMBU I5","INHAMBU",893363,54,109,"4º Leilão de Energia de Reserva","2014-20",{"$f":"COUNTIF(D:D,Tabela1[[#This Row],[CD_PARC_USIN]])","v":1}]
[{"$f":"Tabela1[[#This Row],[NM_LEIL]]&Tabela1[[#This Row],[CD_PARC_USIN]]","v":"4º Leilão de Energia de Reserva893382"},"SAO JOAO I5","EOL SAO JOAO",893382,54,109,"4º Leilão de Energia de Reserva","2014-20",{"$f":"COUNTIF(D:D,Tabela1[[#This Row],[CD_PARC_USIN]])","v":1}]
[{"$f":"Tabela1[[#This Row],[NM_LEIL]]&Tabela1[[#This Row],[CD_PARC_USIN]]","v":"4º Leilão de Energia de Reserva893383"},"SAO GERALDO I5","VENTOS SAO GERALDO",893383,54,109,"4º Leilão de Energia de Reserva","2014-20",{"$f":"COUNTIF(D:D,Tabela1[[#This Row],[CD_PARC_USIN]])","v":1}]
[{"$f":"Tabela1[[#This Row],[NM_LEIL]]&Tabela1[[#This Row],[CD_PARC_USIN]]","v":"4º Leilão de Energia de Reserva893384"},"MIASSABA 4 I5","MIASSABA 4",893384,54,109,"4º Leilão de Energia de Reserva","2014-20",{"$f":"COUNTIF(D:D,Tabela1[[#This Row],[CD_PARC_USIN]])","v":1}]
[{"$f":"Tabela1[[#This Row],[NM_LEIL]]&Tabela1[[#This Row],[CD_PARC_USIN]]","v":"4º Leilão de Energia de Reserva893402"},"TAMANDUA I5","TAMANDUA MIRIM",893402,54,109,"4º Leilão de Energia de Reserva","2014-20",{"$f":"COUNTIF(D:D,Tabela1[[#This Row],[CD_PARC_USIN]])","v":1}]
[{"$f":"Tabela1[[#This Row],[NM_LEIL]]&Tabela1[[#This Row],[CD_PARC_USIN]]","v":"4º Leilão de Energia de Reserva893422"},"SANTAMARIA I5","SM (SANTA MARIA)",893422,54,109,"4º Leilão de Energia de Reserva","2014-20",{"$f":"COUNTIF(D:D,Tabela1[[#This Row],[CD_PARC_USIN]])","v":1}]
[{"$f":"Tabela1[[#This Row],[NM_LEIL]]&Tabela1[[#This Row],[CD_PARC_USIN]]","v":"4º Leilão de Energia de Reserva893423"},"CORRUPIAO I5","CORRUPIAO",893423,54,109,"4º Leilão de Energia de Reserva","2014-20",{"$f":"COUNTIF(D:D,Tabela1[[#This Row],[CD_PARC_USIN]])","v":1}]
[{"$f":"Tabela1[[#This Row],[NM_LEIL]]&Tabela1[[#This Row],[CD_PARC_USIN]]","v":"4º Leilão de Energia de Reserva893424"},"SANTAHELENA I5","SANTA HELENA",893424,54,109,"4º Leilão de Energia de Reserva","2014-20",{"$f":"COUNTIF(D:D,Tabela1[[#This Row],[CD_PARC_USIN]])","v":1}]
[{"$f":"Tabela1[[#This Row],[NM_LEIL]]&Tabela1[[#This Row],[CD_PARC_USIN]]","v":"4º Leilão de Energia de Reserva893425"},"SANTO INACIO I5","VENTOS DE SANTO INAC",893425,54,109,"4º Leilão de Energia de Reserva","2014-20",{"$f":"COUNTIF(D:D,Tabela1[[#This Row],[CD_PARC_USIN]])","v":1}]
[{"$f":"Tabela1[[#This Row],[NM_LEIL]]&Tabela1[[#This Row],[CD_PARC_USIN]]","v":"4º Leilão de Energia de Reserva893426"},"FAMOSA I I5","FAMOSA I",893426,54,109,"4º Leilão de Energia de Reserva","2014-20",{"$f":"COUNTIF(D:D,Tabela1[[#This Row],[CD_PARC_USIN]])","v":1}]
[{"$f":"Tabela1[[#This Row],[NM_LEIL]]&Tabela1[[#This Row],[CD_PARC_USIN]]","v":"4º Leilão de Energia de Reserva893427"},"SANTO CRISTO I5","SANTO CRISTO",893427,54,109,"4º Leilão de Energia de Reserva","2014-20",{"$f":"COUNTIF(D:D,Tabela1[[#This Row],[CD_PARC_USIN]])","v":1}]
[{"$f":"Tabela1[[#This Row],[NM_LEIL]]&Tabela1[[#This Row],[CD_PARC_USIN]]","v":"4º Leilão de Energia de Reserva893428"},"DESA URIEL I5","VENTOS DE STO URIEL",893428,54,109,"4º Leilão de Energia de Reserva","2014-20",{"$f":"COUNTIF(D:D,Tabela1[[#This Row],[CD_PARC_USIN]])","v":1}]
[{"$f":"Tabela1[[#This Row],[NM_LEIL]]&Tabela1[[#This Row],[CD_PARC_USIN]]","v":"4º Leilão de Energia de Reserva893442"},"ADS ER CSIII I5","CORREDOR SENANDES 3",893442,54,109,"4º Leilão de Energia de Reserva","2014-20",{"$f":"COUNTIF(D:D,Tabela1[[#This Row],[CD_PARC_USIN]])","v":1}]
[{"$f":"Tabela1[[#This Row],[NM_LEIL]]&Tabela1[[#This Row],[CD_PARC_USIN]]","v":"4º Leilão de Energia de Reserva893443"},"PAU BRASIL I5","PAU BRASIL",893443,54,109,"4º Leilão de Energia de Reserva","2014-20",{"$f":"COUNTIF(D:D,Tabela1[[#This Row],[CD_PARC_USIN]])","v":1}]
[{"$f":"Tabela1[[#This Row],[NM_LEIL]]&Tabela1[[#This Row],[CD_PARC_USIN]]","v":"4º Leilão de Energia de Reserva893444"},"ADS ER CS2 I5","CORREDOR SENANDES 2",893444,54,109,"4º Leilão de Energia de Reserva","2014-20",{"$f":"COUNTIF(D:D,Tabela1[[#This Row],[CD_PARC_USIN]])","v":1}]
[{"$f":"Tabela1[[#This Row],[NM_LEIL]]&Tabela1[[#This Row],[CD_PARC_USIN]]","v":"4º Leilão de Energia de Reserva893445"},"ADS ER VAI I5","VENTO ARAGANO I",893445,54,109,"4º Leilão de Energia de Reserva","2014-20",{"$f":"COUNTIF(D:D,Tabela1[[#This Row],[CD_PARC_USIN]])","v":1}]
[{"$f":"Tabela1[[#This Row],[NM_LEIL]]&Tabela1[[#This Row],[CD_PARC_USIN]]","v":"4º Leilão de Energia de Reserva893446"},"PARAISO I5","PARQUE EÓLICO PELADO",893446,54,109,"4º Leilão de Energia de Reserva","2014-20",{"$f":"COUNTIF(D:D,Tabela1[[#This Row],[CD_PARC_USIN]])","v":1}]
[{"$f":"Tabela1[[#This Row],[NM_LEIL]]&Tabela1[[#This Row],[CD_PARC_USIN]]","v":"4º Leilão de Energia de Reserva893462"},"TEIU I5","EÓLICA  TEIÚ ",893462,54,109,"4º Leilão de Energia de Reserva","2014-20",{"$f":"COUNTIF(D:D,Tabela1[[#This Row],[CD_PARC_USIN]])","v":1}]
[{"$f":"Tabela1[[#This Row],[NM_LEIL]]&Tabela1[[#This Row],[CD_PARC_USIN]]","v":"16º Leilão de Energia Nova893482"},"UTE AMANDINA PIE I5","AMANDINA",893482,151,417,"16º Leilão de Energia Nova","2018-25",{"$f":"COUNTIF(D:D,Tabela1[[#This Row],[CD_PARC_USIN]])","v":1}]
[{"$f":"Tabela1[[#This Row],[NM_LEIL]]&Tabela1[[#This Row],[CD_PARC_USIN]]","v":"4º Leilão de Energia de Reserva893762"},"CGE SAO PAULO I5","SAO PAULO EOL",893762,54,109,"4º Leilão de Energia de Reserva","2014-20",{"$f":"COUNTIF(D:D,Tabela1[[#This Row],[CD_PARC_USIN]])","v":1}]
[{"$f":"Tabela1[[#This Row],[NM_LEIL]]&Tabela1[[#This Row],[CD_PARC_USIN]]","v":"18º Leilão de Energia Nova893843"},"USANGELO I5","SANTO ANGELO - USA",893843,154,422,"18º Leilão de Energia Nova","2018-25",{"$f":"COUNTIF(D:D,Tabela1[[#This Row],[CD_PARC_USIN]])","v":1}]
[{"$f":"Tabela1[[#This Row],[NM_LEIL]]&Tabela1[[#This Row],[CD_PARC_USIN]]","v":"3º Leilão de Fontes Alternativas893923"},"PARDO TERMOELETRICA I5","R PARDO (P TERMOELE)",893923,162,445,"3º Leilão de Fontes Alternativas","2016-20",{"$f":"COUNTIF(D:D,Tabela1[[#This Row],[CD_PARC_USIN]])","v":1}]
[{"$f":"Tabela1[[#This Row],[NM_LEIL]]&Tabela1[[#This Row],[CD_PARC_USIN]]","v":"5º Leilão de Energia Reserva893943"},"ASSURUA II I5","ASSURUA 1 II ENERGIA",893943,152,418,"5º Leilão de Energia Reserva","2015-20",{"$f":"COUNTIF(D:D,Tabela1[[#This Row],[CD_PARC_USIN]])","v":1}]
[{"$f":"Tabela1[[#This Row],[NM_LEIL]]&Tabela1[[#This Row],[CD_PARC_USIN]]","v":"19º Leilão de Energia Nova894102"},"SANTO ANTONIO EXP","S. ANTONIO EXPANSAO",894102,158,436,"19º Leilão de Energia Nova","2017-30",{"$f":"COUNTIF(D:D,Tabela1[[#This Row],[CD_PARC_USIN]])","v":2}]
[{"$f":"Tabela1[[#This Row],[NM_LEIL]]&Tabela1[[#This Row],[CD_PARC_USIN]]","v":"1º Leilão de Projetos Estruturantes(UHE S Antonio)894102"},"SANTO ANTONIO EXP","S. ANTONIO EXPANSAO",894102,13,24,"1º Leilão de Projetos Estruturantes(UHE S Antonio)","2012-30",{"$f":"COUNTIF(D:D,Tabela1[[#This Row],[CD_PARC_USIN]])","v":2}]
[{"$f":"Tabela1[[#This Row],[NM_LEIL]]&Tabela1[[#This Row],[CD_PARC_USIN]]","v":"10º Leilão de Energia Nova894622"},"COPEL GET SE","COLÍDER",894622,24,36,"10º Leilão de Energia Nova","2015-30",{"$f":"COUNTIF(D:D,Tabela1[[#This Row],[CD_PARC_USIN]])","v":1}]
[{"$f":"Tabela1[[#This Row],[NM_LEIL]]&Tabela1[[#This Row],[CD_PARC_USIN]]","v":"10º Leilão de Energia Nova894623"},"PESA I5","PIRAPORA",894623,24,36,"10º Leilão de Energia Nova","2015-30",{"$f":"COUNTIF(D:D,Tabela1[[#This Row],[CD_PARC_USIN]])","v":1}]
[{"$f":"Tabela1[[#This Row],[NM_LEIL]]&Tabela1[[#This Row],[CD_PARC_USIN]]","v":"11º Leilão de Energia Nova894624"},"TELES PIRES","TELES PIRES",894624,26,40,"11º Leilão de Energia Nova","2015-30",{"$f":"COUNTIF(D:D,Tabela1[[#This Row],[CD_PARC_USIN]])","v":1}]
[{"$f":"Tabela1[[#This Row],[NM_LEIL]]&Tabela1[[#This Row],[CD_PARC_USIN]]","v":"10º Leilão de Energia Nova894625"},"CNAR I5","PCH CANAA",894625,24,36,"10º Leilão de Energia Nova","2015-30",{"$f":"COUNTIF(D:D,Tabela1[[#This Row],[CD_PARC_USIN]])","v":1}]
[{"$f":"Tabela1[[#This Row],[NM_LEIL]]&Tabela1[[#This Row],[CD_PARC_USIN]]","v":"10º Leilão de Energia Nova894626"},"JAMARI I5","PCH JAMARI",894626,24,36,"10º Leilão de Energia Nova","2015-30",{"$f":"COUNTIF(D:D,Tabela1[[#This Row],[CD_PARC_USIN]])","v":1}]
[{"$f":"Tabela1[[#This Row],[NM_LEIL]]&Tabela1[[#This Row],[CD_PARC_USIN]]","v":"3º Leilão de Projetos Estruturantes(UHE Belo Monte)894627"},"NESA","BELO MONTE",894627,23,35,"3º Leilão de Projetos Estruturantes(UHE Belo Monte)","2015-30",{"$f":"COUNTIF(D:D,Tabela1[[#This Row],[CD_PARC_USIN]])","v":1}]
[{"$f":"Tabela1[[#This Row],[NM_LEIL]]&Tabela1[[#This Row],[CD_PARC_USIN]]","v":"3º Leilão de Projetos Estruturantes(UHE Belo Monte)894628"},"NESA","BELO MONTE- PIMENTAL",894628,23,35,"3º Leilão de Projetos Estruturantes(UHE Belo Monte)","2015-30",{"$f":"COUNTIF(D:D,Tabela1[[#This Row],[CD_PARC_USIN]])","v":1}]
[{"$f":"Tabela1[[#This Row],[NM_LEIL]]&Tabela1[[#This Row],[CD_PARC_USIN]]","v":"18º Leilão de Energia Nova894642"},"PCH NOVA MUTUM I5","NOVA MUTUM",894642,154,421,"18º Leilão de Energia Nova","2018-30",{"$f":"COUNTIF(D:D,Tabela1[[#This Row],[CD_PARC_USIN]])","v":1}]
[{"$f":"Tabela1[[#This Row],[NM_LEIL]]&Tabela1[[#This Row],[CD_PARC_USIN]]","v":"10º Leilão de Energia Reserva894966"},"CGH INGA MIRIM I5","INGA MIRIM",894966,168,458,"10º Leilão de Energia Reserva","2020-30",{"$f":"COUNTIF(D:D,Tabela1[[#This Row],[CD_PARC_USIN]])","v":1}]
[{"$f":"Tabela1[[#This Row],[NM_LEIL]]&Tabela1[[#This Row],[CD_PARC_USIN]]","v":"21º Leilão de Energia Nova895043"},"UTE STA VITORIA JB I5","SANTA VITORIA",895043,161,443,"21º Leilão de Energia Nova","2020-25",{"$f":"COUNTIF(D:D,Tabela1[[#This Row],[CD_PARC_USIN]])","v":1}]
[{"$f":"Tabela1[[#This Row],[NM_LEIL]]&Tabela1[[#This Row],[CD_PARC_USIN]]","v":"3º Leilão de Energia de Reserva895103"},"INXU I5","INXU 3LER",895103,53,106,"3º Leilão de Energia de Reserva","2013-30",{"$f":"COUNTIF(D:D,Tabela1[[#This Row],[CD_PARC_USIN]])","v":1}]
[{"$f":"Tabela1[[#This Row],[NM_LEIL]]&Tabela1[[#This Row],[CD_PARC_USIN]]","v":"5º Leilão de Energia Reserva895130"},"CHESF R","ARAPAPA",895130,152,418,"5º Leilão de Energia Reserva","2015-20",{"$f":"COUNTIF(D:D,Tabela1[[#This Row],[CD_PARC_USIN]])","v":1}]
[{"$f":"Tabela1[[#This Row],[NM_LEIL]]&Tabela1[[#This Row],[CD_PARC_USIN]]","v":"18º Leilão de Energia Nova895149"},"UTE VISTA ALEGRE II I5","VISTA ALEGRE II",895149,154,422,"18º Leilão de Energia Nova","2018-25",{"$f":"COUNTIF(D:D,Tabela1[[#This Row],[CD_PARC_USIN]])","v":1}]
[{"$f":"Tabela1[[#This Row],[NM_LEIL]]&Tabela1[[#This Row],[CD_PARC_USIN]]","v":"18º Leilão de Energia Nova895154"},"PCH TAMBORIL I5","TAMBORIL",895154,154,421,"18º Leilão de Energia Nova","2018-30",{"$f":"COUNTIF(D:D,Tabela1[[#This Row],[CD_PARC_USIN]])","v":2}]
[{"$f":"Tabela1[[#This Row],[NM_LEIL]]&Tabela1[[#This Row],[CD_PARC_USIN]]","v":"23º Leilão de Energia Nova895154"},"PCH TAMBORIL I5","TAMBORIL",895154,167,457,"23º Leilão de Energia Nova","2021-30",{"$f":"COUNTIF(D:D,Tabela1[[#This Row],[CD_PARC_USIN]])","v":2}]
[{"$f":"Tabela1[[#This Row],[NM_LEIL]]&Tabela1[[#This Row],[CD_PARC_USIN]]","v":"17º Leilão de Energia Nova895282"},"VENTOS CURUPIRA","CURUPIRA",895282,155,424,"17º Leilão de Energia Nova","2016-20",{"$f":"COUNTIF(D:D,Tabela1[[#This Row],[CD_PARC_USIN]])","v":1}]
[{"$f":"Tabela1[[#This Row],[NM_LEIL]]&Tabela1[[#This Row],[CD_PARC_USIN]]","v":"17º Leilão de Energia Nova895301"},"ITAREMA I I5","ITAREMA I",895301,155,424,"17º Leilão de Energia Nova","2016-20",{"$f":"COUNTIF(D:D,Tabela1[[#This Row],[CD_PARC_USIN]])","v":1}]
[{"$f":"Tabela1[[#This Row],[NM_LEIL]]&Tabela1[[#This Row],[CD_PARC_USIN]]","v":"17º Leilão de Energia Nova895302"},"ITAREMA II I5","ITAREMA II",895302,155,424,"17º Leilão de Energia Nova","2016-20",{"$f":"COUNTIF(D:D,Tabela1[[#This Row],[CD_PARC_USIN]])","v":1}]
[{"$f":"Tabela1[[#This Row],[NM_LEIL]]&Tabela1[[#This Row],[CD_PARC_USIN]]","v":"17º Leilão de Energia Nova895303"},"VENTOS POVO","POVO NOVO",895303,155,424,"17º Leilão de Energia Nova","2016-20",{"$f":"COUNTIF(D:D,Tabela1[[#This Row],[CD_PARC_USIN]])","v":1}]
[{"$f":"Tabela1[[#This Row],[NM_LEIL]]&Tabela1[[#This Row],[CD_PARC_USIN]]","v":"17º Leilão de Energia Nova895304"},"ITAREMA V I5","ITAREMA V",895304,155,424,"17º Leilão de Energia Nova","2016-20",{"$f":"COUNTIF(D:D,Tabela1[[#This Row],[CD_PARC_USIN]])","v":1}]
[{"$f":"Tabela1[[#This Row],[NM_LEIL]]&Tabela1[[#This Row],[CD_PARC_USIN]]","v":"17º Leilão de Energia Nova895305"},"VENTOS VERA","FAZENDA VERA CRUZ",895305,155,424,"17º Leilão de Energia Nova","2016-20",{"$f":"COUNTIF(D:D,Tabela1[[#This Row],[CD_PARC_USIN]])","v":1}]
[{"$f":"Tabela1[[#This Row],[NM_LEIL]]&Tabela1[[#This Row],[CD_PARC_USIN]]","v":"1º Leilão de Energia Nova895581"},"PETROBRAS PIE","TERMOCEARA 3466",895581,5,10,"1º Leilão de Energia Nova","2009-15",{"$f":"COUNTIF(D:D,Tabela1[[#This Row],[CD_PARC_USIN]])","v":2}]
[{"$f":"Tabela1[[#This Row],[NM_LEIL]]&Tabela1[[#This Row],[CD_PARC_USIN]]","v":"1º Leilão de Energia Nova895581"},"PETROBRAS PIE","TERMOCEARA 3466",895581,5,12,"1º Leilão de Energia Nova","2010-15",{"$f":"COUNTIF(D:D,Tabela1[[#This Row],[CD_PARC_USIN]])","v":2}]
[{"$f":"Tabela1[[#This Row],[NM_LEIL]]&Tabela1[[#This Row],[CD_PARC_USIN]]","v":"16º Leilão de Energia Nova895701"},"GUARANI I5","GUARANI TANABI 2",895701,151,417,"16º Leilão de Energia Nova","2018-25",{"$f":"COUNTIF(D:D,Tabela1[[#This Row],[CD_PARC_USIN]])","v":1}]
[{"$f":"Tabela1[[#This Row],[NM_LEIL]]&Tabela1[[#This Row],[CD_PARC_USIN]]","v":"5º Leilão de Energia Reserva895942"},"SANTAJOANA X I5","VENTOS STA JOANA X",895942,152,418,"5º Leilão de Energia Reserva","2015-20",{"$f":"COUNTIF(D:D,Tabela1[[#This Row],[CD_PARC_USIN]])","v":1}]
[{"$f":"Tabela1[[#This Row],[NM_LEIL]]&Tabela1[[#This Row],[CD_PARC_USIN]]","v":"5º Leilão de Energia Reserva896025"},"SANTAJOANA XII I5","SANTA JOANA XII",896025,152,418,"5º Leilão de Energia Reserva","2015-20",{"$f":"COUNTIF(D:D,Tabela1[[#This Row],[CD_PARC_USIN]])","v":1}]
[{"$f":"Tabela1[[#This Row],[NM_LEIL]]&Tabela1[[#This Row],[CD_PARC_USIN]]","v":"5º Leilão de Energia Reserva896026"},"SANTAJOANA XIII I5","VENTOS ST JOANA XIII",896026,152,418,"5º Leilão de Energia Reserva","2015-20",{"$f":"COUNTIF(D:D,Tabela1[[#This Row],[CD_PARC_USIN]])","v":1}]
[{"$f":"Tabela1[[#This Row],[NM_LEIL]]&Tabela1[[#This Row],[CD_PARC_USIN]]","v":"5º Leilão de Energia Reserva896044"},"SANTAJOANA XI I5","SANTA JOANA XI",896044,152,418,"5º Leilão de Energia Reserva","2015-20",{"$f":"COUNTIF(D:D,Tabela1[[#This Row],[CD_PARC_USIN]])","v":1}]
[{"$f":"Tabela1[[#This Row],[NM_LEIL]]&Tabela1[[#This Row],[CD_PARC_USIN]]","v":"5º Leilão de Energia Reserva896087"},"SANTAJOANA XV I5","SANTA JOANA XV",896087,152,418,"5º Leilão de Energia Reserva","2015-20",{"$f":"COUNTIF(D:D,Tabela1[[#This Row],[CD_PARC_USIN]])","v":1}]
[{"$f":"Tabela1[[#This Row],[NM_LEIL]]&Tabela1[[#This Row],[CD_PARC_USIN]]","v":"5º Leilão de Energia Reserva896089"},"SANTAJOANA XVI I5","SANTA JOANA XVI",896089,152,418,"5º Leilão de Energia Reserva","2015-20",{"$f":"COUNTIF(D:D,Tabela1[[#This Row],[CD_PARC_USIN]])","v":1}]
[{"$f":"Tabela1[[#This Row],[NM_LEIL]]&Tabela1[[#This Row],[CD_PARC_USIN]]","v":"22º Leilão de Energia Nova896124"},"XAVANTINA I5","XAVANTINA",896124,164,450,"22º Leilão de Energia Nova","2018-30",{"$f":"COUNTIF(D:D,Tabela1[[#This Row],[CD_PARC_USIN]])","v":1}]
[{"$f":"Tabela1[[#This Row],[NM_LEIL]]&Tabela1[[#This Row],[CD_PARC_USIN]]","v":"5º Leilão de Energia Reserva896246"},"CAETITE A I5","CAETITE A",896246,152,418,"5º Leilão de Energia Reserva","2015-20",{"$f":"COUNTIF(D:D,Tabela1[[#This Row],[CD_PARC_USIN]])","v":1}]
[{"$f":"Tabela1[[#This Row],[NM_LEIL]]&Tabela1[[#This Row],[CD_PARC_USIN]]","v":"5º Leilão de Energia Reserva896247"},"CAETITE B I5","CAETITE B",896247,152,418,"5º Leilão de Energia Reserva","2015-20",{"$f":"COUNTIF(D:D,Tabela1[[#This Row],[CD_PARC_USIN]])","v":1}]
[{"$f":"Tabela1[[#This Row],[NM_LEIL]]&Tabela1[[#This Row],[CD_PARC_USIN]]","v":"5º Leilão de Energia Reserva896248"},"MUSSAMBE I5","MUSSAMBE",896248,152,418,"5º Leilão de Energia Reserva","2015-20",{"$f":"COUNTIF(D:D,Tabela1[[#This Row],[CD_PARC_USIN]])","v":1}]
[{"$f":"Tabela1[[#This Row],[NM_LEIL]]&Tabela1[[#This Row],[CD_PARC_USIN]]","v":"17º Leilão de Energia Nova896264"},"CAETITE C I5","CAETITE C",896264,155,424,"17º Leilão de Energia Nova","2016-20",{"$f":"COUNTIF(D:D,Tabela1[[#This Row],[CD_PARC_USIN]])","v":1}]
[{"$f":"Tabela1[[#This Row],[NM_LEIL]]&Tabela1[[#This Row],[CD_PARC_USIN]]","v":"5º Leilão de Energia Reserva896284"},"MBRANCO1 I5","MORRO BRANCO I",896284,152,418,"5º Leilão de Energia Reserva","2015-20",{"$f":"COUNTIF(D:D,Tabela1[[#This Row],[CD_PARC_USIN]])","v":1}]
[{"$f":"Tabela1[[#This Row],[NM_LEIL]]&Tabela1[[#This Row],[CD_PARC_USIN]]","v":"17º Leilão de Energia Nova896306"},"OD15 I5","CHUI IX",896306,155,424,"17º Leilão de Energia Nova","2016-20",{"$f":"COUNTIF(D:D,Tabela1[[#This Row],[CD_PARC_USIN]])","v":1}]
[{"$f":"Tabela1[[#This Row],[NM_LEIL]]&Tabela1[[#This Row],[CD_PARC_USIN]]","v":"5º Leilão de Energia Reserva896344"},"SANTAJOANA IX I5","SANTA JOANA IX",896344,152,418,"5º Leilão de Energia Reserva","2015-20",{"$f":"COUNTIF(D:D,Tabela1[[#This Row],[CD_PARC_USIN]])","v":1}]
[{"$f":"Tabela1[[#This Row],[NM_LEIL]]&Tabela1[[#This Row],[CD_PARC_USIN]]","v":"5º Leilão de Energia Reserva896347"},"BARAUNAS1 I5","BARAUNAS I",896347,152,418,"5º Leilão de Energia Reserva","2015-20",{"$f":"COUNTIF(D:D,Tabela1[[#This Row],[CD_PARC_USIN]])","v":1}]
[{"$f":"Tabela1[[#This Row],[NM_LEIL]]&Tabela1[[#This Row],[CD_PARC_USIN]]","v":"5º Leilão de Energia Reserva896464"},"BOM JESUS","BOM JESUS",896464,152,418,"5º Leilão de Energia Reserva","2015-20",{"$f":"COUNTIF(D:D,Tabela1[[#This Row],[CD_PARC_USIN]])","v":1}]
[{"$f":"Tabela1[[#This Row],[NM_LEIL]]&Tabela1[[#This Row],[CD_PARC_USIN]]","v":"5º Leilão de Energia Reserva896465"},"CACHOEIRA","CACHOEIRA (CACHO)",896465,152,418,"5º Leilão de Energia Reserva","2015-20",{"$f":"COUNTIF(D:D,Tabela1[[#This Row],[CD_PARC_USIN]])","v":1}]
[{"$f":"Tabela1[[#This Row],[NM_LEIL]]&Tabela1[[#This Row],[CD_PARC_USIN]]","v":"5º Leilão de Energia Reserva896466"},"CARNAUBA II","CARNAÚBA II",896466,152,418,"5º Leilão de Energia Reserva","2015-20",{"$f":"COUNTIF(D:D,Tabela1[[#This Row],[CD_PARC_USIN]])","v":1}]
[{"$f":"Tabela1[[#This Row],[NM_LEIL]]&Tabela1[[#This Row],[CD_PARC_USIN]]","v":"5º Leilão de Energia Reserva896467"},"DAMASCENA EOLICA I5","DAMASCENA",896467,152,418,"5º Leilão de Energia Reserva","2015-20",{"$f":"COUNTIF(D:D,Tabela1[[#This Row],[CD_PARC_USIN]])","v":1}]
[{"$f":"Tabela1[[#This Row],[NM_LEIL]]&Tabela1[[#This Row],[CD_PARC_USIN]]","v":"5º Leilão de Energia Reserva896468"},"ESPERANCA EOLICA I5","EOL ESPERANCA",896468,152,418,"5º Leilão de Energia Reserva","2015-20",{"$f":"COUNTIF(D:D,Tabela1[[#This Row],[CD_PARC_USIN]])","v":1}]
[{"$f":"Tabela1[[#This Row],[NM_LEIL]]&Tabela1[[#This Row],[CD_PARC_USIN]]","v":"5º Leilão de Energia Reserva896469"},"MANICOBA EOLICA I5","MANICOBA",896469,152,418,"5º Leilão de Energia Reserva","2015-20",{"$f":"COUNTIF(D:D,Tabela1[[#This Row],[CD_PARC_USIN]])","v":1}]
[{"$f":"Tabela1[[#This Row],[NM_LEIL]]&Tabela1[[#This Row],[CD_PARC_USIN]]","v":"5º Leilão de Energia Reserva896470"},"MBRANCO1 I5","Morro Branco I",896470,152,418,"5º Leilão de Energia Reserva","2015-20",{"$f":"COUNTIF(D:D,Tabela1[[#This Row],[CD_PARC_USIN]])","v":1}]
[{"$f":"Tabela1[[#This Row],[NM_LEIL]]&Tabela1[[#This Row],[CD_PARC_USIN]]","v":"5º Leilão de Energia Reserva896471"},"MUSSAMBE","Mussambê",896471,152,418,"5º Leilão de Energia Reserva","2015-20",{"$f":"COUNTIF(D:D,Tabela1[[#This Row],[CD_PARC_USIN]])","v":1}]
[{"$f":"Tabela1[[#This Row],[NM_LEIL]]&Tabela1[[#This Row],[CD_PARC_USIN]]","v":"5º Leilão de Energia Reserva896472"},"PITIMBU","PITIMBU",896472,152,418,"5º Leilão de Energia Reserva","2015-20",{"$f":"COUNTIF(D:D,Tabela1[[#This Row],[CD_PARC_USIN]])","v":1}]
[{"$f":"Tabela1[[#This Row],[NM_LEIL]]&Tabela1[[#This Row],[CD_PARC_USIN]]","v":"5º Leilão de Energia Reserva896473"},"SAO CAETANO","SÃO CAETANO",896473,152,418,"5º Leilão de Energia Reserva","2015-20",{"$f":"COUNTIF(D:D,Tabela1[[#This Row],[CD_PARC_USIN]])","v":1}]
[{"$f":"Tabela1[[#This Row],[NM_LEIL]]&Tabela1[[#This Row],[CD_PARC_USIN]]","v":"5º Leilão de Energia Reserva896474"},"SAO CAETANO I","SÃO CAETANO I",896474,152,418,"5º Leilão de Energia Reserva","2015-20",{"$f":"COUNTIF(D:D,Tabela1[[#This Row],[CD_PARC_USIN]])","v":1}]
[{"$f":"Tabela1[[#This Row],[NM_LEIL]]&Tabela1[[#This Row],[CD_PARC_USIN]]","v":"5º Leilão de Energia Reserva896475"},"SAO GALVAO","SÃO GALVÃO",896475,152,418,"5º Leilão de Energia Reserva","2015-20",{"$f":"COUNTIF(D:D,Tabela1[[#This Row],[CD_PARC_USIN]])","v":1}]
[{"$f":"Tabela1[[#This Row],[NM_LEIL]]&Tabela1[[#This Row],[CD_PARC_USIN]]","v":"5º Leilão de Energia Reserva896476"},"CARNAUBA I","CARNAÚBA I",896476,152,418,"5º Leilão de Energia Reserva","2015-20",{"$f":"COUNTIF(D:D,Tabela1[[#This Row],[CD_PARC_USIN]])","v":1}]
[{"$f":"Tabela1[[#This Row],[NM_LEIL]]&Tabela1[[#This Row],[CD_PARC_USIN]]","v":"5º Leilão de Energia Reserva896477"},"CARNAUBA III","CARNAÚBA III",896477,152,418,"5º Leilão de Energia Reserva","2015-20",{"$f":"COUNTIF(D:D,Tabela1[[#This Row],[CD_PARC_USIN]])","v":1}]
[{"$f":"Tabela1[[#This Row],[NM_LEIL]]&Tabela1[[#This Row],[CD_PARC_USIN]]","v":"5º Leilão de Energia Reserva896478"},"CARNAUBA V","Carnaúba V",896478,152,418,"5º Leilão de Energia Reserva","2015-20",{"$f":"COUNTIF(D:D,Tabela1[[#This Row],[CD_PARC_USIN]])","v":1}]
[{"$f":"Tabela1[[#This Row],[NM_LEIL]]&Tabela1[[#This Row],[CD_PARC_USIN]]","v":"5º Leilão de Energia Reserva896479"},"CERVANTES I","Cervantes I",896479,152,418,"5º Leilão de Energia Reserva","2015-20",{"$f":"COUNTIF(D:D,Tabela1[[#This Row],[CD_PARC_USIN]])","v":1}]
[{"$f":"Tabela1[[#This Row],[NM_LEIL]]&Tabela1[[#This Row],[CD_PARC_USIN]]","v":"5º Leilão de Energia Reserva896480"},"CERVANTES II","CERVANTES II",896480,152,418,"5º Leilão de Energia Reserva","2015-20",{"$f":"COUNTIF(D:D,Tabela1[[#This Row],[CD_PARC_USIN]])","v":1}]
[{"$f":"Tabela1[[#This Row],[NM_LEIL]]&Tabela1[[#This Row],[CD_PARC_USIN]]","v":"5º Leilão de Energia Reserva896481"},"PUNAU I","PUNAÚ I",896481,152,418,"5º Leilão de Energia Reserva","2015-20",{"$f":"COUNTIF(D:D,Tabela1[[#This Row],[CD_PARC_USIN]])","v":1}]
[{"$f":"Tabela1[[#This Row],[NM_LEIL]]&Tabela1[[#This Row],[CD_PARC_USIN]]","v":"5º Leilão de Energia Reserva896482"},"CABO VERDE III","Cabo Verde 4",896482,152,418,"5º Leilão de Energia Reserva","2015-20",{"$f":"COUNTIF(D:D,Tabela1[[#This Row],[CD_PARC_USIN]])","v":1}]
[{"$f":"Tabela1[[#This Row],[NM_LEIL]]&Tabela1[[#This Row],[CD_PARC_USIN]]","v":"5º Leilão de Energia Reserva896483"},"CABO VERDE III","Cabo Verde 5",896483,152,418,"5º Leilão de Energia Reserva","2015-20",{"$f":"COUNTIF(D:D,Tabela1[[#This Row],[CD_PARC_USIN]])","v":1}]
[{"$f":"Tabela1[[#This Row],[NM_LEIL]]&Tabela1[[#This Row],[CD_PARC_USIN]]","v":"5º Leilão de Energia Reserva896484"},"GRANJA VARGAS II","Granja Vargas 2",896484,152,418,"5º Leilão de Energia Reserva","2015-20",{"$f":"COUNTIF(D:D,Tabela1[[#This Row],[CD_PARC_USIN]])","v":1}]
[{"$f":"Tabela1[[#This Row],[NM_LEIL]]&Tabela1[[#This Row],[CD_PARC_USIN]]","v":"5º Leilão de Energia Reserva896485"},"GRANJA VARGAS II","Granja Vargas 3",896485,152,418,"5º Leilão de Energia Reserva","2015-20",{"$f":"COUNTIF(D:D,Tabela1[[#This Row],[CD_PARC_USIN]])","v":1}]
[{"$f":"Tabela1[[#This Row],[NM_LEIL]]&Tabela1[[#This Row],[CD_PARC_USIN]]","v":"5º Leilão de Energia Reserva896524"},"VENTOS DE SANTO ONOFRE III I5","SANTO ONOFRE III",896524,152,418,"5º Leilão de Energia Reserva","2015-20",{"$f":"COUNTIF(D:D,Tabela1[[#This Row],[CD_PARC_USIN]])","v":1}]
[{"$f":"Tabela1[[#This Row],[NM_LEIL]]&Tabela1[[#This Row],[CD_PARC_USIN]]","v":"5º Leilão de Energia Reserva896525"},"VENTOS DE SANTO ONOFRE II I5","SANTO ONOFRE II",896525,152,418,"5º Leilão de Energia Reserva","2015-20",{"$f":"COUNTIF(D:D,Tabela1[[#This Row],[CD_PARC_USIN]])","v":1}]
[{"$f":"Tabela1[[#This Row],[NM_LEIL]]&Tabela1[[#This Row],[CD_PARC_USIN]]","v":"5º Leilão de Energia Reserva896526"},"VENTOS DE SANTA JOANA VIII I5","SANTA JOANA VIII",896526,152,418,"5º Leilão de Energia Reserva","2015-20",{"$f":"COUNTIF(D:D,Tabela1[[#This Row],[CD_PARC_USIN]])","v":1}]
[{"$f":"Tabela1[[#This Row],[NM_LEIL]]&Tabela1[[#This Row],[CD_PARC_USIN]]","v":"5º Leilão de Energia Reserva896527"},"VENTOS DE SANTA JOANA VI I5","SANTA JOANA VI",896527,152,418,"5º Leilão de Energia Reserva","2015-20",{"$f":"COUNTIF(D:D,Tabela1[[#This Row],[CD_PARC_USIN]])","v":1}]
[{"$f":"Tabela1[[#This Row],[NM_LEIL]]&Tabela1[[#This Row],[CD_PARC_USIN]]","v":"5º Leilão de Energia Reserva896528"},"VENTOS DE SANTA JOANA II I5","SANTA JOANA II",896528,152,418,"5º Leilão de Energia Reserva","2015-20",{"$f":"COUNTIF(D:D,Tabela1[[#This Row],[CD_PARC_USIN]])","v":1}]
[{"$f":"Tabela1[[#This Row],[NM_LEIL]]&Tabela1[[#This Row],[CD_PARC_USIN]]","v":"5º Leilão de Energia Reserva896544"},"VENTOS DE SANTA BRIGIDA I I5","SANTA BRIGIDA I",896544,152,418,"5º Leilão de Energia Reserva","2015-20",{"$f":"COUNTIF(D:D,Tabela1[[#This Row],[CD_PARC_USIN]])","v":1}]
[{"$f":"Tabela1[[#This Row],[NM_LEIL]]&Tabela1[[#This Row],[CD_PARC_USIN]]","v":"5º Leilão de Energia Reserva896545"},"VENTOS DE SANTO ONOFRE I I5","SANTO ONOFRE 1",896545,152,418,"5º Leilão de Energia Reserva","2015-20",{"$f":"COUNTIF(D:D,Tabela1[[#This Row],[CD_PARC_USIN]])","v":1}]
[{"$f":"Tabela1[[#This Row],[NM_LEIL]]&Tabela1[[#This Row],[CD_PARC_USIN]]","v":"5º Leilão de Energia Reserva896546"},"VENTOS DE SANTA JOANA XIV I5","SANTA JOANA XIV",896546,152,418,"5º Leilão de Energia Reserva","2015-20",{"$f":"COUNTIF(D:D,Tabela1[[#This Row],[CD_PARC_USIN]])","v":1}]
[{"$f":"Tabela1[[#This Row],[NM_LEIL]]&Tabela1[[#This Row],[CD_PARC_USIN]]","v":"5º Leilão de Energia Reserva896547"},"VENTOS DE SANTA BRIGIDA II I5","SANTA BRIGIDA II",896547,152,418,"5º Leilão de Energia Reserva","2015-20",{"$f":"COUNTIF(D:D,Tabela1[[#This Row],[CD_PARC_USIN]])","v":1}]
[{"$f":"Tabela1[[#This Row],[NM_LEIL]]&Tabela1[[#This Row],[CD_PARC_USIN]]","v":"5º Leilão de Energia Reserva896548"},"VENTOS DE SANTA BRIGIDA III I5","SANTA BRIGIDA III",896548,152,418,"5º Leilão de Energia Reserva","2015-20",{"$f":"COUNTIF(D:D,Tabela1[[#This Row],[CD_PARC_USIN]])","v":1}]
[{"$f":"Tabela1[[#This Row],[NM_LEIL]]&Tabela1[[#This Row],[CD_PARC_USIN]]","v":"5º Leilão de Energia Reserva896549"},"VENTOS DE SANTA BRIGIDA IV I5","SANTA BRIGIDA IV",896549,152,418,"5º Leilão de Energia Reserva","2015-20",{"$f":"COUNTIF(D:D,Tabela1[[#This Row],[CD_PARC_USIN]])","v":1}]
[{"$f":"Tabela1[[#This Row],[NM_LEIL]]&Tabela1[[#This Row],[CD_PARC_USIN]]","v":"5º Leilão de Energia Reserva896550"},"VENTOS DE SANTA BRIGIDA V I5","SANTA BRIGIDA 5",896550,152,418,"5º Leilão de Energia Reserva","2015-20",{"$f":"COUNTIF(D:D,Tabela1[[#This Row],[CD_PARC_USIN]])","v":1}]
[{"$f":"Tabela1[[#This Row],[NM_LEIL]]&Tabela1[[#This Row],[CD_PARC_USIN]]","v":"5º Leilão de Energia Reserva896551"},"VENTOS DE SANTA BRIGIDA VII I5","SANTA BRIGIDA VII",896551,152,418,"5º Leilão de Energia Reserva","2015-20",{"$f":"COUNTIF(D:D,Tabela1[[#This Row],[CD_PARC_USIN]])","v":1}]
[{"$f":"Tabela1[[#This Row],[NM_LEIL]]&Tabela1[[#This Row],[CD_PARC_USIN]]","v":"5º Leilão de Energia Reserva896552"},"ASSURUA V I5","ASSURUA 1 I ENERGIA ",896552,152,418,"5º Leilão de Energia Reserva","2015-20",{"$f":"COUNTIF(D:D,Tabela1[[#This Row],[CD_PARC_USIN]])","v":1}]
[{"$f":"Tabela1[[#This Row],[NM_LEIL]]&Tabela1[[#This Row],[CD_PARC_USIN]]","v":"5º Leilão de Energia Reserva896553"},"ASSURUA VII I5","ASSURUA VII",896553,152,418,"5º Leilão de Energia Reserva","2015-20",{"$f":"COUNTIF(D:D,Tabela1[[#This Row],[CD_PARC_USIN]])","v":1}]
[{"$f":"Tabela1[[#This Row],[NM_LEIL]]&Tabela1[[#This Row],[CD_PARC_USIN]]","v":"18º Leilão de Energia Nova896554"},"PGE I5","PCH PITO",896554,154,421,"18º Leilão de Energia Nova","2018-30",{"$f":"COUNTIF(D:D,Tabela1[[#This Row],[CD_PARC_USIN]])","v":1}]
[{"$f":"Tabela1[[#This Row],[NM_LEIL]]&Tabela1[[#This Row],[CD_PARC_USIN]]","v":"5º Leilão de Energia Reserva896555"},"CHESF R","CAITITU 2",896555,152,418,"5º Leilão de Energia Reserva","2015-20",{"$f":"COUNTIF(D:D,Tabela1[[#This Row],[CD_PARC_USIN]])","v":1}]
[{"$f":"Tabela1[[#This Row],[NM_LEIL]]&Tabela1[[#This Row],[CD_PARC_USIN]]","v":"5º Leilão de Energia Reserva896556"},"CHESF R","CAITITU 3",896556,152,418,"5º Leilão de Energia Reserva","2015-20",{"$f":"COUNTIF(D:D,Tabela1[[#This Row],[CD_PARC_USIN]])","v":1}]
[{"$f":"Tabela1[[#This Row],[NM_LEIL]]&Tabela1[[#This Row],[CD_PARC_USIN]]","v":"5º Leilão de Energia Reserva896557"},"CHESF R","CARCARA",896557,152,418,"5º Leilão de Energia Reserva","2015-20",{"$f":"COUNTIF(D:D,Tabela1[[#This Row],[CD_PARC_USIN]])","v":1}]
[{"$f":"Tabela1[[#This Row],[NM_LEIL]]&Tabela1[[#This Row],[CD_PARC_USIN]]","v":"5º Leilão de Energia Reserva896558"},"UEE TABUA I5","TABUA",896558,152,418,"5º Leilão de Energia Reserva","2015-20",{"$f":"COUNTIF(D:D,Tabela1[[#This Row],[CD_PARC_USIN]])","v":1}]
[{"$f":"Tabela1[[#This Row],[NM_LEIL]]&Tabela1[[#This Row],[CD_PARC_USIN]]","v":"5º Leilão de Energia Reserva896560"},"UEE ANGICO I5","ANGICO ",896560,152,418,"5º Leilão de Energia Reserva","2015-20",{"$f":"COUNTIF(D:D,Tabela1[[#This Row],[CD_PARC_USIN]])","v":1}]
[{"$f":"Tabela1[[#This Row],[NM_LEIL]]&Tabela1[[#This Row],[CD_PARC_USIN]]","v":"5º Leilão de Energia Reserva896564"},"VENTOS DE SANTA BRIGIDA VI I5","SANTA BRIGIDA VI",896564,152,418,"5º Leilão de Energia Reserva","2015-20",{"$f":"COUNTIF(D:D,Tabela1[[#This Row],[CD_PARC_USIN]])","v":1}]
[{"$f":"Tabela1[[#This Row],[NM_LEIL]]&Tabela1[[#This Row],[CD_PARC_USIN]]","v":"5º Leilão de Energia Reserva896585"},"CHESF R","ACAUA",896585,152,418,"5º Leilão de Energia Reserva","2015-20",{"$f":"COUNTIF(D:D,Tabela1[[#This Row],[CD_PARC_USIN]])","v":1}]
[{"$f":"Tabela1[[#This Row],[NM_LEIL]]&Tabela1[[#This Row],[CD_PARC_USIN]]","v":"5º Leilão de Energia Reserva896586"},"CHESF R","ANGICAL 2",896586,152,418,"5º Leilão de Energia Reserva","2015-20",{"$f":"COUNTIF(D:D,Tabela1[[#This Row],[CD_PARC_USIN]])","v":1}]
[{"$f":"Tabela1[[#This Row],[NM_LEIL]]&Tabela1[[#This Row],[CD_PARC_USIN]]","v":"5º Leilão de Energia Reserva896587"},"UEE VAQUETA I5","VAQUETA",896587,152,418,"5º Leilão de Energia Reserva","2015-20",{"$f":"COUNTIF(D:D,Tabela1[[#This Row],[CD_PARC_USIN]])","v":1}]
[{"$f":"Tabela1[[#This Row],[NM_LEIL]]&Tabela1[[#This Row],[CD_PARC_USIN]]","v":"5º Leilão de Energia Reserva896588"},"CHESF R","CORRUPIAO 3",896588,152,418,"5º Leilão de Energia Reserva","2015-20",{"$f":"COUNTIF(D:D,Tabela1[[#This Row],[CD_PARC_USIN]])","v":1}]
[{"$f":"Tabela1[[#This Row],[NM_LEIL]]&Tabela1[[#This Row],[CD_PARC_USIN]]","v":"5º Leilão de Energia Reserva896589"},"UEE TABOQUINHA I5","TABOQUINHA",896589,152,418,"5º Leilão de Energia Reserva","2015-20",{"$f":"COUNTIF(D:D,Tabela1[[#This Row],[CD_PARC_USIN]])","v":1}]
[{"$f":"Tabela1[[#This Row],[NM_LEIL]]&Tabela1[[#This Row],[CD_PARC_USIN]]","v":"5º Leilão de Energia Reserva896590"},"UEE JACARANDA I5","JACARANDA DO CERRADO",896590,152,418,"5º Leilão de Energia Reserva","2015-20",{"$f":"COUNTIF(D:D,Tabela1[[#This Row],[CD_PARC_USIN]])","v":1}]
[{"$f":"Tabela1[[#This Row],[NM_LEIL]]&Tabela1[[#This Row],[CD_PARC_USIN]]","v":"5º Leilão de Energia Reserva896591"},"CHESF R","TEIU 2",896591,152,418,"5º Leilão de Energia Reserva","2015-20",{"$f":"COUNTIF(D:D,Tabela1[[#This Row],[CD_PARC_USIN]])","v":1}]
[{"$f":"Tabela1[[#This Row],[NM_LEIL]]&Tabela1[[#This Row],[CD_PARC_USIN]]","v":"5º Leilão de Energia Reserva896592"},"UEE JABUTICABA I5"," JABUTICABA",896592,152,418,"5º Leilão de Energia Reserva","2015-20",{"$f":"COUNTIF(D:D,Tabela1[[#This Row],[CD_PARC_USIN]])","v":1}]
[{"$f":"Tabela1[[#This Row],[NM_LEIL]]&Tabela1[[#This Row],[CD_PARC_USIN]]","v":"5º Leilão de Energia Reserva896593"},"UEE ABIL I5","ABIL",896593,152,418,"5º Leilão de Energia Reserva","2015-20",{"$f":"COUNTIF(D:D,Tabela1[[#This Row],[CD_PARC_USIN]])","v":1}]
[{"$f":"Tabela1[[#This Row],[NM_LEIL]]&Tabela1[[#This Row],[CD_PARC_USIN]]","v":"5º Leilão de Energia Reserva896594"},"UEE FOLHA I5","FOLHA DA SERRA ",896594,152,418,"5º Leilão de Energia Reserva","2015-20",{"$f":"COUNTIF(D:D,Tabela1[[#This Row],[CD_PARC_USIN]])","v":1}]
[{"$f":"Tabela1[[#This Row],[NM_LEIL]]&Tabela1[[#This Row],[CD_PARC_USIN]]","v":"5º Leilão de Energia Reserva896595"},"UEE ACACIA I5","ACACIA",896595,152,418,"5º Leilão de Energia Reserva","2015-20",{"$f":"COUNTIF(D:D,Tabela1[[#This Row],[CD_PARC_USIN]])","v":1}]
[{"$f":"Tabela1[[#This Row],[NM_LEIL]]&Tabela1[[#This Row],[CD_PARC_USIN]]","v":"17º Leilão de Energia Nova896785"},"CGTESUL_I5","CAPAO DO INGLES",896785,155,424,"17º Leilão de Energia Nova","2016-20",{"$f":"COUNTIF(D:D,Tabela1[[#This Row],[CD_PARC_USIN]])","v":1}]
[{"$f":"Tabela1[[#This Row],[NM_LEIL]]&Tabela1[[#This Row],[CD_PARC_USIN]]","v":"17º Leilão de Energia Nova896787"},"CGTESUL_I5","COXILHA SECA",896787,155,424,"17º Leilão de Energia Nova","2016-20",{"$f":"COUNTIF(D:D,Tabela1[[#This Row],[CD_PARC_USIN]])","v":1}]
[{"$f":"Tabela1[[#This Row],[NM_LEIL]]&Tabela1[[#This Row],[CD_PARC_USIN]]","v":"17º Leilão de Energia Nova896788"},"CGTESUL_I5","GALPOES",896788,155,424,"17º Leilão de Energia Nova","2016-20",{"$f":"COUNTIF(D:D,Tabela1[[#This Row],[CD_PARC_USIN]])","v":1}]
[{"$f":"Tabela1[[#This Row],[NM_LEIL]]&Tabela1[[#This Row],[CD_PARC_USIN]]","v":"13º Leilão de Energia Nova896905"},"CABO VERDE II","EOL CABO VERDE 2",896905,143,393,"13º Leilão de Energia Nova","2016-20",{"$f":"COUNTIF(D:D,Tabela1[[#This Row],[CD_PARC_USIN]])","v":1}]
[{"$f":"Tabela1[[#This Row],[NM_LEIL]]&Tabela1[[#This Row],[CD_PARC_USIN]]","v":"13º Leilão de Energia Nova896906"},"CABO VERDE II","EOL CABO VERDE 3",896906,143,393,"13º Leilão de Energia Nova","2016-20",{"$f":"COUNTIF(D:D,Tabela1[[#This Row],[CD_PARC_USIN]])","v":1}]
[{"$f":"Tabela1[[#This Row],[NM_LEIL]]&Tabela1[[#This Row],[CD_PARC_USIN]]","v":"17º Leilão de Energia Nova896908"},"ITAREMA III I5","ITAREMA III",896908,155,424,"17º Leilão de Energia Nova","2016-20",{"$f":"COUNTIF(D:D,Tabela1[[#This Row],[CD_PARC_USIN]])","v":1}]
[{"$f":"Tabela1[[#This Row],[NM_LEIL]]&Tabela1[[#This Row],[CD_PARC_USIN]]","v":"Leilão de Energia de Reserva (Eletronuclear)896909"},"ELETRONUCLEAR ANGRA","ANGRA III",896909,55,110,"Leilão de Energia de Reserva (Eletronuclear)","2016-35",{"$f":"COUNTIF(D:D,Tabela1[[#This Row],[CD_PARC_USIN]])","v":1}]
[{"$f":"Tabela1[[#This Row],[NM_LEIL]]&Tabela1[[#This Row],[CD_PARC_USIN]]","v":"13º Leilão de Energia Nova896924"},"CABO VERDE I","EOL CABO VERDE",896924,143,393,"13º Leilão de Energia Nova","2016-20",{"$f":"COUNTIF(D:D,Tabela1[[#This Row],[CD_PARC_USIN]])","v":1}]
[{"$f":"Tabela1[[#This Row],[NM_LEIL]]&Tabela1[[#This Row],[CD_PARC_USIN]]","v":"17º Leilão de Energia Nova896925"},"ENERPLAN IV I5","PONTAL 2A",896925,155,424,"17º Leilão de Energia Nova","2016-20",{"$f":"COUNTIF(D:D,Tabela1[[#This Row],[CD_PARC_USIN]])","v":1}]
[{"$f":"Tabela1[[#This Row],[NM_LEIL]]&Tabela1[[#This Row],[CD_PARC_USIN]]","v":"17º Leilão de Energia Nova896926"},"VENTOS DOS GUARAS I I5","VENTOS DE GUARÁS I",896926,155,424,"17º Leilão de Energia Nova","2016-20",{"$f":"COUNTIF(D:D,Tabela1[[#This Row],[CD_PARC_USIN]])","v":1}]
[{"$f":"Tabela1[[#This Row],[NM_LEIL]]&Tabela1[[#This Row],[CD_PARC_USIN]]","v":"7º Leilao de Energia Nova896927"},"CEU AZUL","UHE BAIXO IGUACU CEU",896927,17,407,"7º Leilao de Energia Nova","2013-30",{"$f":"COUNTIF(D:D,Tabela1[[#This Row],[CD_PARC_USIN]])","v":1}]
[{"$f":"Tabela1[[#This Row],[NM_LEIL]]&Tabela1[[#This Row],[CD_PARC_USIN]]","v":"17º Leilão de Energia Nova896929"},"OD15 I5","VERACE 27",896929,155,424,"17º Leilão de Energia Nova","2016-20",{"$f":"COUNTIF(D:D,Tabela1[[#This Row],[CD_PARC_USIN]])","v":1}]
[{"$f":"Tabela1[[#This Row],[NM_LEIL]]&Tabela1[[#This Row],[CD_PARC_USIN]]","v":"17º Leilão de Energia Nova896930"},"OD15 I5","VERACE 25",896930,155,424,"17º Leilão de Energia Nova","2016-20",{"$f":"COUNTIF(D:D,Tabela1[[#This Row],[CD_PARC_USIN]])","v":1}]
[{"$f":"Tabela1[[#This Row],[NM_LEIL]]&Tabela1[[#This Row],[CD_PARC_USIN]]","v":"17º Leilão de Energia Nova896931"},"OD15 I5","VERACE 26",896931,155,424,"17º Leilão de Energia Nova","2016-20",{"$f":"COUNTIF(D:D,Tabela1[[#This Row],[CD_PARC_USIN]])","v":1}]
[{"$f":"Tabela1[[#This Row],[NM_LEIL]]&Tabela1[[#This Row],[CD_PARC_USIN]]","v":"17º Leilão de Energia Nova896932"},"OD15 I5","VERACE 24",896932,155,424,"17º Leilão de Energia Nova","2016-20",{"$f":"COUNTIF(D:D,Tabela1[[#This Row],[CD_PARC_USIN]])","v":1}]
[{"$f":"Tabela1[[#This Row],[NM_LEIL]]&Tabela1[[#This Row],[CD_PARC_USIN]]","v":"17º Leilão de Energia Nova896933"},"OD15 I5","VERACE 28",896933,155,424,"17º Leilão de Energia Nova","2016-20",{"$f":"COUNTIF(D:D,Tabela1[[#This Row],[CD_PARC_USIN]])","v":1}]
[{"$f":"Tabela1[[#This Row],[NM_LEIL]]&Tabela1[[#This Row],[CD_PARC_USIN]]","v":"17º Leilão de Energia Nova896934"},"OD15 I5","VERACE 29",896934,155,424,"17º Leilão de Energia Nova","2016-20",{"$f":"COUNTIF(D:D,Tabela1[[#This Row],[CD_PARC_USIN]])","v":1}]
[{"$f":"Tabela1[[#This Row],[NM_LEIL]]&Tabela1[[#This Row],[CD_PARC_USIN]]","v":"17º Leilão de Energia Nova896935"},"OD15 I5","VERACE 30",896935,155,424,"17º Leilão de Energia Nova","2016-20",{"$f":"COUNTIF(D:D,Tabela1[[#This Row],[CD_PARC_USIN]])","v":1}]
[{"$f":"Tabela1[[#This Row],[NM_LEIL]]&Tabela1[[#This Row],[CD_PARC_USIN]]","v":"17º Leilão de Energia Nova896936"},"OD15 I5","VERACE 31",896936,155,424,"17º Leilão de Energia Nova","2016-20",{"$f":"COUNTIF(D:D,Tabela1[[#This Row],[CD_PARC_USIN]])","v":1}]
[{"$f":"Tabela1[[#This Row],[NM_LEIL]]&Tabela1[[#This Row],[CD_PARC_USIN]]","v":"17º Leilão de Energia Nova896937"},"OD15 I5","VERACE 34",896937,155,424,"17º Leilão de Energia Nova","2016-20",{"$f":"COUNTIF(D:D,Tabela1[[#This Row],[CD_PARC_USIN]])","v":1}]
[{"$f":"Tabela1[[#This Row],[NM_LEIL]]&Tabela1[[#This Row],[CD_PARC_USIN]]","v":"17º Leilão de Energia Nova896938"},"OD15 I5","VERACE 36",896938,155,424,"17º Leilão de Energia Nova","2016-20",{"$f":"COUNTIF(D:D,Tabela1[[#This Row],[CD_PARC_USIN]])","v":1}]
[{"$f":"Tabela1[[#This Row],[NM_LEIL]]&Tabela1[[#This Row],[CD_PARC_USIN]]","v":"17º Leilão de Energia Nova896939"},"OD15 I5","VERACE 35",896939,155,424,"17º Leilão de Energia Nova","2016-20",{"$f":"COUNTIF(D:D,Tabela1[[#This Row],[CD_PARC_USIN]])","v":1}]
[{"$f":"Tabela1[[#This Row],[NM_LEIL]]&Tabela1[[#This Row],[CD_PARC_USIN]]","v":"17º Leilão de Energia Nova896940"},"SDV III I5","SERRA DAS VACAS 3",896940,155,424,"17º Leilão de Energia Nova","2016-20",{"$f":"COUNTIF(D:D,Tabela1[[#This Row],[CD_PARC_USIN]])","v":1}]
[{"$f":"Tabela1[[#This Row],[NM_LEIL]]&Tabela1[[#This Row],[CD_PARC_USIN]]","v":"17º Leilão de Energia Nova896941"},"SDV II I5","SERRA DAS VACAS 2",896941,155,424,"17º Leilão de Energia Nova","2016-20",{"$f":"COUNTIF(D:D,Tabela1[[#This Row],[CD_PARC_USIN]])","v":1}]
[{"$f":"Tabela1[[#This Row],[NM_LEIL]]&Tabela1[[#This Row],[CD_PARC_USIN]]","v":"17º Leilão de Energia Nova896942"},"SDV I I5","SERRA DAS VACAS 1",896942,155,424,"17º Leilão de Energia Nova","2016-20",{"$f":"COUNTIF(D:D,Tabela1[[#This Row],[CD_PARC_USIN]])","v":1}]
[{"$f":"Tabela1[[#This Row],[NM_LEIL]]&Tabela1[[#This Row],[CD_PARC_USIN]]","v":"17º Leilão de Energia Nova896943"},"SDV IV I5","SERRA DAS VACAS 4",896943,155,424,"17º Leilão de Energia Nova","2016-20",{"$f":"COUNTIF(D:D,Tabela1[[#This Row],[CD_PARC_USIN]])","v":1}]
[{"$f":"Tabela1[[#This Row],[NM_LEIL]]&Tabela1[[#This Row],[CD_PARC_USIN]]","v":"17º Leilão de Energia Nova896944"},"SANTAJOANA I I5","EOL SANTA JOANA I",896944,155,424,"17º Leilão de Energia Nova","2016-20",{"$f":"COUNTIF(D:D,Tabela1[[#This Row],[CD_PARC_USIN]])","v":1}]
[{"$f":"Tabela1[[#This Row],[NM_LEIL]]&Tabela1[[#This Row],[CD_PARC_USIN]]","v":"17º Leilão de Energia Nova896947"},"SANTAJOANA III I5","EOL SANTA JOANA III",896947,155,424,"17º Leilão de Energia Nova","2016-20",{"$f":"COUNTIF(D:D,Tabela1[[#This Row],[CD_PARC_USIN]])","v":1}]
[{"$f":"Tabela1[[#This Row],[NM_LEIL]]&Tabela1[[#This Row],[CD_PARC_USIN]]","v":"17º Leilão de Energia Nova896948"},"SANTAJOANA V I5","EOL SANTA JOANA V",896948,155,424,"17º Leilão de Energia Nova","2016-20",{"$f":"COUNTIF(D:D,Tabela1[[#This Row],[CD_PARC_USIN]])","v":1}]
[{"$f":"Tabela1[[#This Row],[NM_LEIL]]&Tabela1[[#This Row],[CD_PARC_USIN]]","v":"17º Leilão de Energia Nova896949"},"SANTAJOANA VII I5","EOL SANTA JOANA VII",896949,155,424,"17º Leilão de Energia Nova","2016-20",{"$f":"COUNTIF(D:D,Tabela1[[#This Row],[CD_PARC_USIN]])","v":1}]
[{"$f":"Tabela1[[#This Row],[NM_LEIL]]&Tabela1[[#This Row],[CD_PARC_USIN]]","v":"17º Leilão de Energia Nova896950"},"SANTOAUGUSTO IV I5","SANTO AUGUSTO IV",896950,155,424,"17º Leilão de Energia Nova","2016-20",{"$f":"COUNTIF(D:D,Tabela1[[#This Row],[CD_PARC_USIN]])","v":1}]
[{"$f":"Tabela1[[#This Row],[NM_LEIL]]&Tabela1[[#This Row],[CD_PARC_USIN]]","v":"17º Leilão de Energia Nova896951"},"SANTOAUGUSTO III I5","EOL SANTO AUGUSTO 3",896951,155,424,"17º Leilão de Energia Nova","2016-20",{"$f":"COUNTIF(D:D,Tabela1[[#This Row],[CD_PARC_USIN]])","v":1}]
[{"$f":"Tabela1[[#This Row],[NM_LEIL]]&Tabela1[[#This Row],[CD_PARC_USIN]]","v":"17º Leilão de Energia Nova896952"},"SANTOAUGUSTO V I5","EOL SANTO AUGUSTO V",896952,155,424,"17º Leilão de Energia Nova","2016-20",{"$f":"COUNTIF(D:D,Tabela1[[#This Row],[CD_PARC_USIN]])","v":1}]
[{"$f":"Tabela1[[#This Row],[NM_LEIL]]&Tabela1[[#This Row],[CD_PARC_USIN]]","v":"17º Leilão de Energia Nova896953"},"CHESF I5-A","COQUEIRINHO 2",896953,155,424,"17º Leilão de Energia Nova","2016-20",{"$f":"COUNTIF(D:D,Tabela1[[#This Row],[CD_PARC_USIN]])","v":1}]
[{"$f":"Tabela1[[#This Row],[NM_LEIL]]&Tabela1[[#This Row],[CD_PARC_USIN]]","v":"17º Leilão de Energia Nova896964"},"SANTAJOANA IV I5","EOL SANTA JOANA IV",896964,155,424,"17º Leilão de Energia Nova","2016-20",{"$f":"COUNTIF(D:D,Tabela1[[#This Row],[CD_PARC_USIN]])","v":1}]
[{"$f":"Tabela1[[#This Row],[NM_LEIL]]&Tabela1[[#This Row],[CD_PARC_USIN]]","v":"17º Leilão de Energia Nova896965"},"CHESF I5-A","EOL Papagaio",896965,155,424,"17º Leilão de Energia Nova","2016-20",{"$f":"COUNTIF(D:D,Tabela1[[#This Row],[CD_PARC_USIN]])","v":1}]
[{"$f":"Tabela1[[#This Row],[NM_LEIL]]&Tabela1[[#This Row],[CD_PARC_USIN]]","v":"13º Leilão de Energia Nova896984"},"EOL CAICARA II I5","CAIÇARA II",896984,143,393,"13º Leilão de Energia Nova","2016-20",{"$f":"COUNTIF(D:D,Tabela1[[#This Row],[CD_PARC_USIN]])","v":1}]
[{"$f":"Tabela1[[#This Row],[NM_LEIL]]&Tabela1[[#This Row],[CD_PARC_USIN]]","v":"10º Leilão de Energia Reserva897205"},"PORTO I5","CGH JOAO FRANCO",897205,168,458,"10º Leilão de Energia Reserva","2020-30",{"$f":"COUNTIF(D:D,Tabela1[[#This Row],[CD_PARC_USIN]])","v":1}]
[{"$f":"Tabela1[[#This Row],[NM_LEIL]]&Tabela1[[#This Row],[CD_PARC_USIN]]","v":"16º Leilão de Energia Nova897406"},"CANTU2 I5","PCH CANTU 2",897406,151,416,"16º Leilão de Energia Nova","2018-30",{"$f":"COUNTIF(D:D,Tabela1[[#This Row],[CD_PARC_USIN]])","v":1}]
[{"$f":"Tabela1[[#This Row],[NM_LEIL]]&Tabela1[[#This Row],[CD_PARC_USIN]]","v":"22º Leilão de Energia Nova897775"},"PCH SANTA CAROLINA I5","PCH SANTA CAROLINA",897775,164,450,"22º Leilão de Energia Nova","2018-30",{"$f":"COUNTIF(D:D,Tabela1[[#This Row],[CD_PARC_USIN]])","v":1}]
[{"$f":"Tabela1[[#This Row],[NM_LEIL]]&Tabela1[[#This Row],[CD_PARC_USIN]]","v":"1º Leilão de Energia Nova897966"},"PETROB PIE 1LD","TERMORIO 15LEE",897966,5,12,"1º Leilão de Energia Nova","2010-15",{"$f":"COUNTIF(D:D,Tabela1[[#This Row],[CD_PARC_USIN]])","v":1}]
[{"$f":"Tabela1[[#This Row],[NM_LEIL]]&Tabela1[[#This Row],[CD_PARC_USIN]]","v":"18º Leilão de Energia Nova897987"},"BARAUNAS2 I5","BARAUNAS II",897987,154,423,"18º Leilão de Energia Nova","2018-20",{"$f":"COUNTIF(D:D,Tabela1[[#This Row],[CD_PARC_USIN]])","v":1}]
[{"$f":"Tabela1[[#This Row],[NM_LEIL]]&Tabela1[[#This Row],[CD_PARC_USIN]]","v":"18º Leilão de Energia Nova898006"},"BANDACOURO I5","EOL BANDA DE COURO",898006,154,423,"18º Leilão de Energia Nova","2018-20",{"$f":"COUNTIF(D:D,Tabela1[[#This Row],[CD_PARC_USIN]])","v":1}]
[{"$f":"Tabela1[[#This Row],[NM_LEIL]]&Tabela1[[#This Row],[CD_PARC_USIN]]","v":"13º Leilão de Energia Nova898057"},"UTEPORTODAGUAS","PORTO DAS AGUAS 13LN",898057,143,393,"13º Leilão de Energia Nova","2016-20",{"$f":"COUNTIF(D:D,Tabela1[[#This Row],[CD_PARC_USIN]])","v":5}]
[{"$f":"Tabela1[[#This Row],[NM_LEIL]]&Tabela1[[#This Row],[CD_PARC_USIN]]","v":"1º Leilão de Energia de Reserva898057"},"UTEPORTODAGUAS","PORTO DAS AGUAS 13LN",898057,51,102,"1º Leilão de Energia de Reserva","2010-15",{"$f":"COUNTIF(D:D,Tabela1[[#This Row],[CD_PARC_USIN]])","v":5}]
[{"$f":"Tabela1[[#This Row],[NM_LEIL]]&Tabela1[[#This Row],[CD_PARC_USIN]]","v":"20º Leilão de Energia Nova898057"},"UTEPORTODAGUAS","PORTO DAS AGUAS 13LN",898057,160,440,"20º Leilão de Energia Nova","2019-25",{"$f":"COUNTIF(D:D,Tabela1[[#This Row],[CD_PARC_USIN]])","v":5}]
[{"$f":"Tabela1[[#This Row],[NM_LEIL]]&Tabela1[[#This Row],[CD_PARC_USIN]]","v":"23º Leilão de Energia Nova898057"},"UTEPORTODAGUAS","PORTO DAS AGUAS 13LN",898057,167,456,"23º Leilão de Energia Nova","2021-25",{"$f":"COUNTIF(D:D,Tabela1[[#This Row],[CD_PARC_USIN]])","v":5}]
[{"$f":"Tabela1[[#This Row],[NM_LEIL]]&Tabela1[[#This Row],[CD_PARC_USIN]]","v":"3º Leilão de Energia de Reserva898057"},"UTEPORTODAGUAS","PORTO DAS AGUAS 13LN",898057,53,103,"3º Leilão de Energia de Reserva","2011-15",{"$f":"COUNTIF(D:D,Tabela1[[#This Row],[CD_PARC_USIN]])","v":5}]
[{"$f":"Tabela1[[#This Row],[NM_LEIL]]&Tabela1[[#This Row],[CD_PARC_USIN]]","v":"13º Leilão de Energia Nova898058"},"UTEPORTODAGUAS","PORTO DAS AGUAS 20LN",898058,143,393,"13º Leilão de Energia Nova","2016-20",{"$f":"COUNTIF(D:D,Tabela1[[#This Row],[CD_PARC_USIN]])","v":5}]
[{"$f":"Tabela1[[#This Row],[NM_LEIL]]&Tabela1[[#This Row],[CD_PARC_USIN]]","v":"1º Leilão de Energia de Reserva898058"},"UTEPORTODAGUAS","PORTO DAS AGUAS 20LN",898058,51,102,"1º Leilão de Energia de Reserva","2010-15",{"$f":"COUNTIF(D:D,Tabela1[[#This Row],[CD_PARC_USIN]])","v":5}]
[{"$f":"Tabela1[[#This Row],[NM_LEIL]]&Tabela1[[#This Row],[CD_PARC_USIN]]","v":"20º Leilão de Energia Nova898058"},"UTEPORTODAGUAS","PORTO DAS AGUAS 20LN",898058,160,440,"20º Leilão de Energia Nova","2019-25",{"$f":"COUNTIF(D:D,Tabela1[[#This Row],[CD_PARC_USIN]])","v":5}]
[{"$f":"Tabela1[[#This Row],[NM_LEIL]]&Tabela1[[#This Row],[CD_PARC_USIN]]","v":"23º Leilão de Energia Nova898058"},"UTEPORTODAGUAS","PORTO DAS AGUAS 20LN",898058,167,456,"23º Leilão de Energia Nova","2021-25",{"$f":"COUNTIF(D:D,Tabela1[[#This Row],[CD_PARC_USIN]])","v":5}]
[{"$f":"Tabela1[[#This Row],[NM_LEIL]]&Tabela1[[#This Row],[CD_PARC_USIN]]","v":"3º Leilão de Energia de Reserva898058"},"UTEPORTODAGUAS","PORTO DAS AGUAS 20LN",898058,53,103,"3º Leilão de Energia de Reserva","2011-15",{"$f":"COUNTIF(D:D,Tabela1[[#This Row],[CD_PARC_USIN]])","v":5}]
[{"$f":"Tabela1[[#This Row],[NM_LEIL]]&Tabela1[[#This Row],[CD_PARC_USIN]]","v":"23º Leilão de Energia Nova898152"},"PCH CAZUZA FERREIRA I5","CAZUZA FERREIRA",898152,167,457,"23º Leilão de Energia Nova","2021-30",{"$f":"COUNTIF(D:D,Tabela1[[#This Row],[CD_PARC_USIN]])","v":1}]
[{"$f":"Tabela1[[#This Row],[NM_LEIL]]&Tabela1[[#This Row],[CD_PARC_USIN]]","v":"16º Leilão de Energia Nova898607"},"PCH LUIZ DIAS LINS I5","PCH LUIZ DIAS LINS",898607,151,416,"16º Leilão de Energia Nova","2018-30",{"$f":"COUNTIF(D:D,Tabela1[[#This Row],[CD_PARC_USIN]])","v":1}]
[{"$f":"Tabela1[[#This Row],[NM_LEIL]]&Tabela1[[#This Row],[CD_PARC_USIN]]","v":"16º Leilão de Energia Nova898926"},"SALTO APIACAS I5","SALTO APIACAS",898926,151,416,"16º Leilão de Energia Nova","2018-30",{"$f":"COUNTIF(D:D,Tabela1[[#This Row],[CD_PARC_USIN]])","v":1}]
[{"$f":"Tabela1[[#This Row],[NM_LEIL]]&Tabela1[[#This Row],[CD_PARC_USIN]]","v":"16º Leilão de Energia Nova898927"},"FAZENDA I5","Da Fazenda",898927,151,416,"16º Leilão de Energia Nova","2018-30",{"$f":"COUNTIF(D:D,Tabela1[[#This Row],[CD_PARC_USIN]])","v":2}]
[{"$f":"Tabela1[[#This Row],[NM_LEIL]]&Tabela1[[#This Row],[CD_PARC_USIN]]","v":"23º Leilão de Energia Nova898927"},"FAZENDA I5","Da Fazenda",898927,167,457,"23º Leilão de Energia Nova","2021-30",{"$f":"COUNTIF(D:D,Tabela1[[#This Row],[CD_PARC_USIN]])","v":2}]
[{"$f":"Tabela1[[#This Row],[NM_LEIL]]&Tabela1[[#This Row],[CD_PARC_USIN]]","v":"16º Leilão de Energia Nova898928"},"CABECA DE BOI I5","Cabeca de Boi",898928,151,416,"16º Leilão de Energia Nova","2018-30",{"$f":"COUNTIF(D:D,Tabela1[[#This Row],[CD_PARC_USIN]])","v":2}]
[{"$f":"Tabela1[[#This Row],[NM_LEIL]]&Tabela1[[#This Row],[CD_PARC_USIN]]","v":"23º Leilão de Energia Nova898928"},"CABECA DE BOI I5","Cabeca de Boi",898928,167,457,"23º Leilão de Energia Nova","2021-30",{"$f":"COUNTIF(D:D,Tabela1[[#This Row],[CD_PARC_USIN]])","v":2}]
[{"$f":"Tabela1[[#This Row],[NM_LEIL]]&Tabela1[[#This Row],[CD_PARC_USIN]]","v":"18º Leilão de Energia Nova898953"},"FAZENDA VELHA I5","FAZENDA VELHA",898953,154,421,"18º Leilão de Energia Nova","2018-30",{"$f":"COUNTIF(D:D,Tabela1[[#This Row],[CD_PARC_USIN]])","v":1}]
[{"$f":"Tabela1[[#This Row],[NM_LEIL]]&Tabela1[[#This Row],[CD_PARC_USIN]]","v":"16º Leilão de Energia Nova898954"},"CPFL MATA VELHA I5","MATA VELHA",898954,151,416,"16º Leilão de Energia Nova","2018-30",{"$f":"COUNTIF(D:D,Tabela1[[#This Row],[CD_PARC_USIN]])","v":1}]
[{"$f":"Tabela1[[#This Row],[NM_LEIL]]&Tabela1[[#This Row],[CD_PARC_USIN]]","v":"19º Leilão de Energia Nova899082"},"SAO CLEMENTE I I5","SAO CLEMENTE I",899082,158,437,"19º Leilão de Energia Nova","2017-20",{"$f":"COUNTIF(D:D,Tabela1[[#This Row],[CD_PARC_USIN]])","v":1}]
[{"$f":"Tabela1[[#This Row],[NM_LEIL]]&Tabela1[[#This Row],[CD_PARC_USIN]]","v":"19º Leilão de Energia Nova899092"},"SAO CLEMENTE II I5","SAO CLEMENTE II",899092,158,437,"19º Leilão de Energia Nova","2017-20",{"$f":"COUNTIF(D:D,Tabela1[[#This Row],[CD_PARC_USIN]])","v":1}]
[{"$f":"Tabela1[[#This Row],[NM_LEIL]]&Tabela1[[#This Row],[CD_PARC_USIN]]","v":"19º Leilão de Energia Nova899093"},"SAO CLEMENTE III I5","SAO CLEMENTE III",899093,158,437,"19º Leilão de Energia Nova","2017-20",{"$f":"COUNTIF(D:D,Tabela1[[#This Row],[CD_PARC_USIN]])","v":1}]
[{"$f":"Tabela1[[#This Row],[NM_LEIL]]&Tabela1[[#This Row],[CD_PARC_USIN]]","v":"19º Leilão de Energia Nova899095"},"SAO CLEMENTE IV I5","SAO CLEMENTE IV",899095,158,437,"19º Leilão de Energia Nova","2017-20",{"$f":"COUNTIF(D:D,Tabela1[[#This Row],[CD_PARC_USIN]])","v":1}]
[{"$f":"Tabela1[[#This Row],[NM_LEIL]]&Tabela1[[#This Row],[CD_PARC_USIN]]","v":"19º Leilão de Energia Nova899127"},"SAO CLEMENTE VI I5","SAO CLEMENTE VI",899127,158,437,"19º Leilão de Energia Nova","2017-20",{"$f":"COUNTIF(D:D,Tabela1[[#This Row],[CD_PARC_USIN]])","v":1}]
[{"$f":"Tabela1[[#This Row],[NM_LEIL]]&Tabela1[[#This Row],[CD_PARC_USIN]]","v":"19º Leilão de Energia Nova899370"},"SAO CLEMENTE VIII I5","SAO CLEMENTE VIII",899370,158,437,"19º Leilão de Energia Nova","2017-20",{"$f":"COUNTIF(D:D,Tabela1[[#This Row],[CD_PARC_USIN]])","v":1}]
[{"$f":"Tabela1[[#This Row],[NM_LEIL]]&Tabela1[[#This Row],[CD_PARC_USIN]]","v":"18º Leilão de Energia Nova899672"},"PCH RENIC I5","PCH RENIC",899672,154,421,"18º Leilão de Energia Nova","2018-30",{"$f":"COUNTIF(D:D,Tabela1[[#This Row],[CD_PARC_USIN]])","v":2}]
[{"$f":"Tabela1[[#This Row],[NM_LEIL]]&Tabela1[[#This Row],[CD_PARC_USIN]]","v":"23º Leilão de Energia Nova899672"},"PCH RENIC I5","PCH RENIC",899672,167,457,"23º Leilão de Energia Nova","2021-30",{"$f":"COUNTIF(D:D,Tabela1[[#This Row],[CD_PARC_USIN]])","v":2}]
[{"$f":"Tabela1[[#This Row],[NM_LEIL]]&Tabela1[[#This Row],[CD_PARC_USIN]]","v":"19º Leilão de Energia Nova899677"},"SAO CLEMENTE V I5","SAO CLEMENTE V",899677,158,437,"19º Leilão de Energia Nova","2017-20",{"$f":"COUNTIF(D:D,Tabela1[[#This Row],[CD_PARC_USIN]])","v":1}]
[{"$f":"Tabela1[[#This Row],[NM_LEIL]]&Tabela1[[#This Row],[CD_PARC_USIN]]","v":"10º Leilão de Energia Reserva899696"},"SIRIVERA I5","SIRIVERA",899696,168,458,"10º Leilão de Energia Reserva","2020-30",{"$f":"COUNTIF(D:D,Tabela1[[#This Row],[CD_PARC_USIN]])","v":1}]
[{"$f":"Tabela1[[#This Row],[NM_LEIL]]&Tabela1[[#This Row],[CD_PARC_USIN]]","v":"19º Leilão de Energia Nova899700"},"SAO CLEMENTE VII I5","SAO CLEMENTE VII",899700,158,437,"19º Leilão de Energia Nova","2017-20",{"$f":"COUNTIF(D:D,Tabela1[[#This Row],[CD_PARC_USIN]])","v":1}]
[{"$f":"Tabela1[[#This Row],[NM_LEIL]]&Tabela1[[#This Row],[CD_PARC_USIN]]","v":"19º Leilão de Energia Nova899705"},"ITAREMA IV I5","ITAREMA IV",899705,158,437,"19º Leilão de Energia Nova","2017-20",{"$f":"COUNTIF(D:D,Tabela1[[#This Row],[CD_PARC_USIN]])","v":1}]
[{"$f":"Tabela1[[#This Row],[NM_LEIL]]&Tabela1[[#This Row],[CD_PARC_USIN]]","v":"19º Leilão de Energia Nova899727"},"ITAREMA VI I5","ITAREMA VI",899727,158,437,"19º Leilão de Energia Nova","2017-20",{"$f":"COUNTIF(D:D,Tabela1[[#This Row],[CD_PARC_USIN]])","v":1}]
[{"$f":"Tabela1[[#This Row],[NM_LEIL]]&Tabela1[[#This Row],[CD_PARC_USIN]]","v":"19º Leilão de Energia Nova900173"},"ITAREMA IX I5","ITAREMA IX",900173,158,437,"19º Leilão de Energia Nova","2017-20",{"$f":"COUNTIF(D:D,Tabela1[[#This Row],[CD_PARC_USIN]])","v":1}]
[{"$f":"Tabela1[[#This Row],[NM_LEIL]]&Tabela1[[#This Row],[CD_PARC_USIN]]","v":"19º Leilão de Energia Nova900175"},"ITAREMA VII I5","ITAREMA VII",900175,158,437,"19º Leilão de Energia Nova","2017-20",{"$f":"COUNTIF(D:D,Tabela1[[#This Row],[CD_PARC_USIN]])","v":1}]
[{"$f":"Tabela1[[#This Row],[NM_LEIL]]&Tabela1[[#This Row],[CD_PARC_USIN]]","v":"19º Leilão de Energia Nova900736"},"ITAREMA VIII I5","ITAREMA VIII",900736,158,437,"19º Leilão de Energia Nova","2017-20",{"$f":"COUNTIF(D:D,Tabela1[[#This Row],[CD_PARC_USIN]])","v":1}]
[{"$f":"Tabela1[[#This Row],[NM_LEIL]]&Tabela1[[#This Row],[CD_PARC_USIN]]","v":"23º Leilão de Energia Nova900778"},"J O BIOENERGIA I5","UTE N O BIOENERGIA",900778,167,456,"23º Leilão de Energia Nova","2021-25",{"$f":"COUNTIF(D:D,Tabela1[[#This Row],[CD_PARC_USIN]])","v":1}]
[{"$f":"Tabela1[[#This Row],[NM_LEIL]]&Tabela1[[#This Row],[CD_PARC_USIN]]","v":"12º Leilão de Energia Nova900917"},"UTE IACO P2 I5","IACO P2",900917,28,42,"12º Leilão de Energia Nova","2014-20",{"$f":"COUNTIF(D:D,Tabela1[[#This Row],[CD_PARC_USIN]])","v":2}]
[{"$f":"Tabela1[[#This Row],[NM_LEIL]]&Tabela1[[#This Row],[CD_PARC_USIN]]","v":"4º Leilão de Energia de Reserva900917"},"UTE IACO P2 I5","IACO P2",900917,54,109,"4º Leilão de Energia de Reserva","2014-20",{"$f":"COUNTIF(D:D,Tabela1[[#This Row],[CD_PARC_USIN]])","v":2}]
[{"$f":"Tabela1[[#This Row],[NM_LEIL]]&Tabela1[[#This Row],[CD_PARC_USIN]]","v":"22º Leilão de Energia Nova901795"},"EOLICA SANTA MONICA I5","SANTA MONICA I",901795,164,452,"22º Leilão de Energia Nova","2018-20",{"$f":"COUNTIF(D:D,Tabela1[[#This Row],[CD_PARC_USIN]])","v":1}]
[{"$f":"Tabela1[[#This Row],[NM_LEIL]]&Tabela1[[#This Row],[CD_PARC_USIN]]","v":"18º Leilão de Energia Nova901834"},"EOL VILA AMAZONAS V I5","EOL VILA AMAZONAS V",901834,154,423,"18º Leilão de Energia Nova","2018-20",{"$f":"COUNTIF(D:D,Tabela1[[#This Row],[CD_PARC_USIN]])","v":1}]
[{"$f":"Tabela1[[#This Row],[NM_LEIL]]&Tabela1[[#This Row],[CD_PARC_USIN]]","v":"18º Leilão de Energia Nova901918"},"EOL VILA PARA I I5","EOL VILA PARA I",901918,154,423,"18º Leilão de Energia Nova","2018-20",{"$f":"COUNTIF(D:D,Tabela1[[#This Row],[CD_PARC_USIN]])","v":1}]
[{"$f":"Tabela1[[#This Row],[NM_LEIL]]&Tabela1[[#This Row],[CD_PARC_USIN]]","v":"18º Leilão de Energia Nova901919"},"EOL VILA PARA II I5","EOL VILA PARA II",901919,154,423,"18º Leilão de Energia Nova","2018-20",{"$f":"COUNTIF(D:D,Tabela1[[#This Row],[CD_PARC_USIN]])","v":1}]
[{"$f":"Tabela1[[#This Row],[NM_LEIL]]&Tabela1[[#This Row],[CD_PARC_USIN]]","v":"22º Leilão de Energia Nova901937"},"TESTA III I5","EOL TESTA BRANCA III",901937,164,452,"22º Leilão de Energia Nova","2018-20",{"$f":"COUNTIF(D:D,Tabela1[[#This Row],[CD_PARC_USIN]])","v":1}]
[{"$f":"Tabela1[[#This Row],[NM_LEIL]]&Tabela1[[#This Row],[CD_PARC_USIN]]","v":"1º Leilão de Energia Nova902473"},"PETROBRAS PIE EXP","ELETROBOLT 13LEE EXP",902473,5,10,"1º Leilão de Energia Nova","2009-15",{"$f":"COUNTIF(D:D,Tabela1[[#This Row],[CD_PARC_USIN]])","v":1}]
[{"$f":"Tabela1[[#This Row],[NM_LEIL]]&Tabela1[[#This Row],[CD_PARC_USIN]]","v":"1º Leilão de Energia Nova902554"},"PETROBRAS PIE EXP","TERMORIO 13LEE EXP",902554,5,12,"1º Leilão de Energia Nova","2010-15",{"$f":"COUNTIF(D:D,Tabela1[[#This Row],[CD_PARC_USIN]])","v":1}]
[{"$f":"Tabela1[[#This Row],[NM_LEIL]]&Tabela1[[#This Row],[CD_PARC_USIN]]","v":"1º Leilão de Energia Nova902555"},"PETROBRAS PIE","TERMORIO 15LEE EXP",902555,5,12,"1º Leilão de Energia Nova","2010-15",{"$f":"COUNTIF(D:D,Tabela1[[#This Row],[CD_PARC_USIN]])","v":1}]
[{"$f":"Tabela1[[#This Row],[NM_LEIL]]&Tabela1[[#This Row],[CD_PARC_USIN]]","v":"1º Leilão de Energia Nova902557"},"PETROBRAS PIE EXP","CUBATAO 13LEE EXP",902557,5,12,"1º Leilão de Energia Nova","2010-15",{"$f":"COUNTIF(D:D,Tabela1[[#This Row],[CD_PARC_USIN]])","v":1}]
[{"$f":"Tabela1[[#This Row],[NM_LEIL]]&Tabela1[[#This Row],[CD_PARC_USIN]]","v":"18º Leilão de Energia Nova903385"},"EOL VILA PARA III I5","EOL VILA PARA III",903385,154,423,"18º Leilão de Energia Nova","2018-20",{"$f":"COUNTIF(D:D,Tabela1[[#This Row],[CD_PARC_USIN]])","v":1}]
[{"$f":"Tabela1[[#This Row],[NM_LEIL]]&Tabela1[[#This Row],[CD_PARC_USIN]]","v":"12º Leilão de Energia Nova903899"},"UTE BAIXADA FLUMINENSE","B.FLUMINENSE EXP",903899,28,42,"12º Leilão de Energia Nova","2014-20",{"$f":"COUNTIF(D:D,Tabela1[[#This Row],[CD_PARC_USIN]])","v":1}]
[{"$f":"Tabela1[[#This Row],[NM_LEIL]]&Tabela1[[#This Row],[CD_PARC_USIN]]","v":"19º Leilão de Energia Nova904064"},"STA VITORIA PALMAR XII I5","AURA MIRIM II",904064,158,437,"19º Leilão de Energia Nova","2017-20",{"$f":"COUNTIF(D:D,Tabela1[[#This Row],[CD_PARC_USIN]])","v":1}]
[{"$f":"Tabela1[[#This Row],[NM_LEIL]]&Tabela1[[#This Row],[CD_PARC_USIN]]","v":"19º Leilão de Energia Nova904069"},"SANTANA 1 I5","SANTANA 1",904069,158,437,"19º Leilão de Energia Nova","2017-20",{"$f":"COUNTIF(D:D,Tabela1[[#This Row],[CD_PARC_USIN]])","v":1}]
[{"$f":"Tabela1[[#This Row],[NM_LEIL]]&Tabela1[[#This Row],[CD_PARC_USIN]]","v":"19º Leilão de Energia Nova904070"},"SANTANA 2 I5","SANTANA 2",904070,158,437,"19º Leilão de Energia Nova","2017-20",{"$f":"COUNTIF(D:D,Tabela1[[#This Row],[CD_PARC_USIN]])","v":1}]
[{"$f":"Tabela1[[#This Row],[NM_LEIL]]&Tabela1[[#This Row],[CD_PARC_USIN]]","v":"19º Leilão de Energia Nova904073"},"STA VITORIA PALMAR XI I5","AURA MANGUEIRA VII",904073,158,437,"19º Leilão de Energia Nova","2017-20",{"$f":"COUNTIF(D:D,Tabela1[[#This Row],[CD_PARC_USIN]])","v":1}]
[{"$f":"Tabela1[[#This Row],[NM_LEIL]]&Tabela1[[#This Row],[CD_PARC_USIN]]","v":"19º Leilão de Energia Nova904074"},"CALANGO 6 I5","CALANGO 6",904074,158,437,"19º Leilão de Energia Nova","2017-20",{"$f":"COUNTIF(D:D,Tabela1[[#This Row],[CD_PARC_USIN]])","v":1}]
[{"$f":"Tabela1[[#This Row],[NM_LEIL]]&Tabela1[[#This Row],[CD_PARC_USIN]]","v":"19º Leilão de Energia Nova904075"},"EOL TECNOLOGIA","OURO BRANCO 1 (TEC)",904075,158,437,"19º Leilão de Energia Nova","2017-20",{"$f":"COUNTIF(D:D,Tabela1[[#This Row],[CD_PARC_USIN]])","v":2}]
[{"$f":"Tabela1[[#This Row],[NM_LEIL]]&Tabela1[[#This Row],[CD_PARC_USIN]]","v":"26º Leilão de Energia Nova904075"},"EOL TECNOLOGIA","OURO BRANCO 1 (TEC)",904075,173,467,"26º Leilão de Energia Nova","2023-20",{"$f":"COUNTIF(D:D,Tabela1[[#This Row],[CD_PARC_USIN]])","v":2}]
[{"$f":"Tabela1[[#This Row],[NM_LEIL]]&Tabela1[[#This Row],[CD_PARC_USIN]]","v":"19º Leilão de Energia Nova904076"},"EOLICA ENERGIA","OURO BRANCO 1 (ENER)",904076,158,437,"19º Leilão de Energia Nova","2017-20",{"$f":"COUNTIF(D:D,Tabela1[[#This Row],[CD_PARC_USIN]])","v":2}]
[{"$f":"Tabela1[[#This Row],[NM_LEIL]]&Tabela1[[#This Row],[CD_PARC_USIN]]","v":"26º Leilão de Energia Nova904076"},"EOLICA ENERGIA","OURO BRANCO 1 (ENER)",904076,173,467,"26º Leilão de Energia Nova","2023-20",{"$f":"COUNTIF(D:D,Tabela1[[#This Row],[CD_PARC_USIN]])","v":2}]
[{"$f":"Tabela1[[#This Row],[NM_LEIL]]&Tabela1[[#This Row],[CD_PARC_USIN]]","v":"23º Leilão de Energia Nova904121"},"URBANO CERBRANORTE SPE I5","PCH CAPIVARI",904121,167,457,"23º Leilão de Energia Nova","2021-30",{"$f":"COUNTIF(D:D,Tabela1[[#This Row],[CD_PARC_USIN]])","v":1}]
[{"$f":"Tabela1[[#This Row],[NM_LEIL]]&Tabela1[[#This Row],[CD_PARC_USIN]]","v":"23º Leilão de Energia Nova904122"},"URBANO CERBRANORTE SPE I5","CAPIVARI CEBRANORTE",904122,167,457,"23º Leilão de Energia Nova","2021-30",{"$f":"COUNTIF(D:D,Tabela1[[#This Row],[CD_PARC_USIN]])","v":1}]
[{"$f":"Tabela1[[#This Row],[NM_LEIL]]&Tabela1[[#This Row],[CD_PARC_USIN]]","v":"18º Leilão de Energia Nova904143"},"TESTA I I5","EOL TESTA BRANCA I",904143,154,423,"18º Leilão de Energia Nova","2018-20",{"$f":"COUNTIF(D:D,Tabela1[[#This Row],[CD_PARC_USIN]])","v":1}]
[{"$f":"Tabela1[[#This Row],[NM_LEIL]]&Tabela1[[#This Row],[CD_PARC_USIN]]","v":"2º Leilão de Fontes Alternativas904175"},"TIANGUA I5","EOL TIANGUA",904175,25,38,"2º Leilão de Fontes Alternativas","2013-20",{"$f":"COUNTIF(D:D,Tabela1[[#This Row],[CD_PARC_USIN]])","v":1}]
[{"$f":"Tabela1[[#This Row],[NM_LEIL]]&Tabela1[[#This Row],[CD_PARC_USIN]]","v":"2º Leilão de Fontes Alternativas904176"},"TIANGUA NORTE I5","EOL TIANGUA NORTE",904176,25,38,"2º Leilão de Fontes Alternativas","2013-20",{"$f":"COUNTIF(D:D,Tabela1[[#This Row],[CD_PARC_USIN]])","v":1}]
[{"$f":"Tabela1[[#This Row],[NM_LEIL]]&Tabela1[[#This Row],[CD_PARC_USIN]]","v":"18º Leilão de Energia Nova904177"},"UTE SANTA CANDIDA II I5","UTE SANTA CANDIDA II",904177,154,422,"18º Leilão de Energia Nova","2018-25",{"$f":"COUNTIF(D:D,Tabela1[[#This Row],[CD_PARC_USIN]])","v":1}]
[{"$f":"Tabela1[[#This Row],[NM_LEIL]]&Tabela1[[#This Row],[CD_PARC_USIN]]","v":"2º Leilão de Fontes Alternativas904193"},"MORRO CHAPEU I5","EOL MORRO DO CHAPEU",904193,25,38,"2º Leilão de Fontes Alternativas","2013-20",{"$f":"COUNTIF(D:D,Tabela1[[#This Row],[CD_PARC_USIN]])","v":1}]
[{"$f":"Tabela1[[#This Row],[NM_LEIL]]&Tabela1[[#This Row],[CD_PARC_USIN]]","v":"2º Leilão de Fontes Alternativas904194"},"VENTO FORMOSO I5","VENTO FORMOSO",904194,25,38,"2º Leilão de Fontes Alternativas","2013-20",{"$f":"COUNTIF(D:D,Tabela1[[#This Row],[CD_PARC_USIN]])","v":1}]
[{"$f":"Tabela1[[#This Row],[NM_LEIL]]&Tabela1[[#This Row],[CD_PARC_USIN]]","v":"2º Leilão de Fontes Alternativas904195"},"PARAZINHO I5","EOL PARAZINHO",904195,25,38,"2º Leilão de Fontes Alternativas","2013-20",{"$f":"COUNTIF(D:D,Tabela1[[#This Row],[CD_PARC_USIN]])","v":1}]
[{"$f":"Tabela1[[#This Row],[NM_LEIL]]&Tabela1[[#This Row],[CD_PARC_USIN]]","v":"18º Leilão de Energia Nova905213"},"PDEE I5","EOL PORTO DO DELTA",905213,154,423,"18º Leilão de Energia Nova","2018-20",{"$f":"COUNTIF(D:D,Tabela1[[#This Row],[CD_PARC_USIN]])","v":1}]
[{"$f":"Tabela1[[#This Row],[NM_LEIL]]&Tabela1[[#This Row],[CD_PARC_USIN]]","v":"21º Leilão de Energia Nova905215"},"PCH DO TIGRE I5","TIGRE",905215,161,444,"21º Leilão de Energia Nova","2020-30",{"$f":"COUNTIF(D:D,Tabela1[[#This Row],[CD_PARC_USIN]])","v":2}]
[{"$f":"Tabela1[[#This Row],[NM_LEIL]]&Tabela1[[#This Row],[CD_PARC_USIN]]","v":"23º Leilão de Energia Nova905215"},"PCH DO TIGRE I5","TIGRE",905215,167,457,"23º Leilão de Energia Nova","2021-30",{"$f":"COUNTIF(D:D,Tabela1[[#This Row],[CD_PARC_USIN]])","v":2}]
[{"$f":"Tabela1[[#This Row],[NM_LEIL]]&Tabela1[[#This Row],[CD_PARC_USIN]]","v":"22º Leilão de Energia Nova905233"},"EOLICA CACIMBAS I5","EOL CACIMBAS 1",905233,164,452,"22º Leilão de Energia Nova","2018-20",{"$f":"COUNTIF(D:D,Tabela1[[#This Row],[CD_PARC_USIN]])","v":1}]
[{"$f":"Tabela1[[#This Row],[NM_LEIL]]&Tabela1[[#This Row],[CD_PARC_USIN]]","v":"23º Leilão de Energia Nova906139"},"PCH SALTO BANDEIRANTES I5","PCH SALTO BANDEIRANT",906139,167,457,"23º Leilão de Energia Nova","2021-30",{"$f":"COUNTIF(D:D,Tabela1[[#This Row],[CD_PARC_USIN]])","v":1}]
[{"$f":"Tabela1[[#This Row],[NM_LEIL]]&Tabela1[[#This Row],[CD_PARC_USIN]]","v":"18º Leilão de Energia Nova906153"},"VENTOS STO ESTEVAO III I5","SANTO ESTEVAO III",906153,154,423,"18º Leilão de Energia Nova","2018-20",{"$f":"COUNTIF(D:D,Tabela1[[#This Row],[CD_PARC_USIN]])","v":1}]
[{"$f":"Tabela1[[#This Row],[NM_LEIL]]&Tabela1[[#This Row],[CD_PARC_USIN]]","v":"18º Leilão de Energia Nova906154"},"VENTOS STO ESTEVAO V I5","SANTO ESTEVAO V",906154,154,423,"18º Leilão de Energia Nova","2018-20",{"$f":"COUNTIF(D:D,Tabela1[[#This Row],[CD_PARC_USIN]])","v":1}]
[{"$f":"Tabela1[[#This Row],[NM_LEIL]]&Tabela1[[#This Row],[CD_PARC_USIN]]","v":"22º Leilão de Energia Nova906175"},"EOLICA ESTRELA I5","ESTRELA",906175,164,452,"22º Leilão de Energia Nova","2018-20",{"$f":"COUNTIF(D:D,Tabela1[[#This Row],[CD_PARC_USIN]])","v":1}]
[{"$f":"Tabela1[[#This Row],[NM_LEIL]]&Tabela1[[#This Row],[CD_PARC_USIN]]","v":"22º Leilão de Energia Nova906645"},"EOLICA OURO VERDE I5","EOLICA OURO VERDE",906645,164,452,"22º Leilão de Energia Nova","2018-20",{"$f":"COUNTIF(D:D,Tabela1[[#This Row],[CD_PARC_USIN]])","v":1}]
[{"$f":"Tabela1[[#This Row],[NM_LEIL]]&Tabela1[[#This Row],[CD_PARC_USIN]]","v":"18º Leilão de Energia Nova906762"},"VENTOS STO AUGUSTO VIII I5","SANTO AUGUSTO VIII",906762,154,423,"18º Leilão de Energia Nova","2018-20",{"$f":"COUNTIF(D:D,Tabela1[[#This Row],[CD_PARC_USIN]])","v":1}]
[{"$f":"Tabela1[[#This Row],[NM_LEIL]]&Tabela1[[#This Row],[CD_PARC_USIN]]","v":"18º Leilão de Energia Nova906764"},"VENTOS STO AUGUSTO II I5","SANTO AUGUSTO II",906764,154,423,"18º Leilão de Energia Nova","2018-20",{"$f":"COUNTIF(D:D,Tabela1[[#This Row],[CD_PARC_USIN]])","v":1}]
[{"$f":"Tabela1[[#This Row],[NM_LEIL]]&Tabela1[[#This Row],[CD_PARC_USIN]]","v":"18º Leilão de Energia Nova906776"},"STA VITORIA PALMAR III I5","AURA MANGUEIRA XI",906776,154,423,"18º Leilão de Energia Nova","2018-20",{"$f":"COUNTIF(D:D,Tabela1[[#This Row],[CD_PARC_USIN]])","v":1}]
[{"$f":"Tabela1[[#This Row],[NM_LEIL]]&Tabela1[[#This Row],[CD_PARC_USIN]]","v":"18º Leilão de Energia Nova906777"},"STA VITORIA PALMAR VIII I5","EOL AURA MIRIM IV",906777,154,423,"18º Leilão de Energia Nova","2018-20",{"$f":"COUNTIF(D:D,Tabela1[[#This Row],[CD_PARC_USIN]])","v":1}]
[{"$f":"Tabela1[[#This Row],[NM_LEIL]]&Tabela1[[#This Row],[CD_PARC_USIN]]","v":"21º Leilão de Energia Nova906795"},"SERRA DOS CAVALINHOS I I5","SERRA CAVALINHOS 1",906795,161,444,"21º Leilão de Energia Nova","2020-30",{"$f":"COUNTIF(D:D,Tabela1[[#This Row],[CD_PARC_USIN]])","v":1}]
[{"$f":"Tabela1[[#This Row],[NM_LEIL]]&Tabela1[[#This Row],[CD_PARC_USIN]]","v":"10º Leilão de Energia Reserva907107"},"C2LG I5","SANTO TESSARO",907107,168,458,"10º Leilão de Energia Reserva","2020-30",{"$f":"COUNTIF(D:D,Tabela1[[#This Row],[CD_PARC_USIN]])","v":1}]
[{"$f":"Tabela1[[#This Row],[NM_LEIL]]&Tabela1[[#This Row],[CD_PARC_USIN]]","v":"20º Leilão de Energia Nova907432"},"SAO VIRGILIO 02 I5","VENTOS S VIRGILIO 02",907432,160,441,"20º Leilão de Energia Nova","2019-20",{"$f":"COUNTIF(D:D,Tabela1[[#This Row],[CD_PARC_USIN]])","v":1}]
[{"$f":"Tabela1[[#This Row],[NM_LEIL]]&Tabela1[[#This Row],[CD_PARC_USIN]]","v":"18º Leilão de Energia Nova907433"},"STA VITORIA PALMAR VI I5","AURA MANGUEIRA XV",907433,154,423,"18º Leilão de Energia Nova","2018-20",{"$f":"COUNTIF(D:D,Tabela1[[#This Row],[CD_PARC_USIN]])","v":1}]
[{"$f":"Tabela1[[#This Row],[NM_LEIL]]&Tabela1[[#This Row],[CD_PARC_USIN]]","v":"11º Leilão de Energia Nova907551"},"CEJA","STO ANT D JARI - RRH",907551,26,40,"11º Leilão de Energia Nova","2015-30",{"$f":"COUNTIF(D:D,Tabela1[[#This Row],[CD_PARC_USIN]])","v":2}]
[{"$f":"Tabela1[[#This Row],[NM_LEIL]]&Tabela1[[#This Row],[CD_PARC_USIN]]","v":"15º Leilão de Energia Nova907551"},"CEJA","STO ANT D JARI - RRH",907551,147,409,"15º Leilão de Energia Nova","2017-30",{"$f":"COUNTIF(D:D,Tabela1[[#This Row],[CD_PARC_USIN]])","v":2}]
[{"$f":"Tabela1[[#This Row],[NM_LEIL]]&Tabela1[[#This Row],[CD_PARC_USIN]]","v":"18º Leilão de Energia Nova907803"},"VENTOS STO AUGUSTO I I5","VENTOS STO AUGUSTO I",907803,154,423,"18º Leilão de Energia Nova","2018-20",{"$f":"COUNTIF(D:D,Tabela1[[#This Row],[CD_PARC_USIN]])","v":1}]
[{"$f":"Tabela1[[#This Row],[NM_LEIL]]&Tabela1[[#This Row],[CD_PARC_USIN]]","v":"18º Leilão de Energia Nova907804"},"SANTO AUGUSTO VII I5","VENTOS STO AUGUSTO 7",907804,154,423,"18º Leilão de Energia Nova","2018-20",{"$f":"COUNTIF(D:D,Tabela1[[#This Row],[CD_PARC_USIN]])","v":1}]
[{"$f":"Tabela1[[#This Row],[NM_LEIL]]&Tabela1[[#This Row],[CD_PARC_USIN]]","v":"18º Leilão de Energia Nova907839"},"SANTO AUGUSTO VI I5","V SANTO AUGUSTO VI",907839,154,423,"18º Leilão de Energia Nova","2018-20",{"$f":"COUNTIF(D:D,Tabela1[[#This Row],[CD_PARC_USIN]])","v":1}]
[{"$f":"Tabela1[[#This Row],[NM_LEIL]]&Tabela1[[#This Row],[CD_PARC_USIN]]","v":"6º Leilão de Energia Reserva908209"},"SANTO ONOFRE IV I5","V SANTO ONOFRE 4 ",908209,159,439,"6º Leilão de Energia Reserva","2017-20",{"$f":"COUNTIF(D:D,Tabela1[[#This Row],[CD_PARC_USIN]])","v":1}]
[{"$f":"Tabela1[[#This Row],[NM_LEIL]]&Tabela1[[#This Row],[CD_PARC_USIN]]","v":"6º Leilão de Energia Reserva908210"},"SAO VIRGILIO 01 I5","SAO VIRGILIO 01",908210,159,439,"6º Leilão de Energia Reserva","2017-20",{"$f":"COUNTIF(D:D,Tabela1[[#This Row],[CD_PARC_USIN]])","v":1}]
[{"$f":"Tabela1[[#This Row],[NM_LEIL]]&Tabela1[[#This Row],[CD_PARC_USIN]]","v":"10º Leilão de Energia Reserva908251"},"CGH WILLY FALLER I5","CGH WILLY FALLER",908251,168,458,"10º Leilão de Energia Reserva","2020-30",{"$f":"COUNTIF(D:D,Tabela1[[#This Row],[CD_PARC_USIN]])","v":1}]
[{"$f":"Tabela1[[#This Row],[NM_LEIL]]&Tabela1[[#This Row],[CD_PARC_USIN]]","v":"18º Leilão de Energia Nova908271"},"SIGMA I5","PCH SERRA DAS AGULHA",908271,154,421,"18º Leilão de Energia Nova","2018-30",{"$f":"COUNTIF(D:D,Tabela1[[#This Row],[CD_PARC_USIN]])","v":2}]
[{"$f":"Tabela1[[#This Row],[NM_LEIL]]&Tabela1[[#This Row],[CD_PARC_USIN]]","v":"23º Leilão de Energia Nova908271"},"SIGMA I5","PCH SERRA DAS AGULHA",908271,167,457,"23º Leilão de Energia Nova","2021-30",{"$f":"COUNTIF(D:D,Tabela1[[#This Row],[CD_PARC_USIN]])","v":2}]
[{"$f":"Tabela1[[#This Row],[NM_LEIL]]&Tabela1[[#This Row],[CD_PARC_USIN]]","v":"20º Leilão de Energia Nova908344"},"CAMPO LARGO VI PIE I5","CAMPO LARGO VI",908344,160,441,"20º Leilão de Energia Nova","2019-20",{"$f":"COUNTIF(D:D,Tabela1[[#This Row],[CD_PARC_USIN]])","v":1}]
[{"$f":"Tabela1[[#This Row],[NM_LEIL]]&Tabela1[[#This Row],[CD_PARC_USIN]]","v":"23º Leilão de Energia Nova908359"},"OESTE DE CANOAS","OESTE DE CANOAS 1",908359,167,455,"23º Leilão de Energia Nova","2021-20",{"$f":"COUNTIF(D:D,Tabela1[[#This Row],[CD_PARC_USIN]])","v":1}]
[{"$f":"Tabela1[[#This Row],[NM_LEIL]]&Tabela1[[#This Row],[CD_PARC_USIN]]","v":"8º Leilão de Energia Reserva908483"},"EOL ACRE I I5","VILA ACRE 1",908483,166,454,"8º Leilão de Energia Reserva","2018-20",{"$f":"COUNTIF(D:D,Tabela1[[#This Row],[CD_PARC_USIN]])","v":1}]
[{"$f":"Tabela1[[#This Row],[NM_LEIL]]&Tabela1[[#This Row],[CD_PARC_USIN]]","v":"7º Leilão de Energia Reserva908531"},"BOM JESUS DA LAPA 1 I8","UFV BOM JESUS LAPA 1",908531,165,453,"7º Leilão de Energia Reserva","2017-20",{"$f":"COUNTIF(D:D,Tabela1[[#This Row],[CD_PARC_USIN]])","v":1}]
[{"$f":"Tabela1[[#This Row],[NM_LEIL]]&Tabela1[[#This Row],[CD_PARC_USIN]]","v":"7º Leilão de Energia Reserva908532"},"BOM JESUS DA LAPA 2 I8","UFV BOM JESUS LAPA 2",908532,165,453,"7º Leilão de Energia Reserva","2017-20",{"$f":"COUNTIF(D:D,Tabela1[[#This Row],[CD_PARC_USIN]])","v":1}]
[{"$f":"Tabela1[[#This Row],[NM_LEIL]]&Tabela1[[#This Row],[CD_PARC_USIN]]","v":"20º Leilão de Energia Nova908533"},"UTE RIO GRANDE","RIO GRANDE",908533,160,440,"20º Leilão de Energia Nova","2019-25",{"$f":"COUNTIF(D:D,Tabela1[[#This Row],[CD_PARC_USIN]])","v":1}]
[{"$f":"Tabela1[[#This Row],[NM_LEIL]]&Tabela1[[#This Row],[CD_PARC_USIN]]","v":"18º Leilão de Energia Nova908534"},"SANTO ESTEVAO II I5","SANTO ESTEVAO II",908534,154,423,"18º Leilão de Energia Nova","2018-20",{"$f":"COUNTIF(D:D,Tabela1[[#This Row],[CD_PARC_USIN]])","v":1}]
[{"$f":"Tabela1[[#This Row],[NM_LEIL]]&Tabela1[[#This Row],[CD_PARC_USIN]]","v":"20º Leilão de Energia Nova908551"},"UTE GNA I","UTE GNA I",908551,160,440,"20º Leilão de Energia Nova","2019-25",{"$f":"COUNTIF(D:D,Tabela1[[#This Row],[CD_PARC_USIN]])","v":1}]
[{"$f":"Tabela1[[#This Row],[NM_LEIL]]&Tabela1[[#This Row],[CD_PARC_USIN]]","v":"18º Leilão de Energia Nova908552"},"STA VITORIA PALMAR V I5","EOL AURA MANG 13",908552,154,423,"18º Leilão de Energia Nova","2018-20",{"$f":"COUNTIF(D:D,Tabela1[[#This Row],[CD_PARC_USIN]])","v":1}]
[{"$f":"Tabela1[[#This Row],[NM_LEIL]]&Tabela1[[#This Row],[CD_PARC_USIN]]","v":"16º Leilão de Energia Nova908637"},"CGB","CAMPO GRANDE",908637,151,417,"16º Leilão de Energia Nova","2018-25",{"$f":"COUNTIF(D:D,Tabela1[[#This Row],[CD_PARC_USIN]])","v":1}]
[{"$f":"Tabela1[[#This Row],[NM_LEIL]]&Tabela1[[#This Row],[CD_PARC_USIN]]","v":"22º Leilão de Energia Nova908768"},"PCH FORTUNA II I5","PCH FORTUNA II",908768,164,450,"22º Leilão de Energia Nova","2018-30",{"$f":"COUNTIF(D:D,Tabela1[[#This Row],[CD_PARC_USIN]])","v":1}]
[{"$f":"Tabela1[[#This Row],[NM_LEIL]]&Tabela1[[#This Row],[CD_PARC_USIN]]","v":"22º Leilão de Energia Nova908769"},"PCH JACARE I5","JACARE",908769,164,450,"22º Leilão de Energia Nova","2018-30",{"$f":"COUNTIF(D:D,Tabela1[[#This Row],[CD_PARC_USIN]])","v":1}]
[{"$f":"Tabela1[[#This Row],[NM_LEIL]]&Tabela1[[#This Row],[CD_PARC_USIN]]","v":"22º Leilão de Energia Nova908774"},"PCH DORES DE GUANHAES I5","PCH DORES DE GUANHAE",908774,164,450,"22º Leilão de Energia Nova","2018-30",{"$f":"COUNTIF(D:D,Tabela1[[#This Row],[CD_PARC_USIN]])","v":1}]
[{"$f":"Tabela1[[#This Row],[NM_LEIL]]&Tabela1[[#This Row],[CD_PARC_USIN]]","v":"22º Leilão de Energia Nova908775"},"PCH SENHORA DO PORTO I5","SENHORA DO PORTO",908775,164,450,"22º Leilão de Energia Nova","2018-30",{"$f":"COUNTIF(D:D,Tabela1[[#This Row],[CD_PARC_USIN]])","v":1}]
[{"$f":"Tabela1[[#This Row],[NM_LEIL]]&Tabela1[[#This Row],[CD_PARC_USIN]]","v":"6º Leilão de Energia Reserva908776"},"CE ITAPUA V","UFV CAETITE 5",908776,159,438,"6º Leilão de Energia Reserva","2017-20",{"$f":"COUNTIF(D:D,Tabela1[[#This Row],[CD_PARC_USIN]])","v":1}]
[{"$f":"Tabela1[[#This Row],[NM_LEIL]]&Tabela1[[#This Row],[CD_PARC_USIN]]","v":"6º Leilão de Energia Reserva908777"},"DRACENA IV I5","UFV DRACENA 4",908777,159,438,"6º Leilão de Energia Reserva","2017-20",{"$f":"COUNTIF(D:D,Tabela1[[#This Row],[CD_PARC_USIN]])","v":1}]
[{"$f":"Tabela1[[#This Row],[NM_LEIL]]&Tabela1[[#This Row],[CD_PARC_USIN]]","v":"18º Leilão de Energia Nova908779"},"STA VITORIA PALMAR IV I5","EOL AURA MANGUEIRA12",908779,154,423,"18º Leilão de Energia Nova","2018-20",{"$f":"COUNTIF(D:D,Tabela1[[#This Row],[CD_PARC_USIN]])","v":1}]
[{"$f":"Tabela1[[#This Row],[NM_LEIL]]&Tabela1[[#This Row],[CD_PARC_USIN]]","v":"18º Leilão de Energia Nova908781"},"STA VITORIA PALMAR X I5","AURA MIRIM VIII",908781,154,423,"18º Leilão de Energia Nova","2018-20",{"$f":"COUNTIF(D:D,Tabela1[[#This Row],[CD_PARC_USIN]])","v":1}]
[{"$f":"Tabela1[[#This Row],[NM_LEIL]]&Tabela1[[#This Row],[CD_PARC_USIN]]","v":"18º Leilão de Energia Nova908782"},"EOL TECNOLOGIA I5","SERRA DO MEL 2 (ET)",908782,154,423,"18º Leilão de Energia Nova","2018-20",{"$f":"COUNTIF(D:D,Tabela1[[#This Row],[CD_PARC_USIN]])","v":1}]
[{"$f":"Tabela1[[#This Row],[NM_LEIL]]&Tabela1[[#This Row],[CD_PARC_USIN]]","v":"18º Leilão de Energia Nova908783"},"FURNAS","SERRA DO MEL 2 (FRN)",908783,154,423,"18º Leilão de Energia Nova","2018-20",{"$f":"COUNTIF(D:D,Tabela1[[#This Row],[CD_PARC_USIN]])","v":1}]
[{"$f":"Tabela1[[#This Row],[NM_LEIL]]&Tabela1[[#This Row],[CD_PARC_USIN]]","v":"18º Leilão de Energia Nova908784"},"GEOBR","SERRA DO MEL 2 (GEO)",908784,154,423,"18º Leilão de Energia Nova","2018-20",{"$f":"COUNTIF(D:D,Tabela1[[#This Row],[CD_PARC_USIN]])","v":1}]
[{"$f":"Tabela1[[#This Row],[NM_LEIL]]&Tabela1[[#This Row],[CD_PARC_USIN]]","v":"18º Leilão de Energia Nova908785"},"EOL TECNOLOGIA I5","SERRA DO MEL 3 (ET)",908785,154,423,"18º Leilão de Energia Nova","2018-20",{"$f":"COUNTIF(D:D,Tabela1[[#This Row],[CD_PARC_USIN]])","v":1}]
[{"$f":"Tabela1[[#This Row],[NM_LEIL]]&Tabela1[[#This Row],[CD_PARC_USIN]]","v":"18º Leilão de Energia Nova908786"},"FURNAS","SERRA DO MEL 3 (FRN)",908786,154,423,"18º Leilão de Energia Nova","2018-20",{"$f":"COUNTIF(D:D,Tabela1[[#This Row],[CD_PARC_USIN]])","v":1}]
[{"$f":"Tabela1[[#This Row],[NM_LEIL]]&Tabela1[[#This Row],[CD_PARC_USIN]]","v":"18º Leilão de Energia Nova908787"},"GEOBR","SERRA DO MEL 3 (GEO)",908787,154,423,"18º Leilão de Energia Nova","2018-20",{"$f":"COUNTIF(D:D,Tabela1[[#This Row],[CD_PARC_USIN]])","v":1}]
[{"$f":"Tabela1[[#This Row],[NM_LEIL]]&Tabela1[[#This Row],[CD_PARC_USIN]]","v":"6º Leilão de Energia Reserva908796"},"CE ITAPUA IV","UFV CAETITE 1",908796,159,438,"6º Leilão de Energia Reserva","2017-20",{"$f":"COUNTIF(D:D,Tabela1[[#This Row],[CD_PARC_USIN]])","v":1}]
[{"$f":"Tabela1[[#This Row],[NM_LEIL]]&Tabela1[[#This Row],[CD_PARC_USIN]]","v":"6º Leilão de Energia Reserva908797"},"CE ITAPUA IV","UFV CAETITE 2",908797,159,438,"6º Leilão de Energia Reserva","2017-20",{"$f":"COUNTIF(D:D,Tabela1[[#This Row],[CD_PARC_USIN]])","v":1}]
[{"$f":"Tabela1[[#This Row],[NM_LEIL]]&Tabela1[[#This Row],[CD_PARC_USIN]]","v":"6º Leilão de Energia Reserva908798"},"FCR VII I5","FCR III ITAPURANGA",908798,159,438,"6º Leilão de Energia Reserva","2017-20",{"$f":"COUNTIF(D:D,Tabela1[[#This Row],[CD_PARC_USIN]])","v":1}]
[{"$f":"Tabela1[[#This Row],[NM_LEIL]]&Tabela1[[#This Row],[CD_PARC_USIN]]","v":"6º Leilão de Energia Reserva908799"},"CE ITAPUA V","UFV CAETITE 4",908799,159,438,"6º Leilão de Energia Reserva","2017-20",{"$f":"COUNTIF(D:D,Tabela1[[#This Row],[CD_PARC_USIN]])","v":1}]
[{"$f":"Tabela1[[#This Row],[NM_LEIL]]&Tabela1[[#This Row],[CD_PARC_USIN]]","v":"6º Leilão de Energia Reserva908800"},"DRACENA I I5","UFV DRACENA 1",908800,159,438,"6º Leilão de Energia Reserva","2017-20",{"$f":"COUNTIF(D:D,Tabela1[[#This Row],[CD_PARC_USIN]])","v":1}]
[{"$f":"Tabela1[[#This Row],[NM_LEIL]]&Tabela1[[#This Row],[CD_PARC_USIN]]","v":"6º Leilão de Energia Reserva908801"},"DRACENA II I5","UFV DRACENA 2",908801,159,438,"6º Leilão de Energia Reserva","2017-20",{"$f":"COUNTIF(D:D,Tabela1[[#This Row],[CD_PARC_USIN]])","v":1}]
[{"$f":"Tabela1[[#This Row],[NM_LEIL]]&Tabela1[[#This Row],[CD_PARC_USIN]]","v":"6º Leilão de Energia Reserva908802"},"DRACENA III","UFV DRACENA 3",908802,159,438,"6º Leilão de Energia Reserva","2017-20",{"$f":"COUNTIF(D:D,Tabela1[[#This Row],[CD_PARC_USIN]])","v":1}]
[{"$f":"Tabela1[[#This Row],[NM_LEIL]]&Tabela1[[#This Row],[CD_PARC_USIN]]","v":"6º Leilão de Energia Reserva908803"},"COREMAS I I5","UFV COREMAS I",908803,159,438,"6º Leilão de Energia Reserva","2017-20",{"$f":"COUNTIF(D:D,Tabela1[[#This Row],[CD_PARC_USIN]])","v":1}]
[{"$f":"Tabela1[[#This Row],[NM_LEIL]]&Tabela1[[#This Row],[CD_PARC_USIN]]","v":"18º Leilão de Energia Nova908804"},"FURNAS","SERRA DO MEL 1 (FRN)",908804,154,423,"18º Leilão de Energia Nova","2018-20",{"$f":"COUNTIF(D:D,Tabela1[[#This Row],[CD_PARC_USIN]])","v":1}]
[{"$f":"Tabela1[[#This Row],[NM_LEIL]]&Tabela1[[#This Row],[CD_PARC_USIN]]","v":"18º Leilão de Energia Nova908805"},"GEOBR","SERRA DO MEL 1 (GEO)",908805,154,423,"18º Leilão de Energia Nova","2018-20",{"$f":"COUNTIF(D:D,Tabela1[[#This Row],[CD_PARC_USIN]])","v":1}]
[{"$f":"Tabela1[[#This Row],[NM_LEIL]]&Tabela1[[#This Row],[CD_PARC_USIN]]","v":"18º Leilão de Energia Nova908806"},"EOL TECNOLOGIA I5","SERRA DO MEL 1 (ET)",908806,154,423,"18º Leilão de Energia Nova","2018-20",{"$f":"COUNTIF(D:D,Tabela1[[#This Row],[CD_PARC_USIN]])","v":1}]
[{"$f":"Tabela1[[#This Row],[NM_LEIL]]&Tabela1[[#This Row],[CD_PARC_USIN]]","v":"18º Leilão de Energia Nova908867"},"JAU I5","EOL AROEIRA",908867,154,423,"18º Leilão de Energia Nova","2018-20",{"$f":"COUNTIF(D:D,Tabela1[[#This Row],[CD_PARC_USIN]])","v":1}]
[{"$f":"Tabela1[[#This Row],[NM_LEIL]]&Tabela1[[#This Row],[CD_PARC_USIN]]","v":"18º Leilão de Energia Nova908868"},"ASSURUA VI","EOL ASSURUA 6",908868,154,423,"18º Leilão de Energia Nova","2018-20",{"$f":"COUNTIF(D:D,Tabela1[[#This Row],[CD_PARC_USIN]])","v":1}]
[{"$f":"Tabela1[[#This Row],[NM_LEIL]]&Tabela1[[#This Row],[CD_PARC_USIN]]","v":"18º Leilão de Energia Nova908869"},"BONS VENTOS DA SERRA 2 I5","EOL B VEN CACIMBAS 2",908869,154,423,"18º Leilão de Energia Nova","2018-20",{"$f":"COUNTIF(D:D,Tabela1[[#This Row],[CD_PARC_USIN]])","v":1}]
[{"$f":"Tabela1[[#This Row],[NM_LEIL]]&Tabela1[[#This Row],[CD_PARC_USIN]]","v":"18º Leilão de Energia Nova908870"},"BONS VENTOS DA SERRA 2 I5","EOL B VEN CACIMBAS 3",908870,154,423,"18º Leilão de Energia Nova","2018-20",{"$f":"COUNTIF(D:D,Tabela1[[#This Row],[CD_PARC_USIN]])","v":1}]
[{"$f":"Tabela1[[#This Row],[NM_LEIL]]&Tabela1[[#This Row],[CD_PARC_USIN]]","v":"10º Leilão de Energia Reserva908877"},"PCH FIGUEIRA I5","PCH FIGUEIRA",908877,168,458,"10º Leilão de Energia Reserva","2020-30",{"$f":"COUNTIF(D:D,Tabela1[[#This Row],[CD_PARC_USIN]])","v":1}]
[{"$f":"Tabela1[[#This Row],[NM_LEIL]]&Tabela1[[#This Row],[CD_PARC_USIN]]","v":"18º Leilão de Energia Nova908885"},"ASSURUA I I5","EOL ASSURUA 1",908885,154,423,"18º Leilão de Energia Nova","2018-20",{"$f":"COUNTIF(D:D,Tabela1[[#This Row],[CD_PARC_USIN]])","v":1}]
[{"$f":"Tabela1[[#This Row],[NM_LEIL]]&Tabela1[[#This Row],[CD_PARC_USIN]]","v":"18º Leilão de Energia Nova908886"},"GEOCV II I5","CABECO VERMELHO 2",908886,154,423,"18º Leilão de Energia Nova","2018-20",{"$f":"COUNTIF(D:D,Tabela1[[#This Row],[CD_PARC_USIN]])","v":1}]
[{"$f":"Tabela1[[#This Row],[NM_LEIL]]&Tabela1[[#This Row],[CD_PARC_USIN]]","v":"18º Leilão de Energia Nova908887"},"CAPOEIRAS I I5","EOL CAPOEIRAS 1",908887,154,423,"18º Leilão de Energia Nova","2018-20",{"$f":"COUNTIF(D:D,Tabela1[[#This Row],[CD_PARC_USIN]])","v":1}]
[{"$f":"Tabela1[[#This Row],[NM_LEIL]]&Tabela1[[#This Row],[CD_PARC_USIN]]","v":"16º Leilão de Energia Nova908888"},"VERDE 08 I5","Verde 08",908888,151,416,"16º Leilão de Energia Nova","2018-30",{"$f":"COUNTIF(D:D,Tabela1[[#This Row],[CD_PARC_USIN]])","v":2}]
[{"$f":"Tabela1[[#This Row],[NM_LEIL]]&Tabela1[[#This Row],[CD_PARC_USIN]]","v":"26º Leilão de Energia Nova908888"},"VERDE 08 I5","Verde 08",908888,173,466,"26º Leilão de Energia Nova","2023-30",{"$f":"COUNTIF(D:D,Tabela1[[#This Row],[CD_PARC_USIN]])","v":2}]
[{"$f":"Tabela1[[#This Row],[NM_LEIL]]&Tabela1[[#This Row],[CD_PARC_USIN]]","v":"18º Leilão de Energia Nova908889"},"CHESF I5-A","TAMANDUÁ MIRIM 2",908889,154,423,"18º Leilão de Energia Nova","2018-20",{"$f":"COUNTIF(D:D,Tabela1[[#This Row],[CD_PARC_USIN]])","v":1}]
[{"$f":"Tabela1[[#This Row],[NM_LEIL]]&Tabela1[[#This Row],[CD_PARC_USIN]]","v":"18º Leilão de Energia Nova908890"},"EOL CATANDUBA I","CATANDUBA I",908890,154,423,"18º Leilão de Energia Nova","2018-20",{"$f":"COUNTIF(D:D,Tabela1[[#This Row],[CD_PARC_USIN]])","v":2}]
[{"$f":"Tabela1[[#This Row],[NM_LEIL]]&Tabela1[[#This Row],[CD_PARC_USIN]]","v":"18º Leilão de Energia Nova908890"},"EOL CATANDUBA I","CATANDUBA I",908890,154,422,"18º Leilão de Energia Nova","2018-25",{"$f":"COUNTIF(D:D,Tabela1[[#This Row],[CD_PARC_USIN]])","v":2}]
[{"$f":"Tabela1[[#This Row],[NM_LEIL]]&Tabela1[[#This Row],[CD_PARC_USIN]]","v":"18º Leilão de Energia Nova908891"},"BONS VENTOS DA SERRA 2 I5","EOL B VEN CACIMBAS 4",908891,154,423,"18º Leilão de Energia Nova","2018-20",{"$f":"COUNTIF(D:D,Tabela1[[#This Row],[CD_PARC_USIN]])","v":1}]
[{"$f":"Tabela1[[#This Row],[NM_LEIL]]&Tabela1[[#This Row],[CD_PARC_USIN]]","v":"18º Leilão de Energia Nova908892"},"BONS VENTOS DA SERRA 2 I5","EOL B VEN CACIMBAS 5",908892,154,423,"18º Leilão de Energia Nova","2018-20",{"$f":"COUNTIF(D:D,Tabela1[[#This Row],[CD_PARC_USIN]])","v":1}]
[{"$f":"Tabela1[[#This Row],[NM_LEIL]]&Tabela1[[#This Row],[CD_PARC_USIN]]","v":"18º Leilão de Energia Nova908893"},"BONS VENTOS DA SERRA 2 I5","EOL B VEN CACIMBAS 7",908893,154,423,"18º Leilão de Energia Nova","2018-20",{"$f":"COUNTIF(D:D,Tabela1[[#This Row],[CD_PARC_USIN]])","v":1}]
[{"$f":"Tabela1[[#This Row],[NM_LEIL]]&Tabela1[[#This Row],[CD_PARC_USIN]]","v":"18º Leilão de Energia Nova908894"},"GEOCV I5","EOL CABECO VERMELHO",908894,154,423,"18º Leilão de Energia Nova","2018-20",{"$f":"COUNTIF(D:D,Tabela1[[#This Row],[CD_PARC_USIN]])","v":1}]
[{"$f":"Tabela1[[#This Row],[NM_LEIL]]&Tabela1[[#This Row],[CD_PARC_USIN]]","v":"18º Leilão de Energia Nova908895"},"CAPOEIRAS II I5","EOL CAPOEIRAS 2",908895,154,423,"18º Leilão de Energia Nova","2018-20",{"$f":"COUNTIF(D:D,Tabela1[[#This Row],[CD_PARC_USIN]])","v":1}]
[{"$f":"Tabela1[[#This Row],[NM_LEIL]]&Tabela1[[#This Row],[CD_PARC_USIN]]","v":"18º Leilão de Energia Nova908896"},"EOL CATANDUBA II","CATANDUBA II",908896,154,423,"18º Leilão de Energia Nova","2018-20",{"$f":"COUNTIF(D:D,Tabela1[[#This Row],[CD_PARC_USIN]])","v":2}]
[{"$f":"Tabela1[[#This Row],[NM_LEIL]]&Tabela1[[#This Row],[CD_PARC_USIN]]","v":"18º Leilão de Energia Nova908896"},"EOL CATANDUBA II","CATANDUBA II",908896,154,422,"18º Leilão de Energia Nova","2018-25",{"$f":"COUNTIF(D:D,Tabela1[[#This Row],[CD_PARC_USIN]])","v":2}]
[{"$f":"Tabela1[[#This Row],[NM_LEIL]]&Tabela1[[#This Row],[CD_PARC_USIN]]","v":"18º Leilão de Energia Nova908897"},"UMBURANAS 1N","UMBURANAS 1",908897,154,423,"18º Leilão de Energia Nova","2018-20",{"$f":"COUNTIF(D:D,Tabela1[[#This Row],[CD_PARC_USIN]])","v":1}]
[{"$f":"Tabela1[[#This Row],[NM_LEIL]]&Tabela1[[#This Row],[CD_PARC_USIN]]","v":"18º Leilão de Energia Nova908898"},"AGUA LIMPA","PCH AGUA LIMPA",908898,154,421,"18º Leilão de Energia Nova","2018-30",{"$f":"COUNTIF(D:D,Tabela1[[#This Row],[CD_PARC_USIN]])","v":1}]
[{"$f":"Tabela1[[#This Row],[NM_LEIL]]&Tabela1[[#This Row],[CD_PARC_USIN]]","v":"18º Leilão de Energia Nova908899"},"PCH GARCA BRANCA I5","GARCA BRANCA",908899,154,421,"18º Leilão de Energia Nova","2018-30",{"$f":"COUNTIF(D:D,Tabela1[[#This Row],[CD_PARC_USIN]])","v":1}]
[{"$f":"Tabela1[[#This Row],[NM_LEIL]]&Tabela1[[#This Row],[CD_PARC_USIN]]","v":"18º Leilão de Energia Nova908901"},"PCH LINHA JACINTO","LINHA JACINTO",908901,154,421,"18º Leilão de Energia Nova","2018-30",{"$f":"COUNTIF(D:D,Tabela1[[#This Row],[CD_PARC_USIN]])","v":1}]
[{"$f":"Tabela1[[#This Row],[NM_LEIL]]&Tabela1[[#This Row],[CD_PARC_USIN]]","v":"18º Leilão de Energia Nova908902"},"CEC CANOAS I5","ADO POPINHAK",908902,154,421,"18º Leilão de Energia Nova","2018-30",{"$f":"COUNTIF(D:D,Tabela1[[#This Row],[CD_PARC_USIN]])","v":1}]
[{"$f":"Tabela1[[#This Row],[NM_LEIL]]&Tabela1[[#This Row],[CD_PARC_USIN]]","v":"18º Leilão de Energia Nova908907"},"SANTO ESTEVAO I I5","SANTO ESTEVAO I",908907,154,423,"18º Leilão de Energia Nova","2018-20",{"$f":"COUNTIF(D:D,Tabela1[[#This Row],[CD_PARC_USIN]])","v":1}]
[{"$f":"Tabela1[[#This Row],[NM_LEIL]]&Tabela1[[#This Row],[CD_PARC_USIN]]","v":"18º Leilão de Energia Nova908908"},"STA VITORIA PALMAR IX I5","EOL AURA MIRIM VI",908908,154,423,"18º Leilão de Energia Nova","2018-20",{"$f":"COUNTIF(D:D,Tabela1[[#This Row],[CD_PARC_USIN]])","v":1}]
[{"$f":"Tabela1[[#This Row],[NM_LEIL]]&Tabela1[[#This Row],[CD_PARC_USIN]]","v":"18º Leilão de Energia Nova908911"},"CURRAL DE PEDRAS III I5","Curral de Pedras III",908911,154,423,"18º Leilão de Energia Nova","2018-20",{"$f":"COUNTIF(D:D,Tabela1[[#This Row],[CD_PARC_USIN]])","v":1}]
[{"$f":"Tabela1[[#This Row],[NM_LEIL]]&Tabela1[[#This Row],[CD_PARC_USIN]]","v":"18º Leilão de Energia Nova908912"},"CURRAL DE PEDRAS IV","Curral de Pedras IV",908912,154,423,"18º Leilão de Energia Nova","2018-20",{"$f":"COUNTIF(D:D,Tabela1[[#This Row],[CD_PARC_USIN]])","v":1}]
[{"$f":"Tabela1[[#This Row],[NM_LEIL]]&Tabela1[[#This Row],[CD_PARC_USIN]]","v":"18º Leilão de Energia Nova908913"},"EOL ITAGUACU BAHIA","Itaguaçu da Bahia",908913,154,423,"18º Leilão de Energia Nova","2018-20",{"$f":"COUNTIF(D:D,Tabela1[[#This Row],[CD_PARC_USIN]])","v":1}]
[{"$f":"Tabela1[[#This Row],[NM_LEIL]]&Tabela1[[#This Row],[CD_PARC_USIN]]","v":"18º Leilão de Energia Nova908919"},"UMBURANAS 5N","UMBURANAS 10",908919,154,423,"18º Leilão de Energia Nova","2018-20",{"$f":"COUNTIF(D:D,Tabela1[[#This Row],[CD_PARC_USIN]])","v":1}]
[{"$f":"Tabela1[[#This Row],[NM_LEIL]]&Tabela1[[#This Row],[CD_PARC_USIN]]","v":"18º Leilão de Energia Nova908920"},"UMBURANAS 5N","UMBURANAS 11",908920,154,423,"18º Leilão de Energia Nova","2018-20",{"$f":"COUNTIF(D:D,Tabela1[[#This Row],[CD_PARC_USIN]])","v":1}]
[{"$f":"Tabela1[[#This Row],[NM_LEIL]]&Tabela1[[#This Row],[CD_PARC_USIN]]","v":"18º Leilão de Energia Nova908921"},"UMBURANAS 5N","UMBURANAS 12",908921,154,423,"18º Leilão de Energia Nova","2018-20",{"$f":"COUNTIF(D:D,Tabela1[[#This Row],[CD_PARC_USIN]])","v":1}]
[{"$f":"Tabela1[[#This Row],[NM_LEIL]]&Tabela1[[#This Row],[CD_PARC_USIN]]","v":"18º Leilão de Energia Nova908922"},"UMBURANAS 6N","UMBURANAS 13",908922,154,423,"18º Leilão de Energia Nova","2018-20",{"$f":"COUNTIF(D:D,Tabela1[[#This Row],[CD_PARC_USIN]])","v":1}]
[{"$f":"Tabela1[[#This Row],[NM_LEIL]]&Tabela1[[#This Row],[CD_PARC_USIN]]","v":"18º Leilão de Energia Nova908923"},"UMBURANAS 6N","UMBURANAS 14",908923,154,423,"18º Leilão de Energia Nova","2018-20",{"$f":"COUNTIF(D:D,Tabela1[[#This Row],[CD_PARC_USIN]])","v":1}]
[{"$f":"Tabela1[[#This Row],[NM_LEIL]]&Tabela1[[#This Row],[CD_PARC_USIN]]","v":"18º Leilão de Energia Nova908924"},"UMBURANAS 6N","UMBURANAS 15",908924,154,423,"18º Leilão de Energia Nova","2018-20",{"$f":"COUNTIF(D:D,Tabela1[[#This Row],[CD_PARC_USIN]])","v":1}]
[{"$f":"Tabela1[[#This Row],[NM_LEIL]]&Tabela1[[#This Row],[CD_PARC_USIN]]","v":"18º Leilão de Energia Nova908925"},"UMBURANAS 8N","UMBURANAS 16",908925,154,423,"18º Leilão de Energia Nova","2018-20",{"$f":"COUNTIF(D:D,Tabela1[[#This Row],[CD_PARC_USIN]])","v":1}]
[{"$f":"Tabela1[[#This Row],[NM_LEIL]]&Tabela1[[#This Row],[CD_PARC_USIN]]","v":"18º Leilão de Energia Nova908926"},"UMBURANAS 8N","UMBURANAS 18",908926,154,423,"18º Leilão de Energia Nova","2018-20",{"$f":"COUNTIF(D:D,Tabela1[[#This Row],[CD_PARC_USIN]])","v":1}]
[{"$f":"Tabela1[[#This Row],[NM_LEIL]]&Tabela1[[#This Row],[CD_PARC_USIN]]","v":"18º Leilão de Energia Nova908927"},"UMBURANAS 2N","UMBURANAS 4",908927,154,423,"18º Leilão de Energia Nova","2018-20",{"$f":"COUNTIF(D:D,Tabela1[[#This Row],[CD_PARC_USIN]])","v":1}]
[{"$f":"Tabela1[[#This Row],[NM_LEIL]]&Tabela1[[#This Row],[CD_PARC_USIN]]","v":"18º Leilão de Energia Nova908928"},"UMBURANAS 2N","UMBURANAS 5",908928,154,423,"18º Leilão de Energia Nova","2018-20",{"$f":"COUNTIF(D:D,Tabela1[[#This Row],[CD_PARC_USIN]])","v":1}]
[{"$f":"Tabela1[[#This Row],[NM_LEIL]]&Tabela1[[#This Row],[CD_PARC_USIN]]","v":"18º Leilão de Energia Nova908929"},"UMBURANAS 2N","UMBURANAS 6",908929,154,423,"18º Leilão de Energia Nova","2018-20",{"$f":"COUNTIF(D:D,Tabela1[[#This Row],[CD_PARC_USIN]])","v":1}]
[{"$f":"Tabela1[[#This Row],[NM_LEIL]]&Tabela1[[#This Row],[CD_PARC_USIN]]","v":"18º Leilão de Energia Nova908930"},"UMBURANAS 3N","UMBURANAS 7",908930,154,423,"18º Leilão de Energia Nova","2018-20",{"$f":"COUNTIF(D:D,Tabela1[[#This Row],[CD_PARC_USIN]])","v":1}]
[{"$f":"Tabela1[[#This Row],[NM_LEIL]]&Tabela1[[#This Row],[CD_PARC_USIN]]","v":"18º Leilão de Energia Nova908931"},"UMBURANAS 3N","UMBURANAS 8",908931,154,423,"18º Leilão de Energia Nova","2018-20",{"$f":"COUNTIF(D:D,Tabela1[[#This Row],[CD_PARC_USIN]])","v":1}]
[{"$f":"Tabela1[[#This Row],[NM_LEIL]]&Tabela1[[#This Row],[CD_PARC_USIN]]","v":"18º Leilão de Energia Nova908932"},"UMBURANAS 3N","UMBURANAS 9",908932,154,423,"18º Leilão de Energia Nova","2018-20",{"$f":"COUNTIF(D:D,Tabela1[[#This Row],[CD_PARC_USIN]])","v":1}]
[{"$f":"Tabela1[[#This Row],[NM_LEIL]]&Tabela1[[#This Row],[CD_PARC_USIN]]","v":"18º Leilão de Energia Nova908933"},"FORTE_12","UNIAO DOS VENTOS 12",908933,154,423,"18º Leilão de Energia Nova","2018-20",{"$f":"COUNTIF(D:D,Tabela1[[#This Row],[CD_PARC_USIN]])","v":1}]
[{"$f":"Tabela1[[#This Row],[NM_LEIL]]&Tabela1[[#This Row],[CD_PARC_USIN]]","v":"18º Leilão de Energia Nova908936"},"SM_15 I5","UNIAO DOS VENTOS 15",908936,154,423,"18º Leilão de Energia Nova","2018-20",{"$f":"COUNTIF(D:D,Tabela1[[#This Row],[CD_PARC_USIN]])","v":1}]
[{"$f":"Tabela1[[#This Row],[NM_LEIL]]&Tabela1[[#This Row],[CD_PARC_USIN]]","v":"18º Leilão de Energia Nova908937"},"PARAZINHENSES_16 I5","UNIAO DOS VENTOS 16",908937,154,423,"18º Leilão de Energia Nova","2018-20",{"$f":"COUNTIF(D:D,Tabela1[[#This Row],[CD_PARC_USIN]])","v":1}]
[{"$f":"Tabela1[[#This Row],[NM_LEIL]]&Tabela1[[#This Row],[CD_PARC_USIN]]","v":"18º Leilão de Energia Nova908938"},"EOL VENTOS DE STA LUIZA","VENTOS DE STA LUIZA",908938,154,423,"18º Leilão de Energia Nova","2018-20",{"$f":"COUNTIF(D:D,Tabela1[[#This Row],[CD_PARC_USIN]])","v":1}]
[{"$f":"Tabela1[[#This Row],[NM_LEIL]]&Tabela1[[#This Row],[CD_PARC_USIN]]","v":"18º Leilão de Energia Nova908939"},"EOL VENTOS DE STA MADALENA","VENTOS STA MADALENA",908939,154,423,"18º Leilão de Energia Nova","2018-20",{"$f":"COUNTIF(D:D,Tabela1[[#This Row],[CD_PARC_USIN]])","v":1}]
[{"$f":"Tabela1[[#This Row],[NM_LEIL]]&Tabela1[[#This Row],[CD_PARC_USIN]]","v":"18º Leilão de Energia Nova908940"},"EOL VENTOS DE STA MARCELLA","VENTOS STA MARCELLA",908940,154,423,"18º Leilão de Energia Nova","2018-20",{"$f":"COUNTIF(D:D,Tabela1[[#This Row],[CD_PARC_USIN]])","v":1}]
[{"$f":"Tabela1[[#This Row],[NM_LEIL]]&Tabela1[[#This Row],[CD_PARC_USIN]]","v":"18º Leilão de Energia Nova908941"},"EOL VENTOS DE STA VERA","VENTOS DE SANTA VERA",908941,154,423,"18º Leilão de Energia Nova","2018-20",{"$f":"COUNTIF(D:D,Tabela1[[#This Row],[CD_PARC_USIN]])","v":1}]
[{"$f":"Tabela1[[#This Row],[NM_LEIL]]&Tabela1[[#This Row],[CD_PARC_USIN]]","v":"18º Leilão de Energia Nova908942"},"EOL VENTOS DE SAO BENTO","VENTOS DE SAO BENTO",908942,154,423,"18º Leilão de Energia Nova","2018-20",{"$f":"COUNTIF(D:D,Tabela1[[#This Row],[CD_PARC_USIN]])","v":1}]
[{"$f":"Tabela1[[#This Row],[NM_LEIL]]&Tabela1[[#This Row],[CD_PARC_USIN]]","v":"18º Leilão de Energia Nova908943"},"EOL VENTOS DE SAO CIRILO","VENTOS DE SAO CIRILO",908943,154,423,"18º Leilão de Energia Nova","2018-20",{"$f":"COUNTIF(D:D,Tabela1[[#This Row],[CD_PARC_USIN]])","v":1}]
[{"$f":"Tabela1[[#This Row],[NM_LEIL]]&Tabela1[[#This Row],[CD_PARC_USIN]]","v":"18º Leilão de Energia Nova908944"},"EOL VENTOS DE SAO JOAO","VENTOS DE SAO JOAO",908944,154,423,"18º Leilão de Energia Nova","2018-20",{"$f":"COUNTIF(D:D,Tabela1[[#This Row],[CD_PARC_USIN]])","v":1}]
[{"$f":"Tabela1[[#This Row],[NM_LEIL]]&Tabela1[[#This Row],[CD_PARC_USIN]]","v":"18º Leilão de Energia Nova908945"},"EOL VENTOS DE SAO RAFAEL","VENTOS DE SAO RAFAEL",908945,154,423,"18º Leilão de Energia Nova","2018-20",{"$f":"COUNTIF(D:D,Tabela1[[#This Row],[CD_PARC_USIN]])","v":1}]
[{"$f":"Tabela1[[#This Row],[NM_LEIL]]&Tabela1[[#This Row],[CD_PARC_USIN]]","v":"22º Leilão de Energia Nova908946"},"DELTA 3 VII I5","EOL DELTA 3 07",908946,164,452,"22º Leilão de Energia Nova","2018-20",{"$f":"COUNTIF(D:D,Tabela1[[#This Row],[CD_PARC_USIN]])","v":1}]
[{"$f":"Tabela1[[#This Row],[NM_LEIL]]&Tabela1[[#This Row],[CD_PARC_USIN]]","v":"18º Leilão de Energia Nova908947"},"UMBURANAS 1N","UMBURANAS 2",908947,154,423,"18º Leilão de Energia Nova","2018-20",{"$f":"COUNTIF(D:D,Tabela1[[#This Row],[CD_PARC_USIN]])","v":1}]
[{"$f":"Tabela1[[#This Row],[NM_LEIL]]&Tabela1[[#This Row],[CD_PARC_USIN]]","v":"18º Leilão de Energia Nova908948"},"SAO MANOEL","SAO MANOEL",908948,154,421,"18º Leilão de Energia Nova","2018-30",{"$f":"COUNTIF(D:D,Tabela1[[#This Row],[CD_PARC_USIN]])","v":1}]
[{"$f":"Tabela1[[#This Row],[NM_LEIL]]&Tabela1[[#This Row],[CD_PARC_USIN]]","v":"16º Leilão de Energia Nova908949"},"ELETROSUL I8","PCH SANTO CRISTO",908949,151,416,"16º Leilão de Energia Nova","2018-30",{"$f":"COUNTIF(D:D,Tabela1[[#This Row],[CD_PARC_USIN]])","v":1}]
[{"$f":"Tabela1[[#This Row],[NM_LEIL]]&Tabela1[[#This Row],[CD_PARC_USIN]]","v":"18º Leilão de Energia Nova908950"},"ENGIE BR CVE PIE I5 2","UMBURANAS 3",908950,154,423,"18º Leilão de Energia Nova","2018-20",{"$f":"COUNTIF(D:D,Tabela1[[#This Row],[CD_PARC_USIN]])","v":1}]
[{"$f":"Tabela1[[#This Row],[NM_LEIL]]&Tabela1[[#This Row],[CD_PARC_USIN]]","v":"18º Leilão de Energia Nova908951"},"PCH MORRO GRANDE I5","MORRO GRANDE",908951,154,421,"18º Leilão de Energia Nova","2018-30",{"$f":"COUNTIF(D:D,Tabela1[[#This Row],[CD_PARC_USIN]])","v":1}]
[{"$f":"Tabela1[[#This Row],[NM_LEIL]]&Tabela1[[#This Row],[CD_PARC_USIN]]","v":"7º Leilão de Energia Reserva908971"},"LAPA 3 I8","UFV LAPA 3",908971,165,453,"7º Leilão de Energia Reserva","2017-20",{"$f":"COUNTIF(D:D,Tabela1[[#This Row],[CD_PARC_USIN]])","v":1}]
[{"$f":"Tabela1[[#This Row],[NM_LEIL]]&Tabela1[[#This Row],[CD_PARC_USIN]]","v":"7º Leilão de Energia Reserva908972"},"LAPA 2 I8","UFV LAPA 2",908972,165,453,"7º Leilão de Energia Reserva","2017-20",{"$f":"COUNTIF(D:D,Tabela1[[#This Row],[CD_PARC_USIN]])","v":1}]
[{"$f":"Tabela1[[#This Row],[NM_LEIL]]&Tabela1[[#This Row],[CD_PARC_USIN]]","v":"22º Leilão de Energia Nova908976"},"DELTA 3 I I5","EOL DELTA 3 01",908976,164,452,"22º Leilão de Energia Nova","2018-20",{"$f":"COUNTIF(D:D,Tabela1[[#This Row],[CD_PARC_USIN]])","v":1}]
[{"$f":"Tabela1[[#This Row],[NM_LEIL]]&Tabela1[[#This Row],[CD_PARC_USIN]]","v":"22º Leilão de Energia Nova908978"},"DELTA 3 III I5","EOL DELTA 3 03",908978,164,452,"22º Leilão de Energia Nova","2018-20",{"$f":"COUNTIF(D:D,Tabela1[[#This Row],[CD_PARC_USIN]])","v":1}]
[{"$f":"Tabela1[[#This Row],[NM_LEIL]]&Tabela1[[#This Row],[CD_PARC_USIN]]","v":"22º Leilão de Energia Nova908979"},"DELTA 3 IV I5","EOL DELTA 3 IV",908979,164,452,"22º Leilão de Energia Nova","2018-20",{"$f":"COUNTIF(D:D,Tabela1[[#This Row],[CD_PARC_USIN]])","v":1}]
[{"$f":"Tabela1[[#This Row],[NM_LEIL]]&Tabela1[[#This Row],[CD_PARC_USIN]]","v":"22º Leilão de Energia Nova908981"},"DELTA 3 II I5","EOL DELTA 3 02",908981,164,452,"22º Leilão de Energia Nova","2018-20",{"$f":"COUNTIF(D:D,Tabela1[[#This Row],[CD_PARC_USIN]])","v":1}]
[{"$f":"Tabela1[[#This Row],[NM_LEIL]]&Tabela1[[#This Row],[CD_PARC_USIN]]","v":"22º Leilão de Energia Nova908982"},"VENTOS DE SAO VINICIUS I5","VENTOS S VICENTE 08",908982,164,452,"22º Leilão de Energia Nova","2018-20",{"$f":"COUNTIF(D:D,Tabela1[[#This Row],[CD_PARC_USIN]])","v":1}]
[{"$f":"Tabela1[[#This Row],[NM_LEIL]]&Tabela1[[#This Row],[CD_PARC_USIN]]","v":"22º Leilão de Energia Nova908983"},"VENTOS DE SANTO ALBERTO I5","VENTOS S VICENTE 09",908983,164,452,"22º Leilão de Energia Nova","2018-20",{"$f":"COUNTIF(D:D,Tabela1[[#This Row],[CD_PARC_USIN]])","v":1}]
[{"$f":"Tabela1[[#This Row],[NM_LEIL]]&Tabela1[[#This Row],[CD_PARC_USIN]]","v":"22º Leilão de Energia Nova908984"},"VENTOS DE SANTO AGOSTINHO I5","VENTOS S VICENTE 10",908984,164,452,"22º Leilão de Energia Nova","2018-20",{"$f":"COUNTIF(D:D,Tabela1[[#This Row],[CD_PARC_USIN]])","v":1}]
[{"$f":"Tabela1[[#This Row],[NM_LEIL]]&Tabela1[[#This Row],[CD_PARC_USIN]]","v":"22º Leilão de Energia Nova908985"},"VENTOS DE SANTA ALBERTINA I5","VENTOS S VICENTE 11",908985,164,452,"22º Leilão de Energia Nova","2018-20",{"$f":"COUNTIF(D:D,Tabela1[[#This Row],[CD_PARC_USIN]])","v":1}]
[{"$f":"Tabela1[[#This Row],[NM_LEIL]]&Tabela1[[#This Row],[CD_PARC_USIN]]","v":"22º Leilão de Energia Nova908986"},"VENTOS DE SAO CASIMIRO I5","VENTOS S VICENTE 12",908986,164,452,"22º Leilão de Energia Nova","2018-20",{"$f":"COUNTIF(D:D,Tabela1[[#This Row],[CD_PARC_USIN]])","v":1}]
[{"$f":"Tabela1[[#This Row],[NM_LEIL]]&Tabela1[[#This Row],[CD_PARC_USIN]]","v":"22º Leilão de Energia Nova908987"},"VENTOS DE SAO ADEODATO I5","VENTOS S VICENTE 13",908987,164,452,"22º Leilão de Energia Nova","2018-20",{"$f":"COUNTIF(D:D,Tabela1[[#This Row],[CD_PARC_USIN]])","v":1}]
[{"$f":"Tabela1[[#This Row],[NM_LEIL]]&Tabela1[[#This Row],[CD_PARC_USIN]]","v":"22º Leilão de Energia Nova909011"},"DELTA 3 VI I5","EOL DELTA 3 06",909011,164,452,"22º Leilão de Energia Nova","2018-20",{"$f":"COUNTIF(D:D,Tabela1[[#This Row],[CD_PARC_USIN]])","v":1}]
[{"$f":"Tabela1[[#This Row],[NM_LEIL]]&Tabela1[[#This Row],[CD_PARC_USIN]]","v":"22º Leilão de Energia Nova909012"},"DELTA 3 V I5","EOL DELTA 3 05",909012,164,452,"22º Leilão de Energia Nova","2018-20",{"$f":"COUNTIF(D:D,Tabela1[[#This Row],[CD_PARC_USIN]])","v":1}]
[{"$f":"Tabela1[[#This Row],[NM_LEIL]]&Tabela1[[#This Row],[CD_PARC_USIN]]","v":"22º Leilão de Energia Nova909014"},"VENTOS DE SANTO AFONSO I5","VENTOS VICENTE 14",909014,164,452,"22º Leilão de Energia Nova","2018-20",{"$f":"COUNTIF(D:D,Tabela1[[#This Row],[CD_PARC_USIN]])","v":1}]
[{"$f":"Tabela1[[#This Row],[NM_LEIL]]&Tabela1[[#This Row],[CD_PARC_USIN]]","v":"22º Leilão de Energia Nova909015"},"E M ENERGETICA I5","PCH PEDRAS",909015,164,450,"22º Leilão de Energia Nova","2018-30",{"$f":"COUNTIF(D:D,Tabela1[[#This Row],[CD_PARC_USIN]])","v":1}]
[{"$f":"Tabela1[[#This Row],[NM_LEIL]]&Tabela1[[#This Row],[CD_PARC_USIN]]","v":"16º Leilão de Energia Nova909016"},"CES","UHE SINOP",909016,151,416,"16º Leilão de Energia Nova","2018-30",{"$f":"COUNTIF(D:D,Tabela1[[#This Row],[CD_PARC_USIN]])","v":1}]
[{"$f":"Tabela1[[#This Row],[NM_LEIL]]&Tabela1[[#This Row],[CD_PARC_USIN]]","v":"16º Leilão de Energia Nova909031"},"SANTA HELENA I5","PCH YPE",909031,151,416,"16º Leilão de Energia Nova","2018-30",{"$f":"COUNTIF(D:D,Tabela1[[#This Row],[CD_PARC_USIN]])","v":1}]
[{"$f":"Tabela1[[#This Row],[NM_LEIL]]&Tabela1[[#This Row],[CD_PARC_USIN]]","v":"16º Leilão de Energia Nova909032"},"CBB","CANTO DO BURITI",909032,151,417,"16º Leilão de Energia Nova","2018-25",{"$f":"COUNTIF(D:D,Tabela1[[#This Row],[CD_PARC_USIN]])","v":1}]
[{"$f":"Tabela1[[#This Row],[NM_LEIL]]&Tabela1[[#This Row],[CD_PARC_USIN]]","v":"23º Leilão de Energia Nova909069"},"UTE WD I5","UTE WD",909069,167,456,"23º Leilão de Energia Nova","2021-25",{"$f":"COUNTIF(D:D,Tabela1[[#This Row],[CD_PARC_USIN]])","v":1}]
[{"$f":"Tabela1[[#This Row],[NM_LEIL]]&Tabela1[[#This Row],[CD_PARC_USIN]]","v":"23º Leilão de Energia Nova909100"},"UHE SANTA BRANCA","UHE SANTA BRANCA",909100,167,457,"23º Leilão de Energia Nova","2021-30",{"$f":"COUNTIF(D:D,Tabela1[[#This Row],[CD_PARC_USIN]])","v":1}]
[{"$f":"Tabela1[[#This Row],[NM_LEIL]]&Tabela1[[#This Row],[CD_PARC_USIN]]","v":"23º Leilão de Energia Nova909101"},"BIOGAS I1","BIOGAS BONFIM",909101,167,456,"23º Leilão de Energia Nova","2021-25",{"$f":"COUNTIF(D:D,Tabela1[[#This Row],[CD_PARC_USIN]])","v":1}]
[{"$f":"Tabela1[[#This Row],[NM_LEIL]]&Tabela1[[#This Row],[CD_PARC_USIN]]","v":"23º Leilão de Energia Nova909102"},"ELDORADO UTE ONCA PINTADA I5","ONCA PINTADA",909102,167,456,"23º Leilão de Energia Nova","2021-25",{"$f":"COUNTIF(D:D,Tabela1[[#This Row],[CD_PARC_USIN]])","v":1}]
[{"$f":"Tabela1[[#This Row],[NM_LEIL]]&Tabela1[[#This Row],[CD_PARC_USIN]]","v":"23º Leilão de Energia Nova909103"},"PREDILECTA PIE I5 - USINA","PREDILECTA",909103,167,456,"23º Leilão de Energia Nova","2021-25",{"$f":"COUNTIF(D:D,Tabela1[[#This Row],[CD_PARC_USIN]])","v":1}]
[{"$f":"Tabela1[[#This Row],[NM_LEIL]]&Tabela1[[#This Row],[CD_PARC_USIN]]","v":"23º Leilão de Energia Nova909104"},"UTE VALE PARANA I5","VALE DO PARANA",909104,167,456,"23º Leilão de Energia Nova","2021-25",{"$f":"COUNTIF(D:D,Tabela1[[#This Row],[CD_PARC_USIN]])","v":1}]
[{"$f":"Tabela1[[#This Row],[NM_LEIL]]&Tabela1[[#This Row],[CD_PARC_USIN]]","v":"22º Leilão de Energia Nova909105"},"UTE PROSPERIDADE I","UTE PROSPERIDADE I",909105,164,452,"22º Leilão de Energia Nova","2018-20",{"$f":"COUNTIF(D:D,Tabela1[[#This Row],[CD_PARC_USIN]])","v":1}]
[{"$f":"Tabela1[[#This Row],[NM_LEIL]]&Tabela1[[#This Row],[CD_PARC_USIN]]","v":"22º Leilão de Energia Nova909106"},"SEPE GERACAO I5","SAO SEPE",909106,164,452,"22º Leilão de Energia Nova","2018-20",{"$f":"COUNTIF(D:D,Tabela1[[#This Row],[CD_PARC_USIN]])","v":1}]
[{"$f":"Tabela1[[#This Row],[NM_LEIL]]&Tabela1[[#This Row],[CD_PARC_USIN]]","v":"18º Leilão de Energia Nova909107"},"CHESF I5-A","CASA NOVA 2",909107,154,423,"18º Leilão de Energia Nova","2018-20",{"$f":"COUNTIF(D:D,Tabela1[[#This Row],[CD_PARC_USIN]])","v":1}]
[{"$f":"Tabela1[[#This Row],[NM_LEIL]]&Tabela1[[#This Row],[CD_PARC_USIN]]","v":"18º Leilão de Energia Nova909108"},"CHESF I5-A","CASA NOVA 3",909108,154,423,"18º Leilão de Energia Nova","2018-20",{"$f":"COUNTIF(D:D,Tabela1[[#This Row],[CD_PARC_USIN]])","v":1}]
[{"$f":"Tabela1[[#This Row],[NM_LEIL]]&Tabela1[[#This Row],[CD_PARC_USIN]]","v":"18º Leilão de Energia Nova909109"},"JAU I5","JERICO",909109,154,423,"18º Leilão de Energia Nova","2018-20",{"$f":"COUNTIF(D:D,Tabela1[[#This Row],[CD_PARC_USIN]])","v":1}]
[{"$f":"Tabela1[[#This Row],[NM_LEIL]]&Tabela1[[#This Row],[CD_PARC_USIN]]","v":"18º Leilão de Energia Nova909110"},"JAU I5","UMBUZEIROS",909110,154,423,"18º Leilão de Energia Nova","2018-20",{"$f":"COUNTIF(D:D,Tabela1[[#This Row],[CD_PARC_USIN]])","v":1}]
[{"$f":"Tabela1[[#This Row],[NM_LEIL]]&Tabela1[[#This Row],[CD_PARC_USIN]]","v":"16º Leilão de Energia Nova909114"},"UTE SANTA HELENA I5","SANTA HELENA MS",909114,151,417,"16º Leilão de Energia Nova","2018-25",{"$f":"COUNTIF(D:D,Tabela1[[#This Row],[CD_PARC_USIN]])","v":1}]
[{"$f":"Tabela1[[#This Row],[NM_LEIL]]&Tabela1[[#This Row],[CD_PARC_USIN]]","v":"6º Leilão de Energia Reserva909288"},"ENEL NORTE SOLAR I8","ITUVERAVA 1",909288,159,438,"6º Leilão de Energia Reserva","2017-20",{"$f":"COUNTIF(D:D,Tabela1[[#This Row],[CD_PARC_USIN]])","v":1}]
[{"$f":"Tabela1[[#This Row],[NM_LEIL]]&Tabela1[[#This Row],[CD_PARC_USIN]]","v":"6º Leilão de Energia Reserva909289"},"ENEL ITUVERAVA SOLAR I8","ITUVERAVA 3",909289,159,438,"6º Leilão de Energia Reserva","2017-20",{"$f":"COUNTIF(D:D,Tabela1[[#This Row],[CD_PARC_USIN]])","v":1}]
[{"$f":"Tabela1[[#This Row],[NM_LEIL]]&Tabela1[[#This Row],[CD_PARC_USIN]]","v":"6º Leilão de Energia Reserva909306"},"ENEL NORTE SOLAR I8","ITUVERAVA 2",909306,159,438,"6º Leilão de Energia Reserva","2017-20",{"$f":"COUNTIF(D:D,Tabela1[[#This Row],[CD_PARC_USIN]])","v":1}]
[{"$f":"Tabela1[[#This Row],[NM_LEIL]]&Tabela1[[#This Row],[CD_PARC_USIN]]","v":"18º Leilão de Energia Nova909376"},"STA VITORIA PALMAR VII I5","EOL AURA MANG 17",909376,154,423,"18º Leilão de Energia Nova","2018-20",{"$f":"COUNTIF(D:D,Tabela1[[#This Row],[CD_PARC_USIN]])","v":1}]
[{"$f":"Tabela1[[#This Row],[NM_LEIL]]&Tabela1[[#This Row],[CD_PARC_USIN]]","v":"20º Leilão de Energia Nova909378"},"ELETRONORTE UTE MAUA 3","UTE MAUÁ 3",909378,160,440,"20º Leilão de Energia Nova","2019-25",{"$f":"COUNTIF(D:D,Tabela1[[#This Row],[CD_PARC_USIN]])","v":1}]
[{"$f":"Tabela1[[#This Row],[NM_LEIL]]&Tabela1[[#This Row],[CD_PARC_USIN]]","v":"18º Leilão de Energia Nova909379"},"CPFL PEDRA CHEIROSA II I5","PEDRA CHEIROSA 2",909379,154,423,"18º Leilão de Energia Nova","2018-20",{"$f":"COUNTIF(D:D,Tabela1[[#This Row],[CD_PARC_USIN]])","v":1}]
[{"$f":"Tabela1[[#This Row],[NM_LEIL]]&Tabela1[[#This Row],[CD_PARC_USIN]]","v":"6º Leilão de Energia Reserva909381"},"GUAIMBE I I5","GUAIMBE 1",909381,159,438,"6º Leilão de Energia Reserva","2017-20",{"$f":"COUNTIF(D:D,Tabela1[[#This Row],[CD_PARC_USIN]])","v":1}]
[{"$f":"Tabela1[[#This Row],[NM_LEIL]]&Tabela1[[#This Row],[CD_PARC_USIN]]","v":"6º Leilão de Energia Reserva909382"},"SAO VIRGILIO 03 I5","VENTOS S VIRGILIO 03",909382,159,439,"6º Leilão de Energia Reserva","2017-20",{"$f":"COUNTIF(D:D,Tabela1[[#This Row],[CD_PARC_USIN]])","v":1}]
[{"$f":"Tabela1[[#This Row],[NM_LEIL]]&Tabela1[[#This Row],[CD_PARC_USIN]]","v":"18º Leilão de Energia Nova909383"},"EOL ALTO DO BONITO I5","VENTOS DA BAHIA 2",909383,154,423,"18º Leilão de Energia Nova","2018-20",{"$f":"COUNTIF(D:D,Tabela1[[#This Row],[CD_PARC_USIN]])","v":1}]
[{"$f":"Tabela1[[#This Row],[NM_LEIL]]&Tabela1[[#This Row],[CD_PARC_USIN]]","v":"6º Leilão de Energia Reserva909384"},"ENEL SUL SULAR I8","ITUVERAVA 05",909384,159,438,"6º Leilão de Energia Reserva","2017-20",{"$f":"COUNTIF(D:D,Tabela1[[#This Row],[CD_PARC_USIN]])","v":1}]
[{"$f":"Tabela1[[#This Row],[NM_LEIL]]&Tabela1[[#This Row],[CD_PARC_USIN]]","v":"6º Leilão de Energia Reserva909385"},"ENEL SUL SULAR I8","ITUVERAVA 6",909385,159,438,"6º Leilão de Energia Reserva","2017-20",{"$f":"COUNTIF(D:D,Tabela1[[#This Row],[CD_PARC_USIN]])","v":1}]
[{"$f":"Tabela1[[#This Row],[NM_LEIL]]&Tabela1[[#This Row],[CD_PARC_USIN]]","v":"18º Leilão de Energia Nova909391"},"CPFL PEDRA CHEIROSA I5","PEDRA CHEIROSA 1",909391,154,423,"18º Leilão de Energia Nova","2018-20",{"$f":"COUNTIF(D:D,Tabela1[[#This Row],[CD_PARC_USIN]])","v":1}]
[{"$f":"Tabela1[[#This Row],[NM_LEIL]]&Tabela1[[#This Row],[CD_PARC_USIN]]","v":"20º Leilão de Energia Nova909410"},"GUARANI I5","GUARANI CRUZ ALTA 2",909410,160,440,"20º Leilão de Energia Nova","2019-25",{"$f":"COUNTIF(D:D,Tabela1[[#This Row],[CD_PARC_USIN]])","v":1}]
[{"$f":"Tabela1[[#This Row],[NM_LEIL]]&Tabela1[[#This Row],[CD_PARC_USIN]]","v":"20º Leilão de Energia Nova909431"},"LAJARI I5","LAJARI",909431,160,442,"20º Leilão de Energia Nova","2019-30",{"$f":"COUNTIF(D:D,Tabela1[[#This Row],[CD_PARC_USIN]])","v":1}]
[{"$f":"Tabela1[[#This Row],[NM_LEIL]]&Tabela1[[#This Row],[CD_PARC_USIN]]","v":"20º Leilão de Energia Nova909452"},"YTI","COSTA RICA 1",909452,160,440,"20º Leilão de Energia Nova","2019-25",{"$f":"COUNTIF(D:D,Tabela1[[#This Row],[CD_PARC_USIN]])","v":1}]
[{"$f":"Tabela1[[#This Row],[NM_LEIL]]&Tabela1[[#This Row],[CD_PARC_USIN]]","v":"20º Leilão de Energia Nova909477"},"CAMPO LARGO XXI PIE I5","CAMPO LARGO XXI",909477,160,441,"20º Leilão de Energia Nova","2019-20",{"$f":"COUNTIF(D:D,Tabela1[[#This Row],[CD_PARC_USIN]])","v":1}]
[{"$f":"Tabela1[[#This Row],[NM_LEIL]]&Tabela1[[#This Row],[CD_PARC_USIN]]","v":"18º Leilão de Energia Nova909478"},"EOL TECNOLOGIA I5","ARARA AZUL EOL TEC",909478,154,423,"18º Leilão de Energia Nova","2018-20",{"$f":"COUNTIF(D:D,Tabela1[[#This Row],[CD_PARC_USIN]])","v":1}]
[{"$f":"Tabela1[[#This Row],[NM_LEIL]]&Tabela1[[#This Row],[CD_PARC_USIN]]","v":"18º Leilão de Energia Nova909479"},"VENTOS TEC","ARARA AZUL VENTOS",909479,154,423,"18º Leilão de Energia Nova","2018-20",{"$f":"COUNTIF(D:D,Tabela1[[#This Row],[CD_PARC_USIN]])","v":1}]
[{"$f":"Tabela1[[#This Row],[NM_LEIL]]&Tabela1[[#This Row],[CD_PARC_USIN]]","v":"18º Leilão de Energia Nova909480"},"FURNAS","ARARA AZUL FURNAS",909480,154,423,"18º Leilão de Energia Nova","2018-20",{"$f":"COUNTIF(D:D,Tabela1[[#This Row],[CD_PARC_USIN]])","v":1}]
[{"$f":"Tabela1[[#This Row],[NM_LEIL]]&Tabela1[[#This Row],[CD_PARC_USIN]]","v":"18º Leilão de Energia Nova909481"},"CGE ARARA AZUL","ARARA AZUL CGE",909481,154,423,"18º Leilão de Energia Nova","2018-20",{"$f":"COUNTIF(D:D,Tabela1[[#This Row],[CD_PARC_USIN]])","v":1}]
[{"$f":"Tabela1[[#This Row],[NM_LEIL]]&Tabela1[[#This Row],[CD_PARC_USIN]]","v":"18º Leilão de Energia Nova909482"},"EOL TECNOLOGIA I5","BENTEVI EOL TEC",909482,154,423,"18º Leilão de Energia Nova","2018-20",{"$f":"COUNTIF(D:D,Tabela1[[#This Row],[CD_PARC_USIN]])","v":1}]
[{"$f":"Tabela1[[#This Row],[NM_LEIL]]&Tabela1[[#This Row],[CD_PARC_USIN]]","v":"18º Leilão de Energia Nova909483"},"FURNAS","BENTEVI FURNAS",909483,154,423,"18º Leilão de Energia Nova","2018-20",{"$f":"COUNTIF(D:D,Tabela1[[#This Row],[CD_PARC_USIN]])","v":1}]
[{"$f":"Tabela1[[#This Row],[NM_LEIL]]&Tabela1[[#This Row],[CD_PARC_USIN]]","v":"18º Leilão de Energia Nova909484"},"VENTOS TEC","BENTEVI VENTOS",909484,154,423,"18º Leilão de Energia Nova","2018-20",{"$f":"COUNTIF(D:D,Tabela1[[#This Row],[CD_PARC_USIN]])","v":1}]
[{"$f":"Tabela1[[#This Row],[NM_LEIL]]&Tabela1[[#This Row],[CD_PARC_USIN]]","v":"18º Leilão de Energia Nova909485"},"CGE BENTEVI","BENTEVI CGE",909485,154,423,"18º Leilão de Energia Nova","2018-20",{"$f":"COUNTIF(D:D,Tabela1[[#This Row],[CD_PARC_USIN]])","v":1}]
[{"$f":"Tabela1[[#This Row],[NM_LEIL]]&Tabela1[[#This Row],[CD_PARC_USIN]]","v":"18º Leilão de Energia Nova909486"},"CGE OURO VERDE I","OURO VERDE I CGE",909486,154,423,"18º Leilão de Energia Nova","2018-20",{"$f":"COUNTIF(D:D,Tabela1[[#This Row],[CD_PARC_USIN]])","v":1}]
[{"$f":"Tabela1[[#This Row],[NM_LEIL]]&Tabela1[[#This Row],[CD_PARC_USIN]]","v":"18º Leilão de Energia Nova909487"},"EOL TECNOLOGIA I5","OURO VERDE I EOL TEC",909487,154,423,"18º Leilão de Energia Nova","2018-20",{"$f":"COUNTIF(D:D,Tabela1[[#This Row],[CD_PARC_USIN]])","v":1}]
[{"$f":"Tabela1[[#This Row],[NM_LEIL]]&Tabela1[[#This Row],[CD_PARC_USIN]]","v":"18º Leilão de Energia Nova909488"},"VENTOS TEC","OURO VERDE I VENTOS",909488,154,423,"18º Leilão de Energia Nova","2018-20",{"$f":"COUNTIF(D:D,Tabela1[[#This Row],[CD_PARC_USIN]])","v":1}]
[{"$f":"Tabela1[[#This Row],[NM_LEIL]]&Tabela1[[#This Row],[CD_PARC_USIN]]","v":"18º Leilão de Energia Nova909489"},"FURNAS","OURO VERDE I FURNAS",909489,154,423,"18º Leilão de Energia Nova","2018-20",{"$f":"COUNTIF(D:D,Tabela1[[#This Row],[CD_PARC_USIN]])","v":1}]
[{"$f":"Tabela1[[#This Row],[NM_LEIL]]&Tabela1[[#This Row],[CD_PARC_USIN]]","v":"18º Leilão de Energia Nova909490"},"EOL TECNOLOGIA I5","OURO VERDE II EOLTEC",909490,154,423,"18º Leilão de Energia Nova","2018-20",{"$f":"COUNTIF(D:D,Tabela1[[#This Row],[CD_PARC_USIN]])","v":1}]
[{"$f":"Tabela1[[#This Row],[NM_LEIL]]&Tabela1[[#This Row],[CD_PARC_USIN]]","v":"18º Leilão de Energia Nova909491"},"CGE OURO VERDE II","OURO VERDE II CGE",909491,154,423,"18º Leilão de Energia Nova","2018-20",{"$f":"COUNTIF(D:D,Tabela1[[#This Row],[CD_PARC_USIN]])","v":1}]
[{"$f":"Tabela1[[#This Row],[NM_LEIL]]&Tabela1[[#This Row],[CD_PARC_USIN]]","v":"18º Leilão de Energia Nova909492"},"VENTOS TEC","OURO VERDE II VENTOS",909492,154,423,"18º Leilão de Energia Nova","2018-20",{"$f":"COUNTIF(D:D,Tabela1[[#This Row],[CD_PARC_USIN]])","v":1}]
[{"$f":"Tabela1[[#This Row],[NM_LEIL]]&Tabela1[[#This Row],[CD_PARC_USIN]]","v":"18º Leilão de Energia Nova909493"},"FURNAS","OURO VERDE II FURNAS",909493,154,423,"18º Leilão de Energia Nova","2018-20",{"$f":"COUNTIF(D:D,Tabela1[[#This Row],[CD_PARC_USIN]])","v":1}]
[{"$f":"Tabela1[[#This Row],[NM_LEIL]]&Tabela1[[#This Row],[CD_PARC_USIN]]","v":"18º Leilão de Energia Nova909494"},"EOL TECNOLOGIA I5","UIRAPURU EOL TEC",909494,154,423,"18º Leilão de Energia Nova","2018-20",{"$f":"COUNTIF(D:D,Tabela1[[#This Row],[CD_PARC_USIN]])","v":1}]
[{"$f":"Tabela1[[#This Row],[NM_LEIL]]&Tabela1[[#This Row],[CD_PARC_USIN]]","v":"18º Leilão de Energia Nova909495"},"VENTOS TEC","UIRAPURU VENTOS",909495,154,423,"18º Leilão de Energia Nova","2018-20",{"$f":"COUNTIF(D:D,Tabela1[[#This Row],[CD_PARC_USIN]])","v":1}]
[{"$f":"Tabela1[[#This Row],[NM_LEIL]]&Tabela1[[#This Row],[CD_PARC_USIN]]","v":"18º Leilão de Energia Nova909496"},"FURNAS","UIRAPURU FURNAS",909496,154,423,"18º Leilão de Energia Nova","2018-20",{"$f":"COUNTIF(D:D,Tabela1[[#This Row],[CD_PARC_USIN]])","v":1}]
[{"$f":"Tabela1[[#This Row],[NM_LEIL]]&Tabela1[[#This Row],[CD_PARC_USIN]]","v":"18º Leilão de Energia Nova909497"},"CGE UIRAPURU","UIRAPURU CGE",909497,154,423,"18º Leilão de Energia Nova","2018-20",{"$f":"COUNTIF(D:D,Tabela1[[#This Row],[CD_PARC_USIN]])","v":1}]
[{"$f":"Tabela1[[#This Row],[NM_LEIL]]&Tabela1[[#This Row],[CD_PARC_USIN]]","v":"20º Leilão de Energia Nova909498"},"LAGOA DO BARRO I I5","AURA LAGOA DO BARRO",909498,160,441,"20º Leilão de Energia Nova","2019-20",{"$f":"COUNTIF(D:D,Tabela1[[#This Row],[CD_PARC_USIN]])","v":1}]
[{"$f":"Tabela1[[#This Row],[NM_LEIL]]&Tabela1[[#This Row],[CD_PARC_USIN]]","v":"6º Leilão de Energia Reserva909499"},"CAPOEIRAS III I5","CAPOEIRAS 3",909499,159,439,"6º Leilão de Energia Reserva","2017-20",{"$f":"COUNTIF(D:D,Tabela1[[#This Row],[CD_PARC_USIN]])","v":1}]
[{"$f":"Tabela1[[#This Row],[NM_LEIL]]&Tabela1[[#This Row],[CD_PARC_USIN]]","v":"6º Leilão de Energia Reserva909500"},"EOL ESPERANCA I5","EOL Esperança do Nor",909500,159,439,"6º Leilão de Energia Reserva","2017-20",{"$f":"COUNTIF(D:D,Tabela1[[#This Row],[CD_PARC_USIN]])","v":1}]
[{"$f":"Tabela1[[#This Row],[NM_LEIL]]&Tabela1[[#This Row],[CD_PARC_USIN]]","v":"6º Leilão de Energia Reserva909501"},"EOL MARIA HELENA I5","EOL Maria Helena",909501,159,439,"6º Leilão de Energia Reserva","2017-20",{"$f":"COUNTIF(D:D,Tabela1[[#This Row],[CD_PARC_USIN]])","v":1}]
[{"$f":"Tabela1[[#This Row],[NM_LEIL]]&Tabela1[[#This Row],[CD_PARC_USIN]]","v":"6º Leilão de Energia Reserva909502"},"LARANJEIRAS I I5","LARANJEIRAS 1",909502,159,439,"6º Leilão de Energia Reserva","2017-20",{"$f":"COUNTIF(D:D,Tabela1[[#This Row],[CD_PARC_USIN]])","v":1}]
[{"$f":"Tabela1[[#This Row],[NM_LEIL]]&Tabela1[[#This Row],[CD_PARC_USIN]]","v":"21º Leilão de Energia Nova909503"},"AGUA CLARA I5","PCH BANDEIRANTE",909503,161,444,"21º Leilão de Energia Nova","2020-30",{"$f":"COUNTIF(D:D,Tabela1[[#This Row],[CD_PARC_USIN]])","v":1}]
[{"$f":"Tabela1[[#This Row],[NM_LEIL]]&Tabela1[[#This Row],[CD_PARC_USIN]]","v":"7º Leilão de Energia Reserva909504"},"COREMAS II I5","COREMAS II",909504,165,453,"7º Leilão de Energia Reserva","2017-20",{"$f":"COUNTIF(D:D,Tabela1[[#This Row],[CD_PARC_USIN]])","v":1}]
[{"$f":"Tabela1[[#This Row],[NM_LEIL]]&Tabela1[[#This Row],[CD_PARC_USIN]]","v":"20º Leilão de Energia Nova909505"},"YPE ENERGIA","ACRE",909505,160,440,"20º Leilão de Energia Nova","2019-25",{"$f":"COUNTIF(D:D,Tabela1[[#This Row],[CD_PARC_USIN]])","v":1}]
[{"$f":"Tabela1[[#This Row],[NM_LEIL]]&Tabela1[[#This Row],[CD_PARC_USIN]]","v":"7º Leilão de Energia Reserva909506"},"VALE III I5","VERDE VALE III",909506,165,453,"7º Leilão de Energia Reserva","2017-20",{"$f":"COUNTIF(D:D,Tabela1[[#This Row],[CD_PARC_USIN]])","v":1}]
[{"$f":"Tabela1[[#This Row],[NM_LEIL]]&Tabela1[[#This Row],[CD_PARC_USIN]]","v":"21º Leilão de Energia Nova909507"},"VERDE 4A I5","VERDE 4A",909507,161,444,"21º Leilão de Energia Nova","2020-30",{"$f":"COUNTIF(D:D,Tabela1[[#This Row],[CD_PARC_USIN]])","v":1}]
[{"$f":"Tabela1[[#This Row],[NM_LEIL]]&Tabela1[[#This Row],[CD_PARC_USIN]]","v":"21º Leilão de Energia Nova909509"},"UHE ITAOCARA","UHE ITAOCARA I",909509,161,444,"21º Leilão de Energia Nova","2020-30",{"$f":"COUNTIF(D:D,Tabela1[[#This Row],[CD_PARC_USIN]])","v":1}]
[{"$f":"Tabela1[[#This Row],[NM_LEIL]]&Tabela1[[#This Row],[CD_PARC_USIN]]","v":"21º Leilão de Energia Nova909510"},"TIBAGI I5","TIBAGI MONTANTE",909510,161,444,"21º Leilão de Energia Nova","2020-30",{"$f":"COUNTIF(D:D,Tabela1[[#This Row],[CD_PARC_USIN]])","v":1}]
[{"$f":"Tabela1[[#This Row],[NM_LEIL]]&Tabela1[[#This Row],[CD_PARC_USIN]]","v":"18º Leilão de Energia Nova909511"},"EOL TECNOLOGIA I5","OURO VERDE 3 EOL TEC",909511,154,423,"18º Leilão de Energia Nova","2018-20",{"$f":"COUNTIF(D:D,Tabela1[[#This Row],[CD_PARC_USIN]])","v":1}]
[{"$f":"Tabela1[[#This Row],[NM_LEIL]]&Tabela1[[#This Row],[CD_PARC_USIN]]","v":"18º Leilão de Energia Nova909512"},"CGE OURO VERDE III","OURO VERDE 3 CGE",909512,154,423,"18º Leilão de Energia Nova","2018-20",{"$f":"COUNTIF(D:D,Tabela1[[#This Row],[CD_PARC_USIN]])","v":1}]
[{"$f":"Tabela1[[#This Row],[NM_LEIL]]&Tabela1[[#This Row],[CD_PARC_USIN]]","v":"18º Leilão de Energia Nova909513"},"VENTOS TEC","OURO VERDE 3 VENTOS",909513,154,423,"18º Leilão de Energia Nova","2018-20",{"$f":"COUNTIF(D:D,Tabela1[[#This Row],[CD_PARC_USIN]])","v":1}]
[{"$f":"Tabela1[[#This Row],[NM_LEIL]]&Tabela1[[#This Row],[CD_PARC_USIN]]","v":"18º Leilão de Energia Nova909514"},"FURNAS","OURO VERDE 3 FURNAS",909514,154,423,"18º Leilão de Energia Nova","2018-20",{"$f":"COUNTIF(D:D,Tabela1[[#This Row],[CD_PARC_USIN]])","v":1}]
[{"$f":"Tabela1[[#This Row],[NM_LEIL]]&Tabela1[[#This Row],[CD_PARC_USIN]]","v":"18º Leilão de Energia Nova909515"},"FURNAS","SANTA ROSA FURNAS",909515,154,423,"18º Leilão de Energia Nova","2018-20",{"$f":"COUNTIF(D:D,Tabela1[[#This Row],[CD_PARC_USIN]])","v":1}]
[{"$f":"Tabela1[[#This Row],[NM_LEIL]]&Tabela1[[#This Row],[CD_PARC_USIN]]","v":"18º Leilão de Energia Nova909516"},"EOL TECNOLOGIA I5","SANTA ROSA EOL TEC",909516,154,423,"18º Leilão de Energia Nova","2018-20",{"$f":"COUNTIF(D:D,Tabela1[[#This Row],[CD_PARC_USIN]])","v":1}]
[{"$f":"Tabela1[[#This Row],[NM_LEIL]]&Tabela1[[#This Row],[CD_PARC_USIN]]","v":"18º Leilão de Energia Nova909517"},"VENTOS TEC","SANTA ROSA VENTOS",909517,154,423,"18º Leilão de Energia Nova","2018-20",{"$f":"COUNTIF(D:D,Tabela1[[#This Row],[CD_PARC_USIN]])","v":1}]
[{"$f":"Tabela1[[#This Row],[NM_LEIL]]&Tabela1[[#This Row],[CD_PARC_USIN]]","v":"18º Leilão de Energia Nova909518"},"CGE SANTA ROSA","SANTA ROSA CGE",909518,154,423,"18º Leilão de Energia Nova","2018-20",{"$f":"COUNTIF(D:D,Tabela1[[#This Row],[CD_PARC_USIN]])","v":1}]
[{"$f":"Tabela1[[#This Row],[NM_LEIL]]&Tabela1[[#This Row],[CD_PARC_USIN]]","v":"18º Leilão de Energia Nova909519"},"EOL TECNOLOGIA I5","VENTOS DE ANGELIM ET",909519,154,423,"18º Leilão de Energia Nova","2018-20",{"$f":"COUNTIF(D:D,Tabela1[[#This Row],[CD_PARC_USIN]])","v":1}]
[{"$f":"Tabela1[[#This Row],[NM_LEIL]]&Tabela1[[#This Row],[CD_PARC_USIN]]","v":"18º Leilão de Energia Nova909520"},"VENTOS TEC","VENTOS DE ANGELIM VN",909520,154,423,"18º Leilão de Energia Nova","2018-20",{"$f":"COUNTIF(D:D,Tabela1[[#This Row],[CD_PARC_USIN]])","v":1}]
[{"$f":"Tabela1[[#This Row],[NM_LEIL]]&Tabela1[[#This Row],[CD_PARC_USIN]]","v":"18º Leilão de Energia Nova909521"},"FURNAS","VENTOS DE ANGELIM FN",909521,154,423,"18º Leilão de Energia Nova","2018-20",{"$f":"COUNTIF(D:D,Tabela1[[#This Row],[CD_PARC_USIN]])","v":1}]
[{"$f":"Tabela1[[#This Row],[NM_LEIL]]&Tabela1[[#This Row],[CD_PARC_USIN]]","v":"18º Leilão de Energia Nova909522"},"CGE VENTOS DE ANGELIM","VENTOS DE ANGELIM CG",909522,154,423,"18º Leilão de Energia Nova","2018-20",{"$f":"COUNTIF(D:D,Tabela1[[#This Row],[CD_PARC_USIN]])","v":1}]
[{"$f":"Tabela1[[#This Row],[NM_LEIL]]&Tabela1[[#This Row],[CD_PARC_USIN]]","v":"20º Leilão de Energia Nova909523"},"LAGOA DO BARRO II I5","LAGOA DO BARRO 02",909523,160,441,"20º Leilão de Energia Nova","2019-20",{"$f":"COUNTIF(D:D,Tabela1[[#This Row],[CD_PARC_USIN]])","v":1}]
[{"$f":"Tabela1[[#This Row],[NM_LEIL]]&Tabela1[[#This Row],[CD_PARC_USIN]]","v":"20º Leilão de Energia Nova909524"},"LAGOA DO BARRO III I5","LAGOA DO BARRO 03",909524,160,441,"20º Leilão de Energia Nova","2019-20",{"$f":"COUNTIF(D:D,Tabela1[[#This Row],[CD_PARC_USIN]])","v":1}]
[{"$f":"Tabela1[[#This Row],[NM_LEIL]]&Tabela1[[#This Row],[CD_PARC_USIN]]","v":"20º Leilão de Energia Nova909525"},"LAGOA DO BARRO IV I5","LAGOA DO BARRO 04",909525,160,441,"20º Leilão de Energia Nova","2019-20",{"$f":"COUNTIF(D:D,Tabela1[[#This Row],[CD_PARC_USIN]])","v":1}]
[{"$f":"Tabela1[[#This Row],[NM_LEIL]]&Tabela1[[#This Row],[CD_PARC_USIN]]","v":"20º Leilão de Energia Nova909526"},"LAGOA DO BARRO V I5","LAGOA BARRO 05",909526,160,441,"20º Leilão de Energia Nova","2019-20",{"$f":"COUNTIF(D:D,Tabela1[[#This Row],[CD_PARC_USIN]])","v":1}]
[{"$f":"Tabela1[[#This Row],[NM_LEIL]]&Tabela1[[#This Row],[CD_PARC_USIN]]","v":"20º Leilão de Energia Nova909527"},"LAGOA DO BARRO VI I5","LAGOA DO BARRO 06",909527,160,441,"20º Leilão de Energia Nova","2019-20",{"$f":"COUNTIF(D:D,Tabela1[[#This Row],[CD_PARC_USIN]])","v":1}]
[{"$f":"Tabela1[[#This Row],[NM_LEIL]]&Tabela1[[#This Row],[CD_PARC_USIN]]","v":"20º Leilão de Energia Nova909528"},"LAGOA DO BARRO VII I5","LAGOA DO BARRO 07",909528,160,441,"20º Leilão de Energia Nova","2019-20",{"$f":"COUNTIF(D:D,Tabela1[[#This Row],[CD_PARC_USIN]])","v":1}]
[{"$f":"Tabela1[[#This Row],[NM_LEIL]]&Tabela1[[#This Row],[CD_PARC_USIN]]","v":"20º Leilão de Energia Nova909529"},"LAGOA DO BARRO VIII I5","QUEIMADA NOVA 03",909529,160,441,"20º Leilão de Energia Nova","2019-20",{"$f":"COUNTIF(D:D,Tabela1[[#This Row],[CD_PARC_USIN]])","v":1}]
[{"$f":"Tabela1[[#This Row],[NM_LEIL]]&Tabela1[[#This Row],[CD_PARC_USIN]]","v":"20º Leilão de Energia Nova909530"},"BOA ESPERANCA I I5","BOA ESPERANÇA I",909530,160,441,"20º Leilão de Energia Nova","2019-20",{"$f":"COUNTIF(D:D,Tabela1[[#This Row],[CD_PARC_USIN]])","v":1}]
[{"$f":"Tabela1[[#This Row],[NM_LEIL]]&Tabela1[[#This Row],[CD_PARC_USIN]]","v":"20º Leilão de Energia Nova909531"},"CAMPO LARGO III PIE I5","CAMPO LARGO III",909531,160,441,"20º Leilão de Energia Nova","2019-20",{"$f":"COUNTIF(D:D,Tabela1[[#This Row],[CD_PARC_USIN]])","v":1}]
[{"$f":"Tabela1[[#This Row],[NM_LEIL]]&Tabela1[[#This Row],[CD_PARC_USIN]]","v":"20º Leilão de Energia Nova909532"},"CAMPO LARGO IV PIE I5","CAMPO LARGO IV",909532,160,441,"20º Leilão de Energia Nova","2019-20",{"$f":"COUNTIF(D:D,Tabela1[[#This Row],[CD_PARC_USIN]])","v":1}]
[{"$f":"Tabela1[[#This Row],[NM_LEIL]]&Tabela1[[#This Row],[CD_PARC_USIN]]","v":"20º Leilão de Energia Nova909533"},"CAMPO LARGO V PIE I5","CAMPO LARGO V",909533,160,441,"20º Leilão de Energia Nova","2019-20",{"$f":"COUNTIF(D:D,Tabela1[[#This Row],[CD_PARC_USIN]])","v":1}]
[{"$f":"Tabela1[[#This Row],[NM_LEIL]]&Tabela1[[#This Row],[CD_PARC_USIN]]","v":"20º Leilão de Energia Nova909534"},"CAMPO LARGO VII PIE I5","CAMPO LARGO 7",909534,160,441,"20º Leilão de Energia Nova","2019-20",{"$f":"COUNTIF(D:D,Tabela1[[#This Row],[CD_PARC_USIN]])","v":1}]
[{"$f":"Tabela1[[#This Row],[NM_LEIL]]&Tabela1[[#This Row],[CD_PARC_USIN]]","v":"6º Leilão de Energia Reserva909535"},"ASSURUA III I5","ASSURUA 3",909535,159,439,"6º Leilão de Energia Reserva","2017-20",{"$f":"COUNTIF(D:D,Tabela1[[#This Row],[CD_PARC_USIN]])","v":1}]
[{"$f":"Tabela1[[#This Row],[NM_LEIL]]&Tabela1[[#This Row],[CD_PARC_USIN]]","v":"6º Leilão de Energia Reserva909536"},"CURRAL DE PEDRAS I I5","CURRAL DE PEDRAS 1",909536,159,439,"6º Leilão de Energia Reserva","2017-20",{"$f":"COUNTIF(D:D,Tabela1[[#This Row],[CD_PARC_USIN]])","v":1}]
[{"$f":"Tabela1[[#This Row],[NM_LEIL]]&Tabela1[[#This Row],[CD_PARC_USIN]]","v":"6º Leilão de Energia Reserva909537"},"CURRAL DE PEDRAS II I5","CURRAL DE PEDRAS 2",909537,159,439,"6º Leilão de Energia Reserva","2017-20",{"$f":"COUNTIF(D:D,Tabela1[[#This Row],[CD_PARC_USIN]])","v":1}]
[{"$f":"Tabela1[[#This Row],[NM_LEIL]]&Tabela1[[#This Row],[CD_PARC_USIN]]","v":"6º Leilão de Energia Reserva909538"},"DIAMANTE II I5","DIAMANTE II",909538,159,439,"6º Leilão de Energia Reserva","2017-20",{"$f":"COUNTIF(D:D,Tabela1[[#This Row],[CD_PARC_USIN]])","v":1}]
[{"$f":"Tabela1[[#This Row],[NM_LEIL]]&Tabela1[[#This Row],[CD_PARC_USIN]]","v":"6º Leilão de Energia Reserva909539"},"DIAMANTE III I5","DIAMANTE III",909539,159,439,"6º Leilão de Energia Reserva","2017-20",{"$f":"COUNTIF(D:D,Tabela1[[#This Row],[CD_PARC_USIN]])","v":1}]
[{"$f":"Tabela1[[#This Row],[NM_LEIL]]&Tabela1[[#This Row],[CD_PARC_USIN]]","v":"6º Leilão de Energia Reserva909540"},"EOL CUTIA I5","DREEN Cutia",909540,159,439,"6º Leilão de Energia Reserva","2017-20",{"$f":"COUNTIF(D:D,Tabela1[[#This Row],[CD_PARC_USIN]])","v":1}]
[{"$f":"Tabela1[[#This Row],[NM_LEIL]]&Tabela1[[#This Row],[CD_PARC_USIN]]","v":"6º Leilão de Energia Reserva909541"},"EOL GUAJIRU I5","DREEN Guajiru",909541,159,439,"6º Leilão de Energia Reserva","2017-20",{"$f":"COUNTIF(D:D,Tabela1[[#This Row],[CD_PARC_USIN]])","v":1}]
[{"$f":"Tabela1[[#This Row],[NM_LEIL]]&Tabela1[[#This Row],[CD_PARC_USIN]]","v":"6º Leilão de Energia Reserva909542"},"EOL JANGADA I5","GE Jangada",909542,159,439,"6º Leilão de Energia Reserva","2017-20",{"$f":"COUNTIF(D:D,Tabela1[[#This Row],[CD_PARC_USIN]])","v":1}]
[{"$f":"Tabela1[[#This Row],[NM_LEIL]]&Tabela1[[#This Row],[CD_PARC_USIN]]","v":"6º Leilão de Energia Reserva909543"},"LARANJEIRAS II I5","LARANJEIRAS 2",909543,159,439,"6º Leilão de Energia Reserva","2017-20",{"$f":"COUNTIF(D:D,Tabela1[[#This Row],[CD_PARC_USIN]])","v":1}]
[{"$f":"Tabela1[[#This Row],[NM_LEIL]]&Tabela1[[#This Row],[CD_PARC_USIN]]","v":"6º Leilão de Energia Reserva909544"},"LARANJEIRAS V I5","LARANJEIRAS 5",909544,159,439,"6º Leilão de Energia Reserva","2017-20",{"$f":"COUNTIF(D:D,Tabela1[[#This Row],[CD_PARC_USIN]])","v":1}]
[{"$f":"Tabela1[[#This Row],[NM_LEIL]]&Tabela1[[#This Row],[CD_PARC_USIN]]","v":"20º Leilão de Energia Nova909549"},"UMBURANAS 17 I5","UMBURANAS 17",909549,160,441,"20º Leilão de Energia Nova","2019-20",{"$f":"COUNTIF(D:D,Tabela1[[#This Row],[CD_PARC_USIN]])","v":1}]
[{"$f":"Tabela1[[#This Row],[NM_LEIL]]&Tabela1[[#This Row],[CD_PARC_USIN]]","v":"20º Leilão de Energia Nova909550"},"UMBURANAS 21 I5","UMBURANAS 21",909550,160,441,"20º Leilão de Energia Nova","2019-20",{"$f":"COUNTIF(D:D,Tabela1[[#This Row],[CD_PARC_USIN]])","v":1}]
[{"$f":"Tabela1[[#This Row],[NM_LEIL]]&Tabela1[[#This Row],[CD_PARC_USIN]]","v":"20º Leilão de Energia Nova909551"},"UMBURANAS 19 I5","UMBURANAS 19",909551,160,441,"20º Leilão de Energia Nova","2019-20",{"$f":"COUNTIF(D:D,Tabela1[[#This Row],[CD_PARC_USIN]])","v":1}]
[{"$f":"Tabela1[[#This Row],[NM_LEIL]]&Tabela1[[#This Row],[CD_PARC_USIN]]","v":"20º Leilão de Energia Nova909552"},"EOL SAO BENTO DO NORTE II I5","SÃO BENTO NORTE II",909552,160,441,"20º Leilão de Energia Nova","2019-20",{"$f":"COUNTIF(D:D,Tabela1[[#This Row],[CD_PARC_USIN]])","v":1}]
[{"$f":"Tabela1[[#This Row],[NM_LEIL]]&Tabela1[[#This Row],[CD_PARC_USIN]]","v":"20º Leilão de Energia Nova909553"},"CANOAS I5","EOL CANOAS",909553,160,441,"20º Leilão de Energia Nova","2019-20",{"$f":"COUNTIF(D:D,Tabela1[[#This Row],[CD_PARC_USIN]])","v":1}]
[{"$f":"Tabela1[[#This Row],[NM_LEIL]]&Tabela1[[#This Row],[CD_PARC_USIN]]","v":"21º Leilão de Energia Nova909554"},"CPFL BOA VISTA 2 I5","BOA VISTA II CPFL",909554,161,444,"21º Leilão de Energia Nova","2020-30",{"$f":"COUNTIF(D:D,Tabela1[[#This Row],[CD_PARC_USIN]])","v":1}]
[{"$f":"Tabela1[[#This Row],[NM_LEIL]]&Tabela1[[#This Row],[CD_PARC_USIN]]","v":"3º Leilão de Fontes Alternativas909555"},"CRISTALANDIA II I5","CRISTALANDIA II",909555,162,446,"3º Leilão de Fontes Alternativas","2017-20",{"$f":"COUNTIF(D:D,Tabela1[[#This Row],[CD_PARC_USIN]])","v":1}]
[{"$f":"Tabela1[[#This Row],[NM_LEIL]]&Tabela1[[#This Row],[CD_PARC_USIN]]","v":"3º Leilão de Fontes Alternativas909556"},"CRISTALANDIA III I5","CRISTALANDIA III",909556,162,446,"3º Leilão de Fontes Alternativas","2017-20",{"$f":"COUNTIF(D:D,Tabela1[[#This Row],[CD_PARC_USIN]])","v":1}]
[{"$f":"Tabela1[[#This Row],[NM_LEIL]]&Tabela1[[#This Row],[CD_PARC_USIN]]","v":"6º Leilão de Energia Reserva909557"},"VAZANTE I I8","VAZANTE 1",909557,159,438,"6º Leilão de Energia Reserva","2017-20",{"$f":"COUNTIF(D:D,Tabela1[[#This Row],[CD_PARC_USIN]])","v":1}]
[{"$f":"Tabela1[[#This Row],[NM_LEIL]]&Tabela1[[#This Row],[CD_PARC_USIN]]","v":"20º Leilão de Energia Nova909571"},"UMBURANAS 23 I5","UMBURANAS 23",909571,160,441,"20º Leilão de Energia Nova","2019-20",{"$f":"COUNTIF(D:D,Tabela1[[#This Row],[CD_PARC_USIN]])","v":1}]
[{"$f":"Tabela1[[#This Row],[NM_LEIL]]&Tabela1[[#This Row],[CD_PARC_USIN]]","v":"20º Leilão de Energia Nova909572"},"UMBURANAS 25 I5","UMBURANAS 25",909572,160,441,"20º Leilão de Energia Nova","2019-20",{"$f":"COUNTIF(D:D,Tabela1[[#This Row],[CD_PARC_USIN]])","v":1}]
[{"$f":"Tabela1[[#This Row],[NM_LEIL]]&Tabela1[[#This Row],[CD_PARC_USIN]]","v":"20º Leilão de Energia Nova909573"},"EOL SAO MIGUEL III I5","SAO MIGUEL III",909573,160,441,"20º Leilão de Energia Nova","2019-20",{"$f":"COUNTIF(D:D,Tabela1[[#This Row],[CD_PARC_USIN]])","v":1}]
[{"$f":"Tabela1[[#This Row],[NM_LEIL]]&Tabela1[[#This Row],[CD_PARC_USIN]]","v":"20º Leilão de Energia Nova909574"},"EOL SAO MIGUEL II I5","SAO MIGUEL II",909574,160,441,"20º Leilão de Energia Nova","2019-20",{"$f":"COUNTIF(D:D,Tabela1[[#This Row],[CD_PARC_USIN]])","v":1}]
[{"$f":"Tabela1[[#This Row],[NM_LEIL]]&Tabela1[[#This Row],[CD_PARC_USIN]]","v":"20º Leilão de Energia Nova909575"},"EOL SAO MIGUEL I I5","SAO MIGUEL I",909575,160,441,"20º Leilão de Energia Nova","2019-20",{"$f":"COUNTIF(D:D,Tabela1[[#This Row],[CD_PARC_USIN]])","v":1}]
[{"$f":"Tabela1[[#This Row],[NM_LEIL]]&Tabela1[[#This Row],[CD_PARC_USIN]]","v":"20º Leilão de Energia Nova909576"},"EOL SAO BENTO DO NORTE III I5","S BENTO DO NORTE III",909576,160,441,"20º Leilão de Energia Nova","2019-20",{"$f":"COUNTIF(D:D,Tabela1[[#This Row],[CD_PARC_USIN]])","v":1}]
[{"$f":"Tabela1[[#This Row],[NM_LEIL]]&Tabela1[[#This Row],[CD_PARC_USIN]]","v":"20º Leilão de Energia Nova909577"},"EOL SAO BENTO DO NORTE I I5","SÃO BENTO DO NORTE I",909577,160,441,"20º Leilão de Energia Nova","2019-20",{"$f":"COUNTIF(D:D,Tabela1[[#This Row],[CD_PARC_USIN]])","v":1}]
[{"$f":"Tabela1[[#This Row],[NM_LEIL]]&Tabela1[[#This Row],[CD_PARC_USIN]]","v":"20º Leilão de Energia Nova909578"},"LAGOA 2 I5","LAGOA 2",909578,160,441,"20º Leilão de Energia Nova","2019-20",{"$f":"COUNTIF(D:D,Tabela1[[#This Row],[CD_PARC_USIN]])","v":1}]
[{"$f":"Tabela1[[#This Row],[NM_LEIL]]&Tabela1[[#This Row],[CD_PARC_USIN]]","v":"20º Leilão de Energia Nova909579"},"LAGOA 1 I5","LAGOA 1",909579,160,441,"20º Leilão de Energia Nova","2019-20",{"$f":"COUNTIF(D:D,Tabela1[[#This Row],[CD_PARC_USIN]])","v":1}]
[{"$f":"Tabela1[[#This Row],[NM_LEIL]]&Tabela1[[#This Row],[CD_PARC_USIN]]","v":"7º Leilão de Energia Reserva909580"},"HORIZONTE MP I5","HORIZONTE MP 1",909580,165,453,"7º Leilão de Energia Reserva","2017-20",{"$f":"COUNTIF(D:D,Tabela1[[#This Row],[CD_PARC_USIN]])","v":1}]
[{"$f":"Tabela1[[#This Row],[NM_LEIL]]&Tabela1[[#This Row],[CD_PARC_USIN]]","v":"21º Leilão de Energia Nova909581"},"CONFLUENCIA I5","CONFLUÊNCIA",909581,161,444,"21º Leilão de Energia Nova","2020-30",{"$f":"COUNTIF(D:D,Tabela1[[#This Row],[CD_PARC_USIN]])","v":1}]
[{"$f":"Tabela1[[#This Row],[NM_LEIL]]&Tabela1[[#This Row],[CD_PARC_USIN]]","v":"21º Leilão de Energia Nova909583"},"SECRETARIO ENERGIA I5","PCH Secretário",909583,161,444,"21º Leilão de Energia Nova","2020-30",{"$f":"COUNTIF(D:D,Tabela1[[#This Row],[CD_PARC_USIN]])","v":1}]
[{"$f":"Tabela1[[#This Row],[NM_LEIL]]&Tabela1[[#This Row],[CD_PARC_USIN]]","v":"6º Leilão de Energia Reserva909584"},"EOL PARAISO I5","PV DO NORDESTE",909584,159,439,"6º Leilão de Energia Reserva","2017-20",{"$f":"COUNTIF(D:D,Tabela1[[#This Row],[CD_PARC_USIN]])","v":1}]
[{"$f":"Tabela1[[#This Row],[NM_LEIL]]&Tabela1[[#This Row],[CD_PARC_USIN]]","v":"6º Leilão de Energia Reserva909585"},"EOL POTIGUAR I5","EOL Potiguar",909585,159,439,"6º Leilão de Energia Reserva","2017-20",{"$f":"COUNTIF(D:D,Tabela1[[#This Row],[CD_PARC_USIN]])","v":1}]
[{"$f":"Tabela1[[#This Row],[NM_LEIL]]&Tabela1[[#This Row],[CD_PARC_USIN]]","v":"3º Leilão de Fontes Alternativas909586"},"CRISTALANDIA I I5","CRISTALANDIA I",909586,162,446,"3º Leilão de Fontes Alternativas","2017-20",{"$f":"COUNTIF(D:D,Tabela1[[#This Row],[CD_PARC_USIN]])","v":1}]
[{"$f":"Tabela1[[#This Row],[NM_LEIL]]&Tabela1[[#This Row],[CD_PARC_USIN]]","v":"7º Leilão de Energia Reserva909587"},"ANGICO I5","UFV ANGICO 1",909587,165,453,"7º Leilão de Energia Reserva","2017-20",{"$f":"COUNTIF(D:D,Tabela1[[#This Row],[CD_PARC_USIN]])","v":1}]
[{"$f":"Tabela1[[#This Row],[NM_LEIL]]&Tabela1[[#This Row],[CD_PARC_USIN]]","v":"7º Leilão de Energia Reserva909743"},"HORIZONTE MP I5","HORIZONTE MP 11",909743,165,453,"7º Leilão de Energia Reserva","2017-20",{"$f":"COUNTIF(D:D,Tabela1[[#This Row],[CD_PARC_USIN]])","v":1}]
[{"$f":"Tabela1[[#This Row],[NM_LEIL]]&Tabela1[[#This Row],[CD_PARC_USIN]]","v":"7º Leilão de Energia Reserva909744"},"HORIZONTE MP I5","HORIZONTE MP 2",909744,165,453,"7º Leilão de Energia Reserva","2017-20",{"$f":"COUNTIF(D:D,Tabela1[[#This Row],[CD_PARC_USIN]])","v":1}]
[{"$f":"Tabela1[[#This Row],[NM_LEIL]]&Tabela1[[#This Row],[CD_PARC_USIN]]","v":"6º Leilão de Energia Reserva909745"},"GUAIMBE IV I5","GUAIMBE 4",909745,159,438,"6º Leilão de Energia Reserva","2017-20",{"$f":"COUNTIF(D:D,Tabela1[[#This Row],[CD_PARC_USIN]])","v":1}]
[{"$f":"Tabela1[[#This Row],[NM_LEIL]]&Tabela1[[#This Row],[CD_PARC_USIN]]","v":"6º Leilão de Energia Reserva909746"},"GUAIMBE V I5","GUAIMBE 5",909746,159,438,"6º Leilão de Energia Reserva","2017-20",{"$f":"COUNTIF(D:D,Tabela1[[#This Row],[CD_PARC_USIN]])","v":1}]
[{"$f":"Tabela1[[#This Row],[NM_LEIL]]&Tabela1[[#This Row],[CD_PARC_USIN]]","v":"6º Leilão de Energia Reserva909747"},"SOLAR CAETITE 3","SOLAR CAETITE 3",909747,159,438,"6º Leilão de Energia Reserva","2017-20",{"$f":"COUNTIF(D:D,Tabela1[[#This Row],[CD_PARC_USIN]])","v":1}]
[{"$f":"Tabela1[[#This Row],[NM_LEIL]]&Tabela1[[#This Row],[CD_PARC_USIN]]","v":"6º Leilão de Energia Reserva909748"},"VAZANTE III I8","VAZANTE 3",909748,159,438,"6º Leilão de Energia Reserva","2017-20",{"$f":"COUNTIF(D:D,Tabela1[[#This Row],[CD_PARC_USIN]])","v":1}]
[{"$f":"Tabela1[[#This Row],[NM_LEIL]]&Tabela1[[#This Row],[CD_PARC_USIN]]","v":"7º Leilão de Energia Reserva909749"},"UFV SÃO PEDRO II I5","SÃO PEDRO II",909749,165,453,"7º Leilão de Energia Reserva","2017-20",{"$f":"COUNTIF(D:D,Tabela1[[#This Row],[CD_PARC_USIN]])","v":1}]
[{"$f":"Tabela1[[#This Row],[NM_LEIL]]&Tabela1[[#This Row],[CD_PARC_USIN]]","v":"20º Leilão de Energia Nova909750"},"LARANJEIRAS IX I5","LARANJEIRAS 9",909750,160,441,"20º Leilão de Energia Nova","2019-20",{"$f":"COUNTIF(D:D,Tabela1[[#This Row],[CD_PARC_USIN]])","v":1}]
[{"$f":"Tabela1[[#This Row],[NM_LEIL]]&Tabela1[[#This Row],[CD_PARC_USIN]]","v":"7º Leilão de Energia Reserva909757"},"PIRAPORA V ENERGIAS I8","PIRAPORA 5",909757,165,453,"7º Leilão de Energia Reserva","2017-20",{"$f":"COUNTIF(D:D,Tabela1[[#This Row],[CD_PARC_USIN]])","v":1}]
[{"$f":"Tabela1[[#This Row],[NM_LEIL]]&Tabela1[[#This Row],[CD_PARC_USIN]]","v":"7º Leilão de Energia Reserva909758"},"PIRAPORA VI ENERGIAS I8","PIRAPORA 6",909758,165,453,"7º Leilão de Energia Reserva","2017-20",{"$f":"COUNTIF(D:D,Tabela1[[#This Row],[CD_PARC_USIN]])","v":1}]
[{"$f":"Tabela1[[#This Row],[NM_LEIL]]&Tabela1[[#This Row],[CD_PARC_USIN]]","v":"7º Leilão de Energia Reserva909759"},"PIRAPORA VII ENERGIAS I8","PIRAPORA 7",909759,165,453,"7º Leilão de Energia Reserva","2017-20",{"$f":"COUNTIF(D:D,Tabela1[[#This Row],[CD_PARC_USIN]])","v":1}]
[{"$f":"Tabela1[[#This Row],[NM_LEIL]]&Tabela1[[#This Row],[CD_PARC_USIN]]","v":"7º Leilão de Energia Reserva909760"},"PIRAPORA IX ENERGIAS I8","PIRAPORA 9",909760,165,453,"7º Leilão de Energia Reserva","2017-20",{"$f":"COUNTIF(D:D,Tabela1[[#This Row],[CD_PARC_USIN]])","v":1}]
[{"$f":"Tabela1[[#This Row],[NM_LEIL]]&Tabela1[[#This Row],[CD_PARC_USIN]]","v":"7º Leilão de Energia Reserva909761"},"PIRAPORA X ENERGIAS I8","PIRAPORA 10",909761,165,453,"7º Leilão de Energia Reserva","2017-20",{"$f":"COUNTIF(D:D,Tabela1[[#This Row],[CD_PARC_USIN]])","v":1}]
[{"$f":"Tabela1[[#This Row],[NM_LEIL]]&Tabela1[[#This Row],[CD_PARC_USIN]]","v":"6º Leilão de Energia Reserva909762"},"CE ITAPUA VII I5","MULUNGU",909762,159,439,"6º Leilão de Energia Reserva","2017-20",{"$f":"COUNTIF(D:D,Tabela1[[#This Row],[CD_PARC_USIN]])","v":1}]
[{"$f":"Tabela1[[#This Row],[NM_LEIL]]&Tabela1[[#This Row],[CD_PARC_USIN]]","v":"6º Leilão de Energia Reserva909763"},"FRV BANABUIU","FRV BANABUIU",909763,159,438,"6º Leilão de Energia Reserva","2017-20",{"$f":"COUNTIF(D:D,Tabela1[[#This Row],[CD_PARC_USIN]])","v":1}]
[{"$f":"Tabela1[[#This Row],[NM_LEIL]]&Tabela1[[#This Row],[CD_PARC_USIN]]","v":"6º Leilão de Energia Reserva909764"},"FRV MASSAPE","FRV MASSAPE",909764,159,438,"6º Leilão de Energia Reserva","2017-20",{"$f":"COUNTIF(D:D,Tabela1[[#This Row],[CD_PARC_USIN]])","v":1}]
[{"$f":"Tabela1[[#This Row],[NM_LEIL]]&Tabela1[[#This Row],[CD_PARC_USIN]]","v":"6º Leilão de Energia Reserva909765"},"GUAIMBE II I5","GUAIMBE 2",909765,159,438,"6º Leilão de Energia Reserva","2017-20",{"$f":"COUNTIF(D:D,Tabela1[[#This Row],[CD_PARC_USIN]])","v":1}]
[{"$f":"Tabela1[[#This Row],[NM_LEIL]]&Tabela1[[#This Row],[CD_PARC_USIN]]","v":"6º Leilão de Energia Reserva909766"},"GUAIMBE III I5","UFV GUAIMBE 3",909766,159,438,"6º Leilão de Energia Reserva","2017-20",{"$f":"COUNTIF(D:D,Tabela1[[#This Row],[CD_PARC_USIN]])","v":1}]
[{"$f":"Tabela1[[#This Row],[NM_LEIL]]&Tabela1[[#This Row],[CD_PARC_USIN]]","v":"7º Leilão de Energia Reserva909767"},"UFV ASSURUA I5","ASSURUA",909767,165,453,"7º Leilão de Energia Reserva","2017-20",{"$f":"COUNTIF(D:D,Tabela1[[#This Row],[CD_PARC_USIN]])","v":1}]
[{"$f":"Tabela1[[#This Row],[NM_LEIL]]&Tabela1[[#This Row],[CD_PARC_USIN]]","v":"7º Leilão de Energia Reserva909768"},"BJL11 SOLAR I5","BJL 11",909768,165,453,"7º Leilão de Energia Reserva","2017-20",{"$f":"COUNTIF(D:D,Tabela1[[#This Row],[CD_PARC_USIN]])","v":1}]
[{"$f":"Tabela1[[#This Row],[NM_LEIL]]&Tabela1[[#This Row],[CD_PARC_USIN]]","v":"6º Leilão de Energia Reserva909769"},"SOLAR CAETITE 1","SOLAR CAETITE 1",909769,159,438,"6º Leilão de Energia Reserva","2017-20",{"$f":"COUNTIF(D:D,Tabela1[[#This Row],[CD_PARC_USIN]])","v":1}]
[{"$f":"Tabela1[[#This Row],[NM_LEIL]]&Tabela1[[#This Row],[CD_PARC_USIN]]","v":"6º Leilão de Energia Reserva909770"},"SOLAR CAETITE 2","SOLAR CAETITE 2",909770,159,438,"6º Leilão de Energia Reserva","2017-20",{"$f":"COUNTIF(D:D,Tabela1[[#This Row],[CD_PARC_USIN]])","v":1}]
[{"$f":"Tabela1[[#This Row],[NM_LEIL]]&Tabela1[[#This Row],[CD_PARC_USIN]]","v":"6º Leilão de Energia Reserva909773"},"VAZANTE II I8","VAZANTE 2",909773,159,438,"6º Leilão de Energia Reserva","2017-20",{"$f":"COUNTIF(D:D,Tabela1[[#This Row],[CD_PARC_USIN]])","v":1}]
[{"$f":"Tabela1[[#This Row],[NM_LEIL]]&Tabela1[[#This Row],[CD_PARC_USIN]]","v":"20º Leilão de Energia Nova909774"},"PAMPA SUL","PAMPA SUL",909774,160,440,"20º Leilão de Energia Nova","2019-25",{"$f":"COUNTIF(D:D,Tabela1[[#This Row],[CD_PARC_USIN]])","v":1}]
[{"$f":"Tabela1[[#This Row],[NM_LEIL]]&Tabela1[[#This Row],[CD_PARC_USIN]]","v":"7º Leilão de Energia Reserva909775"},"MALTA I5","UFV MALTA",909775,165,453,"7º Leilão de Energia Reserva","2017-20",{"$f":"COUNTIF(D:D,Tabela1[[#This Row],[CD_PARC_USIN]])","v":1}]
[{"$f":"Tabela1[[#This Row],[NM_LEIL]]&Tabela1[[#This Row],[CD_PARC_USIN]]","v":"7º Leilão de Energia Reserva909777"},"UFV SOL MAIOR 2 I5","SOL MAIOR 2",909777,165,453,"7º Leilão de Energia Reserva","2017-20",{"$f":"COUNTIF(D:D,Tabela1[[#This Row],[CD_PARC_USIN]])","v":1}]
[{"$f":"Tabela1[[#This Row],[NM_LEIL]]&Tabela1[[#This Row],[CD_PARC_USIN]]","v":"7º Leilão de Energia Reserva909778"},"UFV SÃO PEDRO IV I5","SÃO PEDRO IV",909778,165,453,"7º Leilão de Energia Reserva","2017-20",{"$f":"COUNTIF(D:D,Tabela1[[#This Row],[CD_PARC_USIN]])","v":1}]
[{"$f":"Tabela1[[#This Row],[NM_LEIL]]&Tabela1[[#This Row],[CD_PARC_USIN]]","v":"20º Leilão de Energia Nova909779"},"LARANJEIRAS III I5","ASSURUA 3 I ENERGIA ",909779,160,441,"20º Leilão de Energia Nova","2019-20",{"$f":"COUNTIF(D:D,Tabela1[[#This Row],[CD_PARC_USIN]])","v":1}]
[{"$f":"Tabela1[[#This Row],[NM_LEIL]]&Tabela1[[#This Row],[CD_PARC_USIN]]","v":"23º Leilão de Energia Nova909788"},"PCH AGUA PRATA I5","AGUA PRATA",909788,167,457,"23º Leilão de Energia Nova","2021-30",{"$f":"COUNTIF(D:D,Tabela1[[#This Row],[CD_PARC_USIN]])","v":1}]
[{"$f":"Tabela1[[#This Row],[NM_LEIL]]&Tabela1[[#This Row],[CD_PARC_USIN]]","v":"21º Leilão de Energia Nova909791"},"VERDE 4 I5","VERDE 4",909791,161,444,"21º Leilão de Energia Nova","2020-30",{"$f":"COUNTIF(D:D,Tabela1[[#This Row],[CD_PARC_USIN]])","v":1}]
[{"$f":"Tabela1[[#This Row],[NM_LEIL]]&Tabela1[[#This Row],[CD_PARC_USIN]]","v":"18º Leilão de Energia Nova909792"},"EOL BOA VISTA I5","VENTOS DA BAHIA 8",909792,154,423,"18º Leilão de Energia Nova","2018-20",{"$f":"COUNTIF(D:D,Tabela1[[#This Row],[CD_PARC_USIN]])","v":1}]
[{"$f":"Tabela1[[#This Row],[NM_LEIL]]&Tabela1[[#This Row],[CD_PARC_USIN]]","v":"6º Leilão de Energia Reserva909805"},"SANTO ESTEVAO IV I5","VENTOS STO ESTEVAO 4",909805,159,439,"6º Leilão de Energia Reserva","2017-20",{"$f":"COUNTIF(D:D,Tabela1[[#This Row],[CD_PARC_USIN]])","v":1}]
[{"$f":"Tabela1[[#This Row],[NM_LEIL]]&Tabela1[[#This Row],[CD_PARC_USIN]]","v":"6º Leilão de Energia Reserva909832"},"ENEL SUL SULAR I8","ITUVERAVA 07",909832,159,438,"6º Leilão de Energia Reserva","2017-20",{"$f":"COUNTIF(D:D,Tabela1[[#This Row],[CD_PARC_USIN]])","v":1}]
[{"$f":"Tabela1[[#This Row],[NM_LEIL]]&Tabela1[[#This Row],[CD_PARC_USIN]]","v":"6º Leilão de Energia Reserva909833"},"ENEL ITUVERAVA SOLAR I8","ITUVERAVA 4",909833,159,438,"6º Leilão de Energia Reserva","2017-20",{"$f":"COUNTIF(D:D,Tabela1[[#This Row],[CD_PARC_USIN]])","v":1}]
[{"$f":"Tabela1[[#This Row],[NM_LEIL]]&Tabela1[[#This Row],[CD_PARC_USIN]]","v":"7º Leilão de Energia Reserva909881"},"NOVA OLINDA 8 I8","NOVA OLINDA 8",909881,165,453,"7º Leilão de Energia Reserva","2017-20",{"$f":"COUNTIF(D:D,Tabela1[[#This Row],[CD_PARC_USIN]])","v":1}]
[{"$f":"Tabela1[[#This Row],[NM_LEIL]]&Tabela1[[#This Row],[CD_PARC_USIN]]","v":"7º Leilão de Energia Reserva909882"},"NOVA OLINDA 9 I8","NOVA OLINDA 9",909882,165,453,"7º Leilão de Energia Reserva","2017-20",{"$f":"COUNTIF(D:D,Tabela1[[#This Row],[CD_PARC_USIN]])","v":1}]
[{"$f":"Tabela1[[#This Row],[NM_LEIL]]&Tabela1[[#This Row],[CD_PARC_USIN]]","v":"7º Leilão de Energia Reserva909883"},"NOVA OLINDA 11 I8","NOVA OLINDA 11",909883,165,453,"7º Leilão de Energia Reserva","2017-20",{"$f":"COUNTIF(D:D,Tabela1[[#This Row],[CD_PARC_USIN]])","v":1}]
[{"$f":"Tabela1[[#This Row],[NM_LEIL]]&Tabela1[[#This Row],[CD_PARC_USIN]]","v":"7º Leilão de Energia Reserva909884"},"NOVA OLINDA 10 I8","NOVA OLINDA 10",909884,165,453,"7º Leilão de Energia Reserva","2017-20",{"$f":"COUNTIF(D:D,Tabela1[[#This Row],[CD_PARC_USIN]])","v":1}]
[{"$f":"Tabela1[[#This Row],[NM_LEIL]]&Tabela1[[#This Row],[CD_PARC_USIN]]","v":"7º Leilão de Energia Reserva909885"},"NOVA OLINDA 12 I8","NOVA OLINDA 12",909885,165,453,"7º Leilão de Energia Reserva","2017-20",{"$f":"COUNTIF(D:D,Tabela1[[#This Row],[CD_PARC_USIN]])","v":1}]
[{"$f":"Tabela1[[#This Row],[NM_LEIL]]&Tabela1[[#This Row],[CD_PARC_USIN]]","v":"7º Leilão de Energia Reserva909886"},"NOVA OLINDA 13 I8","NOVA OLINDA 13",909886,165,453,"7º Leilão de Energia Reserva","2017-20",{"$f":"COUNTIF(D:D,Tabela1[[#This Row],[CD_PARC_USIN]])","v":1}]
[{"$f":"Tabela1[[#This Row],[NM_LEIL]]&Tabela1[[#This Row],[CD_PARC_USIN]]","v":"7º Leilão de Energia Reserva909887"},"NOVA OLINDA 14 I8","NOVA OLINDA 14",909887,165,453,"7º Leilão de Energia Reserva","2017-20",{"$f":"COUNTIF(D:D,Tabela1[[#This Row],[CD_PARC_USIN]])","v":1}]
[{"$f":"Tabela1[[#This Row],[NM_LEIL]]&Tabela1[[#This Row],[CD_PARC_USIN]]","v":"7º Leilão de Energia Reserva909889"},"SERTAO I SOLAR I8","SERTAO 1",909889,165,453,"7º Leilão de Energia Reserva","2017-20",{"$f":"COUNTIF(D:D,Tabela1[[#This Row],[CD_PARC_USIN]])","v":1}]
[{"$f":"Tabela1[[#This Row],[NM_LEIL]]&Tabela1[[#This Row],[CD_PARC_USIN]]","v":"7º Leilão de Energia Reserva909890"},"SOBRAL I SOLAR I8","SOBRAL 1",909890,165,453,"7º Leilão de Energia Reserva","2017-20",{"$f":"COUNTIF(D:D,Tabela1[[#This Row],[CD_PARC_USIN]])","v":1}]
[{"$f":"Tabela1[[#This Row],[NM_LEIL]]&Tabela1[[#This Row],[CD_PARC_USIN]]","v":"1º Leilão de Energia Nova910075"},"LAJEADO ENERG","LAJEADO ",910075,5,7,"1º Leilão de Energia Nova","2008-30",{"$f":"COUNTIF(D:D,Tabela1[[#This Row],[CD_PARC_USIN]])","v":2}]
[{"$f":"Tabela1[[#This Row],[NM_LEIL]]&Tabela1[[#This Row],[CD_PARC_USIN]]","v":"1º Leilão de Energia Nova910075"},"LAJEADO ENERG","LAJEADO ",910075,5,9,"1º Leilão de Energia Nova","2009-30",{"$f":"COUNTIF(D:D,Tabela1[[#This Row],[CD_PARC_USIN]])","v":2}]
[{"$f":"Tabela1[[#This Row],[NM_LEIL]]&Tabela1[[#This Row],[CD_PARC_USIN]]","v":"8º Leilão de Energia Reserva910082"},"DELTA 3 VIII I5","DELTA 3 VIII",910082,166,454,"8º Leilão de Energia Reserva","2018-20",{"$f":"COUNTIF(D:D,Tabela1[[#This Row],[CD_PARC_USIN]])","v":1}]
[{"$f":"Tabela1[[#This Row],[NM_LEIL]]&Tabela1[[#This Row],[CD_PARC_USIN]]","v":"18º Leilão de Energia Nova910083"},"EOL COLINA I5","VENTOS DA BAHIA 4",910083,154,423,"18º Leilão de Energia Nova","2018-20",{"$f":"COUNTIF(D:D,Tabela1[[#This Row],[CD_PARC_USIN]])","v":1}]
[{"$f":"Tabela1[[#This Row],[NM_LEIL]]&Tabela1[[#This Row],[CD_PARC_USIN]]","v":"23º Leilão de Energia Nova910095"},"PCH CACHIMBO ALTO I5","CACHIMBO ALTO",910095,167,457,"23º Leilão de Energia Nova","2021-30",{"$f":"COUNTIF(D:D,Tabela1[[#This Row],[CD_PARC_USIN]])","v":1}]
[{"$f":"Tabela1[[#This Row],[NM_LEIL]]&Tabela1[[#This Row],[CD_PARC_USIN]]","v":"18º Leilão de Energia Nova910100"},"STA VITORIA PALMAR II I5","AURA MANGUEIRA 6",910100,154,423,"18º Leilão de Energia Nova","2018-20",{"$f":"COUNTIF(D:D,Tabela1[[#This Row],[CD_PARC_USIN]])","v":1}]
[{"$f":"Tabela1[[#This Row],[NM_LEIL]]&Tabela1[[#This Row],[CD_PARC_USIN]]","v":"6º Leilão de Energia Reserva910113"},"PEDRA RAJADA II I5","PEDRA RAJADA II",910113,159,439,"6º Leilão de Energia Reserva","2017-20",{"$f":"COUNTIF(D:D,Tabela1[[#This Row],[CD_PARC_USIN]])","v":1}]
[{"$f":"Tabela1[[#This Row],[NM_LEIL]]&Tabela1[[#This Row],[CD_PARC_USIN]]","v":"6º Leilão de Energia Reserva910129"},"ESV VII I5","SERRA DAS VACAS VII",910129,159,439,"6º Leilão de Energia Reserva","2017-20",{"$f":"COUNTIF(D:D,Tabela1[[#This Row],[CD_PARC_USIN]])","v":1}]
[{"$f":"Tabela1[[#This Row],[NM_LEIL]]&Tabela1[[#This Row],[CD_PARC_USIN]]","v":"6º Leilão de Energia Reserva910131"},"PEDRA RAJADA I5","PEDRA RAJADA",910131,159,439,"6º Leilão de Energia Reserva","2017-20",{"$f":"COUNTIF(D:D,Tabela1[[#This Row],[CD_PARC_USIN]])","v":1}]
[{"$f":"Tabela1[[#This Row],[NM_LEIL]]&Tabela1[[#This Row],[CD_PARC_USIN]]","v":"6º Leilão de Energia Reserva910134"},"EOL DELFINA A I5","DELFINA 1",910134,159,439,"6º Leilão de Energia Reserva","2017-20",{"$f":"COUNTIF(D:D,Tabela1[[#This Row],[CD_PARC_USIN]])","v":1}]
[{"$f":"Tabela1[[#This Row],[NM_LEIL]]&Tabela1[[#This Row],[CD_PARC_USIN]]","v":"6º Leilão de Energia Reserva910136"},"EOL DELFINA A I5","DELFINA 2",910136,159,439,"6º Leilão de Energia Reserva","2017-20",{"$f":"COUNTIF(D:D,Tabela1[[#This Row],[CD_PARC_USIN]])","v":1}]
[{"$f":"Tabela1[[#This Row],[NM_LEIL]]&Tabela1[[#This Row],[CD_PARC_USIN]]","v":"6º Leilão de Energia Reserva910138"},"EOL DELFINA A I5","DELFINA 5",910138,159,439,"6º Leilão de Energia Reserva","2017-20",{"$f":"COUNTIF(D:D,Tabela1[[#This Row],[CD_PARC_USIN]])","v":1}]
[{"$f":"Tabela1[[#This Row],[NM_LEIL]]&Tabela1[[#This Row],[CD_PARC_USIN]]","v":"18º Leilão de Energia Nova910154"},"STA VITORIA PALMAR I I5","AURA MANGUEIRA 4",910154,154,423,"18º Leilão de Energia Nova","2018-20",{"$f":"COUNTIF(D:D,Tabela1[[#This Row],[CD_PARC_USIN]])","v":1}]
[{"$f":"Tabela1[[#This Row],[NM_LEIL]]&Tabela1[[#This Row],[CD_PARC_USIN]]","v":"6º Leilão de Energia Reserva910155"},"ASSURUA IV I5","ASSURUA IV",910155,159,439,"6º Leilão de Energia Reserva","2017-20",{"$f":"COUNTIF(D:D,Tabela1[[#This Row],[CD_PARC_USIN]])","v":1}]
[{"$f":"Tabela1[[#This Row],[NM_LEIL]]&Tabela1[[#This Row],[CD_PARC_USIN]]","v":"6º Leilão de Energia Reserva910191"},"ESV V I5","SERRA DAS VACAS V",910191,159,439,"6º Leilão de Energia Reserva","2017-20",{"$f":"COUNTIF(D:D,Tabela1[[#This Row],[CD_PARC_USIN]])","v":1}]
[{"$f":"Tabela1[[#This Row],[NM_LEIL]]&Tabela1[[#This Row],[CD_PARC_USIN]]","v":"6º Leilão de Energia Reserva910192"},"CE UNHA DANTA I5","PAU SANTO",910192,159,439,"6º Leilão de Energia Reserva","2017-20",{"$f":"COUNTIF(D:D,Tabela1[[#This Row],[CD_PARC_USIN]])","v":1}]
[{"$f":"Tabela1[[#This Row],[NM_LEIL]]&Tabela1[[#This Row],[CD_PARC_USIN]]","v":"6º Leilão de Energia Reserva910193"},"UFV INHARE I","INHARE I",910193,159,438,"6º Leilão de Energia Reserva","2017-20",{"$f":"COUNTIF(D:D,Tabela1[[#This Row],[CD_PARC_USIN]])","v":1}]
[{"$f":"Tabela1[[#This Row],[NM_LEIL]]&Tabela1[[#This Row],[CD_PARC_USIN]]","v":"6º Leilão de Energia Reserva910211"},"CE ITAPUA VII I5","QUINA",910211,159,439,"6º Leilão de Energia Reserva","2017-20",{"$f":"COUNTIF(D:D,Tabela1[[#This Row],[CD_PARC_USIN]])","v":1}]
[{"$f":"Tabela1[[#This Row],[NM_LEIL]]&Tabela1[[#This Row],[CD_PARC_USIN]]","v":"18º Leilão de Energia Nova910212"},"PCH JARDIM I5","PCH Jardim",910212,154,421,"18º Leilão de Energia Nova","2018-30",{"$f":"COUNTIF(D:D,Tabela1[[#This Row],[CD_PARC_USIN]])","v":1}]
[{"$f":"Tabela1[[#This Row],[NM_LEIL]]&Tabela1[[#This Row],[CD_PARC_USIN]]","v":"18º Leilão de Energia Nova910421"},"EOL VENTOS DE STO ANTONIO","VENTOS DE STO ANTONI",910421,154,423,"18º Leilão de Energia Nova","2018-20",{"$f":"COUNTIF(D:D,Tabela1[[#This Row],[CD_PARC_USIN]])","v":1}]
[{"$f":"Tabela1[[#This Row],[NM_LEIL]]&Tabela1[[#This Row],[CD_PARC_USIN]]","v":"23º Leilão de Energia Nova910451"},"PCH CASTRO I5","PCH CASTRO",910451,167,457,"23º Leilão de Energia Nova","2021-30",{"$f":"COUNTIF(D:D,Tabela1[[#This Row],[CD_PARC_USIN]])","v":1}]
[{"$f":"Tabela1[[#This Row],[NM_LEIL]]&Tabela1[[#This Row],[CD_PARC_USIN]]","v":"8º Leilão de Energia Reserva910576"},"ENGIE SOLAR FLORESTA III I8","UFV FLORESTA III",910576,166,454,"8º Leilão de Energia Reserva","2018-20",{"$f":"COUNTIF(D:D,Tabela1[[#This Row],[CD_PARC_USIN]])","v":1}]
[{"$f":"Tabela1[[#This Row],[NM_LEIL]]&Tabela1[[#This Row],[CD_PARC_USIN]]","v":"8º Leilão de Energia Reserva910577"},"ENGIE SOLAR FLORESTA II I8","UFV FLORESTA II",910577,166,454,"8º Leilão de Energia Reserva","2018-20",{"$f":"COUNTIF(D:D,Tabela1[[#This Row],[CD_PARC_USIN]])","v":1}]
[{"$f":"Tabela1[[#This Row],[NM_LEIL]]&Tabela1[[#This Row],[CD_PARC_USIN]]","v":"8º Leilão de Energia Reserva910578"},"ENGIE SOLAR FLORESTA I I8","UFV FLORESTA I",910578,166,454,"8º Leilão de Energia Reserva","2018-20",{"$f":"COUNTIF(D:D,Tabela1[[#This Row],[CD_PARC_USIN]])","v":1}]
[{"$f":"Tabela1[[#This Row],[NM_LEIL]]&Tabela1[[#This Row],[CD_PARC_USIN]]","v":"7º Leilao de Energia Nova910654"},"COPEL GET","UHE BAIXO IGUACU COP",910654,17,407,"7º Leilao de Energia Nova","2013-30",{"$f":"COUNTIF(D:D,Tabela1[[#This Row],[CD_PARC_USIN]])","v":1}]
[{"$f":"Tabela1[[#This Row],[NM_LEIL]]&Tabela1[[#This Row],[CD_PARC_USIN]]","v":"8º Leilão de Energia Reserva910671"},"PIRAPORA III ENERGIAS I5","PIRAPORA 3",910671,166,454,"8º Leilão de Energia Reserva","2018-20",{"$f":"COUNTIF(D:D,Tabela1[[#This Row],[CD_PARC_USIN]])","v":1}]
[{"$f":"Tabela1[[#This Row],[NM_LEIL]]&Tabela1[[#This Row],[CD_PARC_USIN]]","v":"8º Leilão de Energia Reserva910672"},"PIRAPORA IV ENERGIAS I5","PIRAPORA 4",910672,166,454,"8º Leilão de Energia Reserva","2018-20",{"$f":"COUNTIF(D:D,Tabela1[[#This Row],[CD_PARC_USIN]])","v":1}]
[{"$f":"Tabela1[[#This Row],[NM_LEIL]]&Tabela1[[#This Row],[CD_PARC_USIN]]","v":"8º Leilão de Energia Reserva910678"},"SERRA BABILONIA XII I5","SERRA BABILONIA XII",910678,166,454,"8º Leilão de Energia Reserva","2018-20",{"$f":"COUNTIF(D:D,Tabela1[[#This Row],[CD_PARC_USIN]])","v":1}]
[{"$f":"Tabela1[[#This Row],[NM_LEIL]]&Tabela1[[#This Row],[CD_PARC_USIN]]","v":"8º Leilão de Energia Reserva910679"},"EOL VENTOS DA BAHIA I I5","VENTOS DA BAHIA I",910679,166,454,"8º Leilão de Energia Reserva","2018-20",{"$f":"COUNTIF(D:D,Tabela1[[#This Row],[CD_PARC_USIN]])","v":1}]
[{"$f":"Tabela1[[#This Row],[NM_LEIL]]&Tabela1[[#This Row],[CD_PARC_USIN]]","v":"8º Leilão de Energia Reserva910680"},"EOL VENTOS DA BAHIA III I5","VENTOS DA BAHIA III",910680,166,454,"8º Leilão de Energia Reserva","2018-20",{"$f":"COUNTIF(D:D,Tabela1[[#This Row],[CD_PARC_USIN]])","v":1}]
[{"$f":"Tabela1[[#This Row],[NM_LEIL]]&Tabela1[[#This Row],[CD_PARC_USIN]]","v":"8º Leilão de Energia Reserva910681"},"EOL VENTOS DA BAHIA XVIII I5","VENTOS D BAHIA XVIII",910681,166,454,"8º Leilão de Energia Reserva","2018-20",{"$f":"COUNTIF(D:D,Tabela1[[#This Row],[CD_PARC_USIN]])","v":1}]
[{"$f":"Tabela1[[#This Row],[NM_LEIL]]&Tabela1[[#This Row],[CD_PARC_USIN]]","v":"8º Leilão de Energia Reserva910682"},"BAB II I5","EOL VENTOS DE SANTA ",910682,166,454,"8º Leilão de Energia Reserva","2018-20",{"$f":"COUNTIF(D:D,Tabela1[[#This Row],[CD_PARC_USIN]])","v":1}]
[{"$f":"Tabela1[[#This Row],[NM_LEIL]]&Tabela1[[#This Row],[CD_PARC_USIN]]","v":"8º Leilão de Energia Reserva910683"},"APODI III I5","UFV APODI III",910683,166,454,"8º Leilão de Energia Reserva","2018-20",{"$f":"COUNTIF(D:D,Tabela1[[#This Row],[CD_PARC_USIN]])","v":1}]
[{"$f":"Tabela1[[#This Row],[NM_LEIL]]&Tabela1[[#This Row],[CD_PARC_USIN]]","v":"8º Leilão de Energia Reserva910684"},"BJL4 SOLAR I5","BJL 4 SOLAR S.A.",910684,166,454,"8º Leilão de Energia Reserva","2018-20",{"$f":"COUNTIF(D:D,Tabela1[[#This Row],[CD_PARC_USIN]])","v":1}]
[{"$f":"Tabela1[[#This Row],[NM_LEIL]]&Tabela1[[#This Row],[CD_PARC_USIN]]","v":"8º Leilão de Energia Reserva910686"},"COREMAS III I5","COREMAS III",910686,166,454,"8º Leilão de Energia Reserva","2018-20",{"$f":"COUNTIF(D:D,Tabela1[[#This Row],[CD_PARC_USIN]])","v":1}]
[{"$f":"Tabela1[[#This Row],[NM_LEIL]]&Tabela1[[#This Row],[CD_PARC_USIN]]","v":"8º Leilão de Energia Reserva910687"},"UFV GUIMARANIA 2 I5","UFV GUIMARANIA 2",910687,166,454,"8º Leilão de Energia Reserva","2018-20",{"$f":"COUNTIF(D:D,Tabela1[[#This Row],[CD_PARC_USIN]])","v":1}]
[{"$f":"Tabela1[[#This Row],[NM_LEIL]]&Tabela1[[#This Row],[CD_PARC_USIN]]","v":"8º Leilão de Energia Reserva910688"},"ENGIE SOLAR PARACATU I I5","UFV PARACATU 1",910688,166,454,"8º Leilão de Energia Reserva","2018-20",{"$f":"COUNTIF(D:D,Tabela1[[#This Row],[CD_PARC_USIN]])","v":1}]
[{"$f":"Tabela1[[#This Row],[NM_LEIL]]&Tabela1[[#This Row],[CD_PARC_USIN]]","v":"8º Leilão de Energia Reserva910706"},"FOTOVOLTAICA ASSU V I8","ASSU 5",910706,166,454,"8º Leilão de Energia Reserva","2018-20",{"$f":"COUNTIF(D:D,Tabela1[[#This Row],[CD_PARC_USIN]])","v":1}]
[{"$f":"Tabela1[[#This Row],[NM_LEIL]]&Tabela1[[#This Row],[CD_PARC_USIN]]","v":"8º Leilão de Energia Reserva910707"},"SERRA BABILONIA II I5","SERRA BABILONIA II",910707,166,454,"8º Leilão de Energia Reserva","2018-20",{"$f":"COUNTIF(D:D,Tabela1[[#This Row],[CD_PARC_USIN]])","v":1}]
[{"$f":"Tabela1[[#This Row],[NM_LEIL]]&Tabela1[[#This Row],[CD_PARC_USIN]]","v":"8º Leilão de Energia Reserva910708"},"SERRA BABILONIA IX I5","SERRA BABILONIA IX",910708,166,454,"8º Leilão de Energia Reserva","2018-20",{"$f":"COUNTIF(D:D,Tabela1[[#This Row],[CD_PARC_USIN]])","v":1}]
[{"$f":"Tabela1[[#This Row],[NM_LEIL]]&Tabela1[[#This Row],[CD_PARC_USIN]]","v":"8º Leilão de Energia Reserva910709"},"SERRA BABILONIA VI I5","SERRA BABILONIA VI",910709,166,454,"8º Leilão de Energia Reserva","2018-20",{"$f":"COUNTIF(D:D,Tabela1[[#This Row],[CD_PARC_USIN]])","v":1}]
[{"$f":"Tabela1[[#This Row],[NM_LEIL]]&Tabela1[[#This Row],[CD_PARC_USIN]]","v":"8º Leilão de Energia Reserva910710"},"SERRA BABILONIA VII I5","SERRA BABILONIA VII",910710,166,454,"8º Leilão de Energia Reserva","2018-20",{"$f":"COUNTIF(D:D,Tabela1[[#This Row],[CD_PARC_USIN]])","v":1}]
[{"$f":"Tabela1[[#This Row],[NM_LEIL]]&Tabela1[[#This Row],[CD_PARC_USIN]]","v":"8º Leilão de Energia Reserva910711"},"SERRA BABILONIA VIII I5","SERRA BABILONIA VIII",910711,166,454,"8º Leilão de Energia Reserva","2018-20",{"$f":"COUNTIF(D:D,Tabela1[[#This Row],[CD_PARC_USIN]])","v":1}]
[{"$f":"Tabela1[[#This Row],[NM_LEIL]]&Tabela1[[#This Row],[CD_PARC_USIN]]","v":"8º Leilão de Energia Reserva910712"},"SERRA BABILONIA X I5","SERRA BABILONIA X",910712,166,454,"8º Leilão de Energia Reserva","2018-20",{"$f":"COUNTIF(D:D,Tabela1[[#This Row],[CD_PARC_USIN]])","v":1}]
[{"$f":"Tabela1[[#This Row],[NM_LEIL]]&Tabela1[[#This Row],[CD_PARC_USIN]]","v":"8º Leilão de Energia Reserva910713"},"SERRA BABILONIA XI I5","SERRA BABILONIA XI",910713,166,454,"8º Leilão de Energia Reserva","2018-20",{"$f":"COUNTIF(D:D,Tabela1[[#This Row],[CD_PARC_USIN]])","v":1}]
[{"$f":"Tabela1[[#This Row],[NM_LEIL]]&Tabela1[[#This Row],[CD_PARC_USIN]]","v":"8º Leilão de Energia Reserva910714"},"EOL VENTOS DA BAHIA IX I5","VENTOS DA BAHIA IX",910714,166,454,"8º Leilão de Energia Reserva","2018-20",{"$f":"COUNTIF(D:D,Tabela1[[#This Row],[CD_PARC_USIN]])","v":1}]
[{"$f":"Tabela1[[#This Row],[NM_LEIL]]&Tabela1[[#This Row],[CD_PARC_USIN]]","v":"8º Leilão de Energia Reserva910715"},"BAB I I5","EOL SANTA APARECIDA",910715,166,454,"8º Leilão de Energia Reserva","2018-20",{"$f":"COUNTIF(D:D,Tabela1[[#This Row],[CD_PARC_USIN]])","v":1}]
[{"$f":"Tabela1[[#This Row],[NM_LEIL]]&Tabela1[[#This Row],[CD_PARC_USIN]]","v":"8º Leilão de Energia Reserva910716"},"BAB IV I5","VENTOS DE SANTA AURO",910716,166,454,"8º Leilão de Energia Reserva","2018-20",{"$f":"COUNTIF(D:D,Tabela1[[#This Row],[CD_PARC_USIN]])","v":1}]
[{"$f":"Tabela1[[#This Row],[NM_LEIL]]&Tabela1[[#This Row],[CD_PARC_USIN]]","v":"8º Leilão de Energia Reserva910717"},"BAB V I5","VENTOS DE SANTA EMIL",910717,166,454,"8º Leilão de Energia Reserva","2018-20",{"$f":"COUNTIF(D:D,Tabela1[[#This Row],[CD_PARC_USIN]])","v":1}]
[{"$f":"Tabela1[[#This Row],[NM_LEIL]]&Tabela1[[#This Row],[CD_PARC_USIN]]","v":"8º Leilão de Energia Reserva910718"},"BAB III I5","VENTOS DE SÃO GABRIE",910718,166,454,"8º Leilão de Energia Reserva","2018-20",{"$f":"COUNTIF(D:D,Tabela1[[#This Row],[CD_PARC_USIN]])","v":1}]
[{"$f":"Tabela1[[#This Row],[NM_LEIL]]&Tabela1[[#This Row],[CD_PARC_USIN]]","v":"8º Leilão de Energia Reserva910719"},"APODI I I5","UFV APODI I",910719,166,454,"8º Leilão de Energia Reserva","2018-20",{"$f":"COUNTIF(D:D,Tabela1[[#This Row],[CD_PARC_USIN]])","v":1}]
[{"$f":"Tabela1[[#This Row],[NM_LEIL]]&Tabela1[[#This Row],[CD_PARC_USIN]]","v":"8º Leilão de Energia Reserva910720"},"APODI IV I5","UFV APODI IV",910720,166,454,"8º Leilão de Energia Reserva","2018-20",{"$f":"COUNTIF(D:D,Tabela1[[#This Row],[CD_PARC_USIN]])","v":1}]
[{"$f":"Tabela1[[#This Row],[NM_LEIL]]&Tabela1[[#This Row],[CD_PARC_USIN]]","v":"8º Leilão de Energia Reserva910721"},"APODI II I5","UFV APODI II",910721,166,454,"8º Leilão de Energia Reserva","2018-20",{"$f":"COUNTIF(D:D,Tabela1[[#This Row],[CD_PARC_USIN]])","v":1}]
[{"$f":"Tabela1[[#This Row],[NM_LEIL]]&Tabela1[[#This Row],[CD_PARC_USIN]]","v":"8º Leilão de Energia Reserva910722"},"UFV GUIMARANIA 1 I5","UFV GUIMARANIA 1",910722,166,454,"8º Leilão de Energia Reserva","2018-20",{"$f":"COUNTIF(D:D,Tabela1[[#This Row],[CD_PARC_USIN]])","v":1}]
[{"$f":"Tabela1[[#This Row],[NM_LEIL]]&Tabela1[[#This Row],[CD_PARC_USIN]]","v":"8º Leilão de Energia Reserva910723"},"JUAZEIRO SOLAR I I5","JUAZEIRO SOLAR I",910723,166,454,"8º Leilão de Energia Reserva","2018-20",{"$f":"COUNTIF(D:D,Tabela1[[#This Row],[CD_PARC_USIN]])","v":1}]
[{"$f":"Tabela1[[#This Row],[NM_LEIL]]&Tabela1[[#This Row],[CD_PARC_USIN]]","v":"8º Leilão de Energia Reserva910724"},"JUAZEIRO SOLAR II I5","JUAZEIRO SOLAR II",910724,166,454,"8º Leilão de Energia Reserva","2018-20",{"$f":"COUNTIF(D:D,Tabela1[[#This Row],[CD_PARC_USIN]])","v":1}]
[{"$f":"Tabela1[[#This Row],[NM_LEIL]]&Tabela1[[#This Row],[CD_PARC_USIN]]","v":"8º Leilão de Energia Reserva910725"},"JUAZEIRO SOLAR III I5","JUAZEIRO SOLAR III",910725,166,454,"8º Leilão de Energia Reserva","2018-20",{"$f":"COUNTIF(D:D,Tabela1[[#This Row],[CD_PARC_USIN]])","v":1}]
[{"$f":"Tabela1[[#This Row],[NM_LEIL]]&Tabela1[[#This Row],[CD_PARC_USIN]]","v":"8º Leilão de Energia Reserva910726"},"JUAZEIRO SOLAR IV I5","JUAZEIRO SOLAR IV",910726,166,454,"8º Leilão de Energia Reserva","2018-20",{"$f":"COUNTIF(D:D,Tabela1[[#This Row],[CD_PARC_USIN]])","v":1}]
[{"$f":"Tabela1[[#This Row],[NM_LEIL]]&Tabela1[[#This Row],[CD_PARC_USIN]]","v":"8º Leilão de Energia Reserva910727"},"ENGIE SOLAR PARACATU II I5","UFV PARACATU 2",910727,166,454,"8º Leilão de Energia Reserva","2018-20",{"$f":"COUNTIF(D:D,Tabela1[[#This Row],[CD_PARC_USIN]])","v":1}]
[{"$f":"Tabela1[[#This Row],[NM_LEIL]]&Tabela1[[#This Row],[CD_PARC_USIN]]","v":"8º Leilão de Energia Reserva910728"},"ENGIE SOLAR PARACATU III I5","UFV PARACATU 3",910728,166,454,"8º Leilão de Energia Reserva","2018-20",{"$f":"COUNTIF(D:D,Tabela1[[#This Row],[CD_PARC_USIN]])","v":1}]
[{"$f":"Tabela1[[#This Row],[NM_LEIL]]&Tabela1[[#This Row],[CD_PARC_USIN]]","v":"8º Leilão de Energia Reserva910729"},"ENGIE SOLAR PARACATU IV I5","UFV PARACATU 4",910729,166,454,"8º Leilão de Energia Reserva","2018-20",{"$f":"COUNTIF(D:D,Tabela1[[#This Row],[CD_PARC_USIN]])","v":1}]
[{"$f":"Tabela1[[#This Row],[NM_LEIL]]&Tabela1[[#This Row],[CD_PARC_USIN]]","v":"8º Leilão de Energia Reserva910730"},"PIRAPORA II ENERGIAS I5","PIRAPORA 2",910730,166,454,"8º Leilão de Energia Reserva","2018-20",{"$f":"COUNTIF(D:D,Tabela1[[#This Row],[CD_PARC_USIN]])","v":1}]
[{"$f":"Tabela1[[#This Row],[NM_LEIL]]&Tabela1[[#This Row],[CD_PARC_USIN]]","v":"8º Leilão de Energia Reserva910731"},"OH SOBRADO I5","SOBRADO1",910731,166,454,"8º Leilão de Energia Reserva","2018-20",{"$f":"COUNTIF(D:D,Tabela1[[#This Row],[CD_PARC_USIN]])","v":1}]
[{"$f":"Tabela1[[#This Row],[NM_LEIL]]&Tabela1[[#This Row],[CD_PARC_USIN]]","v":"8º Leilão de Energia Reserva910732"},"SOL DO FUTURO I I5","SOL DO FUTURO I",910732,166,454,"8º Leilão de Energia Reserva","2018-20",{"$f":"COUNTIF(D:D,Tabela1[[#This Row],[CD_PARC_USIN]])","v":1}]
[{"$f":"Tabela1[[#This Row],[NM_LEIL]]&Tabela1[[#This Row],[CD_PARC_USIN]]","v":"8º Leilão de Energia Reserva910733"},"SOL DO FUTURO II I5","SOL DO FUTURO II",910733,166,454,"8º Leilão de Energia Reserva","2018-20",{"$f":"COUNTIF(D:D,Tabela1[[#This Row],[CD_PARC_USIN]])","v":1}]
[{"$f":"Tabela1[[#This Row],[NM_LEIL]]&Tabela1[[#This Row],[CD_PARC_USIN]]","v":"8º Leilão de Energia Reserva910734"},"SOL DO FUTURO III I5","SOL DO FUTURO III",910734,166,454,"8º Leilão de Energia Reserva","2018-20",{"$f":"COUNTIF(D:D,Tabela1[[#This Row],[CD_PARC_USIN]])","v":1}]
[{"$f":"Tabela1[[#This Row],[NM_LEIL]]&Tabela1[[#This Row],[CD_PARC_USIN]]","v":"8º Leilão de Energia Reserva910735"},"PEDRA DO REINO IV I5","PEDRA DO REINO IV",910735,166,454,"8º Leilão de Energia Reserva","2018-20",{"$f":"COUNTIF(D:D,Tabela1[[#This Row],[CD_PARC_USIN]])","v":1}]
[{"$f":"Tabela1[[#This Row],[NM_LEIL]]&Tabela1[[#This Row],[CD_PARC_USIN]]","v":"8º Leilão de Energia Reserva910736"},"BOA HORA 1 I5","BOA HORA 1",910736,166,454,"8º Leilão de Energia Reserva","2018-20",{"$f":"COUNTIF(D:D,Tabela1[[#This Row],[CD_PARC_USIN]])","v":1}]
[{"$f":"Tabela1[[#This Row],[NM_LEIL]]&Tabela1[[#This Row],[CD_PARC_USIN]]","v":"8º Leilão de Energia Reserva910737"},"BOA HORA 2 I5","BOA HORA 2",910737,166,454,"8º Leilão de Energia Reserva","2018-20",{"$f":"COUNTIF(D:D,Tabela1[[#This Row],[CD_PARC_USIN]])","v":1}]
[{"$f":"Tabela1[[#This Row],[NM_LEIL]]&Tabela1[[#This Row],[CD_PARC_USIN]]","v":"8º Leilão de Energia Reserva910738"},"BOA HORA 3 I5","BOA HORA 3",910738,166,454,"8º Leilão de Energia Reserva","2018-20",{"$f":"COUNTIF(D:D,Tabela1[[#This Row],[CD_PARC_USIN]])","v":1}]
[{"$f":"Tabela1[[#This Row],[NM_LEIL]]&Tabela1[[#This Row],[CD_PARC_USIN]]","v":"10º Leilão de Energia Reserva910865"},"PCH PONTE BRANCA I5","PONTE BRANCA",910865,168,458,"10º Leilão de Energia Reserva","2020-30",{"$f":"COUNTIF(D:D,Tabela1[[#This Row],[CD_PARC_USIN]])","v":1}]
[{"$f":"Tabela1[[#This Row],[NM_LEIL]]&Tabela1[[#This Row],[CD_PARC_USIN]]","v":"23º Leilão de Energia Nova910956"},"CANHADAO I5","CANHADAO",910956,167,457,"23º Leilão de Energia Nova","2021-30",{"$f":"COUNTIF(D:D,Tabela1[[#This Row],[CD_PARC_USIN]])","v":1}]
[{"$f":"Tabela1[[#This Row],[NM_LEIL]]&Tabela1[[#This Row],[CD_PARC_USIN]]","v":"18º Leilão de Energia Nova910973"},"CBAIXO_14 I5","UNIÃO DOS VENTOS 14",910973,154,423,"18º Leilão de Energia Nova","2018-20",{"$f":"COUNTIF(D:D,Tabela1[[#This Row],[CD_PARC_USIN]])","v":1}]
[{"$f":"Tabela1[[#This Row],[NM_LEIL]]&Tabela1[[#This Row],[CD_PARC_USIN]]","v":"18º Leilão de Energia Nova910992"},"SANTONIO_13 I5","UNIÃO DOS VENTOS 13",910992,154,423,"18º Leilão de Energia Nova","2018-20",{"$f":"COUNTIF(D:D,Tabela1[[#This Row],[CD_PARC_USIN]])","v":1}]
[{"$f":"Tabela1[[#This Row],[NM_LEIL]]&Tabela1[[#This Row],[CD_PARC_USIN]]","v":"18º Leilão de Energia Nova911051"},"AVENTURA I I5","AVENTURA I",911051,154,423,"18º Leilão de Energia Nova","2018-20",{"$f":"COUNTIF(D:D,Tabela1[[#This Row],[CD_PARC_USIN]])","v":1}]
[{"$f":"Tabela1[[#This Row],[NM_LEIL]]&Tabela1[[#This Row],[CD_PARC_USIN]]","v":"10º Leilão de Energia Reserva911351"},"CGH SUCURI I5","CGH SUCURI",911351,168,458,"10º Leilão de Energia Reserva","2020-30",{"$f":"COUNTIF(D:D,Tabela1[[#This Row],[CD_PARC_USIN]])","v":1}]
[{"$f":"Tabela1[[#This Row],[NM_LEIL]]&Tabela1[[#This Row],[CD_PARC_USIN]]","v":"18º Leilão de Energia Nova911352"},"FORTE_12 I5","UNIÃO DOS VENTOS 12",911352,154,423,"18º Leilão de Energia Nova","2018-20",{"$f":"COUNTIF(D:D,Tabela1[[#This Row],[CD_PARC_USIN]])","v":1}]
[{"$f":"Tabela1[[#This Row],[NM_LEIL]]&Tabela1[[#This Row],[CD_PARC_USIN]]","v":"20º Leilão de Energia Nova911671"},"MORRO DO CHAPEU II I5","VENTOS DA STA DULCE",911671,160,441,"20º Leilão de Energia Nova","2019-20",{"$f":"COUNTIF(D:D,Tabela1[[#This Row],[CD_PARC_USIN]])","v":1}]
[{"$f":"Tabela1[[#This Row],[NM_LEIL]]&Tabela1[[#This Row],[CD_PARC_USIN]]","v":"20º Leilão de Energia Nova911952"},"MORRO DO CHAPEU I I5","VENTOS DO SAO PAULO",911952,160,441,"20º Leilão de Energia Nova","2019-20",{"$f":"COUNTIF(D:D,Tabela1[[#This Row],[CD_PARC_USIN]])","v":1}]
[{"$f":"Tabela1[[#This Row],[NM_LEIL]]&Tabela1[[#This Row],[CD_PARC_USIN]]","v":"20º Leilão de Energia Nova911972"},"MORRO DO CHAPEU I I5","VENTOS DO SAO MARIO",911972,160,441,"20º Leilão de Energia Nova","2019-20",{"$f":"COUNTIF(D:D,Tabela1[[#This Row],[CD_PARC_USIN]])","v":1}]
[{"$f":"Tabela1[[#This Row],[NM_LEIL]]&Tabela1[[#This Row],[CD_PARC_USIN]]","v":"20º Leilão de Energia Nova911973"},"MORRO DO CHAPEU II I5","VENT DA ST ESPERANCA",911973,160,441,"20º Leilão de Energia Nova","2019-20",{"$f":"COUNTIF(D:D,Tabela1[[#This Row],[CD_PARC_USIN]])","v":1}]
[{"$f":"Tabela1[[#This Row],[NM_LEIL]]&Tabela1[[#This Row],[CD_PARC_USIN]]","v":"18º Leilão de Energia Nova912112"},"UTE VISTA ALEG I5 545-13","VISTA ALEGRE I VISTA",912112,154,422,"18º Leilão de Energia Nova","2018-25",{"$f":"COUNTIF(D:D,Tabela1[[#This Row],[CD_PARC_USIN]])","v":1}]
[{"$f":"Tabela1[[#This Row],[NM_LEIL]]&Tabela1[[#This Row],[CD_PARC_USIN]]","v":"25º Leilão de Energia Nova912483"},"AGV V I5","AGUA VERMELHA V",912483,172,465,"25º Leilão de Energia Nova","2021-20",{"$f":"COUNTIF(D:D,Tabela1[[#This Row],[CD_PARC_USIN]])","v":1}]
[{"$f":"Tabela1[[#This Row],[NM_LEIL]]&Tabela1[[#This Row],[CD_PARC_USIN]]","v":"25º Leilão de Energia Nova912485"},"AGV VI I5","AGUA VERMELHA VI",912485,172,465,"25º Leilão de Energia Nova","2021-20",{"$f":"COUNTIF(D:D,Tabela1[[#This Row],[CD_PARC_USIN]])","v":1}]
[{"$f":"Tabela1[[#This Row],[NM_LEIL]]&Tabela1[[#This Row],[CD_PARC_USIN]]","v":"26º Leilão de Energia Nova912486"},"TUPACIGUARA PIE I5","UTE Tupaciguara",912486,173,468,"26º Leilão de Energia Nova","2023-25",{"$f":"COUNTIF(D:D,Tabela1[[#This Row],[CD_PARC_USIN]])","v":1}]
[{"$f":"Tabela1[[#This Row],[NM_LEIL]]&Tabela1[[#This Row],[CD_PARC_USIN]]","v":"8º Leilão de Energia Reserva912489"},"ENERGYBRAS I5","FAZENDA ESMERALDA",912489,166,454,"8º Leilão de Energia Reserva","2018-20",{"$f":"COUNTIF(D:D,Tabela1[[#This Row],[CD_PARC_USIN]])","v":1}]
[{"$f":"Tabela1[[#This Row],[NM_LEIL]]&Tabela1[[#This Row],[CD_PARC_USIN]]","v":"25º Leilão de Energia Nova912518"},"AGV IV I5","AGUA VERMELHA IV",912518,172,465,"25º Leilão de Energia Nova","2021-20",{"$f":"COUNTIF(D:D,Tabela1[[#This Row],[CD_PARC_USIN]])","v":1}]
[{"$f":"Tabela1[[#This Row],[NM_LEIL]]&Tabela1[[#This Row],[CD_PARC_USIN]]","v":"21º Leilão de Energia Nova912534"},"CELSE","PORTO DE SERGIPE I",912534,161,443,"21º Leilão de Energia Nova","2020-25",{"$f":"COUNTIF(D:D,Tabela1[[#This Row],[CD_PARC_USIN]])","v":1}]
[{"$f":"Tabela1[[#This Row],[NM_LEIL]]&Tabela1[[#This Row],[CD_PARC_USIN]]","v":"10º Leilão de Energia Reserva913231"},"CGH PALMEIRAS TOCANTINS I5","CGH PALMEIRAS TO",913231,168,458,"10º Leilão de Energia Reserva","2020-30",{"$f":"COUNTIF(D:D,Tabela1[[#This Row],[CD_PARC_USIN]])","v":1}]
[{"$f":"Tabela1[[#This Row],[NM_LEIL]]&Tabela1[[#This Row],[CD_PARC_USIN]]","v":"10º Leilão de Energia Reserva913271"},"HIDROLUZ I5","PCH FIGUEIRA - HIDRO",913271,168,458,"10º Leilão de Energia Reserva","2020-30",{"$f":"COUNTIF(D:D,Tabela1[[#This Row],[CD_PARC_USIN]])","v":1}]
[{"$f":"Tabela1[[#This Row],[NM_LEIL]]&Tabela1[[#This Row],[CD_PARC_USIN]]","v":"10º Leilão de Energia Reserva913291"},"AREADO I5","AREADO",913291,168,458,"10º Leilão de Energia Reserva","2020-30",{"$f":"COUNTIF(D:D,Tabela1[[#This Row],[CD_PARC_USIN]])","v":1}]
[{"$f":"Tabela1[[#This Row],[NM_LEIL]]&Tabela1[[#This Row],[CD_PARC_USIN]]","v":"10º Leilão de Energia Reserva913292"},"PCH CASTANHAO","CASTANHAO",913292,168,458,"10º Leilão de Energia Reserva","2020-30",{"$f":"COUNTIF(D:D,Tabela1[[#This Row],[CD_PARC_USIN]])","v":1}]
[{"$f":"Tabela1[[#This Row],[NM_LEIL]]&Tabela1[[#This Row],[CD_PARC_USIN]]","v":"10º Leilão de Energia Reserva913293"},"CGH ENXADRISTA I5","ENXADRISTA",913293,168,458,"10º Leilão de Energia Reserva","2020-30",{"$f":"COUNTIF(D:D,Tabela1[[#This Row],[CD_PARC_USIN]])","v":1}]
[{"$f":"Tabela1[[#This Row],[NM_LEIL]]&Tabela1[[#This Row],[CD_PARC_USIN]]","v":"10º Leilão de Energia Reserva913294"},"PCH JAURU","ESTIVADINHO 3",913294,168,458,"10º Leilão de Energia Reserva","2020-30",{"$f":"COUNTIF(D:D,Tabela1[[#This Row],[CD_PARC_USIN]])","v":1}]
[{"$f":"Tabela1[[#This Row],[NM_LEIL]]&Tabela1[[#This Row],[CD_PARC_USIN]]","v":"10º Leilão de Energia Reserva913295"},"PCH MANTOVILIS I5","MANTOVILLIS",913295,168,458,"10º Leilão de Energia Reserva","2020-30",{"$f":"COUNTIF(D:D,Tabela1[[#This Row],[CD_PARC_USIN]])","v":1}]
[{"$f":"Tabela1[[#This Row],[NM_LEIL]]&Tabela1[[#This Row],[CD_PARC_USIN]]","v":"10º Leilão de Energia Reserva913296"},"MANUEL ALVES I5","MANUEL ALVES",913296,168,458,"10º Leilão de Energia Reserva","2020-30",{"$f":"COUNTIF(D:D,Tabela1[[#This Row],[CD_PARC_USIN]])","v":1}]
[{"$f":"Tabela1[[#This Row],[NM_LEIL]]&Tabela1[[#This Row],[CD_PARC_USIN]]","v":"10º Leilão de Energia Reserva913297"},"CGH PARAISO I5","PARAÍSO",913297,168,458,"10º Leilão de Energia Reserva","2020-30",{"$f":"COUNTIF(D:D,Tabela1[[#This Row],[CD_PARC_USIN]])","v":1}]
[{"$f":"Tabela1[[#This Row],[NM_LEIL]]&Tabela1[[#This Row],[CD_PARC_USIN]]","v":"10º Leilão de Energia Reserva913298"},"LOMBO DO CAVALO GERACAO I5","RONCADOR",913298,168,458,"10º Leilão de Energia Reserva","2020-30",{"$f":"COUNTIF(D:D,Tabela1[[#This Row],[CD_PARC_USIN]])","v":1}]
[{"$f":"Tabela1[[#This Row],[NM_LEIL]]&Tabela1[[#This Row],[CD_PARC_USIN]]","v":"10º Leilão de Energia Reserva913311"},"PCH ARMANDO RIBEIRO I5","ARMANDO RIBEIRO",913311,168,458,"10º Leilão de Energia Reserva","2020-30",{"$f":"COUNTIF(D:D,Tabela1[[#This Row],[CD_PARC_USIN]])","v":1}]
[{"$f":"Tabela1[[#This Row],[NM_LEIL]]&Tabela1[[#This Row],[CD_PARC_USIN]]","v":"10º Leilão de Energia Reserva913312"},"PCH BARRINHA I5","BARRINHA",913312,168,458,"10º Leilão de Energia Reserva","2020-30",{"$f":"COUNTIF(D:D,Tabela1[[#This Row],[CD_PARC_USIN]])","v":1}]
[{"$f":"Tabela1[[#This Row],[NM_LEIL]]&Tabela1[[#This Row],[CD_PARC_USIN]]","v":"10º Leilão de Energia Reserva913313"},"PCH LAMBARI I5","LAMBARI",913313,168,458,"10º Leilão de Energia Reserva","2020-30",{"$f":"COUNTIF(D:D,Tabela1[[#This Row],[CD_PARC_USIN]])","v":1}]
[{"$f":"Tabela1[[#This Row],[NM_LEIL]]&Tabela1[[#This Row],[CD_PARC_USIN]]","v":"10º Leilão de Energia Reserva913314"},"BRASIL SUL I5","CORAÇÃO",913314,168,458,"10º Leilão de Energia Reserva","2020-30",{"$f":"COUNTIF(D:D,Tabela1[[#This Row],[CD_PARC_USIN]])","v":1}]
[{"$f":"Tabela1[[#This Row],[NM_LEIL]]&Tabela1[[#This Row],[CD_PARC_USIN]]","v":"10º Leilão de Energia Reserva913315"},"PCH JUINA I5","JUI 117",913315,168,458,"10º Leilão de Energia Reserva","2020-30",{"$f":"COUNTIF(D:D,Tabela1[[#This Row],[CD_PARC_USIN]])","v":1}]
[{"$f":"Tabela1[[#This Row],[NM_LEIL]]&Tabela1[[#This Row],[CD_PARC_USIN]]","v":"10º Leilão de Energia Reserva913316"},"MEDIO GARCIA","MÉDIO GARCIA",913316,168,458,"10º Leilão de Energia Reserva","2020-30",{"$f":"COUNTIF(D:D,Tabela1[[#This Row],[CD_PARC_USIN]])","v":1}]
[{"$f":"Tabela1[[#This Row],[NM_LEIL]]&Tabela1[[#This Row],[CD_PARC_USIN]]","v":"10º Leilão de Energia Reserva913317"},"PONTE SERRADA GERACAO I5","PONTE SERRADA",913317,168,458,"10º Leilão de Energia Reserva","2020-30",{"$f":"COUNTIF(D:D,Tabela1[[#This Row],[CD_PARC_USIN]])","v":1}]
[{"$f":"Tabela1[[#This Row],[NM_LEIL]]&Tabela1[[#This Row],[CD_PARC_USIN]]","v":"10º Leilão de Energia Reserva913318"},"RINCAO ENERGIA I5","RINCÃO",913318,168,458,"10º Leilão de Energia Reserva","2020-30",{"$f":"COUNTIF(D:D,Tabela1[[#This Row],[CD_PARC_USIN]])","v":1}]
[{"$f":"Tabela1[[#This Row],[NM_LEIL]]&Tabela1[[#This Row],[CD_PARC_USIN]]","v":"10º Leilão de Energia Reserva913331"},"COVO I5","PCH COVÓ UC 96176873",913331,168,458,"10º Leilão de Energia Reserva","2020-30",{"$f":"COUNTIF(D:D,Tabela1[[#This Row],[CD_PARC_USIN]])","v":1}]
[{"$f":"Tabela1[[#This Row],[NM_LEIL]]&Tabela1[[#This Row],[CD_PARC_USIN]]","v":"10º Leilão de Energia Reserva913332"},"SAO BARTOLOMEU I5","PCH TAMBORIL",913332,168,458,"10º Leilão de Energia Reserva","2020-30",{"$f":"COUNTIF(D:D,Tabela1[[#This Row],[CD_PARC_USIN]])","v":1}]
[{"$f":"Tabela1[[#This Row],[NM_LEIL]]&Tabela1[[#This Row],[CD_PARC_USIN]]","v":"10º Leilão de Energia Reserva913333"},"POCO FUNDO I5","POÇO FUNDO",913333,168,458,"10º Leilão de Energia Reserva","2020-30",{"$f":"COUNTIF(D:D,Tabela1[[#This Row],[CD_PARC_USIN]])","v":1}]
[{"$f":"Tabela1[[#This Row],[NM_LEIL]]&Tabela1[[#This Row],[CD_PARC_USIN]]","v":"10º Leilão de Energia Reserva913371"},"PCH PULO GERA I5","PCH PULO",913371,168,458,"10º Leilão de Energia Reserva","2020-30",{"$f":"COUNTIF(D:D,Tabela1[[#This Row],[CD_PARC_USIN]])","v":1}]
[{"$f":"Tabela1[[#This Row],[NM_LEIL]]&Tabela1[[#This Row],[CD_PARC_USIN]]","v":"10º Leilão de Energia Reserva913372"},"SANTANA DO DESERTO I5","SANTANA DO DESERTO I",913372,168,458,"10º Leilão de Energia Reserva","2020-30",{"$f":"COUNTIF(D:D,Tabela1[[#This Row],[CD_PARC_USIN]])","v":1}]
[{"$f":"Tabela1[[#This Row],[NM_LEIL]]&Tabela1[[#This Row],[CD_PARC_USIN]]","v":"25º Leilão de Energia Nova913553"},"PCH BURITI I5","PCH BURITI - Sapezal",913553,172,462,"25º Leilão de Energia Nova","2021-30",{"$f":"COUNTIF(D:D,Tabela1[[#This Row],[CD_PARC_USIN]])","v":1}]
[{"$f":"Tabela1[[#This Row],[NM_LEIL]]&Tabela1[[#This Row],[CD_PARC_USIN]]","v":"23º Leilão de Energia Nova913911"},"TRES LEOES I5","PCH BARRA DO LEAO",913911,167,457,"23º Leilão de Energia Nova","2021-30",{"$f":"COUNTIF(D:D,Tabela1[[#This Row],[CD_PARC_USIN]])","v":1}]
[{"$f":"Tabela1[[#This Row],[NM_LEIL]]&Tabela1[[#This Row],[CD_PARC_USIN]]","v":"26º Leilão de Energia Nova914695"},"EGP SANTA ANGELA 08 I5","SANTA ANGELA 08",914695,173,467,"26º Leilão de Energia Nova","2023-20",{"$f":"COUNTIF(D:D,Tabela1[[#This Row],[CD_PARC_USIN]])","v":1}]
[{"$f":"Tabela1[[#This Row],[NM_LEIL]]&Tabela1[[#This Row],[CD_PARC_USIN]]","v":"26º Leilão de Energia Nova915334"},"EGP SANTA ANGELA 02 I5","V STA ANGELA 02",915334,173,467,"26º Leilão de Energia Nova","2023-20",{"$f":"COUNTIF(D:D,Tabela1[[#This Row],[CD_PARC_USIN]])","v":1}]
[{"$f":"Tabela1[[#This Row],[NM_LEIL]]&Tabela1[[#This Row],[CD_PARC_USIN]]","v":"26º Leilão de Energia Nova915335"},"EGP SANTA ANGELA 05 I5","V STA ANGELA 05",915335,173,467,"26º Leilão de Energia Nova","2023-20",{"$f":"COUNTIF(D:D,Tabela1[[#This Row],[CD_PARC_USIN]])","v":1}]
[{"$f":"Tabela1[[#This Row],[NM_LEIL]]&Tabela1[[#This Row],[CD_PARC_USIN]]","v":"26º Leilão de Energia Nova915336"},"EGP SANTA ANGELA 07 I5","V STA ANGELA 07",915336,173,467,"26º Leilão de Energia Nova","2023-20",{"$f":"COUNTIF(D:D,Tabela1[[#This Row],[CD_PARC_USIN]])","v":1}]
[{"$f":"Tabela1[[#This Row],[NM_LEIL]]&Tabela1[[#This Row],[CD_PARC_USIN]]","v":"26º Leilão de Energia Nova915337"},"ENEL SANTA ANGELA 11 I5","V STA ANGELA 11",915337,173,467,"26º Leilão de Energia Nova","2023-20",{"$f":"COUNTIF(D:D,Tabela1[[#This Row],[CD_PARC_USIN]])","v":1}]
[{"$f":"Tabela1[[#This Row],[NM_LEIL]]&Tabela1[[#This Row],[CD_PARC_USIN]]","v":"26º Leilão de Energia Nova915338"},"EGP SANTA ANGELA 15 I5","V STA ANGELA 15",915338,173,467,"26º Leilão de Energia Nova","2023-20",{"$f":"COUNTIF(D:D,Tabela1[[#This Row],[CD_PARC_USIN]])","v":1}]
[{"$f":"Tabela1[[#This Row],[NM_LEIL]]&Tabela1[[#This Row],[CD_PARC_USIN]]","v":"26º Leilão de Energia Nova915339"},"EGP SANTA ANGELA 17 I5","V STA ANGELA 17",915339,173,467,"26º Leilão de Energia Nova","2023-20",{"$f":"COUNTIF(D:D,Tabela1[[#This Row],[CD_PARC_USIN]])","v":1}]
[{"$f":"Tabela1[[#This Row],[NM_LEIL]]&Tabela1[[#This Row],[CD_PARC_USIN]]","v":"26º Leilão de Energia Nova915340"},"EGP SANTA ANGELA 20 I5","V STA ANGELA 20",915340,173,467,"26º Leilão de Energia Nova","2023-20",{"$f":"COUNTIF(D:D,Tabela1[[#This Row],[CD_PARC_USIN]])","v":1}]
[{"$f":"Tabela1[[#This Row],[NM_LEIL]]&Tabela1[[#This Row],[CD_PARC_USIN]]","v":"26º Leilão de Energia Nova915341"},"EGP SANTA ESPERAN¿A 13 I5","V STA ESPERANCA 13",915341,173,467,"26º Leilão de Energia Nova","2023-20",{"$f":"COUNTIF(D:D,Tabela1[[#This Row],[CD_PARC_USIN]])","v":1}]
[{"$f":"Tabela1[[#This Row],[NM_LEIL]]&Tabela1[[#This Row],[CD_PARC_USIN]]","v":"26º Leilão de Energia Nova915342"},"EGP SANTA ESPERANÇA 15 I5","V STA ESPERANCA 15",915342,173,467,"26º Leilão de Energia Nova","2023-20",{"$f":"COUNTIF(D:D,Tabela1[[#This Row],[CD_PARC_USIN]])","v":1}]
[{"$f":"Tabela1[[#This Row],[NM_LEIL]]&Tabela1[[#This Row],[CD_PARC_USIN]]","v":"26º Leilão de Energia Nova915343"},"PONTAL2-I5","VALE DO PONTAL 2",915343,173,468,"26º Leilão de Energia Nova","2023-25",{"$f":"COUNTIF(D:D,Tabela1[[#This Row],[CD_PARC_USIN]])","v":1}]
[{"$f":"Tabela1[[#This Row],[NM_LEIL]]&Tabela1[[#This Row],[CD_PARC_USIN]]","v":"26º Leilão de Energia Nova915344"},"FORQUILHA I5","FORQUILHA IV",915344,173,466,"26º Leilão de Energia Nova","2023-30",{"$f":"COUNTIF(D:D,Tabela1[[#This Row],[CD_PARC_USIN]])","v":1}]
[{"$f":"Tabela1[[#This Row],[NM_LEIL]]&Tabela1[[#This Row],[CD_PARC_USIN]]","v":"25º Leilão de Energia Nova915345"},"EGP SAO GONCALO 1 I5","SAO GONCALO 1",915345,172,465,"25º Leilão de Energia Nova","2021-20",{"$f":"COUNTIF(D:D,Tabela1[[#This Row],[CD_PARC_USIN]])","v":1}]
[{"$f":"Tabela1[[#This Row],[NM_LEIL]]&Tabela1[[#This Row],[CD_PARC_USIN]]","v":"25º Leilão de Energia Nova915346"},"EGP SAO GONCALO 2 I5","SAO GONCALO 2",915346,172,465,"25º Leilão de Energia Nova","2021-20",{"$f":"COUNTIF(D:D,Tabela1[[#This Row],[CD_PARC_USIN]])","v":1}]
[{"$f":"Tabela1[[#This Row],[NM_LEIL]]&Tabela1[[#This Row],[CD_PARC_USIN]]","v":"25º Leilão de Energia Nova915347"},"EGP SAO GONCALO 3 I5","SAO GONCALO 3",915347,172,465,"25º Leilão de Energia Nova","2021-20",{"$f":"COUNTIF(D:D,Tabela1[[#This Row],[CD_PARC_USIN]])","v":1}]
[{"$f":"Tabela1[[#This Row],[NM_LEIL]]&Tabela1[[#This Row],[CD_PARC_USIN]]","v":"26º Leilão de Energia Nova915352"},"DELTA 6 II I5","DELTA 6 II",915352,173,467,"26º Leilão de Energia Nova","2023-20",{"$f":"COUNTIF(D:D,Tabela1[[#This Row],[CD_PARC_USIN]])","v":1}]
[{"$f":"Tabela1[[#This Row],[NM_LEIL]]&Tabela1[[#This Row],[CD_PARC_USIN]]","v":"26º Leilão de Energia Nova915353"},"DELTA 6 I I5","DELTA 6 I",915353,173,467,"26º Leilão de Energia Nova","2023-20",{"$f":"COUNTIF(D:D,Tabela1[[#This Row],[CD_PARC_USIN]])","v":1}]
[{"$f":"Tabela1[[#This Row],[NM_LEIL]]&Tabela1[[#This Row],[CD_PARC_USIN]]","v":"26º Leilão de Energia Nova915354"},"DELTA 5 II I5","DELTA 5 II",915354,173,467,"26º Leilão de Energia Nova","2023-20",{"$f":"COUNTIF(D:D,Tabela1[[#This Row],[CD_PARC_USIN]])","v":1}]
[{"$f":"Tabela1[[#This Row],[NM_LEIL]]&Tabela1[[#This Row],[CD_PARC_USIN]]","v":"26º Leilão de Energia Nova915356"},"EGP SANTA ANGELA 01 I5","V STA ANGELA 01",915356,173,467,"26º Leilão de Energia Nova","2023-20",{"$f":"COUNTIF(D:D,Tabela1[[#This Row],[CD_PARC_USIN]])","v":1}]
[{"$f":"Tabela1[[#This Row],[NM_LEIL]]&Tabela1[[#This Row],[CD_PARC_USIN]]","v":"26º Leilão de Energia Nova915357"},"EGP SANTA ANGELA 03 I5","V STA ANGELA 03",915357,173,467,"26º Leilão de Energia Nova","2023-20",{"$f":"COUNTIF(D:D,Tabela1[[#This Row],[CD_PARC_USIN]])","v":1}]
[{"$f":"Tabela1[[#This Row],[NM_LEIL]]&Tabela1[[#This Row],[CD_PARC_USIN]]","v":"26º Leilão de Energia Nova915358"},"EGP SANTA ANGELA 04 I5","V STA ANGELA 04",915358,173,467,"26º Leilão de Energia Nova","2023-20",{"$f":"COUNTIF(D:D,Tabela1[[#This Row],[CD_PARC_USIN]])","v":1}]
[{"$f":"Tabela1[[#This Row],[NM_LEIL]]&Tabela1[[#This Row],[CD_PARC_USIN]]","v":"26º Leilão de Energia Nova915359"},"EGP SANTA ANGELA 06 I5","V STA ANGELA 06",915359,173,467,"26º Leilão de Energia Nova","2023-20",{"$f":"COUNTIF(D:D,Tabela1[[#This Row],[CD_PARC_USIN]])","v":1}]
[{"$f":"Tabela1[[#This Row],[NM_LEIL]]&Tabela1[[#This Row],[CD_PARC_USIN]]","v":"26º Leilão de Energia Nova915360"},"EGP SANTA ANGELA 09 I5","V STA ANGELA 09",915360,173,467,"26º Leilão de Energia Nova","2023-20",{"$f":"COUNTIF(D:D,Tabela1[[#This Row],[CD_PARC_USIN]])","v":1}]
[{"$f":"Tabela1[[#This Row],[NM_LEIL]]&Tabela1[[#This Row],[CD_PARC_USIN]]","v":"26º Leilão de Energia Nova915361"},"EGP SANTA ANGELA 10 I5","V STA ANGELA 10",915361,173,467,"26º Leilão de Energia Nova","2023-20",{"$f":"COUNTIF(D:D,Tabela1[[#This Row],[CD_PARC_USIN]])","v":1}]
[{"$f":"Tabela1[[#This Row],[NM_LEIL]]&Tabela1[[#This Row],[CD_PARC_USIN]]","v":"26º Leilão de Energia Nova915362"},"EGP SANTA ANGELA 14 I5","V STA ANGELA 14",915362,173,467,"26º Leilão de Energia Nova","2023-20",{"$f":"COUNTIF(D:D,Tabela1[[#This Row],[CD_PARC_USIN]])","v":1}]
[{"$f":"Tabela1[[#This Row],[NM_LEIL]]&Tabela1[[#This Row],[CD_PARC_USIN]]","v":"26º Leilão de Energia Nova915363"},"EGP SANTA ANGELA 19 I5","V STA ANGELA 19",915363,173,467,"26º Leilão de Energia Nova","2023-20",{"$f":"COUNTIF(D:D,Tabela1[[#This Row],[CD_PARC_USIN]])","v":1}]
[{"$f":"Tabela1[[#This Row],[NM_LEIL]]&Tabela1[[#This Row],[CD_PARC_USIN]]","v":"26º Leilão de Energia Nova915364"},"EGP SANTA ANGELA 21 I5","V STA ANGELA 21",915364,173,467,"26º Leilão de Energia Nova","2023-20",{"$f":"COUNTIF(D:D,Tabela1[[#This Row],[CD_PARC_USIN]])","v":1}]
[{"$f":"Tabela1[[#This Row],[NM_LEIL]]&Tabela1[[#This Row],[CD_PARC_USIN]]","v":"26º Leilão de Energia Nova915365"},"EGP SANTA ESPERANÇA 17 I5","V STA ESPERANCA 17",915365,173,467,"26º Leilão de Energia Nova","2023-20",{"$f":"COUNTIF(D:D,Tabela1[[#This Row],[CD_PARC_USIN]])","v":1}]
[{"$f":"Tabela1[[#This Row],[NM_LEIL]]&Tabela1[[#This Row],[CD_PARC_USIN]]","v":"26º Leilão de Energia Nova915366"},"EGP DELFINA 8 I5","ZEUS II",915366,173,467,"26º Leilão de Energia Nova","2023-20",{"$f":"COUNTIF(D:D,Tabela1[[#This Row],[CD_PARC_USIN]])","v":1}]
[{"$f":"Tabela1[[#This Row],[NM_LEIL]]&Tabela1[[#This Row],[CD_PARC_USIN]]","v":"26º Leilão de Energia Nova915367"},"UTE SAO JOSE 2","PLANALTO BIOENERGIA",915367,173,468,"26º Leilão de Energia Nova","2023-25",{"$f":"COUNTIF(D:D,Tabela1[[#This Row],[CD_PARC_USIN]])","v":1}]
[{"$f":"Tabela1[[#This Row],[NM_LEIL]]&Tabela1[[#This Row],[CD_PARC_USIN]]","v":"25º Leilão de Energia Nova915368"},"EGP SAO GONCALO 10 I5","SAO GONCALO 10",915368,172,465,"25º Leilão de Energia Nova","2021-20",{"$f":"COUNTIF(D:D,Tabela1[[#This Row],[CD_PARC_USIN]])","v":1}]
[{"$f":"Tabela1[[#This Row],[NM_LEIL]]&Tabela1[[#This Row],[CD_PARC_USIN]]","v":"25º Leilão de Energia Nova915369"},"EGP SAO GONCALO 21 I5","SAO GONCALO 21",915369,172,465,"25º Leilão de Energia Nova","2021-20",{"$f":"COUNTIF(D:D,Tabela1[[#This Row],[CD_PARC_USIN]])","v":1}]
[{"$f":"Tabela1[[#This Row],[NM_LEIL]]&Tabela1[[#This Row],[CD_PARC_USIN]]","v":"25º Leilão de Energia Nova915370"},"EGP SAO GONCALO 22 I5","SAO GONCALO 22",915370,172,465,"25º Leilão de Energia Nova","2021-20",{"$f":"COUNTIF(D:D,Tabela1[[#This Row],[CD_PARC_USIN]])","v":1}]
[{"$f":"Tabela1[[#This Row],[NM_LEIL]]&Tabela1[[#This Row],[CD_PARC_USIN]]","v":"26º Leilão de Energia Nova915371"},"DELTA 5 I I5","DELTA 5 I I5",915371,173,467,"26º Leilão de Energia Nova","2023-20",{"$f":"COUNTIF(D:D,Tabela1[[#This Row],[CD_PARC_USIN]])","v":1}]
[{"$f":"Tabela1[[#This Row],[NM_LEIL]]&Tabela1[[#This Row],[CD_PARC_USIN]]","v":"25º Leilão de Energia Nova915391"},"EGP SAO GONCALO 4 I5","SAO GONCALO 4",915391,172,465,"25º Leilão de Energia Nova","2021-20",{"$f":"COUNTIF(D:D,Tabela1[[#This Row],[CD_PARC_USIN]])","v":1}]
[{"$f":"Tabela1[[#This Row],[NM_LEIL]]&Tabela1[[#This Row],[CD_PARC_USIN]]","v":"25º Leilão de Energia Nova915392"},"EGP SAO GONCALO 5 I5","SAO GONCALO 5",915392,172,465,"25º Leilão de Energia Nova","2021-20",{"$f":"COUNTIF(D:D,Tabela1[[#This Row],[CD_PARC_USIN]])","v":1}]
[{"$f":"Tabela1[[#This Row],[NM_LEIL]]&Tabela1[[#This Row],[CD_PARC_USIN]]","v":"19º Leilão de Energia Nova915411"},"OURO BRANCO 1 I5","EOL OURO BRANCO 1",915411,158,437,"19º Leilão de Energia Nova","2017-20",{"$f":"COUNTIF(D:D,Tabela1[[#This Row],[CD_PARC_USIN]])","v":2}]
[{"$f":"Tabela1[[#This Row],[NM_LEIL]]&Tabela1[[#This Row],[CD_PARC_USIN]]","v":"26º Leilão de Energia Nova915411"},"OURO BRANCO 1 I5","EOL OURO BRANCO 1",915411,173,467,"26º Leilão de Energia Nova","2023-20",{"$f":"COUNTIF(D:D,Tabela1[[#This Row],[CD_PARC_USIN]])","v":2}]
[{"$f":"Tabela1[[#This Row],[NM_LEIL]]&Tabela1[[#This Row],[CD_PARC_USIN]]","v":"19º Leilão de Energia Nova915412"},"QUATRO VENTOS I5","EOL QUATRO VENTOS",915412,158,437,"19º Leilão de Energia Nova","2017-20",{"$f":"COUNTIF(D:D,Tabela1[[#This Row],[CD_PARC_USIN]])","v":2}]
[{"$f":"Tabela1[[#This Row],[NM_LEIL]]&Tabela1[[#This Row],[CD_PARC_USIN]]","v":"26º Leilão de Energia Nova915412"},"QUATRO VENTOS I5","EOL QUATRO VENTOS",915412,173,467,"26º Leilão de Energia Nova","2023-20",{"$f":"COUNTIF(D:D,Tabela1[[#This Row],[CD_PARC_USIN]])","v":2}]
[{"$f":"Tabela1[[#This Row],[NM_LEIL]]&Tabela1[[#This Row],[CD_PARC_USIN]]","v":"19º Leilão de Energia Nova915431"},"OURO BRANCO 2 I5","EOL OURO BRANCO 2",915431,158,437,"19º Leilão de Energia Nova","2017-20",{"$f":"COUNTIF(D:D,Tabela1[[#This Row],[CD_PARC_USIN]])","v":2}]
[{"$f":"Tabela1[[#This Row],[NM_LEIL]]&Tabela1[[#This Row],[CD_PARC_USIN]]","v":"26º Leilão de Energia Nova915431"},"OURO BRANCO 2 I5","EOL OURO BRANCO 2",915431,173,467,"26º Leilão de Energia Nova","2023-20",{"$f":"COUNTIF(D:D,Tabela1[[#This Row],[CD_PARC_USIN]])","v":2}]
[{"$f":"Tabela1[[#This Row],[NM_LEIL]]&Tabela1[[#This Row],[CD_PARC_USIN]]","v":"25º Leilão de Energia Nova915671"},"SOLAR BARREIRAS I I5","SERTÃO SOLAR B 1",915671,172,465,"25º Leilão de Energia Nova","2021-20",{"$f":"COUNTIF(D:D,Tabela1[[#This Row],[CD_PARC_USIN]])","v":1}]
[{"$f":"Tabela1[[#This Row],[NM_LEIL]]&Tabela1[[#This Row],[CD_PARC_USIN]]","v":"25º Leilão de Energia Nova915691"},"SOLAR BARREIRAS II I5","SERTÃO SOLAR B 2",915691,172,465,"25º Leilão de Energia Nova","2021-20",{"$f":"COUNTIF(D:D,Tabela1[[#This Row],[CD_PARC_USIN]])","v":1}]
[{"$f":"Tabela1[[#This Row],[NM_LEIL]]&Tabela1[[#This Row],[CD_PARC_USIN]]","v":"25º Leilão de Energia Nova915711"},"SOLAR BARREIRAS III I5","SERTÃO SOLAR B 3",915711,172,465,"25º Leilão de Energia Nova","2021-20",{"$f":"COUNTIF(D:D,Tabela1[[#This Row],[CD_PARC_USIN]])","v":1}]
[{"$f":"Tabela1[[#This Row],[NM_LEIL]]&Tabela1[[#This Row],[CD_PARC_USIN]]","v":"25º Leilão de Energia Nova915731"},"SOLAR BARREIRAS IV I5","SERTÃO SOLAR B 4",915731,172,465,"25º Leilão de Energia Nova","2021-20",{"$f":"COUNTIF(D:D,Tabela1[[#This Row],[CD_PARC_USIN]])","v":1}]
[{"$f":"Tabela1[[#This Row],[NM_LEIL]]&Tabela1[[#This Row],[CD_PARC_USIN]]","v":"25º Leilão de Energia Nova917875"},"ENERVIX I5","SANTA LUZIA",917875,172,462,"25º Leilão de Energia Nova","2021-30",{"$f":"COUNTIF(D:D,Tabela1[[#This Row],[CD_PARC_USIN]])","v":1}]
[{"$f":"Tabela1[[#This Row],[NM_LEIL]]&Tabela1[[#This Row],[CD_PARC_USIN]]","v":"26º Leilão de Energia Nova917876"},"AVENTURA II I5","AVENTURA II",917876,173,467,"26º Leilão de Energia Nova","2023-20",{"$f":"COUNTIF(D:D,Tabela1[[#This Row],[CD_PARC_USIN]])","v":1}]
[{"$f":"Tabela1[[#This Row],[NM_LEIL]]&Tabela1[[#This Row],[CD_PARC_USIN]]","v":"26º Leilão de Energia Nova917877"},"VENTOS DE VILA ACRE II I5","Ventos Vila Acre II",917877,173,467,"26º Leilão de Energia Nova","2023-20",{"$f":"COUNTIF(D:D,Tabela1[[#This Row],[CD_PARC_USIN]])","v":1}]
[{"$f":"Tabela1[[#This Row],[NM_LEIL]]&Tabela1[[#This Row],[CD_PARC_USIN]]","v":"25º Leilão de Energia Nova917896"},"VENTOS DE VILA PARAIBA II I5","VILA PARAIBA II",917896,172,464,"25º Leilão de Energia Nova","2021-20",{"$f":"COUNTIF(D:D,Tabela1[[#This Row],[CD_PARC_USIN]])","v":1}]
[{"$f":"Tabela1[[#This Row],[NM_LEIL]]&Tabela1[[#This Row],[CD_PARC_USIN]]","v":"26º Leilão de Energia Nova917897"},"AVENTURA III I5","AVENTURA III",917897,173,467,"26º Leilão de Energia Nova","2023-20",{"$f":"COUNTIF(D:D,Tabela1[[#This Row],[CD_PARC_USIN]])","v":1}]
[{"$f":"Tabela1[[#This Row],[NM_LEIL]]&Tabela1[[#This Row],[CD_PARC_USIN]]","v":"26º Leilão de Energia Nova917898"},"AVENTURA V I5","AVENTURA V",917898,173,467,"26º Leilão de Energia Nova","2023-20",{"$f":"COUNTIF(D:D,Tabela1[[#This Row],[CD_PARC_USIN]])","v":1}]
[{"$f":"Tabela1[[#This Row],[NM_LEIL]]&Tabela1[[#This Row],[CD_PARC_USIN]]","v":"26º Leilão de Energia Nova917899"},"SRMN I I5","SANTA ROSA E MUNDO N",917899,173,467,"26º Leilão de Energia Nova","2023-20",{"$f":"COUNTIF(D:D,Tabela1[[#This Row],[CD_PARC_USIN]])","v":1}]
[{"$f":"Tabela1[[#This Row],[NM_LEIL]]&Tabela1[[#This Row],[CD_PARC_USIN]]","v":"26º Leilão de Energia Nova917900"},"SRMN V I5","STA ROSA MUNDO 5",917900,173,467,"26º Leilão de Energia Nova","2023-20",{"$f":"COUNTIF(D:D,Tabela1[[#This Row],[CD_PARC_USIN]])","v":1}]
[{"$f":"Tabela1[[#This Row],[NM_LEIL]]&Tabela1[[#This Row],[CD_PARC_USIN]]","v":"25º Leilão de Energia Nova917913"},"VENTOS DE VILA PARAIBA I I5","VILA PARAIBA 1",917913,172,464,"25º Leilão de Energia Nova","2021-20",{"$f":"COUNTIF(D:D,Tabela1[[#This Row],[CD_PARC_USIN]])","v":1}]
[{"$f":"Tabela1[[#This Row],[NM_LEIL]]&Tabela1[[#This Row],[CD_PARC_USIN]]","v":"26º Leilão de Energia Nova917914"},"AVENTURA IV I5","AVENTURA IV",917914,173,467,"26º Leilão de Energia Nova","2023-20",{"$f":"COUNTIF(D:D,Tabela1[[#This Row],[CD_PARC_USIN]])","v":1}]
[{"$f":"Tabela1[[#This Row],[NM_LEIL]]&Tabela1[[#This Row],[CD_PARC_USIN]]","v":"26º Leilão de Energia Nova917915"},"SRMN II I5","STA ROSA E MUNDO II",917915,173,467,"26º Leilão de Energia Nova","2023-20",{"$f":"COUNTIF(D:D,Tabela1[[#This Row],[CD_PARC_USIN]])","v":1}]
[{"$f":"Tabela1[[#This Row],[NM_LEIL]]&Tabela1[[#This Row],[CD_PARC_USIN]]","v":"26º Leilão de Energia Nova917916"},"SRMN III I5","STA ROSA MUNDO 3",917916,173,467,"26º Leilão de Energia Nova","2023-20",{"$f":"COUNTIF(D:D,Tabela1[[#This Row],[CD_PARC_USIN]])","v":1}]
[{"$f":"Tabela1[[#This Row],[NM_LEIL]]&Tabela1[[#This Row],[CD_PARC_USIN]]","v":"26º Leilão de Energia Nova917917"},"SRMN IV I5","STA ROSA MUNDO 4",917917,173,467,"26º Leilão de Energia Nova","2023-20",{"$f":"COUNTIF(D:D,Tabela1[[#This Row],[CD_PARC_USIN]])","v":1}]
[{"$f":"Tabela1[[#This Row],[NM_LEIL]]&Tabela1[[#This Row],[CD_PARC_USIN]]","v":"27º Leilão de Energia Nova A-4918030"},"LAVRAS 4-I5","LAVRAS 4",918030,174,475,"27º Leilão de Energia Nova A-4","2022-20",{"$f":"COUNTIF(D:D,Tabela1[[#This Row],[CD_PARC_USIN]])","v":1}]
[{"$f":"Tabela1[[#This Row],[NM_LEIL]]&Tabela1[[#This Row],[CD_PARC_USIN]]","v":"26º Leilão de Energia Nova918038"},"VENTOS DE VILA CEARA I I5","VENTOS VILA CEARA I",918038,173,467,"26º Leilão de Energia Nova","2023-20",{"$f":"COUNTIF(D:D,Tabela1[[#This Row],[CD_PARC_USIN]])","v":1}]
[{"$f":"Tabela1[[#This Row],[NM_LEIL]]&Tabela1[[#This Row],[CD_PARC_USIN]]","v":"25º Leilão de Energia Nova918039"},"SALGUEIRO 1 - I5","SOLAR SALGUEIRO",918039,172,465,"25º Leilão de Energia Nova","2021-20",{"$f":"COUNTIF(D:D,Tabela1[[#This Row],[CD_PARC_USIN]])","v":1}]
[{"$f":"Tabela1[[#This Row],[NM_LEIL]]&Tabela1[[#This Row],[CD_PARC_USIN]]","v":"25º Leilão de Energia Nova918040"},"SALGUEIRO 2 - I5","SOLAR SALGUEIRO II",918040,172,465,"25º Leilão de Energia Nova","2021-20",{"$f":"COUNTIF(D:D,Tabela1[[#This Row],[CD_PARC_USIN]])","v":1}]
[{"$f":"Tabela1[[#This Row],[NM_LEIL]]&Tabela1[[#This Row],[CD_PARC_USIN]]","v":"25º Leilão de Energia Nova918041"},"SALGUEIRO 3 - I5","SOLAR SALGUEIRO III",918041,172,465,"25º Leilão de Energia Nova","2021-20",{"$f":"COUNTIF(D:D,Tabela1[[#This Row],[CD_PARC_USIN]])","v":1}]
[{"$f":"Tabela1[[#This Row],[NM_LEIL]]&Tabela1[[#This Row],[CD_PARC_USIN]]","v":"27º Leilão de Energia Nova A-4918044"},"LAVRAS 1-I5","LAVRAS 1",918044,174,475,"27º Leilão de Energia Nova A-4","2022-20",{"$f":"COUNTIF(D:D,Tabela1[[#This Row],[CD_PARC_USIN]])","v":1}]
[{"$f":"Tabela1[[#This Row],[NM_LEIL]]&Tabela1[[#This Row],[CD_PARC_USIN]]","v":"27º Leilão de Energia Nova A-4918045"},"LAVRAS 5-I5","LAVRAS 5",918045,174,475,"27º Leilão de Energia Nova A-4","2022-20",{"$f":"COUNTIF(D:D,Tabela1[[#This Row],[CD_PARC_USIN]])","v":1}]
[{"$f":"Tabela1[[#This Row],[NM_LEIL]]&Tabela1[[#This Row],[CD_PARC_USIN]]","v":"26º Leilão de Energia Nova918053"},"VENTOS VILA CEARA II I5","VENTOS VILA CEARA II",918053,173,467,"26º Leilão de Energia Nova","2023-20",{"$f":"COUNTIF(D:D,Tabela1[[#This Row],[CD_PARC_USIN]])","v":1}]
[{"$f":"Tabela1[[#This Row],[NM_LEIL]]&Tabela1[[#This Row],[CD_PARC_USIN]]","v":"26º Leilão de Energia Nova918054"},"PCH RIO CLARO I5","RIO CLARO",918054,173,466,"26º Leilão de Energia Nova","2023-30",{"$f":"COUNTIF(D:D,Tabela1[[#This Row],[CD_PARC_USIN]])","v":1}]
[{"$f":"Tabela1[[#This Row],[NM_LEIL]]&Tabela1[[#This Row],[CD_PARC_USIN]]","v":"27º Leilão de Energia Nova A-4918055"},"ALEX IX I5","ALEX IX",918055,174,475,"27º Leilão de Energia Nova A-4","2022-20",{"$f":"COUNTIF(D:D,Tabela1[[#This Row],[CD_PARC_USIN]])","v":1}]
[{"$f":"Tabela1[[#This Row],[NM_LEIL]]&Tabela1[[#This Row],[CD_PARC_USIN]]","v":"27º Leilão de Energia Nova A-4918056"},"ALEX VI I5","ALEX VI",918056,174,475,"27º Leilão de Energia Nova A-4","2022-20",{"$f":"COUNTIF(D:D,Tabela1[[#This Row],[CD_PARC_USIN]])","v":1}]
[{"$f":"Tabela1[[#This Row],[NM_LEIL]]&Tabela1[[#This Row],[CD_PARC_USIN]]","v":"27º Leilão de Energia Nova A-4918057"},"ALEX VII I5","ALEX VII",918057,174,475,"27º Leilão de Energia Nova A-4","2022-20",{"$f":"COUNTIF(D:D,Tabela1[[#This Row],[CD_PARC_USIN]])","v":1}]
[{"$f":"Tabela1[[#This Row],[NM_LEIL]]&Tabela1[[#This Row],[CD_PARC_USIN]]","v":"27º Leilão de Energia Nova A-4918058"},"ALEX VIII I5","ALEX VIII",918058,174,475,"27º Leilão de Energia Nova A-4","2022-20",{"$f":"COUNTIF(D:D,Tabela1[[#This Row],[CD_PARC_USIN]])","v":1}]
[{"$f":"Tabela1[[#This Row],[NM_LEIL]]&Tabela1[[#This Row],[CD_PARC_USIN]]","v":"27º Leilão de Energia Nova A-4918059"},"ALEX X I5","ALEX X",918059,174,475,"27º Leilão de Energia Nova A-4","2022-20",{"$f":"COUNTIF(D:D,Tabela1[[#This Row],[CD_PARC_USIN]])","v":1}]
[{"$f":"Tabela1[[#This Row],[NM_LEIL]]&Tabela1[[#This Row],[CD_PARC_USIN]]","v":"27º Leilão de Energia Nova A-4918060"},"LAVRAS 2-I5","LAVRAS 2",918060,174,475,"27º Leilão de Energia Nova A-4","2022-20",{"$f":"COUNTIF(D:D,Tabela1[[#This Row],[CD_PARC_USIN]])","v":1}]
[{"$f":"Tabela1[[#This Row],[NM_LEIL]]&Tabela1[[#This Row],[CD_PARC_USIN]]","v":"27º Leilão de Energia Nova A-4918061"},"LAVRAS 3-I5","LAVRAS 3",918061,174,475,"27º Leilão de Energia Nova A-4","2022-20",{"$f":"COUNTIF(D:D,Tabela1[[#This Row],[CD_PARC_USIN]])","v":1}]
[{"$f":"Tabela1[[#This Row],[NM_LEIL]]&Tabela1[[#This Row],[CD_PARC_USIN]]","v":"27º Leilão de Energia Nova A-4918062"},"PCH QUEBRA DENTES I5","QUEBRA DENTES",918062,174,470,"27º Leilão de Energia Nova A-4","2022-30",{"$f":"COUNTIF(D:D,Tabela1[[#This Row],[CD_PARC_USIN]])","v":1}]
[{"$f":"Tabela1[[#This Row],[NM_LEIL]]&Tabela1[[#This Row],[CD_PARC_USIN]]","v":"27º Leilão de Energia Nova A-4918063"},"PCH SALTO DO GUASSUPI I5","SALTO DO GUASSUPI",918063,174,470,"27º Leilão de Energia Nova A-4","2022-30",{"$f":"COUNTIF(D:D,Tabela1[[#This Row],[CD_PARC_USIN]])","v":1}]
[{"$f":"Tabela1[[#This Row],[NM_LEIL]]&Tabela1[[#This Row],[CD_PARC_USIN]]","v":"27º Leilão de Energia Nova A-4918091"},"FRANCISCO SA 1 - I5","FRANCISCO SA 1",918091,174,475,"27º Leilão de Energia Nova A-4","2022-20",{"$f":"COUNTIF(D:D,Tabela1[[#This Row],[CD_PARC_USIN]])","v":1}]
[{"$f":"Tabela1[[#This Row],[NM_LEIL]]&Tabela1[[#This Row],[CD_PARC_USIN]]","v":"27º Leilão de Energia Nova A-4918092"},"SOLAR JAIBA 9-I5","SOLAR JAIBA 9",918092,174,475,"27º Leilão de Energia Nova A-4","2022-20",{"$f":"COUNTIF(D:D,Tabela1[[#This Row],[CD_PARC_USIN]])","v":1}]
[{"$f":"Tabela1[[#This Row],[NM_LEIL]]&Tabela1[[#This Row],[CD_PARC_USIN]]","v":"27º Leilão de Energia Nova A-4918093"},"FRANCISCO SA 2 -I5","FRANCISCO SA 2",918093,174,475,"27º Leilão de Energia Nova A-4","2022-20",{"$f":"COUNTIF(D:D,Tabela1[[#This Row],[CD_PARC_USIN]])","v":1}]
[{"$f":"Tabela1[[#This Row],[NM_LEIL]]&Tabela1[[#This Row],[CD_PARC_USIN]]","v":"27º Leilão de Energia Nova A-4918094"},"FRANCISCO SA 3 - I5","FRANCISCO SA 3",918094,174,475,"27º Leilão de Energia Nova A-4","2022-20",{"$f":"COUNTIF(D:D,Tabela1[[#This Row],[CD_PARC_USIN]])","v":1}]
[{"$f":"Tabela1[[#This Row],[NM_LEIL]]&Tabela1[[#This Row],[CD_PARC_USIN]]","v":"25º Leilão de Energia Nova918095"},"UFV BRIGIDA 2 I5","BRIGIDA 2",918095,172,465,"25º Leilão de Energia Nova","2021-20",{"$f":"COUNTIF(D:D,Tabela1[[#This Row],[CD_PARC_USIN]])","v":1}]
[{"$f":"Tabela1[[#This Row],[NM_LEIL]]&Tabela1[[#This Row],[CD_PARC_USIN]]","v":"27º Leilão de Energia Nova A-4918096"},"BIOCERRADAO2 I5","CERRADÃO 2 - BIOCERR",918096,174,472,"27º Leilão de Energia Nova A-4","2022-20",{"$f":"COUNTIF(D:D,Tabela1[[#This Row],[CD_PARC_USIN]])","v":1}]
[{"$f":"Tabela1[[#This Row],[NM_LEIL]]&Tabela1[[#This Row],[CD_PARC_USIN]]","v":"26º Leilão de Energia Nova918291"},"CANOAS 2 I5","CANOAS 2",918291,173,467,"26º Leilão de Energia Nova","2023-20",{"$f":"COUNTIF(D:D,Tabela1[[#This Row],[CD_PARC_USIN]])","v":1}]
[{"$f":"Tabela1[[#This Row],[NM_LEIL]]&Tabela1[[#This Row],[CD_PARC_USIN]]","v":"26º Leilão de Energia Nova918292"},"CHAFARIZ 2 I5","CHAFARIZ 2",918292,173,467,"26º Leilão de Energia Nova","2023-20",{"$f":"COUNTIF(D:D,Tabela1[[#This Row],[CD_PARC_USIN]])","v":1}]
[{"$f":"Tabela1[[#This Row],[NM_LEIL]]&Tabela1[[#This Row],[CD_PARC_USIN]]","v":"26º Leilão de Energia Nova918293"},"CHAFARIZ 6 I5","CHAFARIZ 6",918293,173,467,"26º Leilão de Energia Nova","2023-20",{"$f":"COUNTIF(D:D,Tabela1[[#This Row],[CD_PARC_USIN]])","v":1}]
[{"$f":"Tabela1[[#This Row],[NM_LEIL]]&Tabela1[[#This Row],[CD_PARC_USIN]]","v":"26º Leilão de Energia Nova918312"},"CHAFARIZ 1 I5","CHAFARIZ 1",918312,173,467,"26º Leilão de Energia Nova","2023-20",{"$f":"COUNTIF(D:D,Tabela1[[#This Row],[CD_PARC_USIN]])","v":1}]
[{"$f":"Tabela1[[#This Row],[NM_LEIL]]&Tabela1[[#This Row],[CD_PARC_USIN]]","v":"26º Leilão de Energia Nova918313"},"LAGOA 4 I5","LAGOA 4",918313,173,467,"26º Leilão de Energia Nova","2023-20",{"$f":"COUNTIF(D:D,Tabela1[[#This Row],[CD_PARC_USIN]])","v":1}]
[{"$f":"Tabela1[[#This Row],[NM_LEIL]]&Tabela1[[#This Row],[CD_PARC_USIN]]","v":"26º Leilão de Energia Nova918331"},"UTE GNA II","GNA PORTO DO ACU III",918331,173,469,"26º Leilão de Energia Nova","2023-25",{"$f":"COUNTIF(D:D,Tabela1[[#This Row],[CD_PARC_USIN]])","v":1}]
[{"$f":"Tabela1[[#This Row],[NM_LEIL]]&Tabela1[[#This Row],[CD_PARC_USIN]]","v":"25º Leilão de Energia Nova918351"},"UFV BRIGIDA I5","BRIGIDA",918351,172,465,"25º Leilão de Energia Nova","2021-20",{"$f":"COUNTIF(D:D,Tabela1[[#This Row],[CD_PARC_USIN]])","v":1}]
[{"$f":"Tabela1[[#This Row],[NM_LEIL]]&Tabela1[[#This Row],[CD_PARC_USIN]]","v":"27º Leilão de Energia Nova A-4918352"},"CGH BURITIZAL I5","BURITIZAL",918352,174,470,"27º Leilão de Energia Nova A-4","2022-30",{"$f":"COUNTIF(D:D,Tabela1[[#This Row],[CD_PARC_USIN]])","v":1}]
[{"$f":"Tabela1[[#This Row],[NM_LEIL]]&Tabela1[[#This Row],[CD_PARC_USIN]]","v":"26º Leilão de Energia Nova918596"},"LAGOA 3 I5","LAGOA 3",918596,173,467,"26º Leilão de Energia Nova","2023-20",{"$f":"COUNTIF(D:D,Tabela1[[#This Row],[CD_PARC_USIN]])","v":1}]
[{"$f":"Tabela1[[#This Row],[NM_LEIL]]&Tabela1[[#This Row],[CD_PARC_USIN]]","v":"23º Leilão de Energia Nova918788"},"PCH AGUA BRAVA I5 2","PCH ÁGUA BRAVA",918788,167,457,"23º Leilão de Energia Nova","2021-30",{"$f":"COUNTIF(D:D,Tabela1[[#This Row],[CD_PARC_USIN]])","v":1}]
[{"$f":"Tabela1[[#This Row],[NM_LEIL]]&Tabela1[[#This Row],[CD_PARC_USIN]]","v":"26º Leilão de Energia Nova918812"},"CANOAS 4 I5","CANOAS 4",918812,173,467,"26º Leilão de Energia Nova","2023-20",{"$f":"COUNTIF(D:D,Tabela1[[#This Row],[CD_PARC_USIN]])","v":1}]
[{"$f":"Tabela1[[#This Row],[NM_LEIL]]&Tabela1[[#This Row],[CD_PARC_USIN]]","v":"26º Leilão de Energia Nova919091"},"CHAFARIZ 3 I5","CHAFARIZ 3",919091,173,467,"26º Leilão de Energia Nova","2023-20",{"$f":"COUNTIF(D:D,Tabela1[[#This Row],[CD_PARC_USIN]])","v":1}]
[{"$f":"Tabela1[[#This Row],[NM_LEIL]]&Tabela1[[#This Row],[CD_PARC_USIN]]","v":"26º Leilão de Energia Nova919092"},"CHAFARIZ 7 I5","CHAFARIZ 7",919092,173,467,"26º Leilão de Energia Nova","2023-20",{"$f":"COUNTIF(D:D,Tabela1[[#This Row],[CD_PARC_USIN]])","v":1}]
[{"$f":"Tabela1[[#This Row],[NM_LEIL]]&Tabela1[[#This Row],[CD_PARC_USIN]]","v":"27º Leilão de Energia Nova A-4919093"},"SOLAR JAIBA 4 I5","SOLAR JAIBA 4",919093,174,475,"27º Leilão de Energia Nova A-4","2022-20",{"$f":"COUNTIF(D:D,Tabela1[[#This Row],[CD_PARC_USIN]])","v":1}]
[{"$f":"Tabela1[[#This Row],[NM_LEIL]]&Tabela1[[#This Row],[CD_PARC_USIN]]","v":"27º Leilão de Energia Nova A-4919094"},"SAO JOAO DO PIAUI III I5","ETESA19 S JOAO P III",919094,174,475,"27º Leilão de Energia Nova A-4","2022-20",{"$f":"COUNTIF(D:D,Tabela1[[#This Row],[CD_PARC_USIN]])","v":1}]
[{"$f":"Tabela1[[#This Row],[NM_LEIL]]&Tabela1[[#This Row],[CD_PARC_USIN]]","v":"27º Leilão de Energia Nova A-4919095"},"SAO JOAO DO PIAUI IV I5","ETESA 20 SJP IV",919095,174,475,"27º Leilão de Energia Nova A-4","2022-20",{"$f":"COUNTIF(D:D,Tabela1[[#This Row],[CD_PARC_USIN]])","v":1}]
[{"$f":"Tabela1[[#This Row],[NM_LEIL]]&Tabela1[[#This Row],[CD_PARC_USIN]]","v":"27º Leilão de Energia Nova A-4919097"},"SAO JOAO DO PIAUI VI I5","ETESA 22 S JOAO P VI",919097,174,475,"27º Leilão de Energia Nova A-4","2022-20",{"$f":"COUNTIF(D:D,Tabela1[[#This Row],[CD_PARC_USIN]])","v":1}]
[{"$f":"Tabela1[[#This Row],[NM_LEIL]]&Tabela1[[#This Row],[CD_PARC_USIN]]","v":"27º Leilão de Energia Nova A-4919114"},"SOLAR JAIBA 3 I5","SOLAR JAIBA 3",919114,174,475,"27º Leilão de Energia Nova A-4","2022-20",{"$f":"COUNTIF(D:D,Tabela1[[#This Row],[CD_PARC_USIN]])","v":1}]
[{"$f":"Tabela1[[#This Row],[NM_LEIL]]&Tabela1[[#This Row],[CD_PARC_USIN]]","v":"2º Leilão de Energia Nova919115"},"CAMACARI MURICY II","CAMACARI MURICY II",919115,7,15,"2º Leilão de Energia Nova","2009-15",{"$f":"COUNTIF(D:D,Tabela1[[#This Row],[CD_PARC_USIN]])","v":1}]
[{"$f":"Tabela1[[#This Row],[NM_LEIL]]&Tabela1[[#This Row],[CD_PARC_USIN]]","v":"27º Leilão de Energia Nova A-4919116"},"SAO JOAO DO PIAUI I I5","ETESA 17 S J PIAUI I",919116,174,475,"27º Leilão de Energia Nova A-4","2022-20",{"$f":"COUNTIF(D:D,Tabela1[[#This Row],[CD_PARC_USIN]])","v":1}]
[{"$f":"Tabela1[[#This Row],[NM_LEIL]]&Tabela1[[#This Row],[CD_PARC_USIN]]","v":"27º Leilão de Energia Nova A-4919117"},"SAO JOAO DO PIAUI II I5","ETESA 18 S JOAO P II",919117,174,475,"27º Leilão de Energia Nova A-4","2022-20",{"$f":"COUNTIF(D:D,Tabela1[[#This Row],[CD_PARC_USIN]])","v":1}]
[{"$f":"Tabela1[[#This Row],[NM_LEIL]]&Tabela1[[#This Row],[CD_PARC_USIN]]","v":"27º Leilão de Energia Nova A-4919118"},"SAO JOAO DO PIAUI V I5","ETESA 21 S J PIAUI V",919118,174,475,"27º Leilão de Energia Nova A-4","2022-20",{"$f":"COUNTIF(D:D,Tabela1[[#This Row],[CD_PARC_USIN]])","v":1}]
[{"$f":"Tabela1[[#This Row],[NM_LEIL]]&Tabela1[[#This Row],[CD_PARC_USIN]]","v":"27º Leilão de Energia Nova A-4920029"},"EOL VSJ01 - INCENTIVADO 50","SAO JANUARIO 01",920029,174,474,"27º Leilão de Energia Nova A-4","2022-20",{"$f":"COUNTIF(D:D,Tabela1[[#This Row],[CD_PARC_USIN]])","v":1}]
[{"$f":"Tabela1[[#This Row],[NM_LEIL]]&Tabela1[[#This Row],[CD_PARC_USIN]]","v":"27º Leilão de Energia Nova A-4920030"},"EOL VSJ04 - INCENTIVADO 50","SAO JANUARIO 04",920030,174,474,"27º Leilão de Energia Nova A-4","2022-20",{"$f":"COUNTIF(D:D,Tabela1[[#This Row],[CD_PARC_USIN]])","v":1}]
[{"$f":"Tabela1[[#This Row],[NM_LEIL]]&Tabela1[[#This Row],[CD_PARC_USIN]]","v":"27º Leilão de Energia Nova A-4920051"},"EOL VSJ13 - INCENTIVADO 50","SAO JANUARIO 13",920051,174,474,"27º Leilão de Energia Nova A-4","2022-20",{"$f":"COUNTIF(D:D,Tabela1[[#This Row],[CD_PARC_USIN]])","v":1}]
[{"$f":"Tabela1[[#This Row],[NM_LEIL]]&Tabela1[[#This Row],[CD_PARC_USIN]]","v":"27º Leilão de Energia Nova A-4920071"},"EOL VSJ14 - INCENTIVADO 50","SAO JANUARIO 14",920071,174,474,"27º Leilão de Energia Nova A-4","2022-20",{"$f":"COUNTIF(D:D,Tabela1[[#This Row],[CD_PARC_USIN]])","v":1}]
[{"$f":"Tabela1[[#This Row],[NM_LEIL]]&Tabela1[[#This Row],[CD_PARC_USIN]]","v":"18º Leilão de Energia Nova920791"},"ENGIE BR CVE PIE I5 2","EOL UMBURANAS 8",920791,154,423,"18º Leilão de Energia Nova","2018-20",{"$f":"COUNTIF(D:D,Tabela1[[#This Row],[CD_PARC_USIN]])","v":1}]
[{"$f":"Tabela1[[#This Row],[NM_LEIL]]&Tabela1[[#This Row],[CD_PARC_USIN]]","v":"26º Leilão de Energia Nova920994"},"SAO CARLOS I5","SAO CARLOS",920994,173,466,"26º Leilão de Energia Nova","2023-30",{"$f":"COUNTIF(D:D,Tabela1[[#This Row],[CD_PARC_USIN]])","v":1}]
[{"$f":"Tabela1[[#This Row],[NM_LEIL]]&Tabela1[[#This Row],[CD_PARC_USIN]]","v":"27º Leilão de Energia Nova A-4920995"},"ALEX IV I5","ALEX IV",920995,174,475,"27º Leilão de Energia Nova A-4","2022-20",{"$f":"COUNTIF(D:D,Tabela1[[#This Row],[CD_PARC_USIN]])","v":1}]
[{"$f":"Tabela1[[#This Row],[NM_LEIL]]&Tabela1[[#This Row],[CD_PARC_USIN]]","v":"27º Leilão de Energia Nova A-4921031"},"ALEX I I5","ALEX I",921031,174,475,"27º Leilão de Energia Nova A-4","2022-20",{"$f":"COUNTIF(D:D,Tabela1[[#This Row],[CD_PARC_USIN]])","v":1}]
[{"$f":"Tabela1[[#This Row],[NM_LEIL]]&Tabela1[[#This Row],[CD_PARC_USIN]]","v":"27º Leilão de Energia Nova A-4921032"},"ALEX III I5","ALEX III",921032,174,475,"27º Leilão de Energia Nova A-4","2022-20",{"$f":"COUNTIF(D:D,Tabela1[[#This Row],[CD_PARC_USIN]])","v":1}]
[{"$f":"Tabela1[[#This Row],[NM_LEIL]]&Tabela1[[#This Row],[CD_PARC_USIN]]","v":"27º Leilão de Energia Nova A-4921051"},"ALEX V I5","ALEX V",921051,174,475,"27º Leilão de Energia Nova A-4","2022-20",{"$f":"COUNTIF(D:D,Tabela1[[#This Row],[CD_PARC_USIN]])","v":1}]
[{"$f":"Tabela1[[#This Row],[NM_LEIL]]&Tabela1[[#This Row],[CD_PARC_USIN]]","v":"18º Leilão de Energia Nova921491"},"ENGIE BR CVE PIE I5 2","EOL UMBURANAS 16",921491,154,423,"18º Leilão de Energia Nova","2018-20",{"$f":"COUNTIF(D:D,Tabela1[[#This Row],[CD_PARC_USIN]])","v":1}]
[{"$f":"Tabela1[[#This Row],[NM_LEIL]]&Tabela1[[#This Row],[CD_PARC_USIN]]","v":"18º Leilão de Energia Nova922217"},"ENGIE BR CVE PIE I5 2","EOL UMBURANAS 11",922217,154,423,"18º Leilão de Energia Nova","2018-20",{"$f":"COUNTIF(D:D,Tabela1[[#This Row],[CD_PARC_USIN]])","v":1}]
[{"$f":"Tabela1[[#This Row],[NM_LEIL]]&Tabela1[[#This Row],[CD_PARC_USIN]]","v":"18º Leilão de Energia Nova922380"},"ENGIE BR CVE PIE I5 2","EOL UMBURANAS 13",922380,154,423,"18º Leilão de Energia Nova","2018-20",{"$f":"COUNTIF(D:D,Tabela1[[#This Row],[CD_PARC_USIN]])","v":1}]
[{"$f":"Tabela1[[#This Row],[NM_LEIL]]&Tabela1[[#This Row],[CD_PARC_USIN]]","v":"18º Leilão de Energia Nova922425"},"ENGIE BR CVE PIE I5 2","EOL UMBURANAS 5",922425,154,423,"18º Leilão de Energia Nova","2018-20",{"$f":"COUNTIF(D:D,Tabela1[[#This Row],[CD_PARC_USIN]])","v":1}]
[{"$f":"Tabela1[[#This Row],[NM_LEIL]]&Tabela1[[#This Row],[CD_PARC_USIN]]","v":"18º Leilão de Energia Nova922613"},"ENGIE BR CVE PIE I5 2","EOL UMBURANAS 9",922613,154,423,"18º Leilão de Energia Nova","2018-20",{"$f":"COUNTIF(D:D,Tabela1[[#This Row],[CD_PARC_USIN]])","v":1}]
[{"$f":"Tabela1[[#This Row],[NM_LEIL]]&Tabela1[[#This Row],[CD_PARC_USIN]]","v":"18º Leilão de Energia Nova922632"},"ENGIE BR CVE PIE I5 2","EOL UMBURANAS 18",922632,154,423,"18º Leilão de Energia Nova","2018-20",{"$f":"COUNTIF(D:D,Tabela1[[#This Row],[CD_PARC_USIN]])","v":1}]
[{"$f":"Tabela1[[#This Row],[NM_LEIL]]&Tabela1[[#This Row],[CD_PARC_USIN]]","v":"18º Leilão de Energia Nova922652"},"ENGIE BR CVE PIE I5 2","EOL UMBURANAS 10",922652,154,423,"18º Leilão de Energia Nova","2018-20",{"$f":"COUNTIF(D:D,Tabela1[[#This Row],[CD_PARC_USIN]])","v":1}]
[{"$f":"Tabela1[[#This Row],[NM_LEIL]]&Tabela1[[#This Row],[CD_PARC_USIN]]","v":"29º Leilão de Energia Nova922765"},"USINA SONORA PIE","UTE Sonora",922765,178,487,"29º Leilão de Energia Nova","2023-20",{"$f":"COUNTIF(D:D,Tabela1[[#This Row],[CD_PARC_USIN]])","v":1}]
[{"$f":"Tabela1[[#This Row],[NM_LEIL]]&Tabela1[[#This Row],[CD_PARC_USIN]]","v":"18º Leilão de Energia Nova922813"},"ENGIE BR CVE PIE I5 2","EOL UMBURANAS 6",922813,154,423,"18º Leilão de Energia Nova","2018-20",{"$f":"COUNTIF(D:D,Tabela1[[#This Row],[CD_PARC_USIN]])","v":1}]
[{"$f":"Tabela1[[#This Row],[NM_LEIL]]&Tabela1[[#This Row],[CD_PARC_USIN]]","v":"18º Leilão de Energia Nova922887"},"ENGIE BR CVE PIE I5 2","EOL UMBURANAS 03",922887,154,423,"18º Leilão de Energia Nova","2018-20",{"$f":"COUNTIF(D:D,Tabela1[[#This Row],[CD_PARC_USIN]])","v":1}]
[{"$f":"Tabela1[[#This Row],[NM_LEIL]]&Tabela1[[#This Row],[CD_PARC_USIN]]","v":"18º Leilão de Energia Nova922902"},"ENGIE BR CVE PIE I5 2","EOL UMBURANAS 15",922902,154,423,"18º Leilão de Energia Nova","2018-20",{"$f":"COUNTIF(D:D,Tabela1[[#This Row],[CD_PARC_USIN]])","v":1}]
[{"$f":"Tabela1[[#This Row],[NM_LEIL]]&Tabela1[[#This Row],[CD_PARC_USIN]]","v":"18º Leilão de Energia Nova922936"},"ENGIE BR CVE PIE I5 2","EOL UMBURANAS 2",922936,154,423,"18º Leilão de Energia Nova","2018-20",{"$f":"COUNTIF(D:D,Tabela1[[#This Row],[CD_PARC_USIN]])","v":1}]
[{"$f":"Tabela1[[#This Row],[NM_LEIL]]&Tabela1[[#This Row],[CD_PARC_USIN]]","v":"18º Leilão de Energia Nova922937"},"ENGIE BR CVE PIE I5 2","EOL UMBURANAS 1",922937,154,423,"18º Leilão de Energia Nova","2018-20",{"$f":"COUNTIF(D:D,Tabela1[[#This Row],[CD_PARC_USIN]])","v":1}]
[{"$f":"Tabela1[[#This Row],[NM_LEIL]]&Tabela1[[#This Row],[CD_PARC_USIN]]","v":"23º Leilão de Energia Nova923424"},"NOVA GUAPORE I5","PCH Nova Guapore ",923424,167,457,"23º Leilão de Energia Nova","2021-30",{"$f":"COUNTIF(D:D,Tabela1[[#This Row],[CD_PARC_USIN]])","v":1}]
[{"$f":"Tabela1[[#This Row],[NM_LEIL]]&Tabela1[[#This Row],[CD_PARC_USIN]]","v":"23º Leilão de Energia Nova923425"},"PCH CLAIRTO ZONTA","PCH Clairto Zonta",923425,167,457,"23º Leilão de Energia Nova","2021-30",{"$f":"COUNTIF(D:D,Tabela1[[#This Row],[CD_PARC_USIN]])","v":1}]
[{"$f":"Tabela1[[#This Row],[NM_LEIL]]&Tabela1[[#This Row],[CD_PARC_USIN]]","v":"26º Leilão de Energia Nova923426"},"RPEE I5","PCH Tupitinga",923426,173,466,"26º Leilão de Energia Nova","2023-30",{"$f":"COUNTIF(D:D,Tabela1[[#This Row],[CD_PARC_USIN]])","v":1}]
[{"$f":"Tabela1[[#This Row],[NM_LEIL]]&Tabela1[[#This Row],[CD_PARC_USIN]]","v":"23º Leilão de Energia Nova923443"},"PCH SAO LUIZ I5","PCH SAO LUIZ",923443,167,457,"23º Leilão de Energia Nova","2021-30",{"$f":"COUNTIF(D:D,Tabela1[[#This Row],[CD_PARC_USIN]])","v":1}]
[{"$f":"Tabela1[[#This Row],[NM_LEIL]]&Tabela1[[#This Row],[CD_PARC_USIN]]","v":"23º Leilão de Energia Nova923444"},"PCH SAO JOAO II","PCH SAO JOAO II",923444,167,457,"23º Leilão de Energia Nova","2021-30",{"$f":"COUNTIF(D:D,Tabela1[[#This Row],[CD_PARC_USIN]])","v":1}]
[{"$f":"Tabela1[[#This Row],[NM_LEIL]]&Tabela1[[#This Row],[CD_PARC_USIN]]","v":"23º Leilão de Energia Nova923445"},"PCH RECANTO I5","PCH Recanto ",923445,167,457,"23º Leilão de Energia Nova","2021-30",{"$f":"COUNTIF(D:D,Tabela1[[#This Row],[CD_PARC_USIN]])","v":1}]
[{"$f":"Tabela1[[#This Row],[NM_LEIL]]&Tabela1[[#This Row],[CD_PARC_USIN]]","v":"29º Leilão de Energia Nova923933"},"PCH VILA GALUPO I5","PCH Vila Galupo",923933,178,484,"29º Leilão de Energia Nova","2023-30",{"$f":"COUNTIF(D:D,Tabela1[[#This Row],[CD_PARC_USIN]])","v":1}]
[{"$f":"Tabela1[[#This Row],[NM_LEIL]]&Tabela1[[#This Row],[CD_PARC_USIN]]","v":"27º Leilão de Energia Nova A-4924663"},"SPP I","SAO PEDRO E PAULO I",924663,174,475,"27º Leilão de Energia Nova A-4","2022-20",{"$f":"COUNTIF(D:D,Tabela1[[#This Row],[CD_PARC_USIN]])","v":1}]
[{"$f":"Tabela1[[#This Row],[NM_LEIL]]&Tabela1[[#This Row],[CD_PARC_USIN]]","v":"2º Leilão de Energia Nova924733"},"PECEM ENERG","Pecem II",924733,7,15,"2º Leilão de Energia Nova","2009-15",{"$f":"COUNTIF(D:D,Tabela1[[#This Row],[CD_PARC_USIN]])","v":1}]
[{"$f":"Tabela1[[#This Row],[NM_LEIL]]&Tabela1[[#This Row],[CD_PARC_USIN]]","v":"29º Leilão de Energia Nova934223"},"RCE I5","FOZ DO CEDRO",934223,178,484,"29º Leilão de Energia Nova","2023-30",{"$f":"COUNTIF(D:D,Tabela1[[#This Row],[CD_PARC_USIN]])","v":1}]
[{"$f":"Tabela1[[#This Row],[NM_LEIL]]&Tabela1[[#This Row],[CD_PARC_USIN]]","v":"29º Leilão de Energia Nova934300"},"MILAGRES I I5","MILAGRES I",934300,178,486,"29º Leilão de Energia Nova","2023-20",{"$f":"COUNTIF(D:D,Tabela1[[#This Row],[CD_PARC_USIN]])","v":1}]
[{"$f":"Tabela1[[#This Row],[NM_LEIL]]&Tabela1[[#This Row],[CD_PARC_USIN]]","v":"29º Leilão de Energia Nova934301"},"MILAGRES II I5","MILAGRES II",934301,178,486,"29º Leilão de Energia Nova","2023-20",{"$f":"COUNTIF(D:D,Tabela1[[#This Row],[CD_PARC_USIN]])","v":1}]
[{"$f":"Tabela1[[#This Row],[NM_LEIL]]&Tabela1[[#This Row],[CD_PARC_USIN]]","v":"29º Leilão de Energia Nova934315"},"AGUAS DA SERRA I5","ÁGUAS DA SERRA",934315,178,484,"29º Leilão de Energia Nova","2023-30",{"$f":"COUNTIF(D:D,Tabela1[[#This Row],[CD_PARC_USIN]])","v":1}]
[{"$f":"Tabela1[[#This Row],[NM_LEIL]]&Tabela1[[#This Row],[CD_PARC_USIN]]","v":"29º Leilão de Energia Nova934338"},"MILAGRES V I5","MILAGRES V",934338,178,486,"29º Leilão de Energia Nova","2023-20",{"$f":"COUNTIF(D:D,Tabela1[[#This Row],[CD_PARC_USIN]])","v":1}]
[{"$f":"Tabela1[[#This Row],[NM_LEIL]]&Tabela1[[#This Row],[CD_PARC_USIN]]","v":"29º Leilão de Energia Nova934363"},"MILAGRES III I5","MILAGRES III",934363,178,486,"29º Leilão de Energia Nova","2023-20",{"$f":"COUNTIF(D:D,Tabela1[[#This Row],[CD_PARC_USIN]])","v":1}]
[{"$f":"Tabela1[[#This Row],[NM_LEIL]]&Tabela1[[#This Row],[CD_PARC_USIN]]","v":"29º Leilão de Energia Nova934383"},"MILAGRES IV I5","MILAGRES IV",934383,178,486,"29º Leilão de Energia Nova","2023-20",{"$f":"COUNTIF(D:D,Tabela1[[#This Row],[CD_PARC_USIN]])","v":1}]
[{"$f":"Tabela1[[#This Row],[NM_LEIL]]&Tabela1[[#This Row],[CD_PARC_USIN]]","v":"29º Leilão de Energia Nova934403"},"EOL VILA MATO GROSSO I INE","Ex Vila Alagoas III",934403,178,485,"29º Leilão de Energia Nova","2023-20",{"$f":"COUNTIF(D:D,Tabela1[[#This Row],[CD_PARC_USIN]])","v":1}]
[{"$f":"Tabela1[[#This Row],[NM_LEIL]]&Tabela1[[#This Row],[CD_PARC_USIN]]","v":"27º Leilão de Energia Nova A-4935123"},"BARREIRAS V","Sertão Solar Barreir",935123,174,475,"27º Leilão de Energia Nova A-4","2022-20",{"$f":"COUNTIF(D:D,Tabela1[[#This Row],[CD_PARC_USIN]])","v":1}]
[{"$f":"Tabela1[[#This Row],[NM_LEIL]]&Tabela1[[#This Row],[CD_PARC_USIN]]","v":"27º Leilão de Energia Nova A-4937967"},"CERRADAO 2 I5","CERRADÃO 2 - CERRAD",937967,174,472,"27º Leilão de Energia Nova A-4","2022-20",{"$f":"COUNTIF(D:D,Tabela1[[#This Row],[CD_PARC_USIN]])","v":1}]
[{"$f":"Tabela1[[#This Row],[NM_LEIL]]&Tabela1[[#This Row],[CD_PARC_USIN]]","v":"27º Leilão de Energia Nova A-4939308"},"CGH CHALE I5","CHALÉ",939308,174,470,"27º Leilão de Energia Nova A-4","2022-30",{"$f":"COUNTIF(D:D,Tabela1[[#This Row],[CD_PARC_USIN]])","v":1}]
[{"$f":"Tabela1[[#This Row],[NM_LEIL]]&Tabela1[[#This Row],[CD_PARC_USIN]]","v":"7º Leilao de Energia Nova940548"},"PARNAIBA I","MARANHÃO IV L22",940548,17,27,"7º Leilao de Energia Nova","2013-15",{"$f":"COUNTIF(D:D,Tabela1[[#This Row],[CD_PARC_USIN]])","v":1}]
[{"$f":"Tabela1[[#This Row],[NM_LEIL]]&Tabela1[[#This Row],[CD_PARC_USIN]]","v":"7º Leilao de Energia Nova940568"},"PARNAIBA I","MARANHAO V L22",940568,17,27,"7º Leilao de Energia Nova","2013-15",{"$f":"COUNTIF(D:D,Tabela1[[#This Row],[CD_PARC_USIN]])","v":1}]
[{"$f":"Tabela1[[#This Row],[NM_LEIL]]&Tabela1[[#This Row],[CD_PARC_USIN]]","v":"7º Leilao de Energia Nova940588"},"UTE NOVAVENECIA","NOVA VENECIA 2 L22",940588,17,27,"7º Leilao de Energia Nova","2013-15",{"$f":"COUNTIF(D:D,Tabela1[[#This Row],[CD_PARC_USIN]])","v":1}]
[{"$f":"Tabela1[[#This Row],[NM_LEIL]]&Tabela1[[#This Row],[CD_PARC_USIN]]","v":"1º Procedimento Competitivo Simplificado944948"},"AMBAR UTE CUIABA 545-13","UTE CUIABÁ - TEMP",944948,200,547,"1º Procedimento Competitivo Simplificado","DISP2022-03",{"$f":"COUNTIF(D:D,Tabela1[[#This Row],[CD_PARC_USIN]])","v":1}]
[{"$f":"Tabela1[[#This Row],[NM_LEIL]]&Tabela1[[#This Row],[CD_PARC_USIN]]","v":"1º Procedimento Competitivo Simplificado946788"},"UTE FENIX I5","UTE FENIX",946788,200,548,"1º Procedimento Competitivo Simplificado","QTDE2022-03",{"$f":"COUNTIF(D:D,Tabela1[[#This Row],[CD_PARC_USIN]])","v":1}]
[{"$f":"Tabela1[[#This Row],[NM_LEIL]]&Tabela1[[#This Row],[CD_PARC_USIN]]","v":"1º Procedimento Competitivo Simplificado948551"},"UTE POVOACAO","POVOAÇÃO 1",948551,200,547,"1º Procedimento Competitivo Simplificado","DISP2022-03",{"$f":"COUNTIF(D:D,Tabela1[[#This Row],[CD_PARC_USIN]])","v":1}]
[{"$f":"Tabela1[[#This Row],[NM_LEIL]]&Tabela1[[#This Row],[CD_PARC_USIN]]","v":"1º Procedimento Competitivo Simplificado949022"},"SPE EPP II","EPP II",949022,200,547,"1º Procedimento Competitivo Simplificado","DISP2022-03",{"$f":"COUNTIF(D:D,Tabela1[[#This Row],[CD_PARC_USIN]])","v":1}]
[{"$f":"Tabela1[[#This Row],[NM_LEIL]]&Tabela1[[#This Row],[CD_PARC_USIN]]","v":"1º Procedimento Competitivo Simplificado949023"},"UFV BURITIS SPE I5","BURITIS ROVEMA",949023,200,548,"1º Procedimento Competitivo Simplificado","QTDE2022-03",{"$f":"COUNTIF(D:D,Tabela1[[#This Row],[CD_PARC_USIN]])","v":1}]
[{"$f":"Tabela1[[#This Row],[NM_LEIL]]&Tabela1[[#This Row],[CD_PARC_USIN]]","v":"1º Procedimento Competitivo Simplificado949024"},"KARPOWERSHIP BRASIL","PORSUD I",949024,200,547,"1º Procedimento Competitivo Simplificado","DISP2022-03",{"$f":"COUNTIF(D:D,Tabela1[[#This Row],[CD_PARC_USIN]])","v":1}]
[{"$f":"Tabela1[[#This Row],[NM_LEIL]]&Tabela1[[#This Row],[CD_PARC_USIN]]","v":"1º Procedimento Competitivo Simplificado949082"},"BARRA BONITA I","BARRA BONITA I",949082,200,547,"1º Procedimento Competitivo Simplificado","DISP2022-03",{"$f":"COUNTIF(D:D,Tabela1[[#This Row],[CD_PARC_USIN]])","v":1}]
[{"$f":"Tabela1[[#This Row],[NM_LEIL]]&Tabela1[[#This Row],[CD_PARC_USIN]]","v":"1º Procedimento Competitivo Simplificado949148"},"SPE EPP II","EDLUX X",949148,200,547,"1º Procedimento Competitivo Simplificado","DISP2022-03",{"$f":"COUNTIF(D:D,Tabela1[[#This Row],[CD_PARC_USIN]])","v":1}]
[{"$f":"Tabela1[[#This Row],[NM_LEIL]]&Tabela1[[#This Row],[CD_PARC_USIN]]","v":"29º Leilão de Energia Nova950634"},"OITIS 8 I50","Oitis 8",950634,178,485,"29º Leilão de Energia Nova","2023-20",{"$f":"COUNTIF(D:D,Tabela1[[#This Row],[CD_PARC_USIN]])","v":1}]
[{"$f":"Tabela1[[#This Row],[NM_LEIL]]&Tabela1[[#This Row],[CD_PARC_USIN]]","v":"29º Leilão de Energia Nova950635"},"OITIS 1 I5","Oitis 1",950635,178,485,"29º Leilão de Energia Nova","2023-20",{"$f":"COUNTIF(D:D,Tabela1[[#This Row],[CD_PARC_USIN]])","v":1}]
[{"$f":"Tabela1[[#This Row],[NM_LEIL]]&Tabela1[[#This Row],[CD_PARC_USIN]]","v":"26º Leilão de Energia Nova950649"},"UTE CAMBARA","Cambará",950649,173,468,"26º Leilão de Energia Nova","2023-25",{"$f":"COUNTIF(D:D,Tabela1[[#This Row],[CD_PARC_USIN]])","v":1}]
[{"$f":"Tabela1[[#This Row],[NM_LEIL]]&Tabela1[[#This Row],[CD_PARC_USIN]]","v":"26º Leilão de Energia Nova950650"},"FOZDOESTRELA I5","PCH Foz do Estrela",950650,173,466,"26º Leilão de Energia Nova","2023-30",{"$f":"COUNTIF(D:D,Tabela1[[#This Row],[CD_PARC_USIN]])","v":1}]
[{"$f":"Tabela1[[#This Row],[NM_LEIL]]&Tabela1[[#This Row],[CD_PARC_USIN]]","v":"29º Leilão de Energia Nova950651"},"JAIBA SE1 I5","Jaíba SE1",950651,178,486,"29º Leilão de Energia Nova","2023-20",{"$f":"COUNTIF(D:D,Tabela1[[#This Row],[CD_PARC_USIN]])","v":1}]
[{"$f":"Tabela1[[#This Row],[NM_LEIL]]&Tabela1[[#This Row],[CD_PARC_USIN]]","v":"26º Leilão de Energia Nova950668"},"MARLIM AZUL","Marlim Azul (Antiga ",950668,173,469,"26º Leilão de Energia Nova","2023-25",{"$f":"COUNTIF(D:D,Tabela1[[#This Row],[CD_PARC_USIN]])","v":1}]
[{"$f":"Tabela1[[#This Row],[NM_LEIL]]&Tabela1[[#This Row],[CD_PARC_USIN]]","v":"1º Procedimento Competitivo Simplificado951505"},"UTE PAULINIA VERDE","MP Paulinia",951505,200,547,"1º Procedimento Competitivo Simplificado","DISP2022-03",{"$f":"COUNTIF(D:D,Tabela1[[#This Row],[CD_PARC_USIN]])","v":1}]
[{"$f":"Tabela1[[#This Row],[NM_LEIL]]&Tabela1[[#This Row],[CD_PARC_USIN]]","v":"1º Procedimento Competitivo Simplificado951548"},"KARPOWERSHIP BRASIL","Karkey 019",951548,200,547,"1º Procedimento Competitivo Simplificado","DISP2022-03",{"$f":"COUNTIF(D:D,Tabela1[[#This Row],[CD_PARC_USIN]])","v":1}]
[{"$f":"Tabela1[[#This Row],[NM_LEIL]]&Tabela1[[#This Row],[CD_PARC_USIN]]","v":"1º Procedimento Competitivo Simplificado951549"},"SPE EPP 2","Rio de Janeiro I - E",951549,200,547,"1º Procedimento Competitivo Simplificado","DISP2022-03",{"$f":"COUNTIF(D:D,Tabela1[[#This Row],[CD_PARC_USIN]])","v":1}]
[{"$f":"Tabela1[[#This Row],[NM_LEIL]]&Tabela1[[#This Row],[CD_PARC_USIN]]","v":"1º Procedimento Competitivo Simplificado951550"},"SPE EPP 2","Rio de Janeiro I ",951550,200,547,"1º Procedimento Competitivo Simplificado","DISP2022-03",{"$f":"COUNTIF(D:D,Tabela1[[#This Row],[CD_PARC_USIN]])","v":1}]
[{"$f":"Tabela1[[#This Row],[NM_LEIL]]&Tabela1[[#This Row],[CD_PARC_USIN]]","v":"1º Procedimento Competitivo Simplificado951568"},"KARPOWERSHIP BRASIL","Karkey 013",951568,200,547,"1º Procedimento Competitivo Simplificado","DISP2022-03",{"$f":"COUNTIF(D:D,Tabela1[[#This Row],[CD_PARC_USIN]])","v":1}]
[{"$f":"Tabela1[[#This Row],[NM_LEIL]]&Tabela1[[#This Row],[CD_PARC_USIN]]","v":"1º Procedimento Competitivo Simplificado951569"},"KARPOWERSHIP BRASIL","PORSUD II",951569,200,547,"1º Procedimento Competitivo Simplificado","DISP2022-03",{"$f":"COUNTIF(D:D,Tabela1[[#This Row],[CD_PARC_USIN]])","v":1}]
[{"$f":"Tabela1[[#This Row],[NM_LEIL]]&Tabela1[[#This Row],[CD_PARC_USIN]]","v":"1º Procedimento Competitivo Simplificado951570"},"ROVEMA","RE TG 100 02 01",951570,200,547,"1º Procedimento Competitivo Simplificado","DISP2022-03",{"$f":"COUNTIF(D:D,Tabela1[[#This Row],[CD_PARC_USIN]])","v":1}]
[{"$f":"Tabela1[[#This Row],[NM_LEIL]]&Tabela1[[#This Row],[CD_PARC_USIN]]","v":"1º Procedimento Competitivo Simplificado951588"},"SPE EPP II","EPP IV",951588,200,547,"1º Procedimento Competitivo Simplificado","DISP2022-03",{"$f":"COUNTIF(D:D,Tabela1[[#This Row],[CD_PARC_USIN]])","v":1}]
[{"$f":"Tabela1[[#This Row],[NM_LEIL]]&Tabela1[[#This Row],[CD_PARC_USIN]]","v":"1º Procedimento Competitivo Simplificado951589"},"UTE VIANA","VIANA 1",951589,200,547,"1º Procedimento Competitivo Simplificado","DISP2022-03",{"$f":"COUNTIF(D:D,Tabela1[[#This Row],[CD_PARC_USIN]])","v":1}]
[{"$f":"Tabela1[[#This Row],[NM_LEIL]]&Tabela1[[#This Row],[CD_PARC_USIN]]","v":"1º Procedimento Competitivo Simplificado951869"},"UFV MACHADINHO SPE I5","MACHADINHO ROVEMA",951869,200,548,"1º Procedimento Competitivo Simplificado","QTDE2022-03",{"$f":"COUNTIF(D:D,Tabela1[[#This Row],[CD_PARC_USIN]])","v":1}]
[{"$f":"Tabela1[[#This Row],[NM_LEIL]]&Tabela1[[#This Row],[CD_PARC_USIN]]","v":"1º Procedimento Competitivo Simplificado951966"},"LINHARES GERA","LINHARES PCS",951966,200,547,"1º Procedimento Competitivo Simplificado","DISP2022-03",{"$f":"COUNTIF(D:D,Tabela1[[#This Row],[CD_PARC_USIN]])","v":2}]
[{"$f":"Tabela1[[#This Row],[NM_LEIL]]&Tabela1[[#This Row],[CD_PARC_USIN]]","v":"6º Leilão de Energia Nova951966"},"LINHARES GERA","LINHARES PCS",951966,16,26,"6º Leilão de Energia Nova","2011-15",{"$f":"COUNTIF(D:D,Tabela1[[#This Row],[CD_PARC_USIN]])","v":2}]
[{"$f":"Tabela1[[#This Row],[NM_LEIL]]&Tabela1[[#This Row],[CD_PARC_USIN]]","v":"7º Leilao de Energia Nova952659"},"UTE NOVAVENECIA","MC2 NOVAVENECIA2 L30",952659,17,27,"7º Leilao de Energia Nova","2013-15",{"$f":"COUNTIF(D:D,Tabela1[[#This Row],[CD_PARC_USIN]])","v":1}]
[{"$f":"Tabela1[[#This Row],[NM_LEIL]]&Tabela1[[#This Row],[CD_PARC_USIN]]","v":"1º Procedimento Competitivo Simplificado953148"},"UTE FENIX PRT17/21","UTE FENIX PRT 17_21",953148,200,548,"1º Procedimento Competitivo Simplificado","QTDE2022-03",{"$f":"COUNTIF(D:D,Tabela1[[#This Row],[CD_PARC_USIN]])","v":1}]
[{"$f":"Tabela1[[#This Row],[NM_LEIL]]&Tabela1[[#This Row],[CD_PARC_USIN]]","v":"29º Leilão de Energia Nova954855"},"CEMIG GERACAO POCO FUNDO I5","POÇO FUNDO EXPANSÃO",954855,178,484,"29º Leilão de Energia Nova","2023-30",{"$f":"COUNTIF(D:D,Tabela1[[#This Row],[CD_PARC_USIN]])","v":1}]
[{"$f":"Tabela1[[#This Row],[NM_LEIL]]&Tabela1[[#This Row],[CD_PARC_USIN]]","v":"1º Leilão de Energia Nova962326"},"PETROB PIE 1LN","CUBATÃO 23° 24° LEE",962326,5,12,"1º Leilão de Energia Nova","2010-15",{"$f":"COUNTIF(D:D,Tabela1[[#This Row],[CD_PARC_USIN]])","v":1}]